Workbook

Sheet Report - Building Blocks
A2: $ m nominal | C2: FY15 | D2: FY16 | E2: FY17 | F2: FY18 | G2: FY19
A4: Building block revenue requirement
A5: Return of capital | C5: ='Calc - RAB 2015-19'!BE6653/1000 -> 12.22972749 | D5: ='Calc - RAB 2015-19'!BF6653/1000 -> 12.60796478 | E5: ='Calc - RAB 2015-19'!BG6653/1000 -> 12.73797532 | F5: ='Calc - RAB 2015-19'!BH6653/1000 -> 12.45801074 | G5: ='Calc - RAB 2015-19'!BI6653/1000 -> 11.55912006
A6: Return on capital | C6: ='Calc - RAB 2015-19'!BK6653/1000 -> 10.15271731 | D6: ='Calc - RAB 2015-19'!BL6653/1000 -> 8.951758073 | E6: ='Calc - RAB 2015-19'!BM6653/1000 -> 7.713655931 | F6: ='Calc - RAB 2015-19'!BN6653/1000 -> 6.462786755 | G6: ='Calc - RAB 2015-19'!BO6653/1000 -> 5.2394101
A7: Total allowable revenue | C7: =SUM(C5:C6) -> 22.3824448 | D7: =SUM(D5:D6) -> 21.55972286 | E7: =SUM(E5:E6) -> 20.45163125 | F7: =SUM(F5:F6) -> 18.92079749 | G7: =SUM(G5:G6) -> 16.79853016

Sheet Report - Residual Value
B2: Residual Value ($ real FY15) | C2: "N/A" denotes that these assets have no residual value
B4: ='Calc - Residual Values 2'!B3 -> Bracket - 0.5 | C4: ='Calc - Residual Values 2'!J3 -> = 14.4559 x qty of assets x remaining life
B5: ='Calc - Residual Values 2'!B4 -> Bracket - 0.6 | C5: ='Calc - Residual Values 2'!J4 -> = 13.7783 x qty of assets x remaining life
B6: ='Calc - Residual Values 2'!B5 -> Bracket - 1.0 | C6: ='Calc - Residual Values 2'!J5 -> = 12.1972 x qty of assets x remaining life
B7: ='Calc - Residual Values 2'!B6 -> Bracket - 1.2 | C7: ='Calc - Residual Values 2'!J6 -> = 14.4559 x qty of assets x remaining life
B8: ='Calc - Residual Values 2'!B7 -> Bracket - 1.5 | C8: ='Calc - Residual Values 2'!J7 -> = 58.0496 x qty of assets x remaining life
B9: ='Calc - Residual Values 2'!B8 -> Bracket - 2.0 | C9: ='Calc - Residual Values 2'!J8 -> = 25.7496 x qty of assets x remaining life
B10: ='Calc - Residual Values 2'!B9 -> Bracket - 2.5 | C10: ='Calc - Residual Values 2'!J9 -> = 22.1356 x qty of assets x remaining life
B11: ='Calc - Residual Values 2'!B10 -> Bracket - 3.0 | C11: ='Calc - Residual Values 2'!J10 -> = 41.109 x qty of assets x remaining life
B12: ='Calc - Residual Values 2'!B11 -> Bracket - 3.5 | C12: ='Calc - Residual Values 2'!J11 -> = 40.6573 x qty of assets x remaining life
B13: ='Calc - Residual Values 2'!B12 -> Bracket - 4.0 | C13: ='Calc - Residual Values 2'!J12 -> = 54.4356 x qty of assets x remaining life
B14: ='Calc - Residual Values 2'!B13 -> Bracket - 4.5 | C14: ='Calc - Residual Values 2'!J13 -> = 44.9489 x qty of assets x remaining life
B15: ='Calc - Residual Values 2'!B14 -> Bracket - 5.0 | C15: ='Calc - Residual Values 2'!J14 -> = 65.0517 x qty of assets x remaining life
B16: ='Calc - Residual Values 2'!B15 -> Bracket - 6.0 | C16: ='Calc - Residual Values 2'!J15 -> = 65.5034 x qty of assets x remaining life
B17: ='Calc - Residual Values 2'!B16 -> Bracket - 6.5 | C17: ='Calc - Residual Values 2'!J16 -> = 101.1915 x qty of assets x remaining life
B18: ='Calc - Residual Values 2'!B17 -> Bracket - 7.0 | C18: ='Calc - Residual Values 2'!J17 -> = 101.1915 x qty of assets x remaining life
B19: ='Calc - Residual Values 2'!B18 -> Bracket - 8.0 | C19: ='Calc - Residual Values 2'!J18 -> = 101.1915 x qty of assets x remaining life
B20: ='Calc - Residual Values 2'!B19 -> Luminaire - 1x40W TF | C20: ='Calc - Residual Values 2'!J19 -> = 19.1062 x qty of assets x remaining life
B21: ='Calc - Residual Values 2'!B20 -> Luminaire - 1x80W TF | C21: ='Calc - Residual Values 2'!J20 -> = 14.8325 x qty of assets x remaining life
B22: ='Calc - Residual Values 2'!B21 -> Luminaire - 1000W MBF | C22: ='Calc - Residual Values 2'!J21 -> = 204.4158 x qty of assets x remaining life
B23: ='Calc - Residual Values 2'!B22 -> Luminaire - 1000W SON | C23: ='Calc - Residual Values 2'!J22 -> = 204.4158 x qty of assets x remaining life
B24: ='Calc - Residual Values 2'!B23 -> Luminaire - 1000W SON FLOODLIGHT | C24: ='Calc - Residual Values 2'!J23 -> = 158.5002 x qty of assets x remaining life
B25: ='Calc - Residual Values 2'!B24 -> Luminaire - 1000W/1500W MBI FLOODLIG | C25: ='Calc - Residual Values 2'!J24 -> = 231.7646 x qty of assets x remaining life
B26: ='Calc - Residual Values 2'!B25 -> Luminaire - 100W MBI | C26: ='Calc - Residual Values 2'!J25 -> = 46.6881 x qty of assets x remaining life
B27: ='Calc - Residual Values 2'!B26 -> Luminaire - 100W MBI FLOODLIGHT | C27: ='Calc - Residual Values 2'!J26 -> = 54.5892 x qty of assets x remaining life
B28: ='Calc - Residual Values 2'!B27 -> Luminaire - 100W SON | C28: ='Calc - Residual Values 2'!J27 -> = 52.8545 x qty of assets x remaining life
B29: ='Calc - Residual Values 2'!B28 -> Luminaire - 100W SON - PARKVILLE | C29: ='Calc - Residual Values 2'!J28 -> N/A
B30: ='Calc - Residual Values 2'!B29 -> Luminaire - 100W SON FLOODLIGHT | C30: ='Calc - Residual Values 2'!J29 -> = 100.3196 x qty of assets x remaining life
B31: ='Calc - Residual Values 2'!B30 -> Luminaire - 100W SON -PLAIN | C31: ='Calc - Residual Values 2'!J30 -> = 52.8545 x qty of assets x remaining life
B32: ='Calc - Residual Values 2'!B31 -> Luminaire - 125W MBF | C32: ='Calc - Residual Values 2'!J31 -> = 25.9755 x qty of assets x remaining life
B33: ='Calc - Residual Values 2'!B32 -> Luminaire - 125W MBF - BOURKE HILL | C33: ='Calc - Residual Values 2'!J32 -> = 154.1905 x qty of assets x remaining life
B34: ='Calc - Residual Values 2'!B33 -> Luminaire - 125W MBF - HYDE PARK | C34: ='Calc - Residual Values 2'!J33 -> N/A
B35: ='Calc - Residual Values 2'!B34 -> Luminaire - 125W MBF - NOSTALGIA | C35: ='Calc - Residual Values 2'!J34 -> N/A
B36: ='Calc - Residual Values 2'!B35 -> Luminaire - 125W MBF - PARKVILLE | C36: ='Calc - Residual Values 2'!J35 -> = 203.2864 x qty of assets x remaining life
B37: ='Calc - Residual Values 2'!B36 -> Luminaire - 125W MBF BOLLARD | C37: ='Calc - Residual Values 2'!J36 -> N/A
B38: ='Calc - Residual Values 2'!B37 -> Luminaire - 125W MBF -PLAIN | C38: ='Calc - Residual Values 2'!J37 -> = 25.9755 x qty of assets x remaining life
B39: ='Calc - Residual Values 2'!B38 -> Luminaire - 125W/250W MBF FLOODLIGHT | C39: ='Calc - Residual Values 2'!J38 -> = 49.3098 x qty of assets x remaining life
B40: ='Calc - Residual Values 2'!B39 -> Luminaire - 135W SOX | C40: ='Calc - Residual Values 2'!J39 -> = 59.8566 x qty of assets x remaining life
B41: ='Calc - Residual Values 2'!B40 -> Luminaire - 150W SON | C41: ='Calc - Residual Values 2'!J40 -> = 53.758 x qty of assets x remaining life
B42: ='Calc - Residual Values 2'!B41 -> Luminaire - 150W SON - HYDE PARK | C42: ='Calc - Residual Values 2'!J41 -> = 107.7418 x qty of assets x remaining life
B43: ='Calc - Residual Values 2'!B42 -> Luminaire - 150W SON - PARKVILLE | C43: ='Calc - Residual Values 2'!J42 -> = 226.9761 x qty of assets x remaining life
B44: ='Calc - Residual Values 2'!B43 -> Luminaire - 150W SON - PARKWAY 1 | C44: ='Calc - Residual Values 2'!J43 -> = 73.409 x qty of assets x remaining life
B45: ='Calc - Residual Values 2'!B44 -> Luminaire - 150W SON FLOODLIGHT | C45: ='Calc - Residual Values 2'!J44 -> = 71.1503 x qty of assets x remaining life
B46: ='Calc - Residual Values 2'!B45 -> Luminaire - 150W SON GEC 'BOSTON 3' | C46: ='Calc - Residual Values 2'!J45 -> = 203.2864 x qty of assets x remaining life
B47: ='Calc - Residual Values 2'!B46 -> Luminaire - 150W/250W MBI FLOODLIGHT | C47: ='Calc - Residual Values 2'!J46 -> = 135.0364 x qty of assets x remaining life
B48: ='Calc - Residual Values 2'!B47 -> Luminaire - 180W SOX | C48: ='Calc - Residual Values 2'!J47 -> N/A
B49: ='Calc - Residual Values 2'!B48 -> Luminaire - 2x14W TF - T5 PIERLITE M | C49: ='Calc - Residual Values 2'!J48 -> = 44.8924 x qty of assets x remaining life
B50: ='Calc - Residual Values 2'!B49 -> Luminaire - 2x175W MBF - PARKWAY 2 | C50: ='Calc - Residual Values 2'!J49 -> N/A
B51: ='Calc - Residual Values 2'!B50 -> Luminaire - 2x20W TF | C51: ='Calc - Residual Values 2'!J50 -> = 18.9305 x qty of assets x remaining life
B52: ='Calc - Residual Values 2'!B51 -> Luminaire - 2x20W TF - WAVERLEY | C52: ='Calc - Residual Values 2'!J51 -> N/A
B53: ='Calc - Residual Values 2'!B52 -> Luminaire - 2x250W SON FLOODLIGHT | C53: ='Calc - Residual Values 2'!J52 -> = 119.7131 x qty of assets x remaining life
B54: ='Calc - Residual Values 2'!B53 -> Luminaire - 2x26W TF MACQUARIE DEC. | C54: ='Calc - Residual Values 2'!J53 -> N/A
B55: ='Calc - Residual Values 2'!B54 -> Luminaire - 2x400W MBF - PARKWAY 2 | C55: ='Calc - Residual Values 2'!J54 -> N/A
B56: ='Calc - Residual Values 2'!B55 -> Luminaire - 2x400W MBI FLOODLIGHT | C56: ='Calc - Residual Values 2'!J55 -> N/A
B57: ='Calc - Residual Values 2'!B56 -> Luminaire - 2x400W SON FLOODLIGHT | C57: ='Calc - Residual Values 2'!J56 -> N/A
B58: ='Calc - Residual Values 2'!B57 -> Luminaire - 2x40W TF | C58: ='Calc - Residual Values 2'!J57 -> = 47.8852 x qty of assets x remaining life
B59: ='Calc - Residual Values 2'!B58 -> Luminaire - 2x70W SON - BOURKE HILL | C59: ='Calc - Residual Values 2'!J58 -> N/A
B60: ='Calc - Residual Values 2'!B59 -> Luminaire - 2x80W MBF - BOURKE HILL | C60: ='Calc - Residual Values 2'!J59 -> = 129.8774 x qty of assets x remaining life
B61: ='Calc - Residual Values 2'!B60 -> Luminaire - 250W MBF | C61: ='Calc - Residual Values 2'!J60 -> = 51.951 x qty of assets x remaining life
B62: ='Calc - Residual Values 2'!B61 -> Luminaire - 250W MBF - PARKVILLE | C62: ='Calc - Residual Values 2'!J61 -> N/A
B63: ='Calc - Residual Values 2'!B62 -> Luminaire - 250W MBF - PARKWAY 1 | C63: ='Calc - Residual Values 2'!J62 -> = 73.409 x qty of assets x remaining life
B64: ='Calc - Residual Values 2'!B63 -> Luminaire - 250W MBI - SMARTPOLE | C64: ='Calc - Residual Values 2'!J63 -> N/A
B65: ='Calc - Residual Values 2'!B64 -> Luminaire - 250W SON | C65: ='Calc - Residual Values 2'!J64 -> = 53.758 x qty of assets x remaining life
B66: ='Calc - Residual Values 2'!B65 -> Luminaire - 250W SON - PARKVILLE | C66: ='Calc - Residual Values 2'!J65 -> = 249.0033 x qty of assets x remaining life
B67: ='Calc - Residual Values 2'!B66 -> Luminaire - 250W SON - PARKWAY 1 | C67: ='Calc - Residual Values 2'!J66 -> = 73.409 x qty of assets x remaining life
B68: ='Calc - Residual Values 2'!B67 -> Luminaire - 250W SON FLOODLIGHT | C68: ='Calc - Residual Values 2'!J67 -> = 71.1503 x qty of assets x remaining life
B69: ='Calc - Residual Values 2'!B68 -> Luminaire - 250W SON GEC 'BOSTON 3' | C69: ='Calc - Residual Values 2'!J68 -> = 208.0614 x qty of assets x remaining life
B70: ='Calc - Residual Values 2'!B69 -> Support - 2ND LIGHT NON-TRL | C70: ='Calc - Residual Values 2'!J69 -> N/A
B71: ='Calc - Residual Values 2'!B70 -> Support - 2ND LIGHT TRL | C71: ='Calc - Residual Values 2'!J70 -> N/A
B72: ='Calc - Residual Values 2'!B71 -> Luminaire - 2X14W TF - T5 PIERLIGHT | C72: ='Calc - Residual Values 2'!J71 -> = 44.8924 x qty of assets x remaining life
B73: ='Calc - Residual Values 2'!B72 -> Luminaire - 3x400W MBF - PARKWAY 3 | C73: ='Calc - Residual Values 2'!J72 -> N/A
B74: ='Calc - Residual Values 2'!B73 -> Luminaire - 4x1000W MBF | C74: ='Calc - Residual Values 2'!J73 -> N/A
B75: ='Calc - Residual Values 2'!B74 -> Luminaire - 4x20W TF | C75: ='Calc - Residual Values 2'!J74 -> = 95.579 x qty of assets x remaining life
B76: ='Calc - Residual Values 2'!B75 -> Luminaire - 4x20W TF - WAVERLEY | C76: ='Calc - Residual Values 2'!J75 -> = 95.579 x qty of assets x remaining life
B77: ='Calc - Residual Values 2'!B76 -> Luminaire - 4x250W SON | C77: ='Calc - Residual Values 2'!J76 -> = 140.7826 x qty of assets x remaining life
B78: ='Calc - Residual Values 2'!B77 -> Luminaire - 4x40W TF | C78: ='Calc - Residual Values 2'!J77 -> N/A
B79: ='Calc - Residual Values 2'!B78 -> Luminaire - 4x40W TF - WAVERLEY | C79: ='Calc - Residual Values 2'!J78 -> = 108.7857 x qty of assets x remaining life
B80: ='Calc - Residual Values 2'!B79 -> Luminaire - 4x600W SON | C80: ='Calc - Residual Values 2'!J79 -> = 239.4262 x qty of assets x remaining life
B81: ='Calc - Residual Values 2'!B80 -> Luminaire - 400W MBF | C81: ='Calc - Residual Values 2'!J80 -> = 32.0063 x qty of assets x remaining life
B82: ='Calc - Residual Values 2'!B81 -> Luminaire - 400W MBF - PARKWAY 1 | C82: ='Calc - Residual Values 2'!J81 -> = 119.7131 x qty of assets x remaining life
B83: ='Calc - Residual Values 2'!B82 -> Luminaire - 400W MBF FLOODLIGHT | C83: ='Calc - Residual Values 2'!J82 -> = 136.473 x qty of assets x remaining life
B84: ='Calc - Residual Values 2'!B83 -> Luminaire - 400W MBI - SMARTPOLE | C84: ='Calc - Residual Values 2'!J83 -> N/A
B85: ='Calc - Residual Values 2'!B84 -> Luminaire - 400W MBI FLOODLIGHT | C85: ='Calc - Residual Values 2'!J84 -> = 90.982 x qty of assets x remaining life
B86: ='Calc - Residual Values 2'!B85 -> Luminaire - 400W SON | C86: ='Calc - Residual Values 2'!J85 -> = 62.567 x qty of assets x remaining life
B87: ='Calc - Residual Values 2'!B86 -> Luminaire - 400W SON - PARKWAY 1 | C87: ='Calc - Residual Values 2'!J86 -> = 73.409 x qty of assets x remaining life
B88: ='Calc - Residual Values 2'!B87 -> Luminaire - 400W SON FLOODLIGHT | C88: ='Calc - Residual Values 2'!J87 -> = 71.1503 x qty of assets x remaining life
B89: ='Calc - Residual Values 2'!B88 -> Luminaire - 40W SOX | C89: ='Calc - Residual Values 2'!J88 -> N/A
B90: ='Calc - Residual Values 2'!B89 -> Luminaire - 42W MBF SYLVANIA SUB ECO | C90: ='Calc - Residual Values 2'!J89 -> = 38.3985 x qty of assets x remaining life
B91: ='Calc - Residual Values 2'!B90 -> Luminaire - 500W MBI FLOODLIGHT | C91: ='Calc - Residual Values 2'!J90 -> = 128.3325 x qty of assets x remaining life
B92: ='Calc - Residual Values 2'!B91 -> Luminaire - 50W MBF | C92: ='Calc - Residual Values 2'!J91 -> = 20.3286 x qty of assets x remaining life
B93: ='Calc - Residual Values 2'!B92 -> Luminaire - 50W MBF - BOURKE HILL | C93: ='Calc - Residual Values 2'!J92 -> = 129.8774 x qty of assets x remaining life
B94: ='Calc - Residual Values 2'!B93 -> Luminaire - 50W MBF - NOSTALGIA | C94: ='Calc - Residual Values 2'!J93 -> = 129.8774 x qty of assets x remaining life
B95: ='Calc - Residual Values 2'!B94 -> Luminaire - 50W MBF - PLAIN | C95: ='Calc - Residual Values 2'!J94 -> = 20.3286 x qty of assets x remaining life
B96: ='Calc - Residual Values 2'!B95 -> Luminaire - 50W MBF BOLLARD | C96: ='Calc - Residual Values 2'!J95 -> N/A
B97: ='Calc - Residual Values 2'!B96 -> Luminaire - 50W SON | C97: ='Calc - Residual Values 2'!J96 -> = 18.5217 x qty of assets x remaining life
B98: ='Calc - Residual Values 2'!B97 -> Luminaire - 50W SON - BOURKE HILL | C98: ='Calc - Residual Values 2'!J97 -> N/A
B99: ='Calc - Residual Values 2'!B98 -> Luminaire - 50W SON - NOSTALGIA | C99: ='Calc - Residual Values 2'!J98 -> = 48.5629 x qty of assets x remaining life
B100: ='Calc - Residual Values 2'!B99 -> Luminaire - 60W SOX | C100: ='Calc - Residual Values 2'!J99 -> N/A
B101: ='Calc - Residual Values 2'!B100 -> Luminaire - 700W MBF | C101: ='Calc - Residual Values 2'!J100 -> = 59.4048 x qty of assets x remaining life
B102: ='Calc - Residual Values 2'!B101 -> Luminaire - 70W MBI | C102: ='Calc - Residual Values 2'!J101 -> = 34.238 x qty of assets x remaining life
B103: ='Calc - Residual Values 2'!B102 -> Luminaire - 70W MBI - MACQUARIE DEC. | C103: ='Calc - Residual Values 2'!J102 -> N/A
B104: ='Calc - Residual Values 2'!B103 -> Luminaire - 70W SON | C104: ='Calc - Residual Values 2'!J103 -> = 25.7496 x qty of assets x remaining life
B105: ='Calc - Residual Values 2'!B104 -> Luminaire - 70W SON - BOURKE HILL | C105: ='Calc - Residual Values 2'!J104 -> = 149.402 x qty of assets x remaining life
B106: ='Calc - Residual Values 2'!B105 -> Luminaire - 70W SON - GEC BOSTON 2 | C106: ='Calc - Residual Values 2'!J105 -> = 180.6991 x qty of assets x remaining life
B107: ='Calc - Residual Values 2'!B106 -> Luminaire - 70W SON - NOSTALGIA | C107: ='Calc - Residual Values 2'!J106 -> = 136.9518 x qty of assets x remaining life
B108: ='Calc - Residual Values 2'!B107 -> Luminaire - 70W SON - PARKVILLE | C108: ='Calc - Residual Values 2'!J107 -> N/A
B109: ='Calc - Residual Values 2'!B108 -> Luminaire - 70W SON - REGAL/FLINDERS | C109: ='Calc - Residual Values 2'!J108 -> N/A
B110: ='Calc - Residual Values 2'!B109 -> Luminaire - 70W SON BOLLARD | C110: ='Calc - Residual Values 2'!J109 -> = 96.2494 x qty of assets x remaining life
B111: ='Calc - Residual Values 2'!B110 -> Luminaire - 70W SON FLOODLIGHT | C111: ='Calc - Residual Values 2'!J110 -> = 38.2723 x qty of assets x remaining life
B112: ='Calc - Residual Values 2'!B111 -> Luminaire - 70W SON -PLAIN | C112: ='Calc - Residual Values 2'!J111 -> = 25.7496 x qty of assets x remaining life
B113: ='Calc - Residual Values 2'!B112 -> Luminaire - 750W MBI FLOODLIGHT | C113: ='Calc - Residual Values 2'!J112 -> N/A
B114: ='Calc - Residual Values 2'!B113 -> Luminaire - 80W MBF | C114: ='Calc - Residual Values 2'!J113 -> = 17.7537 x qty of assets x remaining life
B115: ='Calc - Residual Values 2'!B114 -> Luminaire - 80W MBF - PLAIN | C115: ='Calc - Residual Values 2'!J114 -> = 17.7537 x qty of assets x remaining life
B116: ='Calc - Residual Values 2'!B115 -> Luminaire - 80W MBF - BEGA+CURVE BRA | C116: ='Calc - Residual Values 2'!J115 -> = 234.3983 x qty of assets x remaining life
B117: ='Calc - Residual Values 2'!B116 -> Luminaire - 80W MBF - BOURKE HILL | C117: ='Calc - Residual Values 2'!J116 -> = 91.2214 x qty of assets x remaining life
B118: ='Calc - Residual Values 2'!B117 -> Luminaire - 80W MBF - GEC BOSTON 2 | C118: ='Calc - Residual Values 2'!J117 -> = 180.6991 x qty of assets x remaining life
B119: ='Calc - Residual Values 2'!B118 -> Luminaire - 80W MBF - NOSTALGIA | C119: ='Calc - Residual Values 2'!J118 -> = 127.1353 x qty of assets x remaining life
B120: ='Calc - Residual Values 2'!B119 -> Luminaire - 80W MBF - REGAL/FLINDERS | C120: ='Calc - Residual Values 2'!J119 -> = 258.5803 x qty of assets x remaining life
B121: ='Calc - Residual Values 2'!B120 -> Luminaire - 80W MBF - SYLVANIA SUBUR | C121: ='Calc - Residual Values 2'!J120 -> = 17.7537 x qty of assets x remaining life
B122: ='Calc - Residual Values 2'!B121 -> Luminaire - 80W MBF BOLLARD | C122: ='Calc - Residual Values 2'!J121 -> = 69.4336 x qty of assets x remaining life
B123: ='Calc - Residual Values 2'!B122 -> Luminaire - 80W MBF TOORAK | C123: ='Calc - Residual Values 2'!J122 -> = 112.9369 x qty of assets x remaining life
B124: ='Calc - Residual Values 2'!B123 -> Luminaire - 90W SOX | C124: ='Calc - Residual Values 2'!J123 -> = 95.7705 x qty of assets x remaining life
B125: ='Calc - Residual Values 2'!B124 -> Support - BOLLARD | C125: ='Calc - Residual Values 2'!J124 -> = 56.0941 x qty of assets x remaining life
B126: ='Calc - Residual Values 2'!B125 -> Bracket - C4 | C126: ='Calc - Residual Values 2'!J125 -> = 143.6557 x qty of assets x remaining life
B127: ='Calc - Residual Values 2'!B126 -> Support - COLUMN 10.5M-13.5M | C127: ='Calc - Residual Values 2'!J126 -> = 166.7594 x qty of assets x remaining life
B128: ='Calc - Residual Values 2'!B127 -> Support - COLUMN 14M-15M | C128: ='Calc - Residual Values 2'!J127 -> = 166.7594 x qty of assets x remaining life
B129: ='Calc - Residual Values 2'!B128 -> Support - COLUMN 2.5M-3.5M | C129: ='Calc - Residual Values 2'!J128 -> = 61.4377 x qty of assets x remaining life
B130: ='Calc - Residual Values 2'!B129 -> Support - COLUMN 4-6.5M ORION WATE | C130: ='Calc - Residual Values 2'!J129 -> = 82.089 x qty of assets x remaining life
B131: ='Calc - Residual Values 2'!B130 -> Support - COLUMN 4M-6.5M | C131: ='Calc - Residual Values 2'!J130 -> = 115.3893 x qty of assets x remaining life
B132: ='Calc - Residual Values 2'!B131 -> Support - COLUMN 7M-10M | C132: ='Calc - Residual Values 2'!J131 -> = 98.6101 x qty of assets x remaining life
B133: ='Calc - Residual Values 2'!B132 -> Support - DECORATIVE COLUMN | C133: ='Calc - Residual Values 2'!J132 -> = 136.815 x qty of assets x remaining life
B134: ='Calc - Residual Values 2'!B133 -> Support - DEDICATED SUPPORT & COND | C134: ='Calc - Residual Values 2'!J133 -> = 76.1517 x qty of assets x remaining life
B135: ='Calc - Residual Values 2'!B134 -> Support - HYDE PARK STANDARD | C135: ='Calc - Residual Values 2'!J134 -> = 214.5156 x qty of assets x remaining life
B136: ='Calc - Residual Values 2'!B135 -> Lamp - INC1x100 | C136: ='Calc - Residual Values 2'!J135 -> N/A
B137: ='Calc - Residual Values 2'!B136 -> Lamp - INC1x1000 | C137: ='Calc - Residual Values 2'!J136 -> N/A
B138: ='Calc - Residual Values 2'!B137 -> Lamp - INC1x1440 | C138: ='Calc - Residual Values 2'!J137 -> N/A
B139: ='Calc - Residual Values 2'!B138 -> Lamp - INC1x150 | C139: ='Calc - Residual Values 2'!J138 -> N/A
B140: ='Calc - Residual Values 2'!B139 -> Lamp - INC1x200 | C140: ='Calc - Residual Values 2'!J139 -> N/A
B141: ='Calc - Residual Values 2'!B140 -> Lamp - INC1x300 | C141: ='Calc - Residual Values 2'!J140 -> N/A
B142: ='Calc - Residual Values 2'!B141 -> Lamp - INC1x40 | C142: ='Calc - Residual Values 2'!J141 -> N/A
B143: ='Calc - Residual Values 2'!B142 -> Lamp - INC1x500 | C143: ='Calc - Residual Values 2'!J142 -> N/A
B144: ='Calc - Residual Values 2'!B143 -> Lamp - INC1x60 | C144: ='Calc - Residual Values 2'!J143 -> N/A
B145: ='Calc - Residual Values 2'!B144 -> Lamp - INC1x75 | C145: ='Calc - Residual Values 2'!J144 -> N/A
B146: ='Calc - Residual Values 2'!B145 -> Lamp - INC3x100 | C146: ='Calc - Residual Values 2'!J145 -> N/A
B147: ='Calc - Residual Values 2'!B146 -> Luminaire - INCANDESCENT | C147: ='Calc - Residual Values 2'!J146 -> = 7.1828 x qty of assets x remaining life
B148: ='Calc - Residual Values 2'!B147 -> Support - MACQUARIE STANDARD | C148: ='Calc - Residual Values 2'!J147 -> = 66.8587 x qty of assets x remaining life
B149: ='Calc - Residual Values 2'!B148 -> Support - MAST 15.5M-30M | C149: ='Calc - Residual Values 2'!J148 -> = 109.452 x qty of assets x remaining life
B150: ='Calc - Residual Values 2'!B149 -> Support - MAST 23M | C150: ='Calc - Residual Values 2'!J149 -> = 109.452 x qty of assets x remaining life
B151: ='Calc - Residual Values 2'!B150 -> Support - MAST 25M | C151: ='Calc - Residual Values 2'!J150 -> = 109.452 x qty of assets x remaining life
B152: ='Calc - Residual Values 2'!B151 -> Lamp - MBF1x1000 | C152: ='Calc - Residual Values 2'!J151 -> N/A
B153: ='Calc - Residual Values 2'!B152 -> Lamp - MBF1x125 | C153: ='Calc - Residual Values 2'!J152 -> N/A
B154: ='Calc - Residual Values 2'!B153 -> Lamp - MBF1x250 | C154: ='Calc - Residual Values 2'!J153 -> N/A
B155: ='Calc - Residual Values 2'!B154 -> Lamp - MBF1x400 | C155: ='Calc - Residual Values 2'!J154 -> N/A
B156: ='Calc - Residual Values 2'!B155 -> Lamp - MBF1x42 | C156: ='Calc - Residual Values 2'!J155 -> N/A
B157: ='Calc - Residual Values 2'!B156 -> Lamp - MBF1x50 | C157: ='Calc - Residual Values 2'!J156 -> N/A
B158: ='Calc - Residual Values 2'!B157 -> Lamp - MBF1x500 | C158: ='Calc - Residual Values 2'!J157 -> N/A
B159: ='Calc - Residual Values 2'!B158 -> Lamp - MBF1x700 | C159: ='Calc - Residual Values 2'!J158 -> N/A
B160: ='Calc - Residual Values 2'!B159 -> Lamp - MBF1x80 | C160: ='Calc - Residual Values 2'!J159 -> N/A
B161: ='Calc - Residual Values 2'!B160 -> Lamp - MBF1x800 | C161: ='Calc - Residual Values 2'!J160 -> N/A
B162: ='Calc - Residual Values 2'!B161 -> Lamp - MBF2x125 | C162: ='Calc - Residual Values 2'!J161 -> N/A
B163: ='Calc - Residual Values 2'!B162 -> Lamp - MBF2x160 | C163: ='Calc - Residual Values 2'!J162 -> N/A
B164: ='Calc - Residual Values 2'!B163 -> Lamp - MBF2x175 | C164: ='Calc - Residual Values 2'!J163 -> N/A
B165: ='Calc - Residual Values 2'!B164 -> Lamp - MBF2x400 | C165: ='Calc - Residual Values 2'!J164 -> N/A
B166: ='Calc - Residual Values 2'!B165 -> Lamp - MBF2x80 | C166: ='Calc - Residual Values 2'!J165 -> N/A
B167: ='Calc - Residual Values 2'!B166 -> Lamp - MBF3x160 | C167: ='Calc - Residual Values 2'!J166 -> N/A
B168: ='Calc - Residual Values 2'!B167 -> Lamp - MBF3x250 | C168: ='Calc - Residual Values 2'!J167 -> N/A
B169: ='Calc - Residual Values 2'!B168 -> Lamp - MBF3x400 | C169: ='Calc - Residual Values 2'!J168 -> N/A
B170: ='Calc - Residual Values 2'!B169 -> Lamp - MBF3x80 | C170: ='Calc - Residual Values 2'!J169 -> N/A
B171: ='Calc - Residual Values 2'!B170 -> Lamp - MBF4x1000 | C171: ='Calc - Residual Values 2'!J170 -> N/A
B172: ='Calc - Residual Values 2'!B171 -> Lamp - MBF4x80 | C172: ='Calc - Residual Values 2'!J171 -> N/A
B173: ='Calc - Residual Values 2'!B172 -> Lamp - MBF6x125 | C173: ='Calc - Residual Values 2'!J172 -> N/A
B174: ='Calc - Residual Values 2'!B173 -> Lamp - MBF6x160 | C174: ='Calc - Residual Values 2'!J173 -> N/A
B175: ='Calc - Residual Values 2'!B174 -> Lamp - MBF9x160 | C175: ='Calc - Residual Values 2'!J174 -> N/A
B176: ='Calc - Residual Values 2'!B175 -> Lamp - MBI1x100 | C176: ='Calc - Residual Values 2'!J175 -> N/A
B177: ='Calc - Residual Values 2'!B176 -> Lamp - MBI1x1000 | C177: ='Calc - Residual Values 2'!J176 -> N/A
B178: ='Calc - Residual Values 2'!B177 -> Lamp - MBI1x150 | C178: ='Calc - Residual Values 2'!J177 -> N/A
B179: ='Calc - Residual Values 2'!B178 -> Lamp - MBI1x1500 | C179: ='Calc - Residual Values 2'!J178 -> N/A
B180: ='Calc - Residual Values 2'!B179 -> Lamp - MBI1x250 | C180: ='Calc - Residual Values 2'!J179 -> N/A
B181: ='Calc - Residual Values 2'!B180 -> Lamp - MBI1x3745 | C181: ='Calc - Residual Values 2'!J180 -> N/A
B182: ='Calc - Residual Values 2'!B181 -> Lamp - MBI1x400 | C182: ='Calc - Residual Values 2'!J181 -> N/A
B183: ='Calc - Residual Values 2'!B182 -> Lamp - MBI1x500 | C183: ='Calc - Residual Values 2'!J182 -> N/A
B184: ='Calc - Residual Values 2'!B183 -> Lamp - MBI1x70 | C184: ='Calc - Residual Values 2'!J183 -> N/A
B185: ='Calc - Residual Values 2'!B184 -> Lamp - MBI2x400 | C185: ='Calc - Residual Values 2'!J184 -> N/A
B186: ='Calc - Residual Values 2'!B185 -> Lamp - MBI4x150 | C186: ='Calc - Residual Values 2'!J185 -> N/A
B187: ='Calc - Residual Values 2'!B186 -> Bracket - NIL | C187: ='Calc - Residual Values 2'!J186 -> N/A
B188: ='Calc - Residual Values 2'!B187 -> Connection - O/U | C188: ='Calc - Residual Values 2'!J187 -> = 21.5122 x qty of assets x remaining life
B189: ='Calc - Residual Values 2'!B188 -> Connection - OH | C189: ='Calc - Residual Values 2'!J188 -> N/A
B190: ='Calc - Residual Values 2'!B189 -> Connection - OH2 | C190: ='Calc - Residual Values 2'!J189 -> N/A
B191: ='Calc - Residual Values 2'!B190 -> Connection - OHS | C191: ='Calc - Residual Values 2'!J190 -> N/A
B192: ='Calc - Residual Values 2'!B191 -> Support - ORION DOUBLE ARM | C192: ='Calc - Residual Values 2'!J191 -> = 45.4032 x qty of assets x remaining life
B193: ='Calc - Residual Values 2'!B192 -> Support - POLO 10.5M DECORATIVE 2M | C193: ='Calc - Residual Values 2'!J192 -> = 90.3495 x qty of assets x remaining life
B194: ='Calc - Residual Values 2'!B193 -> Support - POLO 4.5M DECORATIVE 1.2 | C194: ='Calc - Residual Values 2'!J193 -> = 90.3495 x qty of assets x remaining life
B195: ='Calc - Residual Values 2'!B194 -> Support - PRIVATE | C195: ='Calc - Residual Values 2'!J194 -> N/A
B196: ='Calc - Residual Values 2'!B195 -> Support - ROCKS STANDARD | C196: ='Calc - Residual Values 2'!J195 -> = 93.7273 x qty of assets x remaining life
B197: ='Calc - Residual Values 2'!B196 -> Support - SMARTPOLE A | C197: ='Calc - Residual Values 2'!J196 -> N/A
B198: ='Calc - Residual Values 2'!B197 -> Support - SMARTPOLE AB | C198: ='Calc - Residual Values 2'!J197 -> N/A
B199: ='Calc - Residual Values 2'!B198 -> Support - SMARTPOLE B | C199: ='Calc - Residual Values 2'!J198 -> N/A
B200: ='Calc - Residual Values 2'!B199 -> Support - SMARTPOLE C | C200: ='Calc - Residual Values 2'!J199 -> N/A
B201: ='Calc - Residual Values 2'!B200 -> Bracket - SMARTPOLE DOUBLE | C201: ='Calc - Residual Values 2'!J200 -> N/A
B202: ='Calc - Residual Values 2'!B201 -> Bracket - SMARTPOLE SINGLE LONG | C202: ='Calc - Residual Values 2'!J201 -> N/A
... 84 more rows

Sheet Report - Charges
B2: Customer Capital Charges ($'000 nominal) | C2: ='Calc - Customer Charges'!X4 -> FY15 | D2: ='Calc - Customer Charges'!Y4 -> FY16 | E2: ='Calc - Customer Charges'!Z4 -> FY17 | F2: ='Calc - Customer Charges'!AA4 -> FY18 | G2: ='Calc - Customer Charges'!AB4 -> FY19 | H2: X-Factor
B4: ='Calc - Customer Charges'!A6 -> Customer 1 | C4: ='Calc - Customer Charges'!X6 -> 279725.29 | D4: ='Calc - Customer Charges'!Y6 -> 211219.4085 | E4: ='Calc - Customer Charges'!Z6 -> 159490.901 | F4: ='Calc - Customer Charges'!AA6 -> 120430.9192 | G4: ='Calc - Customer Charges'!AB6 -> 90936.88853 | H4: ='Calc - Customer Charges'!AF6 -> -0.2633211117
B5: ='Calc - Customer Charges'!A7 -> Customer 2 | C5: ='Calc - Customer Charges'!X7 -> 61.95 | D5: ='Calc - Customer Charges'!Y7 -> 0.001197525392 | E5: ='Calc - Customer Charges'!Z7 -> 2.31487823e-08 | F5: ='Calc - Customer Charges'!AA7 -> 4.474778788e-13 | G5: ='Calc - Customer Charges'!AB7 -> 8.649977757e-18 | H5: ='Calc - Customer Charges'!AF7 -> -0.999981141
B6: ='Calc - Customer Charges'!A8 -> Customer 3 | C6: ='Calc - Customer Charges'!X8 -> 488959.33 | D6: ='Calc - Customer Charges'!Y8 -> 477006.0349 | E6: ='Calc - Customer Charges'!Z8 -> 465344.9549 | F6: ='Calc - Customer Charges'!AA8 -> 453968.9463 | G6: ='Calc - Customer Charges'!AB8 -> 442871.0401 | H6: ='Calc - Customer Charges'!AF8 -> -0.04824038966
B7: ='Calc - Customer Charges'!A9 -> Customer 4 | C7: ='Calc - Customer Charges'!X9 -> 0 | D7: ='Calc - Customer Charges'!Y9 -> 0 | E7: ='Calc - Customer Charges'!Z9 -> 0 | F7: ='Calc - Customer Charges'!AA9 -> 0 | G7: ='Calc - Customer Charges'!AB9 -> 0 | H7: ='Calc - Customer Charges'!AF9 -> 0
B8: ='Calc - Customer Charges'!A10 -> Customer 5 | C8: ='Calc - Customer Charges'!X10 -> 1154405.92 | D8: ='Calc - Customer Charges'!Y10 -> 1073876.579 | E8: ='Calc - Customer Charges'!Z10 -> 998964.8243 | F8: ='Calc - Customer Charges'!AA10 -> 929278.7827 | G8: ='Calc - Customer Charges'!AB10 -> 864453.9177 | H8: ='Calc - Customer Charges'!AF10 -> -0.09244707671
B9: ='Calc - Customer Charges'!A11 -> Customer 6 | C9: ='Calc - Customer Charges'!X11 -> 383.66 | D9: ='Calc - Customer Charges'!Y11 -> 266.1341492 | E9: ='Calc - Customer Charges'!Z11 -> 184.6097727 | F9: ='Calc - Customer Charges'!AA11 -> 128.058606 | G9: ='Calc - Customer Charges'!AB11 -> 88.83065255 | H9: ='Calc - Customer Charges'!AF11 -> -0.3232469572
B10: ='Calc - Customer Charges'!A12 -> Customer 7 | C10: ='Calc - Customer Charges'!X12 -> 353824.36 | D10: ='Calc - Customer Charges'!Y12 -> 313694.4871 | E10: ='Calc - Customer Charges'!Z12 -> 278116.0439 | F10: ='Calc - Customer Charges'!AA12 -> 246572.8187 | G10: ='Calc - Customer Charges'!AB12 -> 218607.147 | H10: ='Calc - Customer Charges'!AF12 -> -0.1350414594
B11: ='Calc - Customer Charges'!A13 -> Customer 8 | C11: ='Calc - Customer Charges'!X13 -> 207630.93 | D11: ='Calc - Customer Charges'!Y13 -> 206654.0196 | E11: ='Calc - Customer Charges'!Z13 -> 205681.7056 | F11: ='Calc - Customer Charges'!AA13 -> 204713.9664 | G11: ='Calc - Customer Charges'!AB13 -> 203750.7804 | H11: ='Calc - Customer Charges'!AF13 -> -0.02898052002
B12: ='Calc - Customer Charges'!A14 -> Customer 9 | C12: ='Calc - Customer Charges'!X14 -> 730283.82 | D12: ='Calc - Customer Charges'!Y14 -> 711356.1869 | E12: ='Calc - Customer Charges'!Z14 -> 692919.1237 | F12: ='Calc - Customer Charges'!AA14 -> 674959.9157 | G12: ='Calc - Customer Charges'!AB14 -> 657466.1779 | H12: ='Calc - Customer Charges'!AF14 -> -0.04967628071
B13: ='Calc - Customer Charges'!A15 -> Customer 10 | C13: ='Calc - Customer Charges'!X15 -> 12020.87 | D13: ='Calc - Customer Charges'!Y15 -> 9843.004828 | E13: ='Calc - Customer Charges'!Z15 -> 8059.711489 | F13: ='Calc - Customer Charges'!AA15 -> 6599.503955 | G13: ='Calc - Customer Charges'!AB15 -> 5403.847583 | H13: ='Calc - Customer Charges'!AF15 -> -0.2011450469
B14: ='Calc - Customer Charges'!A16 -> Customer 11 | C14: ='Calc - Customer Charges'!X16 -> 229286.76 | D14: ='Calc - Customer Charges'!Y16 -> 222481.0587 | E14: ='Calc - Customer Charges'!Z16 -> 215877.3646 | F14: ='Calc - Customer Charges'!AA16 -> 209469.6817 | G14: ='Calc - Customer Charges'!AB16 -> 203252.1919 | H14: ='Calc - Customer Charges'!AF16 -> -0.05334834236
B15: ='Calc - Customer Charges'!A17 -> Customer 12 | C15: ='Calc - Customer Charges'!X17 -> 456302.63 | D15: ='Calc - Customer Charges'!Y17 -> 445947.1831 | E15: ='Calc - Customer Charges'!Z17 -> 435826.7454 | F15: ='Calc - Customer Charges'!AA17 -> 425935.9834 | G15: ='Calc - Customer Charges'!AB17 -> 416269.6849 | H15: ='Calc - Customer Charges'!AF17 -> -0.04653097755
B16: ='Calc - Customer Charges'!A18 -> Customer 12 2 | C16: ='Calc - Customer Charges'!X18 -> 0 | D16: ='Calc - Customer Charges'!Y18 -> 0 | E16: ='Calc - Customer Charges'!Z18 -> 0 | F16: ='Calc - Customer Charges'!AA18 -> 0 | G16: ='Calc - Customer Charges'!AB18 -> 0 | H16: ='Calc - Customer Charges'!AF18 -> 0
B17: ='Calc - Customer Charges'!A19 -> Customer 14 | C17: ='Calc - Customer Charges'!X19 -> 702807.89 | D17: ='Calc - Customer Charges'!Y19 -> 640182.3941 | E17: ='Calc - Customer Charges'!Z19 -> 583137.3033 | F17: ='Calc - Customer Charges'!AA19 -> 531175.3613 | G17: ='Calc - Customer Charges'!AB19 -> 483843.6211 | H17: ='Calc - Customer Charges'!AF19 -> -0.1113244484
B18: ='Calc - Customer Charges'!A20 -> Customer 15 | C18: ='Calc - Customer Charges'!X20 -> 1553780.16 | D18: ='Calc - Customer Charges'!Y20 -> 1446135.535 | E18: ='Calc - Customer Charges'!Z20 -> 1345948.442 | F18: ='Calc - Customer Charges'!AA20 -> 1252702.23 | G18: ='Calc - Customer Charges'!AB20 -> 1165916.039 | H18: ='Calc - Customer Charges'!AF20 -> -0.0919796937
B19: ='Calc - Customer Charges'!A21 -> Customer 16 | C19: ='Calc - Customer Charges'!X21 -> 3173.37 | D19: ='Calc - Customer Charges'!Y21 -> 2702.05698 | E19: ='Calc - Customer Charges'!Z21 -> 2300.743981 | F19: ='Calc - Customer Charges'!AA21 -> 1959.034507 | G19: ='Calc - Customer Charges'!AB21 -> 1668.076166 | H19: ='Calc - Customer Charges'!AF21 -> -0.1692890676
B20: ='Calc - Customer Charges'!A22 -> Customer 17 | C20: ='Calc - Customer Charges'!X22 -> 2965.83 | D20: ='Calc - Customer Charges'!Y22 -> 2906.167768 | E20: ='Calc - Customer Charges'!Z22 -> 2847.705734 | F20: ='Calc - Customer Charges'!AA22 -> 2790.419754 | G20: ='Calc - Customer Charges'!AB22 -> 2734.286169 | H20: ='Calc - Customer Charges'!AF22 -> -0.04401613455
B21: ='Calc - Customer Charges'!A23 -> Customer 18 | C21: ='Calc - Customer Charges'!X23 -> 0 | D21: ='Calc - Customer Charges'!Y23 -> 0 | E21: ='Calc - Customer Charges'!Z23 -> 0 | F21: ='Calc - Customer Charges'!AA23 -> 0 | G21: ='Calc - Customer Charges'!AB23 -> 0 | H21: ='Calc - Customer Charges'!AF23 -> 0
B22: ='Calc - Customer Charges'!A24 -> Customer 19 | C22: ='Calc - Customer Charges'!X24 -> 0 | D22: ='Calc - Customer Charges'!Y24 -> 0 | E22: ='Calc - Customer Charges'!Z24 -> 0 | F22: ='Calc - Customer Charges'!AA24 -> 0 | G22: ='Calc - Customer Charges'!AB24 -> 0 | H22: ='Calc - Customer Charges'!AF24 -> 0
B23: ='Calc - Customer Charges'!A25 -> Customer 20 | C23: ='Calc - Customer Charges'!X25 -> 4573.3 | D23: ='Calc - Customer Charges'!Y25 -> 4952.840033 | E23: ='Calc - Customer Charges'!Z25 -> 5363.878248 | F23: ='Calc - Customer Charges'!AA25 -> 5809.028693 | G23: ='Calc - Customer Charges'!AB25 -> 6291.122355 | H23: ='Calc - Customer Charges'!AF25 -> 0.05657600785
B24: ='Calc - Customer Charges'!A26 -> Customer 21 | C24: ='Calc - Customer Charges'!X26 -> 3669.13 | D24: ='Calc - Customer Charges'!Y26 -> 8.163125888e-05 | E24: ='Calc - Customer Charges'!Z26 -> 1.816142363e-12 | F24: ='Calc - Customer Charges'!AA26 -> 4.040576032e-20 | G24: ='Calc - Customer Charges'!AB26 -> 8.989523622e-28 | H24: ='Calc - Customer Charges'!AF26 -> -0.9999999783
B25: ='Calc - Customer Charges'!A27 -> Customer 22 | C25: ='Calc - Customer Charges'!X27 -> 0 | D25: ='Calc - Customer Charges'!Y27 -> 0 | E25: ='Calc - Customer Charges'!Z27 -> 0 | F25: ='Calc - Customer Charges'!AA27 -> 0 | G25: ='Calc - Customer Charges'!AB27 -> 0 | H25: ='Calc - Customer Charges'!AF27 -> 0
B26: ='Calc - Customer Charges'!A28 -> Customer 23 | C26: ='Calc - Customer Charges'!X28 -> 0 | D26: ='Calc - Customer Charges'!Y28 -> 0 | E26: ='Calc - Customer Charges'!Z28 -> 0 | F26: ='Calc - Customer Charges'!AA28 -> 0 | G26: ='Calc - Customer Charges'!AB28 -> 0 | H26: ='Calc - Customer Charges'!AF28 -> 0
B27: ='Calc - Customer Charges'!A29 -> Customer 24 | C27: ='Calc - Customer Charges'!X29 -> 0 | D27: ='Calc - Customer Charges'!Y29 -> 0 | E27: ='Calc - Customer Charges'!Z29 -> 0 | F27: ='Calc - Customer Charges'!AA29 -> 0 | G27: ='Calc - Customer Charges'!AB29 -> 0 | H27: ='Calc - Customer Charges'!AF29 -> 0
B28: ='Calc - Customer Charges'!A30 -> Customer 25 | C28: ='Calc - Customer Charges'!X30 -> 0 | D28: ='Calc - Customer Charges'!Y30 -> 0 | E28: ='Calc - Customer Charges'!Z30 -> 0 | F28: ='Calc - Customer Charges'!AA30 -> 0 | G28: ='Calc - Customer Charges'!AB30 -> 0 | H28: ='Calc - Customer Charges'!AF30 -> 0
B29: ='Calc - Customer Charges'!A31 -> Customer 26 | C29: ='Calc - Customer Charges'!X31 -> 0 | D29: ='Calc - Customer Charges'!Y31 -> 0 | E29: ='Calc - Customer Charges'!Z31 -> 0 | F29: ='Calc - Customer Charges'!AA31 -> 0 | G29: ='Calc - Customer Charges'!AB31 -> 0 | H29: ='Calc - Customer Charges'!AF31 -> 0
B30: ='Calc - Customer Charges'!A32 -> Customer 27 | C30: ='Calc - Customer Charges'!X32 -> 0 | D30: ='Calc - Customer Charges'!Y32 -> 0 | E30: ='Calc - Customer Charges'!Z32 -> 0 | F30: ='Calc - Customer Charges'!AA32 -> 0 | G30: ='Calc - Customer Charges'!AB32 -> 0 | H30: ='Calc - Customer Charges'!AF32 -> 0
B31: ='Calc - Customer Charges'!A33 -> Customer 28 | C31: ='Calc - Customer Charges'!X33 -> 0 | D31: ='Calc - Customer Charges'!Y33 -> 0 | E31: ='Calc - Customer Charges'!Z33 -> 0 | F31: ='Calc - Customer Charges'!AA33 -> 0 | G31: ='Calc - Customer Charges'!AB33 -> 0 | H31: ='Calc - Customer Charges'!AF33 -> 0
B32: ='Calc - Customer Charges'!A34 -> Customer 29 | C32: ='Calc - Customer Charges'!X34 -> 753.59 | D32: ='Calc - Customer Charges'!Y34 -> 675.0382481 | E32: ='Calc - Customer Charges'!Z34 -> 604.6744733 | F32: ='Calc - Customer Charges'!AA34 -> 541.6451879 | G32: ='Calc - Customer Charges'!AB34 -> 485.1858686 | H32: ='Calc - Customer Charges'!AF34 -> -0.1260846076
B33: ='Calc - Customer Charges'!A35 -> Customer 30 | C33: ='Calc - Customer Charges'!X35 -> 0 | D33: ='Calc - Customer Charges'!Y35 -> 0 | E33: ='Calc - Customer Charges'!Z35 -> 0 | F33: ='Calc - Customer Charges'!AA35 -> 0 | G33: ='Calc - Customer Charges'!AB35 -> 0 | H33: ='Calc - Customer Charges'!AF35 -> 0
B34: ='Calc - Customer Charges'!A36 -> Customer 31 | C34: ='Calc - Customer Charges'!X36 -> 0 | D34: ='Calc - Customer Charges'!Y36 -> 0 | E34: ='Calc - Customer Charges'!Z36 -> 0 | F34: ='Calc - Customer Charges'!AA36 -> 0 | G34: ='Calc - Customer Charges'!AB36 -> 0 | H34: ='Calc - Customer Charges'!AF36 -> 0
B35: ='Calc - Customer Charges'!A37 -> Customer 32 | C35: ='Calc - Customer Charges'!X37 -> 23120.8 | D35: ='Calc - Customer Charges'!Y37 -> 19881.04866 | E35: ='Calc - Customer Charges'!Z37 -> 17095.26037 | F35: ='Calc - Customer Charges'!AA37 -> 14699.82454 | G35: ='Calc - Customer Charges'!AB37 -> 12640.0439 | H35: ='Calc - Customer Charges'!AF37 -> -0.161095419
B36: ='Calc - Customer Charges'!A38 -> Customer 33 | C36: ='Calc - Customer Charges'!X38 -> 1099719.74 | D36: ='Calc - Customer Charges'!Y38 -> 1096756.777 | E36: ='Calc - Customer Charges'!Z38 -> 1093801.798 | F36: ='Calc - Customer Charges'!AA38 -> 1090854.78 | G36: ='Calc - Customer Charges'!AB38 -> 1087915.702 | H36: ='Calc - Customer Charges'!AF38 -> -0.02701881838
B37: ='Calc - Customer Charges'!A39 -> Customer 34 | C37: ='Calc - Customer Charges'!X39 -> 0 | D37: ='Calc - Customer Charges'!Y39 -> 0 | E37: ='Calc - Customer Charges'!Z39 -> 0 | F37: ='Calc - Customer Charges'!AA39 -> 0 | G37: ='Calc - Customer Charges'!AB39 -> 0 | H37: ='Calc - Customer Charges'!AF39 -> 0
B38: ='Calc - Customer Charges'!A40 -> Customer 35 | C38: ='Calc - Customer Charges'!X40 -> 1169907.69 | D38: ='Calc - Customer Charges'!Y40 -> 1148474.432 | E38: ='Calc - Customer Charges'!Z40 -> 1127433.842 | F38: ='Calc - Customer Charges'!AA40 -> 1106778.725 | G38: ='Calc - Customer Charges'!AB40 -> 1086502.019 | H38: ='Calc - Customer Charges'!AF40 -> -0.04226387234
B39: ='Calc - Customer Charges'!A41 -> Customer 36 | C39: ='Calc - Customer Charges'!X41 -> 91656.71 | D39: ='Calc - Customer Charges'!Y41 -> 88010.85252 | E39: ='Calc - Customer Charges'!Z41 -> 84510.01744 | F39: ='Calc - Customer Charges'!AA41 -> 81148.43618 | G39: ='Calc - Customer Charges'!AB41 -> 77920.56957 | H39: ='Calc - Customer Charges'!AF41 -> -0.06319737683
B40: ='Calc - Customer Charges'!A42 -> Customer 37 | C40: ='Calc - Customer Charges'!X42 -> 475344.92 | D40: ='Calc - Customer Charges'!Y42 -> 464333.1708 | E40: ='Calc - Customer Charges'!Z42 -> 453576.5177 | F40: ='Calc - Customer Charges'!AA42 -> 443069.0512 | G40: ='Calc - Customer Charges'!AB42 -> 432804.9986 | H40: ='Calc - Customer Charges'!AF42 -> -0.04699103221
B41: ='Calc - Customer Charges'!A43 -> Customer 38 | C41: ='Calc - Customer Charges'!X43 -> 0 | D41: ='Calc - Customer Charges'!Y43 -> 0 | E41: ='Calc - Customer Charges'!Z43 -> 0 | F41: ='Calc - Customer Charges'!AA43 -> 0 | G41: ='Calc - Customer Charges'!AB43 -> 0 | H41: ='Calc - Customer Charges'!AF43 -> 0
B42: ='Calc - Customer Charges'!A44 -> Customer 39 | C42: ='Calc - Customer Charges'!X44 -> 355211.62 | D42: ='Calc - Customer Charges'!Y44 -> 350843.3995 | E42: ='Calc - Customer Charges'!Z44 -> 346528.8972 | F42: ='Calc - Customer Charges'!AA44 -> 342267.4525 | G42: ='Calc - Customer Charges'!AB44 -> 338058.4131 | H42: ='Calc - Customer Charges'!AF44 -> -0.0363878204
B43: ='Calc - Customer Charges'!A45 -> Customer 40 | C43: ='Calc - Customer Charges'!X45 -> 890385.16 | D43: ='Calc - Customer Charges'!Y45 -> 776093.9185 | E43: ='Calc - Customer Charges'!Z45 -> 676473.2808 | F43: ='Calc - Customer Charges'!AA45 -> 589640.1051 | G43: ='Calc - Customer Charges'!AB45 -> 513952.9725 | H43: ='Calc - Customer Charges'!AF45 -> -0.1496210488
B44: ='Calc - Customer Charges'!A46 -> Customer 41 | C44: ='Calc - Customer Charges'!X46 -> 677345.24 | D44: ='Calc - Customer Charges'!Y46 -> 684655.8073 | E44: ='Calc - Customer Charges'!Z46 -> 692045.2773 | F44: ='Calc - Customer Charges'!AA46 -> 699514.5016 | G44: ='Calc - Customer Charges'!AB46 -> 707064.341 | H44: ='Calc - Customer Charges'!AF46 -> -0.01386051649
B45: ='Calc - Customer Charges'!A47 -> Customer 42 | C45: ='Calc - Customer Charges'!X47 -> 213892.49 | D45: ='Calc - Customer Charges'!Y47 -> 175818.4512 | E45: ='Calc - Customer Charges'!Z47 -> 144521.8006 | F45: ='Calc - Customer Charges'!AA47 -> 118796.1258 | G45: ='Calc - Customer Charges'!AB47 -> 97649.7625 | H45: ='Calc - Customer Charges'!AF47 -> -0.1980541425
B46: ='Calc - Customer Charges'!A48 -> Customer 43 | C46: ='Calc - Customer Charges'!X48 -> 343323.54 | D46: ='Calc - Customer Charges'!Y48 -> 318323.5153 | E46: ='Calc - Customer Charges'!Z48 -> 295143.9345 | F46: ='Calc - Customer Charges'!AA48 -> 273652.2371 | G46: ='Calc - Customer Charges'!AB48 -> 253725.5153 | H46: ='Calc - Customer Charges'!AF48 -> -0.09543188573
B47: ='Calc - Customer Charges'!A49 -> Customer 44 | C47: ='Calc - Customer Charges'!X49 -> 451607.22 | D47: ='Calc - Customer Charges'!Y49 -> 528980.0494 | E47: ='Calc - Customer Charges'!Z49 -> 619608.9881 | F47: ='Calc - Customer Charges'!AA49 -> 725765.1752 | G47: ='Calc - Customer Charges'!AB49 -> 850108.8583 | H47: ='Calc - Customer Charges'!AF49 -> 0.1427587383
B48: ='Calc - Customer Charges'!A50 -> Customer 45 | C48: ='Calc - Customer Charges'!X50 -> 240617.14 | D48: ='Calc - Customer Charges'!Y50 -> 194470.8672 | E48: ='Calc - Customer Charges'!Z50 -> 157174.6642 | F48: ='Calc - Customer Charges'!AA50 -> 127031.2382 | G48: ='Calc - Customer Charges'!AB50 -> 102668.8085 | H48: ='Calc - Customer Charges'!AF50 -> -0.211495593
B49: ='Calc - Customer Charges'!A51 -> Customer 46 | C49: ='Calc - Customer Charges'!X51 -> 0 | D49: ='Calc - Customer Charges'!Y51 -> 0 | E49: ='Calc - Customer Charges'!Z51 -> 0 | F49: ='Calc - Customer Charges'!AA51 -> 0 | G49: ='Calc - Customer Charges'!AB51 -> 0 | H49: ='Calc - Customer Charges'!AF51 -> 0
B50: ='Calc - Customer Charges'!A52 -> Customer 47 | C50: ='Calc - Customer Charges'!X52 -> 0 | D50: ='Calc - Customer Charges'!Y52 -> 0 | E50: ='Calc - Customer Charges'!Z52 -> 0 | F50: ='Calc - Customer Charges'!AA52 -> 0 | G50: ='Calc - Customer Charges'!AB52 -> 0 | H50: ='Calc - Customer Charges'!AF52 -> 0
B51: ='Calc - Customer Charges'!A53 -> Customer 48 | C51: ='Calc - Customer Charges'!X53 -> 139977.08 | D51: ='Calc - Customer Charges'!Y53 -> 131638.9336 | E51: ='Calc - Customer Charges'!Z53 -> 123797.4734 | F51: ='Calc - Customer Charges'!AA53 -> 116423.1128 | G51: ='Calc - Customer Charges'!AB53 -> 109488.0278 | H51: ='Calc - Customer Charges'!AF53 -> -0.08250530801
B52: ='Calc - Customer Charges'!A54 -> Customer 49 | C52: ='Calc - Customer Charges'!X54 -> 486684.85 | D52: ='Calc - Customer Charges'!Y54 -> 421181.3561 | E52: ='Calc - Customer Charges'!Z54 -> 364494.0554 | F52: ='Calc - Customer Charges'!AA54 -> 315436.3661 | G52: ='Calc - Customer Charges'!AB54 -> 272981.4097 | H52: ='Calc - Customer Charges'!AF54 -> -0.1556987236
B53: ='Calc - Customer Charges'!A55 -> Customer 50 | C53: ='Calc - Customer Charges'!X55 -> 99427.16 | D53: ='Calc - Customer Charges'!Y55 -> 104464.6717 | E53: ='Calc - Customer Charges'!Z55 -> 109757.4106 | F53: ='Calc - Customer Charges'!AA55 -> 115318.3081 | G53: ='Calc - Customer Charges'!AB55 -> 121160.9503 | H53: ='Calc - Customer Charges'!AF55 -> 0.02503936407
B54: ='Calc - Customer Charges'!A56 -> Customer 51 | C54: ='Calc - Customer Charges'!X56 -> 527.8 | D54: ='Calc - Customer Charges'!Y56 -> 505.8476756 | E54: ='Calc - Customer Charges'!Z56 -> 484.8083951 | F54: ='Calc - Customer Charges'!AA56 -> 464.644183 | G54: ='Calc - Customer Charges'!AB56 -> 445.3186434 | H54: ='Calc - Customer Charges'!AF56 -> -0.06496792828
B55: ='Calc - Customer Charges'!A57 -> Customer 52 | C55: ='Calc - Customer Charges'!X57 -> 591.55 | D55: ='Calc - Customer Charges'!Y57 -> 502.4862335 | E55: ='Calc - Customer Charges'!Z57 -> 426.8319074 | F55: ='Calc - Customer Charges'!AA57 -> 362.5680965 | G55: ='Calc - Customer Charges'!AB57 -> 307.9798448 | H55: ='Calc - Customer Charges'!AF57 -> -0.1712780464
B56: ='Calc - Customer Charges'!A58 -> Customer 53 | C56: ='Calc - Customer Charges'!X58 -> 591.55 | D56: ='Calc - Customer Charges'!Y58 -> 502.4862335 | E56: ='Calc - Customer Charges'!Z58 -> 426.8319074 | F56: ='Calc - Customer Charges'!AA58 -> 362.5680965 | G56: ='Calc - Customer Charges'!AB58 -> 307.9798448 | H56: ='Calc - Customer Charges'!AF58 -> -0.1712780464
B57: ='Calc - Customer Charges'!A59 -> Customer 54 | C57: ='Calc - Customer Charges'!X59 -> 1691.75 | D57: ='Calc - Customer Charges'!Y59 -> 1694.23302 | E57: ='Calc - Customer Charges'!Z59 -> 1696.719683 | F57: ='Calc - Customer Charges'!AA59 -> 1699.209997 | G57: ='Calc - Customer Charges'!AB59 -> 1701.703966 | H57: ='Calc - Customer Charges'!AF59 -> -0.02295831952
B58: ='Calc - Customer Charges'!A60 -> Customer 55 | C58: ='Calc - Customer Charges'!X60 -> 1311.31 | D58: ='Calc - Customer Charges'!Y60 -> 2.917418707e-05 | E58: ='Calc - Customer Charges'!Z60 -> 6.490709222e-13 | F58: ='Calc - Customer Charges'!AA60 -> 1.444061015e-20 | G58: ='Calc - Customer Charges'!AB60 -> 3.212764808e-28 | H58: ='Calc - Customer Charges'!AF60 -> -0.9999999783
B59: ='Calc - Customer Charges'!A61 -> Customer 56 | C59: ='Calc - Customer Charges'!X61 -> 1708.48 | D59: ='Calc - Customer Charges'!Y61 -> 1720.134221 | E59: ='Calc - Customer Charges'!Z61 -> 1731.86794 | F59: ='Calc - Customer Charges'!AA61 -> 1743.6817 | G59: ='Calc - Customer Charges'!AB61 -> 1755.576045 | H59: ='Calc - Customer Charges'!AF61 -> -0.01773522204
B60: ='Calc - Customer Charges'!A62 -> Customer 57 | C60: ='Calc - Customer Charges'!X62 -> 0 | D60: ='Calc - Customer Charges'!Y62 -> 0 | E60: ='Calc - Customer Charges'!Z62 -> 0 | F60: ='Calc - Customer Charges'!AA62 -> 0 | G60: ='Calc - Customer Charges'!AB62 -> 0 | H60: ='Calc - Customer Charges'!AF62 -> 0
B61: ='Calc - Customer Charges'!A63 -> Customer 58 | C61: ='Calc - Customer Charges'!X63 -> 1063849.29 | D61: ='Calc - Customer Charges'!Y63 -> 1091791.96 | E61: ='Calc - Customer Charges'!Z63 -> 1120468.561 | F61: ='Calc - Customer Charges'!AA63 -> 1149898.371 | G61: ='Calc - Customer Charges'!AB63 -> 1180101.174 | H61: ='Calc - Customer Charges'!AF63 -> 0.001234758946
B62: ='Calc - Customer Charges'!A64 -> Customer 59 | C62: ='Calc - Customer Charges'!X64 -> 0 | D62: ='Calc - Customer Charges'!Y64 -> 0 | E62: ='Calc - Customer Charges'!Z64 -> 0 | F62: ='Calc - Customer Charges'!AA64 -> 0 | G62: ='Calc - Customer Charges'!AB64 -> 0 | H62: ='Calc - Customer Charges'!AF64 -> 0
B63: ='Calc - Customer Charges'!A65 -> Customer 60 | C63: ='Calc - Customer Charges'!X65 -> 0 | D63: ='Calc - Customer Charges'!Y65 -> 0 | E63: ='Calc - Customer Charges'!Z65 -> 0 | F63: ='Calc - Customer Charges'!AA65 -> 0 | G63: ='Calc - Customer Charges'!AB65 -> 0 | H63: ='Calc - Customer Charges'!AF65 -> 0
B64: ='Calc - Customer Charges'!A66 -> Customer 61 | C64: ='Calc - Customer Charges'!X66 -> 668.64 | D64: ='Calc - Customer Charges'!Y66 -> 1.487598565e-05 | E64: ='Calc - Customer Charges'!Z66 -> 3.309627737e-13 | F64: ='Calc - Customer Charges'!AA66 -> 7.363300835e-21 | G64: ='Calc - Customer Charges'!AB66 -> 1.638196302e-28 | H64: ='Calc - Customer Charges'!AF66 -> -0.9999999783
B65: ='Calc - Customer Charges'!A67 -> Customer 62 | C65: ='Calc - Customer Charges'!X67 -> 942.21 | D65: ='Calc - Customer Charges'!Y67 -> 2.096240483e-05 | E65: ='Calc - Customer Charges'!Z67 -> 4.663741801e-13 | F65: ='Calc - Customer Charges'!AA67 -> 1.037595055e-20 | G65: ='Calc - Customer Charges'!AB67 -> 2.308454334e-28 | H65: ='Calc - Customer Charges'!AF67 -> -0.9999999783
B66: ='Calc - Customer Charges'!A68 -> Customer 63 | C66: ='Calc - Customer Charges'!X68 -> 908.29 | D66: ='Calc - Customer Charges'!Y68 -> 2.020774836e-05 | E66: ='Calc - Customer Charges'!Z68 -> 4.495844872e-13 | F66: ='Calc - Customer Charges'!AA68 -> 1.000241133e-20 | G66: ='Calc - Customer Charges'!AB68 -> 2.225348855e-28 | H66: ='Calc - Customer Charges'!AF68 -> -0.9999999783
B67: ='Calc - Customer Charges'!A69 -> Customer 64 | C67: ='Calc - Customer Charges'!X69 -> 0 | D67: ='Calc - Customer Charges'!Y69 -> 0 | E67: ='Calc - Customer Charges'!Z69 -> 0 | F67: ='Calc - Customer Charges'!AA69 -> 0 | G67: ='Calc - Customer Charges'!AB69 -> 0 | H67: ='Calc - Customer Charges'!AF69 -> 0
B68: ='Calc - Customer Charges'!A70 -> Customer 65 | C68: ='Calc - Customer Charges'!X70 -> 914.54 | D68: ='Calc - Customer Charges'!Y70 -> 905.1795372 | E68: ='Calc - Customer Charges'!Z70 -> 895.9148803 | F68: ='Calc - Customer Charges'!AA70 -> 886.7450485 | G68: ='Calc - Customer Charges'!AB70 -> 877.6690715 | H68: ='Calc - Customer Charges'!AF70 -> -0.03437576538
B69: ='Calc - Customer Charges'!A71 -> Customer 66 | C69: ='Calc - Customer Charges'!X71 -> 962.04 | D69: ='Calc - Customer Charges'!Y71 -> 864.3983543 | E69: ='Calc - Customer Charges'!Z71 -> 776.6667861 | F69: ='Calc - Customer Charges'!AA71 -> 697.8394783 | G69: ='Calc - Customer Charges'!AB71 -> 627.0126987 | H69: ='Calc - Customer Charges'!AF71 -> -0.1234091435
B70: ='Calc - Customer Charges'!A72 -> Customer 67 | C70: ='Calc - Customer Charges'!X72 -> 348100.51 | D70: ='Calc - Customer Charges'!Y72 -> 266650.7846 | E70: ='Calc - Customer Charges'!Z72 -> 204258.9392 | F70: ='Calc - Customer Charges'!AA72 -> 156465.7472 | G70: ='Calc - Customer Charges'!AB72 -> 119855.3667 | H70: ='Calc - Customer Charges'!AF72 -> -0.2526666884
B71: ='Calc - Customer Charges'!A73 -> Customer 68 | C71: ='Calc - Customer Charges'!X73 -> 3715.63 | D71: ='Calc - Customer Charges'!Y73 -> 8.266579664e-05 | E71: ='Calc - Customer Charges'!Z73 -> 1.839158887e-12 | F71: ='Calc - Customer Charges'!AA73 -> 4.09178348e-20 | G71: ='Calc - Customer Charges'!AB73 -> 9.103450588e-28 | H71: ='Calc - Customer Charges'!AF73 -> -0.9999999783
B72: ='Calc - Customer Charges'!A74 -> Customer 68 2 | C72: ='Calc - Customer Charges'!X74 -> 0 | D72: ='Calc - Customer Charges'!Y74 -> 0 | E72: ='Calc - Customer Charges'!Z74 -> 0 | F72: ='Calc - Customer Charges'!AA74 -> 0 | G72: ='Calc - Customer Charges'!AB74 -> 0 | H72: ='Calc - Customer Charges'!AF74 -> 0
B73: ='Calc - Customer Charges'!A75 -> Customer 70 | C73: ='Calc - Customer Charges'!X75 -> 0 | D73: ='Calc - Customer Charges'!Y75 -> 0 | E73: ='Calc - Customer Charges'!Z75 -> 0 | F73: ='Calc - Customer Charges'!AA75 -> 0 | G73: ='Calc - Customer Charges'!AB75 -> 0 | H73: ='Calc - Customer Charges'!AF75 -> 0
B74: ='Calc - Customer Charges'!A76 -> Customer 71 | C74: ='Calc - Customer Charges'!X76 -> 179.24 | D74: ='Calc - Customer Charges'!Y76 -> 159.9524771 | E74: ='Calc - Customer Charges'!Z76 -> 142.7404314 | F74: ='Calc - Customer Charges'!AA76 -> 127.3805266 | G74: ='Calc - Customer Charges'!AB76 -> 113.6734589 | H74: ='Calc - Customer Charges'!AF76 -> -0.1293729236
B75: ='Calc - Customer Charges'!A77 -> Customer 72 | C75: ='Calc - Customer Charges'!X77 -> 5316.17 | D75: ='Calc - Customer Charges'!Y77 -> 5243.525088 | E75: ='Calc - Customer Charges'!Z77 -> 5171.872861 | F75: ='Calc - Customer Charges'!AA77 -> 5101.199754 | G75: ='Calc - Customer Charges'!AB77 -> 5031.492388 | H75: ='Calc - Customer Charges'!AF77 -> -0.03772185013
B76: ='Calc - Customer Charges'!A78 -> Customer 73 | C76: ='Calc - Customer Charges'!X78 -> 214651.71 | D76: ='Calc - Customer Charges'!Y78 -> 168637.1786 | E76: ='Calc - Customer Charges'!Z78 -> 132486.706 | F76: ='Calc - Customer Charges'!AA78 -> 104085.7503 | G76: ='Calc - Customer Charges'!AB78 -> 81773.06048 | H76: ='Calc - Customer Charges'!AF78 -> -0.2335300909
B77: ='Calc - Customer Charges'!A79 -> Customer 74 | C77: ='Calc - Customer Charges'!X79 -> 0 | D77: ='Calc - Customer Charges'!Y79 -> 0 | E77: ='Calc - Customer Charges'!Z79 -> 0 | F77: ='Calc - Customer Charges'!AA79 -> 0 | G77: ='Calc - Customer Charges'!AB79 -> 0 | H77: ='Calc - Customer Charges'!AF79 -> 0
B78: ='Calc - Customer Charges'!A80 -> Customer 75 | C78: ='Calc - Customer Charges'!X80 -> 254276.57 | D78: ='Calc - Customer Charges'!Y80 -> 282252.1337 | E78: ='Calc - Customer Charges'!Z80 -> 313305.5749 | F78: ='Calc - Customer Charges'!AA80 -> 347775.5226 | G78: ='Calc - Customer Charges'!AB80 -> 386037.8614 | H78: ='Calc - Customer Charges'!AF80 -> 0.08294655415
B79: ='Calc - Customer Charges'!A81 -> Customer 76 | C79: ='Calc - Customer Charges'!X81 -> 76.94 | D79: ='Calc - Customer Charges'!Y81 -> 43.00980118 | E79: ='Calc - Customer Charges'!Z81 -> 24.04266958 | F79: ='Calc - Customer Charges'!AA81 -> 13.43995891 | G79: ='Calc - Customer Charges'!AB81 -> 7.512996628 | H79: ='Calc - Customer Charges'!AF81 -> -0.4546298201
B80: ='Calc - Customer Charges'!A82 -> Customer 77 | C80: ='Calc - Customer Charges'!X82 -> 1940.44 | D80: ='Calc - Customer Charges'!Y82 -> 1012.316225 | E80: ='Calc - Customer Charges'!Z82 -> 528.1194679 | F80: ='Calc - Customer Charges'!AA82 -> 275.5168448 | G80: ='Calc - Customer Charges'!AB82 -> 143.7355303 | H80: ='Calc - Customer Charges'!AF82 -> -0.491030083
B81: ='Calc - Customer Charges'!A83 -> Customer 77 2 | C81: ='Calc - Customer Charges'!X83 -> 0 | D81: ='Calc - Customer Charges'!Y83 -> 0 | E81: ='Calc - Customer Charges'!Z83 -> 0 | F81: ='Calc - Customer Charges'!AA83 -> 0 | G81: ='Calc - Customer Charges'!AB83 -> 0 | H81: ='Calc - Customer Charges'!AF83 -> 0
B82: ='Calc - Customer Charges'!A84 -> Customer 77 3 | C82: ='Calc - Customer Charges'!X84 -> 0 | D82: ='Calc - Customer Charges'!Y84 -> 0 | E82: ='Calc - Customer Charges'!Z84 -> 0 | F82: ='Calc - Customer Charges'!AA84 -> 0 | G82: ='Calc - Customer Charges'!AB84 -> 0 | H82: ='Calc - Customer Charges'!AF84 -> 0
B83: ='Calc - Customer Charges'!A85 -> Customer 80 | C83: ='Calc - Customer Charges'!X85 -> 853047.24 | D83: ='Calc - Customer Charges'!Y85 -> 827659.0234 | E83: ='Calc - Customer Charges'!Z85 -> 803026.4056 | F83: ='Calc - Customer Charges'!AA85 -> 779126.8988 | G83: ='Calc - Customer Charges'!AB85 -> 755938.6842 | H83: ='Calc - Customer Charges'!AF85 -> -0.05342614095
B84: ='Calc - Customer Charges'!A86 -> Customer 81 | C84: ='Calc - Customer Charges'!X86 -> 23108.53 | D84: ='Calc - Customer Charges'!Y86 -> 25929.06003 | E84: ='Calc - Customer Charges'!Z86 -> 29093.8521 | F84: ='Calc - Customer Charges'!AA86 -> 32644.92539 | G84: ='Calc - Customer Charges'!AB86 -> 36629.42775 | H84: ='Calc - Customer Charges'!AF86 -> 0.09468858179
B85: ='Calc - Customer Charges'!A87 -> Customer 82 | C85: ='Calc - Customer Charges'!X87 -> 648897.42 | D85: ='Calc - Customer Charges'!Y87 -> 633164.3207 | E85: ='Calc - Customer Charges'!Z87 -> 617812.6846 | F85: ='Calc - Customer Charges'!AA87 -> 602833.2626 | G85: ='Calc - Customer Charges'!AB87 -> 588217.0301 | H85: ='Calc - Customer Charges'!AF87 -> -0.04804477642
B86: ='Calc - Customer Charges'!A88 -> Customer 83 | C86: ='Calc - Customer Charges'!X88 -> 395.31 | D86: ='Calc - Customer Charges'!Y88 -> 128.7015578 | E86: ='Calc - Customer Charges'!Z88 -> 41.9015228 | F86: ='Calc - Customer Charges'!AA88 -> 13.64192977 | G86: ='Calc - Customer Charges'!AB88 -> 4.441419678 | H86: ='Calc - Customer Charges'!AF88 -> -0.6823695444
B87: ='Calc - Customer Charges'!A89 -> Customer 84 | C87: ='Calc - Customer Charges'!X89 -> 548.83 | D87: ='Calc - Customer Charges'!Y89 -> 1.221043785e-05 | E87: ='Calc - Customer Charges'!Z89 -> 2.716593342e-13 | F87: ='Calc - Customer Charges'!AA89 -> 6.043910528e-21 | G87: ='Calc - Customer Charges'!AB89 -> 1.344656703e-28 | H87: ='Calc - Customer Charges'!AF89 -> -0.9999999783
B88: ='Calc - Customer Charges'!A90 -> Customer 85 | C88: ='Calc - Customer Charges'!X90 -> 322.48 | D88: ='Calc - Customer Charges'!Y90 -> 7.174574998e-06 | E88: ='Calc - Customer Charges'!Z90 -> 1.596208336e-13 | F88: ='Calc - Customer Charges'!AA90 -> 3.551264084e-21 | G88: ='Calc - Customer Charges'!AB90 -> 7.900896337e-29 | H88: ='Calc - Customer Charges'!AF90 -> -0.9999999783
B89: ='Calc - Customer Charges'!A91 -> Customer 86 | C89: ='Calc - Customer Charges'!X91 -> 76.88 | D89: ='Calc - Customer Charges'!Y91 -> 1.710435766e-06 | E89: ='Calc - Customer Charges'!Z91 -> 3.805398687e-14 | F89: ='Calc - Customer Charges'!AA91 -> 8.466298151e-22 | G89: ='Calc - Customer Charges'!AB91 -> 1.883592503e-29 | H89: ='Calc - Customer Charges'!AF91 -> -0.9999999783
B90: ='Calc - Customer Charges'!A92 -> Customer 87 | C90: ='Calc - Customer Charges'!X92 -> 435.92 | D90: ='Calc - Customer Charges'!Y92 -> 260.5898085 | E90: ='Calc - Customer Charges'!Z92 -> 155.778694 | F90: ='Calc - Customer Charges'!AA92 -> 93.12337136 | G90: ='Calc - Customer Charges'!AB92 -> 55.66847474 | H90: ='Calc - Customer Charges'!AF92 -> -0.4167875768
B91: ='Calc - Customer Charges'!A93 -> Customer 88 | C91: ='Calc - Customer Charges'!X93 -> 119668.35 | D91: ='Calc - Customer Charges'!Y93 -> 132834.4939 | E91: ='Calc - Customer Charges'!Z93 -> 147449.2025 | F91: ='Calc - Customer Charges'!AA93 -> 163671.8496 | G91: ='Calc - Customer Charges'!AB93 -> 181679.3439 | H91: ='Calc - Customer Charges'!AF93 -> 0.08294823314
B92: ='Calc - Customer Charges'!A94 -> Customer 89 | C92: ='Calc - Customer Charges'!X94 -> 8323.16 | D92: ='Calc - Customer Charges'!Y94 -> 7842.64963 | E92: ='Calc - Customer Charges'!Z94 -> 7389.879952 | F92: ='Calc - Customer Charges'!AA94 -> 6963.249448 | G92: ='Calc - Customer Charges'!AB94 -> 6561.249058 | H92: ='Calc - Customer Charges'!AF94 -> -0.08071387635
B93: ='Calc - Customer Charges'!A95 -> Customer 90 | C93: ='Calc - Customer Charges'!X95 -> 214023.52 | D93: ='Calc - Customer Charges'!Y95 -> 196723.8576 | E93: ='Calc - Customer Charges'!Z95 -> 180822.5383 | F93: ='Calc - Customer Charges'!AA95 -> 166206.5332 | G93: ='Calc - Customer Charges'!AB95 -> 152771.9494 | H93: ='Calc - Customer Charges'!AF95 -> -0.1032494245
B94: ='Calc - Customer Charges'!A96 -> Customer 91 | C94: ='Calc - Customer Charges'!X96 -> 1661653.42 | D94: ='Calc - Customer Charges'!Y96 -> 1635788.765 | E94: ='Calc - Customer Charges'!Z96 -> 1610326.709 | F94: ='Calc - Customer Charges'!AA96 -> 1585260.986 | G94: ='Calc - Customer Charges'!AB96 -> 1560585.426 | H94: ='Calc - Customer Charges'!AF96 -> -0.03957620842
B95: ='Calc - Customer Charges'!A97 -> Customer 92 | C95: ='Calc - Customer Charges'!X97 -> 342.95 | D95: ='Calc - Customer Charges'!Y97 -> 7.629994017e-06 | E95: ='Calc - Customer Charges'!Z97 -> 1.697530506e-13 | F95: ='Calc - Customer Charges'!AA97 -> 3.776686865e-21 | G95: ='Calc - Customer Charges'!AB97 -> 8.402419648e-29 | H95: ='Calc - Customer Charges'!AF97 -> -0.9999999783
B96: ='Calc - Customer Charges'!A98 -> Customer 93 | C96: ='Calc - Customer Charges'!X98 -> 51259.41 | D96: ='Calc - Customer Charges'!Y98 -> 53585.22933 | E96: ='Calc - Customer Charges'!Z98 -> 56016.57925 | F96: ='Calc - Customer Charges'!AA98 -> 58558.24805 | G96: ='Calc - Customer Charges'!AB98 -> 61215.24128 | H96: ='Calc - Customer Charges'!AF98 -> 0.01987659477
B97: ='Calc - Customer Charges'!A99 -> Customer 93 2 | C97: ='Calc - Customer Charges'!X99 -> 0 | D97: ='Calc - Customer Charges'!Y99 -> 0 | E97: ='Calc - Customer Charges'!Z99 -> 0 | F97: ='Calc - Customer Charges'!AA99 -> 0 | G97: ='Calc - Customer Charges'!AB99 -> 0 | H97: ='Calc - Customer Charges'!AF99 -> 0
B98: ='Calc - Customer Charges'!A100 -> Customer 93 3 | C98: ='Calc - Customer Charges'!X100 -> 0 | D98: ='Calc - Customer Charges'!Y100 -> 0 | E98: ='Calc - Customer Charges'!Z100 -> 0 | F98: ='Calc - Customer Charges'!AA100 -> 0 | G98: ='Calc - Customer Charges'!AB100 -> 0 | H98: ='Calc - Customer Charges'!AF100 -> 0
B99: ='Calc - Customer Charges'!A101 -> Customer 96 | C99: ='Calc - Customer Charges'!X101 -> 20190.79 | D99: ='Calc - Customer Charges'!Y101 -> 0.0004492071978 | E99: ='Calc - Customer Charges'!Z101 -> 9.994017397e-12 | F99: ='Calc - Customer Charges'!AA101 -> 2.223481374e-19 | G99: ='Calc - Customer Charges'!AB101 -> 4.946828912e-27 | H99: ='Calc - Customer Charges'!AF101 -> -0.9999999783
B100: ='Calc - Customer Charges'!A102 -> Customer 97 | C100: ='Calc - Customer Charges'!X102 -> 28056.3 | D100: ='Calc - Customer Charges'!Y102 -> 25656.94972 | E100: ='Calc - Customer Charges'!Z102 -> 23462.78979 | F100: ='Calc - Customer Charges'!AA102 -> 21456.27249 | G100: ='Calc - Customer Charges'!AB102 -> 19621.35081 | H100: ='Calc - Customer Charges'!AF102 -> -0.1078235383
B101: ='Calc - Customer Charges'!A103 -> Customer 98 | C101: ='Calc - Customer Charges'!X103 -> 71946.47 | D101: ='Calc - Customer Charges'!Y103 -> 70799.77303 | E101: ='Calc - Customer Charges'!Z103 -> 69671.35234 | F101: ='Calc - Customer Charges'!AA103 -> 68560.91665 | G101: ='Calc - Customer Charges'!AB103 -> 67468.17929 | H101: ='Calc - Customer Charges'!AF103 -> -0.0399397038
B102: ='Calc - Customer Charges'!A104 -> Customer 99 | C102: ='Calc - Customer Charges'!X104 -> 838649.88 | D102: ='Calc - Customer Charges'!Y104 -> 753212.5411 | E102: ='Calc - Customer Charges'!Z104 -> 676479.1192 | F102: ='Calc - Customer Charges'!AA104 -> 607562.9038 | G102: ='Calc - Customer Charges'!AB104 -> 545667.5182 | H102: ='Calc - Customer Charges'!AF104 -> -0.1237803509
B103: ='Calc - Customer Charges'!A105 -> Customer 100 | C103: ='Calc - Customer Charges'!X105 -> 369219.13 | D103: ='Calc - Customer Charges'!Y105 -> 346974.8944 | E103: ='Calc - Customer Charges'!Z105 -> 326070.8008 | F103: ='Calc - Customer Charges'!AA105 -> 306426.1098 | G103: ='Calc - Customer Charges'!AB105 -> 287964.9467 | H103: ='Calc - Customer Charges'!AF105 -> -0.08316751589
B104: ='Calc - Customer Charges'!A106 -> Customer 101 | C104: ='Calc - Customer Charges'!X106 -> 411202 | D104: ='Calc - Customer Charges'!Y106 -> 398230.3305 | E104: ='Calc - Customer Charges'!Z106 -> 385667.8618 | F104: ='Calc - Customer Charges'!AA106 -> 373501.6855 | G104: ='Calc - Customer Charges'!AB106 -> 361719.3001 | H104: ='Calc - Customer Charges'!AF106 -> -0.05516657119
B105: ='Calc - Customer Charges'!A107 -> Customer 102 | C105: ='Calc - Customer Charges'!X107 -> 451476.32 | D105: ='Calc - Customer Charges'!Y107 -> 407728.8622 | E105: ='Calc - Customer Charges'!Z107 -> 368220.4752 | F105: ='Calc - Customer Charges'!AA107 -> 332540.3986 | G105: ='Calc - Customer Charges'!AB107 -> 300317.6741 | H105: ='Calc - Customer Charges'!AF107 -> -0.1189255378
B106: ='Calc - Customer Charges'!A108 -> Customer 103 | C106: ='Calc - Customer Charges'!X108 -> 1009747.34 | D106: ='Calc - Customer Charges'!Y108 -> 1016057.435 | E106: ='Calc - Customer Charges'!Z108 -> 1022406.963 | F106: ='Calc - Customer Charges'!AA108 -> 1028796.17 | G106: ='Calc - Customer Charges'!AB108 -> 1035225.305 | H106: ='Calc - Customer Charges'!AF108 -> -0.01829348089
B107: ='Calc - Customer Charges'!A109 -> Customer 104 | C107: ='Calc - Customer Charges'!X109 -> 62 | D107: ='Calc - Customer Charges'!Y109 -> 0.001198491917 | E107: ='Calc - Customer Charges'!Z109 -> 2.316746574e-08 | F107: ='Calc - Customer Charges'!AA109 -> 4.478390393e-13 | G107: ='Calc - Customer Charges'!AB109 -> 8.656959176e-18 | H107: ='Calc - Customer Charges'!AF109 -> -0.999981141
C109: =SUM(C4:C107) -> 21628408.46 | D109: =SUM(D4:D107) -> 20628888.49 | E109: =SUM(E4:E107) -> 19813573.04 | F109: =SUM(F4:F107) -> 19131609.1 | G109: =SUM(G4:G107) -> 18569411.08

Sheet Format key
A1: Example cell formats | B1: Type of information | C1: Comment
A2: Example | B2: Column Heading | C2: Describes the data or text in the column
A3: Example | B3: Row label | C3: Describes the data of text in the row
A4: Example | B4: Text input | C4: Is hard coded text that other calculations depend on
A5: Example | B5: Text linked | C5: Is text linked from another cell
A6: Example | B6: Value input | C6: Is hard coded value that is an input to other calculations
A7: Example | B7: Value link | C7: Is a value that is linked from another cell
A8: Example | B8: Value calculation | C8: Is a value calculated within the cell, by reference to other cells
A9: Example | B9: Column total | C9: Is the sum of the column above

Sheet Inputs - General
D2: FY13 | E2: FY14 | F2: FY15 | G2: FY16 | H2: FY17 | I2: FY18 | J2: FY19 | K2: FY20 | L2: FY21 | M2: FY22 | N2: FY23 | O2: FY24
B4: Real labour escalators | D4: 0 | E4: 0 | F4: 0 | G4: 0 | H4: 0 | I4: 0 | J4: 0 | K4: 0 | L4: 0 | M4: 0 | N4: 0 | O4: 0
B5: Labour proportion of opex | D5: 0.65 | E5: 0.65 | F5: 0.65 | G5: 0.65 | H5: 0.65 | I5: 0.65 | J5: 0.65 | K5: 0.65 | L5: 0.65 | M5: 0.65 | N5: 0.65 | O5: 0.65
B6: Real labour escalation | D6: =D5*D4 -> 0 | E6: 0 | F6: 0 | G6: 0 | H6: 0 | I6: 0 | J6: 0 | K6: 0 | L6: 0 | M6: 0 | N6: 0 | O6: 0
B7: Real labour index | D7: 1 | E7: =D7*(1+E6) -> 1 | F7: 1 | G7: 1 | H7: 1 | I7: 1 | J7: 1 | K7: 1 | L7: 1 | M7: 1 | N7: 1 | O7: 1
B8: Inflation | E8: 0.0176 | F8: 0.025 | G8: 0.025 | H8: 0.025 | I8: 0.025 | J8: 0.025 | K8: 0.025 | L8: 0.025 | M8: 0.025 | N8: 0.025 | O8: 0.025
B9: Inflation index (base 2009/10) | D9: 1 | E9: =D9*(1+CPIFY14) -> 1.0176 | F9: =E9*(1+CPIFY15) -> 1.04304 | G9: =F9*(1+CPIFY16) -> 1.069116 | H9: =G9*(1+CPIFY17) -> 1.0958439 | I9: =H9*(1+CPIFY18) -> 1.123239997 | J9: =I9*(1+CPIFY19) -> 1.151320997 | K9: =J9*(1+CPIFY20) -> 1.180104022 | L9: =K9*(1+CPIFY21) -> 1.209606623 | M9: =L9*(1+CPIFY22) -> 1.239846789 | N9: =M9*(1+CPIFY23) -> 1.270842958 | O9: =N9*(1+CPIFY24) -> 1.302614032
B11: Pre-Tax Nominal WACC | D11: 0.0982 | E11: Updated 6/01/15
B13: Opening RAB FY15 ($m) | D13: 101.6

Sheet Input - Customer Inventory FY15
B2: Customer | C2: Lookup | D2: Component | E2: Description | F2: Count | G2: Rate | H2: Average Age | I2: Remaining Life | J2: Economic life
B3: Customer 1 | C3: =CONCATENATE(D3," - ", E3) -> Bracket - 0.5 | D3: Bracket | E3: 0.5 | F3: =SUMIFS('2013 Inventory'!$I$2:$I$9200,'2013 Inventory'!$B$2:$B$9200,'Input - Customer Inventory FY15'!B3,'2013 Inventory'!$G$2:$G$9200,'Input - Customer Inventory FY15'!C3,'2013 Inventory'!$H$2:$H$9200,'Input - Customer Inventory FY15'!G3) -> 0 | G3: 1 | H3: 20.00389064 | I3: =IF(J3-(H3)<0,0,J3-(H3)) -> 0 | J3: =IF(D3="Lamp",3,IF(D3="Support",35,20)) -> 20
B4: Customer 1 | C4: Bracket - 0.5 | D4: Bracket | E4: 0.5 | F4: =SUMIFS('2013 Inventory'!$I$2:$I$9200,'2013 Inventory'!$B$2:$B$9200,'Input - Customer Inventory FY15'!B4,'2013 Inventory'!$G$2:$G$9200,'Input - Customer Inventory FY15'!C4,'2013 Inventory'!$H$2:$H$9200,'Input - Customer Inventory FY15'!G4) -> 0 | G4: 2 | H4: 20.00389064 | I4: 0 | J4: 20
B5: Customer 1 | C5: Bracket - 1.0 | D5: Bracket | E5: 1.0 | F5: =SUMIFS('2013 Inventory'!$I$2:$I$9200,'2013 Inventory'!$B$2:$B$9200,'Input - Customer Inventory FY15'!B5,'2013 Inventory'!$G$2:$G$9200,'Input - Customer Inventory FY15'!C5,'2013 Inventory'!$H$2:$H$9200,'Input - Customer Inventory FY15'!G5) -> 0 | G5: 1 | H5: 7.432876712 | I5: 12.56712329 | J5: 20
B6: Customer 1 | C6: Bracket - 1.5 | D6: Bracket | E6: 1.5 | F6: =SUMIFS('2013 Inventory'!$I$2:$I$9200,'2013 Inventory'!$B$2:$B$9200,'Input - Customer Inventory FY15'!B6,'2013 Inventory'!$G$2:$G$9200,'Input - Customer Inventory FY15'!C6,'2013 Inventory'!$H$2:$H$9200,'Input - Customer Inventory FY15'!G6) -> 0 | G6: 2 | H6: 7.082191781 | I6: 12.91780822 | J6: 20
B7: Customer 1 | C7: Bracket - 2.0 | D7: Bracket | E7: 2.0 | F7: =SUMIFS('2013 Inventory'!$I$2:$I$9200,'2013 Inventory'!$B$2:$B$9200,'Input - Customer Inventory FY15'!B7,'2013 Inventory'!$G$2:$G$9200,'Input - Customer Inventory FY15'!C7,'2013 Inventory'!$H$2:$H$9200,'Input - Customer Inventory FY15'!G7) -> 0 | G7: 1 | H7: 17.99668081 | I7: 2.003319186 | J7: 20
B8: Customer 1 | C8: Bracket - 2.0 | D8: Bracket | E8: 2.0 | F8: =SUMIFS('2013 Inventory'!$I$2:$I$9200,'2013 Inventory'!$B$2:$B$9200,'Input - Customer Inventory FY15'!B8,'2013 Inventory'!$G$2:$G$9200,'Input - Customer Inventory FY15'!C8,'2013 Inventory'!$H$2:$H$9200,'Input - Customer Inventory FY15'!G8) -> 0 | G8: 2 | H8: 17.99668081 | I8: 2.003319186 | J8: 20
B9: Customer 1 | C9: Bracket - 2.5 | D9: Bracket | E9: 2.5 | F9: =SUMIFS('2013 Inventory'!$I$2:$I$9200,'2013 Inventory'!$B$2:$B$9200,'Input - Customer Inventory FY15'!B9,'2013 Inventory'!$G$2:$G$9200,'Input - Customer Inventory FY15'!C9,'2013 Inventory'!$H$2:$H$9200,'Input - Customer Inventory FY15'!G9) -> 0 | G9: 1 | H9: 17.88876712 | I9: 2.111232877 | J9: 20
B10: Customer 1 | C10: Bracket - 3.0 | D10: Bracket | E10: 3.0 | F10: =SUMIFS('2013 Inventory'!$I$2:$I$9200,'2013 Inventory'!$B$2:$B$9200,'Input - Customer Inventory FY15'!B10,'2013 Inventory'!$G$2:$G$9200,'Input - Customer Inventory FY15'!C10,'2013 Inventory'!$H$2:$H$9200,'Input - Customer Inventory FY15'!G10) -> 0 | G10: 1 | H10: 15.21400304 | I10: 4.785996956 | J10: 20
B11: Customer 1 | C11: Bracket - 3.0 | D11: Bracket | E11: 3.0 | F11: =SUMIFS('2013 Inventory'!$I$2:$I$9200,'2013 Inventory'!$B$2:$B$9200,'Input - Customer Inventory FY15'!B11,'2013 Inventory'!$G$2:$G$9200,'Input - Customer Inventory FY15'!C11,'2013 Inventory'!$H$2:$H$9200,'Input - Customer Inventory FY15'!G11) -> 0 | G11: 2 | H11: 15.21400304 | I11: 4.785996956 | J11: 20
B12: Customer 1 | C12: Bracket - 3.5 | D12: Bracket | E12: 3.5 | F12: =SUMIFS('2013 Inventory'!$I$2:$I$9200,'2013 Inventory'!$B$2:$B$9200,'Input - Customer Inventory FY15'!B12,'2013 Inventory'!$G$2:$G$9200,'Input - Customer Inventory FY15'!C12,'2013 Inventory'!$H$2:$H$9200,'Input - Customer Inventory FY15'!G12) -> 0 | G12: 1 | H12: 18.32835616 | I12: 1.671643836 | J12: 20
B13: Customer 1 | C13: Bracket - 4.0 | D13: Bracket | E13: 4.0 | F13: =SUMIFS('2013 Inventory'!$I$2:$I$9200,'2013 Inventory'!$B$2:$B$9200,'Input - Customer Inventory FY15'!B13,'2013 Inventory'!$G$2:$G$9200,'Input - Customer Inventory FY15'!C13,'2013 Inventory'!$H$2:$H$9200,'Input - Customer Inventory FY15'!G13) -> 0 | G13: 1 | H13: 18.26927593 | I13: 1.73072407 | J13: 20
B14: Customer 1 | C14: Bracket - 4.5 | D14: Bracket | E14: 4.5 | F14: =SUMIFS('2013 Inventory'!$I$2:$I$9200,'2013 Inventory'!$B$2:$B$9200,'Input - Customer Inventory FY15'!B14,'2013 Inventory'!$G$2:$G$9200,'Input - Customer Inventory FY15'!C14,'2013 Inventory'!$H$2:$H$9200,'Input - Customer Inventory FY15'!G14) -> 0 | G14: 1 | H14: 20.86071262 | I14: 0 | J14: 20
B15: Customer 1 | C15: Bracket - 4.5 | D15: Bracket | E15: 4.5 | F15: =SUMIFS('2013 Inventory'!$I$2:$I$9200,'2013 Inventory'!$B$2:$B$9200,'Input - Customer Inventory FY15'!B15,'2013 Inventory'!$G$2:$G$9200,'Input - Customer Inventory FY15'!C15,'2013 Inventory'!$H$2:$H$9200,'Input - Customer Inventory FY15'!G15) -> 0 | G15: 2 | H15: 20.86071262 | I15: 0 | J15: 20
B16: Customer 1 | C16: Bracket - 5.0 | D16: Bracket | E16: 5.0 | F16: =SUMIFS('2013 Inventory'!$I$2:$I$9200,'2013 Inventory'!$B$2:$B$9200,'Input - Customer Inventory FY15'!B16,'2013 Inventory'!$G$2:$G$9200,'Input - Customer Inventory FY15'!C16,'2013 Inventory'!$H$2:$H$9200,'Input - Customer Inventory FY15'!G16) -> 0 | G16: 1 | H16: 19.48584475 | I16: 0.5141552511 | J16: 20
B17: Customer 1 | C17: Bracket - 6.0 | D17: Bracket | E17: 6.0 | F17: =SUMIFS('2013 Inventory'!$I$2:$I$9200,'2013 Inventory'!$B$2:$B$9200,'Input - Customer Inventory FY15'!B17,'2013 Inventory'!$G$2:$G$9200,'Input - Customer Inventory FY15'!C17,'2013 Inventory'!$H$2:$H$9200,'Input - Customer Inventory FY15'!G17) -> 0 | G17: 1 | H17: 10.48356164 | I17: 9.516438356 | J17: 20
B18: Customer 1 | C18: Bracket - NIL | D18: Bracket | E18: NIL | F18: =SUMIFS('2013 Inventory'!$I$2:$I$9200,'2013 Inventory'!$B$2:$B$9200,'Input - Customer Inventory FY15'!B18,'2013 Inventory'!$G$2:$G$9200,'Input - Customer Inventory FY15'!C18,'2013 Inventory'!$H$2:$H$9200,'Input - Customer Inventory FY15'!G18) -> 0 | G18: 1 | H18: 17.60620589 | I18: 2.393794105 | J18: 20
B19: Customer 1 | C19: Bracket - NIL | D19: Bracket | E19: NIL | F19: =SUMIFS('2013 Inventory'!$I$2:$I$9200,'2013 Inventory'!$B$2:$B$9200,'Input - Customer Inventory FY15'!B19,'2013 Inventory'!$G$2:$G$9200,'Input - Customer Inventory FY15'!C19,'2013 Inventory'!$H$2:$H$9200,'Input - Customer Inventory FY15'!G19) -> 0 | G19: 2 | H19: 17.60620589 | I19: 2.393794105 | J19: 20
B20: Customer 1 | C20: Bracket - PRIVATE | D20: Bracket | E20: PRIVATE | F20: =SUMIFS('2013 Inventory'!$I$2:$I$9200,'2013 Inventory'!$B$2:$B$9200,'Input - Customer Inventory FY15'!B20,'2013 Inventory'!$G$2:$G$9200,'Input - Customer Inventory FY15'!C20,'2013 Inventory'!$H$2:$H$9200,'Input - Customer Inventory FY15'!G20) -> 0 | G20: 1 | H20: 17.88557615 | I20: 2.114423852 | J20: 20
B21: Customer 1 | C21: Bracket - PRIVATE | D21: Bracket | E21: PRIVATE | F21: =SUMIFS('2013 Inventory'!$I$2:$I$9200,'2013 Inventory'!$B$2:$B$9200,'Input - Customer Inventory FY15'!B21,'2013 Inventory'!$G$2:$G$9200,'Input - Customer Inventory FY15'!C21,'2013 Inventory'!$H$2:$H$9200,'Input - Customer Inventory FY15'!G21) -> 0 | G21: 3 | H21: 17.88557615 | I21: 2.114423852 | J21: 20
B22: Customer 1 | C22: Bracket - SUSPENDED | D22: Bracket | E22: SUSPENDED | F22: =SUMIFS('2013 Inventory'!$I$2:$I$9200,'2013 Inventory'!$B$2:$B$9200,'Input - Customer Inventory FY15'!B22,'2013 Inventory'!$G$2:$G$9200,'Input - Customer Inventory FY15'!C22,'2013 Inventory'!$H$2:$H$9200,'Input - Customer Inventory FY15'!G22) -> 0 | G22: 1 | H22: 16.15342466 | I22: 3.846575342 | J22: 20
B23: Customer 1 | C23: Bracket - T1 | D23: Bracket | E23: T1 | F23: =SUMIFS('2013 Inventory'!$I$2:$I$9200,'2013 Inventory'!$B$2:$B$9200,'Input - Customer Inventory FY15'!B23,'2013 Inventory'!$G$2:$G$9200,'Input - Customer Inventory FY15'!C23,'2013 Inventory'!$H$2:$H$9200,'Input - Customer Inventory FY15'!G23) -> 0 | G23: 1 | H23: 19.9474495 | I23: 0.0525505037 | J23: 20
B24: Customer 1 | C24: Bracket - T2 | D24: Bracket | E24: T2 | F24: =SUMIFS('2013 Inventory'!$I$2:$I$9200,'2013 Inventory'!$B$2:$B$9200,'Input - Customer Inventory FY15'!B24,'2013 Inventory'!$G$2:$G$9200,'Input - Customer Inventory FY15'!C24,'2013 Inventory'!$H$2:$H$9200,'Input - Customer Inventory FY15'!G24) -> 0 | G24: 1 | H24: 18.7260274 | I24: 1.273972603 | J24: 20
B25: Customer 1 | C25: Bracket - T2 | D25: Bracket | E25: T2 | F25: =SUMIFS('2013 Inventory'!$I$2:$I$9200,'2013 Inventory'!$B$2:$B$9200,'Input - Customer Inventory FY15'!B25,'2013 Inventory'!$G$2:$G$9200,'Input - Customer Inventory FY15'!C25,'2013 Inventory'!$H$2:$H$9200,'Input - Customer Inventory FY15'!G25) -> 0 | G25: 2 | H25: 18.7260274 | I25: 1.273972603 | J25: 20
B26: Customer 1 | C26: Bracket - T2A | D26: Bracket | E26: T2A | F26: =SUMIFS('2013 Inventory'!$I$2:$I$9200,'2013 Inventory'!$B$2:$B$9200,'Input - Customer Inventory FY15'!B26,'2013 Inventory'!$G$2:$G$9200,'Input - Customer Inventory FY15'!C26,'2013 Inventory'!$H$2:$H$9200,'Input - Customer Inventory FY15'!G26) -> 0 | G26: 1 | H26: 8.134931507 | I26: 11.86506849 | J26: 20
B27: Customer 1 | C27: Bracket - T3 | D27: Bracket | E27: T3 | F27: =SUMIFS('2013 Inventory'!$I$2:$I$9200,'2013 Inventory'!$B$2:$B$9200,'Input - Customer Inventory FY15'!B27,'2013 Inventory'!$G$2:$G$9200,'Input - Customer Inventory FY15'!C27,'2013 Inventory'!$H$2:$H$9200,'Input - Customer Inventory FY15'!G27) -> 0 | G27: 1 | H27: 19.18640284 | I27: 0.8135971588 | J27: 20
B28: Customer 1 | C28: Bracket - T3A | D28: Bracket | E28: T3A | F28: =SUMIFS('2013 Inventory'!$I$2:$I$9200,'2013 Inventory'!$B$2:$B$9200,'Input - Customer Inventory FY15'!B28,'2013 Inventory'!$G$2:$G$9200,'Input - Customer Inventory FY15'!C28,'2013 Inventory'!$H$2:$H$9200,'Input - Customer Inventory FY15'!G28) -> 0 | G28: 1 | H28: 11.31659056 | I28: 8.683409437 | J28: 20
B29: Customer 1 | C29: Bracket - T4 | D29: Bracket | E29: T4 | F29: =SUMIFS('2013 Inventory'!$I$2:$I$9200,'2013 Inventory'!$B$2:$B$9200,'Input - Customer Inventory FY15'!B29,'2013 Inventory'!$G$2:$G$9200,'Input - Customer Inventory FY15'!C29,'2013 Inventory'!$H$2:$H$9200,'Input - Customer Inventory FY15'!G29) -> 0 | G29: 1 | H29: 10.6513939 | I29: 9.348606104 | J29: 20
B30: Customer 1 | C30: Bracket - T5 | D30: Bracket | E30: T5 | F30: =SUMIFS('2013 Inventory'!$I$2:$I$9200,'2013 Inventory'!$B$2:$B$9200,'Input - Customer Inventory FY15'!B30,'2013 Inventory'!$G$2:$G$9200,'Input - Customer Inventory FY15'!C30,'2013 Inventory'!$H$2:$H$9200,'Input - Customer Inventory FY15'!G30) -> 0 | G30: 1 | H30: 18.16986301 | I30: 1.830136986 | J30: 20
B31: Customer 1 | C31: Bracket - T5 | D31: Bracket | E31: T5 | F31: =SUMIFS('2013 Inventory'!$I$2:$I$9200,'2013 Inventory'!$B$2:$B$9200,'Input - Customer Inventory FY15'!B31,'2013 Inventory'!$G$2:$G$9200,'Input - Customer Inventory FY15'!C31,'2013 Inventory'!$H$2:$H$9200,'Input - Customer Inventory FY15'!G31) -> 0 | G31: 2 | H31: 18.16986301 | I31: 1.830136986 | J31: 20
B32: Customer 1 | C32: Bracket - T6 | D32: Bracket | E32: T6 | F32: =SUMIFS('2013 Inventory'!$I$2:$I$9200,'2013 Inventory'!$B$2:$B$9200,'Input - Customer Inventory FY15'!B32,'2013 Inventory'!$G$2:$G$9200,'Input - Customer Inventory FY15'!C32,'2013 Inventory'!$H$2:$H$9200,'Input - Customer Inventory FY15'!G32) -> 0 | G32: 1 | H32: 16.66438356 | I32: 3.335616438 | J32: 20
B33: Customer 1 | C33: Bracket - T6 | D33: Bracket | E33: T6 | F33: =SUMIFS('2013 Inventory'!$I$2:$I$9200,'2013 Inventory'!$B$2:$B$9200,'Input - Customer Inventory FY15'!B33,'2013 Inventory'!$G$2:$G$9200,'Input - Customer Inventory FY15'!C33,'2013 Inventory'!$H$2:$H$9200,'Input - Customer Inventory FY15'!G33) -> 0 | G33: 2 | H33: 16.66438356 | I33: 3.335616438 | J33: 20
B34: Customer 1 | C34: Bracket - T7 | D34: Bracket | E34: T7 | F34: =SUMIFS('2013 Inventory'!$I$2:$I$9200,'2013 Inventory'!$B$2:$B$9200,'Input - Customer Inventory FY15'!B34,'2013 Inventory'!$G$2:$G$9200,'Input - Customer Inventory FY15'!C34,'2013 Inventory'!$H$2:$H$9200,'Input - Customer Inventory FY15'!G34) -> 0 | G34: 1 | H34: 8.99543379 | I34: 11.00456621 | J34: 20
B35: Customer 1 | C35: Connection - EMPTY | D35: Connection | E35: EMPTY | F35: =SUMIFS('2013 Inventory'!$I$2:$I$9200,'2013 Inventory'!$B$2:$B$9200,'Input - Customer Inventory FY15'!B35,'2013 Inventory'!$G$2:$G$9200,'Input - Customer Inventory FY15'!C35,'2013 Inventory'!$H$2:$H$9200,'Input - Customer Inventory FY15'!G35) -> 0 | G35: 1 | H35: 7 | I35: 13 | J35: 20
B36: Customer 1 | C36: Connection - O/U | D36: Connection | E36: O/U | F36: =SUMIFS('2013 Inventory'!$I$2:$I$9200,'2013 Inventory'!$B$2:$B$9200,'Input - Customer Inventory FY15'!B36,'2013 Inventory'!$G$2:$G$9200,'Input - Customer Inventory FY15'!C36,'2013 Inventory'!$H$2:$H$9200,'Input - Customer Inventory FY15'!G36) -> 0 | G36: 1 | H36: 16.28931507 | I36: 3.710684932 | J36: 20
B37: Customer 1 | C37: Connection - O/U | D37: Connection | E37: O/U | F37: =SUMIFS('2013 Inventory'!$I$2:$I$9200,'2013 Inventory'!$B$2:$B$9200,'Input - Customer Inventory FY15'!B37,'2013 Inventory'!$G$2:$G$9200,'Input - Customer Inventory FY15'!C37,'2013 Inventory'!$H$2:$H$9200,'Input - Customer Inventory FY15'!G37) -> 0 | G37: 2 | H37: 16.28931507 | I37: 3.710684932 | J37: 20
B38: Customer 1 | C38: Connection - OH | D38: Connection | E38: OH | F38: =SUMIFS('2013 Inventory'!$I$2:$I$9200,'2013 Inventory'!$B$2:$B$9200,'Input - Customer Inventory FY15'!B38,'2013 Inventory'!$G$2:$G$9200,'Input - Customer Inventory FY15'!C38,'2013 Inventory'!$H$2:$H$9200,'Input - Customer Inventory FY15'!G38) -> 0 | G38: 1 | H38: 18.15249534 | I38: 1.847504656 | J38: 20
B39: Customer 1 | C39: Connection - OH | D39: Connection | E39: OH | F39: =SUMIFS('2013 Inventory'!$I$2:$I$9200,'2013 Inventory'!$B$2:$B$9200,'Input - Customer Inventory FY15'!B39,'2013 Inventory'!$G$2:$G$9200,'Input - Customer Inventory FY15'!C39,'2013 Inventory'!$H$2:$H$9200,'Input - Customer Inventory FY15'!G39) -> 0 | G39: 2 | H39: 18.15249534 | I39: 1.847504656 | J39: 20
B40: Customer 1 | C40: Connection - OH | D40: Connection | E40: OH | F40: =SUMIFS('2013 Inventory'!$I$2:$I$9200,'2013 Inventory'!$B$2:$B$9200,'Input - Customer Inventory FY15'!B40,'2013 Inventory'!$G$2:$G$9200,'Input - Customer Inventory FY15'!C40,'2013 Inventory'!$H$2:$H$9200,'Input - Customer Inventory FY15'!G40) -> 0 | G40: 3 | H40: 18.15249534 | I40: 1.847504656 | J40: 20
B41: Customer 1 | C41: Connection - OH2 | D41: Connection | E41: OH2 | F41: =SUMIFS('2013 Inventory'!$I$2:$I$9200,'2013 Inventory'!$B$2:$B$9200,'Input - Customer Inventory FY15'!B41,'2013 Inventory'!$G$2:$G$9200,'Input - Customer Inventory FY15'!C41,'2013 Inventory'!$H$2:$H$9200,'Input - Customer Inventory FY15'!G41) -> 0 | G41: 1 | H41: 14.81369863 | I41: 5.18630137 | J41: 20
B42: Customer 1 | C42: Connection - UGR1 | D42: Connection | E42: UGR1 | F42: =SUMIFS('2013 Inventory'!$I$2:$I$9200,'2013 Inventory'!$B$2:$B$9200,'Input - Customer Inventory FY15'!B42,'2013 Inventory'!$G$2:$G$9200,'Input - Customer Inventory FY15'!C42,'2013 Inventory'!$H$2:$H$9200,'Input - Customer Inventory FY15'!G42) -> 0 | G42: 1 | H42: 17.18393738 | I42: 2.816062622 | J42: 20
B43: Customer 1 | C43: Connection - UGR1 | D43: Connection | E43: UGR1 | F43: =SUMIFS('2013 Inventory'!$I$2:$I$9200,'2013 Inventory'!$B$2:$B$9200,'Input - Customer Inventory FY15'!B43,'2013 Inventory'!$G$2:$G$9200,'Input - Customer Inventory FY15'!C43,'2013 Inventory'!$H$2:$H$9200,'Input - Customer Inventory FY15'!G43) -> 0 | G43: 3 | H43: 17.18393738 | I43: 2.816062622 | J43: 20
B44: Customer 1 | C44: Connection - UGR2 | D44: Connection | E44: UGR2 | F44: =SUMIFS('2013 Inventory'!$I$2:$I$9200,'2013 Inventory'!$B$2:$B$9200,'Input - Customer Inventory FY15'!B44,'2013 Inventory'!$G$2:$G$9200,'Input - Customer Inventory FY15'!C44,'2013 Inventory'!$H$2:$H$9200,'Input - Customer Inventory FY15'!G44) -> 0 | G44: 1 | H44: 9.249841939 | I44: 10.75015806 | J44: 20
B45: Customer 1 | C45: Connection - UGR2 | D45: Connection | E45: UGR2 | F45: =SUMIFS('2013 Inventory'!$I$2:$I$9200,'2013 Inventory'!$B$2:$B$9200,'Input - Customer Inventory FY15'!B45,'2013 Inventory'!$G$2:$G$9200,'Input - Customer Inventory FY15'!C45,'2013 Inventory'!$H$2:$H$9200,'Input - Customer Inventory FY15'!G45) -> 0 | G45: 2 | H45: 9.249841939 | I45: 10.75015806 | J45: 20
B46: Customer 1 | C46: Lamp - INC1x100 | D46: Lamp | E46: INC1x100 | F46: =SUMIFS('2013 Inventory'!$I$2:$I$9200,'2013 Inventory'!$B$2:$B$9200,'Input - Customer Inventory FY15'!B46,'2013 Inventory'!$G$2:$G$9200,'Input - Customer Inventory FY15'!C46,'2013 Inventory'!$H$2:$H$9200,'Input - Customer Inventory FY15'!G46) -> 0 | G46: 3 | H46: 5 | I46: 0 | J46: 3
B47: Customer 1 | C47: Lamp - INC1x40 | D47: Lamp | E47: INC1x40 | F47: =SUMIFS('2013 Inventory'!$I$2:$I$9200,'2013 Inventory'!$B$2:$B$9200,'Input - Customer Inventory FY15'!B47,'2013 Inventory'!$G$2:$G$9200,'Input - Customer Inventory FY15'!C47,'2013 Inventory'!$H$2:$H$9200,'Input - Customer Inventory FY15'!G47) -> 0 | G47: 1 | H47: 5 | I47: 0 | J47: 3
B48: Customer 1 | C48: Lamp - INC1x60 | D48: Lamp | E48: INC1x60 | F48: =SUMIFS('2013 Inventory'!$I$2:$I$9200,'2013 Inventory'!$B$2:$B$9200,'Input - Customer Inventory FY15'!B48,'2013 Inventory'!$G$2:$G$9200,'Input - Customer Inventory FY15'!C48,'2013 Inventory'!$H$2:$H$9200,'Input - Customer Inventory FY15'!G48) -> 0 | G48: 3 | H48: 5 | I48: 0 | J48: 3
B49: Customer 1 | C49: Lamp - MBF1x1000 | D49: Lamp | E49: MBF1x1000 | F49: =SUMIFS('2013 Inventory'!$I$2:$I$9200,'2013 Inventory'!$B$2:$B$9200,'Input - Customer Inventory FY15'!B49,'2013 Inventory'!$G$2:$G$9200,'Input - Customer Inventory FY15'!C49,'2013 Inventory'!$H$2:$H$9200,'Input - Customer Inventory FY15'!G49) -> 0 | G49: 1 | H49: 5 | I49: 0 | J49: 3
B50: Customer 1 | C50: Lamp - MBF1x125 | D50: Lamp | E50: MBF1x125 | F50: =SUMIFS('2013 Inventory'!$I$2:$I$9200,'2013 Inventory'!$B$2:$B$9200,'Input - Customer Inventory FY15'!B50,'2013 Inventory'!$G$2:$G$9200,'Input - Customer Inventory FY15'!C50,'2013 Inventory'!$H$2:$H$9200,'Input - Customer Inventory FY15'!G50) -> 0 | G50: 1 | H50: 5 | I50: 0 | J50: 3
B51: Customer 1 | C51: Lamp - MBF1x125 | D51: Lamp | E51: MBF1x125 | F51: =SUMIFS('2013 Inventory'!$I$2:$I$9200,'2013 Inventory'!$B$2:$B$9200,'Input - Customer Inventory FY15'!B51,'2013 Inventory'!$G$2:$G$9200,'Input - Customer Inventory FY15'!C51,'2013 Inventory'!$H$2:$H$9200,'Input - Customer Inventory FY15'!G51) -> 0 | G51: 2 | H51: 5 | I51: 0 | J51: 3
B52: Customer 1 | C52: Lamp - MBF1x250 | D52: Lamp | E52: MBF1x250 | F52: =SUMIFS('2013 Inventory'!$I$2:$I$9200,'2013 Inventory'!$B$2:$B$9200,'Input - Customer Inventory FY15'!B52,'2013 Inventory'!$G$2:$G$9200,'Input - Customer Inventory FY15'!C52,'2013 Inventory'!$H$2:$H$9200,'Input - Customer Inventory FY15'!G52) -> 0 | G52: 1 | H52: 5 | I52: 0 | J52: 3
B53: Customer 1 | C53: Lamp - MBF1x400 | D53: Lamp | E53: MBF1x400 | F53: =SUMIFS('2013 Inventory'!$I$2:$I$9200,'2013 Inventory'!$B$2:$B$9200,'Input - Customer Inventory FY15'!B53,'2013 Inventory'!$G$2:$G$9200,'Input - Customer Inventory FY15'!C53,'2013 Inventory'!$H$2:$H$9200,'Input - Customer Inventory FY15'!G53) -> 0 | G53: 1 | H53: 5 | I53: 0 | J53: 3
B54: Customer 1 | C54: Lamp - MBF1x400 | D54: Lamp | E54: MBF1x400 | F54: =SUMIFS('2013 Inventory'!$I$2:$I$9200,'2013 Inventory'!$B$2:$B$9200,'Input - Customer Inventory FY15'!B54,'2013 Inventory'!$G$2:$G$9200,'Input - Customer Inventory FY15'!C54,'2013 Inventory'!$H$2:$H$9200,'Input - Customer Inventory FY15'!G54) -> 0 | G54: 2 | H54: 5 | I54: 0 | J54: 3
B55: Customer 1 | C55: Lamp - MBF1x42 | D55: Lamp | E55: MBF1x42 | F55: =SUMIFS('2013 Inventory'!$I$2:$I$9200,'2013 Inventory'!$B$2:$B$9200,'Input - Customer Inventory FY15'!B55,'2013 Inventory'!$G$2:$G$9200,'Input - Customer Inventory FY15'!C55,'2013 Inventory'!$H$2:$H$9200,'Input - Customer Inventory FY15'!G55) -> 0 | G55: 1 | H55: 5 | I55: 0 | J55: 3
B56: Customer 1 | C56: Lamp - MBF1x42 | D56: Lamp | E56: MBF1x42 | F56: =SUMIFS('2013 Inventory'!$I$2:$I$9200,'2013 Inventory'!$B$2:$B$9200,'Input - Customer Inventory FY15'!B56,'2013 Inventory'!$G$2:$G$9200,'Input - Customer Inventory FY15'!C56,'2013 Inventory'!$H$2:$H$9200,'Input - Customer Inventory FY15'!G56) -> 0 | G56: 2 | H56: 5 | I56: 0 | J56: 3
B57: Customer 1 | C57: Lamp - MBF1x50 | D57: Lamp | E57: MBF1x50 | F57: =SUMIFS('2013 Inventory'!$I$2:$I$9200,'2013 Inventory'!$B$2:$B$9200,'Input - Customer Inventory FY15'!B57,'2013 Inventory'!$G$2:$G$9200,'Input - Customer Inventory FY15'!C57,'2013 Inventory'!$H$2:$H$9200,'Input - Customer Inventory FY15'!G57) -> 0 | G57: 1 | H57: 5 | I57: 0 | J57: 3
B58: Customer 1 | C58: Lamp - MBF1x700 | D58: Lamp | E58: MBF1x700 | F58: =SUMIFS('2013 Inventory'!$I$2:$I$9200,'2013 Inventory'!$B$2:$B$9200,'Input - Customer Inventory FY15'!B58,'2013 Inventory'!$G$2:$G$9200,'Input - Customer Inventory FY15'!C58,'2013 Inventory'!$H$2:$H$9200,'Input - Customer Inventory FY15'!G58) -> 0 | G58: 1 | H58: 5 | I58: 0 | J58: 3
B59: Customer 1 | C59: Lamp - MBF1x80 | D59: Lamp | E59: MBF1x80 | F59: =SUMIFS('2013 Inventory'!$I$2:$I$9200,'2013 Inventory'!$B$2:$B$9200,'Input - Customer Inventory FY15'!B59,'2013 Inventory'!$G$2:$G$9200,'Input - Customer Inventory FY15'!C59,'2013 Inventory'!$H$2:$H$9200,'Input - Customer Inventory FY15'!G59) -> 0 | G59: 1 | H59: 5 | I59: 0 | J59: 3
B60: Customer 1 | C60: Lamp - MBF1x80 | D60: Lamp | E60: MBF1x80 | F60: =SUMIFS('2013 Inventory'!$I$2:$I$9200,'2013 Inventory'!$B$2:$B$9200,'Input - Customer Inventory FY15'!B60,'2013 Inventory'!$G$2:$G$9200,'Input - Customer Inventory FY15'!C60,'2013 Inventory'!$H$2:$H$9200,'Input - Customer Inventory FY15'!G60) -> 0 | G60: 2 | H60: 5 | I60: 0 | J60: 3
B61: Customer 1 | C61: Lamp - MBI1x400 | D61: Lamp | E61: MBI1x400 | F61: =SUMIFS('2013 Inventory'!$I$2:$I$9200,'2013 Inventory'!$B$2:$B$9200,'Input - Customer Inventory FY15'!B61,'2013 Inventory'!$G$2:$G$9200,'Input - Customer Inventory FY15'!C61,'2013 Inventory'!$H$2:$H$9200,'Input - Customer Inventory FY15'!G61) -> 0 | G61: 1 | H61: 5 | I61: 0 | J61: 3
B62: Customer 1 | C62: Lamp - SON1x100 | D62: Lamp | E62: SON1x100 | F62: =SUMIFS('2013 Inventory'!$I$2:$I$9200,'2013 Inventory'!$B$2:$B$9200,'Input - Customer Inventory FY15'!B62,'2013 Inventory'!$G$2:$G$9200,'Input - Customer Inventory FY15'!C62,'2013 Inventory'!$H$2:$H$9200,'Input - Customer Inventory FY15'!G62) -> 0 | G62: 1 | H62: 5 | I62: 0 | J62: 3
B63: Customer 1 | C63: Lamp - SON1x150 | D63: Lamp | E63: SON1x150 | F63: =SUMIFS('2013 Inventory'!$I$2:$I$9200,'2013 Inventory'!$B$2:$B$9200,'Input - Customer Inventory FY15'!B63,'2013 Inventory'!$G$2:$G$9200,'Input - Customer Inventory FY15'!C63,'2013 Inventory'!$H$2:$H$9200,'Input - Customer Inventory FY15'!G63) -> 0 | G63: 1 | H63: 5 | I63: 0 | J63: 3
B64: Customer 1 | C64: Lamp - SON1x250 | D64: Lamp | E64: SON1x250 | F64: =SUMIFS('2013 Inventory'!$I$2:$I$9200,'2013 Inventory'!$B$2:$B$9200,'Input - Customer Inventory FY15'!B64,'2013 Inventory'!$G$2:$G$9200,'Input - Customer Inventory FY15'!C64,'2013 Inventory'!$H$2:$H$9200,'Input - Customer Inventory FY15'!G64) -> 0 | G64: 1 | H64: 5 | I64: 0 | J64: 3
B65: Customer 1 | C65: Lamp - SON1x250 | D65: Lamp | E65: SON1x250 | F65: =SUMIFS('2013 Inventory'!$I$2:$I$9200,'2013 Inventory'!$B$2:$B$9200,'Input - Customer Inventory FY15'!B65,'2013 Inventory'!$G$2:$G$9200,'Input - Customer Inventory FY15'!C65,'2013 Inventory'!$H$2:$H$9200,'Input - Customer Inventory FY15'!G65) -> 0 | G65: 2 | H65: 5 | I65: 0 | J65: 3
B66: Customer 1 | C66: Lamp - SON1x400 | D66: Lamp | E66: SON1x400 | F66: =SUMIFS('2013 Inventory'!$I$2:$I$9200,'2013 Inventory'!$B$2:$B$9200,'Input - Customer Inventory FY15'!B66,'2013 Inventory'!$G$2:$G$9200,'Input - Customer Inventory FY15'!C66,'2013 Inventory'!$H$2:$H$9200,'Input - Customer Inventory FY15'!G66) -> 0 | G66: 1 | H66: 5 | I66: 0 | J66: 3
B67: Customer 1 | C67: =CONCATENATE(D67," - ", E67) -> Lamp - SON1x400 | D67: Lamp | E67: SON1x400 | F67: =SUMIFS('2013 Inventory'!$I$2:$I$9200,'2013 Inventory'!$B$2:$B$9200,'Input - Customer Inventory FY15'!B67,'2013 Inventory'!$G$2:$G$9200,'Input - Customer Inventory FY15'!C67,'2013 Inventory'!$H$2:$H$9200,'Input - Customer Inventory FY15'!G67) -> 0 | G67: 2 | H67: 5 | I67: =IF(J67-(H67)<0,0,J67-(H67)) -> 0 | J67: =IF(D67="Lamp",3,IF(D67="Support",35,20)) -> 3
B68: Customer 1 | C68: Lamp - SON1x50 | D68: Lamp | E68: SON1x50 | F68: =SUMIFS('2013 Inventory'!$I$2:$I$9200,'2013 Inventory'!$B$2:$B$9200,'Input - Customer Inventory FY15'!B68,'2013 Inventory'!$G$2:$G$9200,'Input - Customer Inventory FY15'!C68,'2013 Inventory'!$H$2:$H$9200,'Input - Customer Inventory FY15'!G68) -> 0 | G68: 1 | H68: 5 | I68: 0 | J68: 3
B69: Customer 1 | C69: Lamp - SON1x70 | D69: Lamp | E69: SON1x70 | F69: =SUMIFS('2013 Inventory'!$I$2:$I$9200,'2013 Inventory'!$B$2:$B$9200,'Input - Customer Inventory FY15'!B69,'2013 Inventory'!$G$2:$G$9200,'Input - Customer Inventory FY15'!C69,'2013 Inventory'!$H$2:$H$9200,'Input - Customer Inventory FY15'!G69) -> 0 | G69: 1 | H69: 5 | I69: 0 | J69: 3
B70: Customer 1 | C70: Lamp - TF1x20 | D70: Lamp | E70: TF1x20 | F70: =SUMIFS('2013 Inventory'!$I$2:$I$9200,'2013 Inventory'!$B$2:$B$9200,'Input - Customer Inventory FY15'!B70,'2013 Inventory'!$G$2:$G$9200,'Input - Customer Inventory FY15'!C70,'2013 Inventory'!$H$2:$H$9200,'Input - Customer Inventory FY15'!G70) -> 0 | G70: 3 | H70: 5 | I70: 0 | J70: 3
B71: Customer 1 | C71: Lamp - TF1x40 | D71: Lamp | E71: TF1x40 | F71: =SUMIFS('2013 Inventory'!$I$2:$I$9200,'2013 Inventory'!$B$2:$B$9200,'Input - Customer Inventory FY15'!B71,'2013 Inventory'!$G$2:$G$9200,'Input - Customer Inventory FY15'!C71,'2013 Inventory'!$H$2:$H$9200,'Input - Customer Inventory FY15'!G71) -> 0 | G71: 1 | H71: 5 | I71: 0 | J71: 3
B72: Customer 1 | C72: Lamp - TF1x80 | D72: Lamp | E72: TF1x80 | F72: =SUMIFS('2013 Inventory'!$I$2:$I$9200,'2013 Inventory'!$B$2:$B$9200,'Input - Customer Inventory FY15'!B72,'2013 Inventory'!$G$2:$G$9200,'Input - Customer Inventory FY15'!C72,'2013 Inventory'!$H$2:$H$9200,'Input - Customer Inventory FY15'!G72) -> 0 | G72: 1 | H72: 5 | I72: 0 | J72: 3
B73: Customer 1 | C73: Lamp - TF2x20 | D73: Lamp | E73: TF2x20 | F73: =SUMIFS('2013 Inventory'!$I$2:$I$9200,'2013 Inventory'!$B$2:$B$9200,'Input - Customer Inventory FY15'!B73,'2013 Inventory'!$G$2:$G$9200,'Input - Customer Inventory FY15'!C73,'2013 Inventory'!$H$2:$H$9200,'Input - Customer Inventory FY15'!G73) -> 0 | G73: 1 | H73: 5 | I73: 0 | J73: 3
B74: Customer 1 | C74: Lamp - TF2x20 | D74: Lamp | E74: TF2x20 | F74: =SUMIFS('2013 Inventory'!$I$2:$I$9200,'2013 Inventory'!$B$2:$B$9200,'Input - Customer Inventory FY15'!B74,'2013 Inventory'!$G$2:$G$9200,'Input - Customer Inventory FY15'!C74,'2013 Inventory'!$H$2:$H$9200,'Input - Customer Inventory FY15'!G74) -> 0 | G74: 3 | H74: 5 | I74: 0 | J74: 3
B75: Customer 1 | C75: Lamp - TF2x40 | D75: Lamp | E75: TF2x40 | F75: =SUMIFS('2013 Inventory'!$I$2:$I$9200,'2013 Inventory'!$B$2:$B$9200,'Input - Customer Inventory FY15'!B75,'2013 Inventory'!$G$2:$G$9200,'Input - Customer Inventory FY15'!C75,'2013 Inventory'!$H$2:$H$9200,'Input - Customer Inventory FY15'!G75) -> 0 | G75: 1 | H75: 5 | I75: 0 | J75: 3
B76: Customer 1 | C76: Lamp - TF2x40 | D76: Lamp | E76: TF2x40 | F76: =SUMIFS('2013 Inventory'!$I$2:$I$9200,'2013 Inventory'!$B$2:$B$9200,'Input - Customer Inventory FY15'!B76,'2013 Inventory'!$G$2:$G$9200,'Input - Customer Inventory FY15'!C76,'2013 Inventory'!$H$2:$H$9200,'Input - Customer Inventory FY15'!G76) -> 0 | G76: 2 | H76: 5 | I76: 0 | J76: 3
B77: Customer 1 | C77: Lamp - TF4x20 | D77: Lamp | E77: TF4x20 | F77: =SUMIFS('2013 Inventory'!$I$2:$I$9200,'2013 Inventory'!$B$2:$B$9200,'Input - Customer Inventory FY15'!B77,'2013 Inventory'!$G$2:$G$9200,'Input - Customer Inventory FY15'!C77,'2013 Inventory'!$H$2:$H$9200,'Input - Customer Inventory FY15'!G77) -> 0 | G77: 1 | H77: 5 | I77: 0 | J77: 3
B78: Customer 1 | C78: Luminaire - 1000W SON | D78: Luminaire | E78: 1000W SON | F78: =SUMIFS('2013 Inventory'!$I$2:$I$9200,'2013 Inventory'!$B$2:$B$9200,'Input - Customer Inventory FY15'!B78,'2013 Inventory'!$G$2:$G$9200,'Input - Customer Inventory FY15'!C78,'2013 Inventory'!$H$2:$H$9200,'Input - Customer Inventory FY15'!G78) -> 0 | G78: 1 | H78: 24.71232877 | I78: 0 | J78: 20
B79: Customer 1 | C79: Luminaire - 100W SON -PLAIN | D79: Luminaire | E79: 100W SON -PLAIN | F79: =SUMIFS('2013 Inventory'!$I$2:$I$9200,'2013 Inventory'!$B$2:$B$9200,'Input - Customer Inventory FY15'!B79,'2013 Inventory'!$G$2:$G$9200,'Input - Customer Inventory FY15'!C79,'2013 Inventory'!$H$2:$H$9200,'Input - Customer Inventory FY15'!G79) -> 0 | G79: 1 | H79: 18.13424658 | I79: 1.865753425 | J79: 20
B80: Customer 1 | C80: Luminaire - 100W SON | D80: Luminaire | E80: 100W SON | F80: =SUMIFS('2013 Inventory'!$I$2:$I$9200,'2013 Inventory'!$B$2:$B$9200,'Input - Customer Inventory FY15'!B80,'2013 Inventory'!$G$2:$G$9200,'Input - Customer Inventory FY15'!C80,'2013 Inventory'!$H$2:$H$9200,'Input - Customer Inventory FY15'!G80) -> 0 | G80: 1 | H80: 16.1109589 | I80: 3.889041096 | J80: 20
B81: Customer 1 | C81: Luminaire - 125W MBF -PLAIN | D81: Luminaire | E81: 125W MBF -PLAIN | F81: =SUMIFS('2013 Inventory'!$I$2:$I$9200,'2013 Inventory'!$B$2:$B$9200,'Input - Customer Inventory FY15'!B81,'2013 Inventory'!$G$2:$G$9200,'Input - Customer Inventory FY15'!C81,'2013 Inventory'!$H$2:$H$9200,'Input - Customer Inventory FY15'!G81) -> 0 | G81: 1 | H81: 14.16310502 | I81: 5.836894977 | J81: 20
B82: Customer 1 | C82: Luminaire - 125W MBF | D82: Luminaire | E82: 125W MBF | F82: =SUMIFS('2013 Inventory'!$I$2:$I$9200,'2013 Inventory'!$B$2:$B$9200,'Input - Customer Inventory FY15'!B82,'2013 Inventory'!$G$2:$G$9200,'Input - Customer Inventory FY15'!C82,'2013 Inventory'!$H$2:$H$9200,'Input - Customer Inventory FY15'!G82) -> 0 | G82: 1 | H82: 18.2919607 | I82: 1.708039297 | J82: 20
B83: Customer 1 | C83: Luminaire - 125W MBF | D83: Luminaire | E83: 125W MBF | F83: =SUMIFS('2013 Inventory'!$I$2:$I$9200,'2013 Inventory'!$B$2:$B$9200,'Input - Customer Inventory FY15'!B83,'2013 Inventory'!$G$2:$G$9200,'Input - Customer Inventory FY15'!C83,'2013 Inventory'!$H$2:$H$9200,'Input - Customer Inventory FY15'!G83) -> 0 | G83: 2 | H83: 18.2919607 | I83: 1.708039297 | J83: 20
B84: Customer 1 | C84: Luminaire - 125W/250W MBF FLOODLIGHT | D84: Luminaire | E84: 125W/250W MBF FLOODLIGHT | F84: =SUMIFS('2013 Inventory'!$I$2:$I$9200,'2013 Inventory'!$B$2:$B$9200,'Input - Customer Inventory FY15'!B84,'2013 Inventory'!$G$2:$G$9200,'Input - Customer Inventory FY15'!C84,'2013 Inventory'!$H$2:$H$9200,'Input - Customer Inventory FY15'!G84) -> 0 | G84: 1 | H84: 15.03835616 | I84: 4.961643836 | J84: 20
B85: Customer 1 | C85: Luminaire - 150W SON - PARKWAY 1 | D85: Luminaire | E85: 150W SON - PARKWAY 1 | F85: =SUMIFS('2013 Inventory'!$I$2:$I$9200,'2013 Inventory'!$B$2:$B$9200,'Input - Customer Inventory FY15'!B85,'2013 Inventory'!$G$2:$G$9200,'Input - Customer Inventory FY15'!C85,'2013 Inventory'!$H$2:$H$9200,'Input - Customer Inventory FY15'!G85) -> 0 | G85: 1 | H85: 22.1939987 | I85: 0 | J85: 20
B86: Customer 1 | C86: Luminaire - 150W SON FLOODLIGHT | D86: Luminaire | E86: 150W SON FLOODLIGHT | F86: =SUMIFS('2013 Inventory'!$I$2:$I$9200,'2013 Inventory'!$B$2:$B$9200,'Input - Customer Inventory FY15'!B86,'2013 Inventory'!$G$2:$G$9200,'Input - Customer Inventory FY15'!C86,'2013 Inventory'!$H$2:$H$9200,'Input - Customer Inventory FY15'!G86) -> 0 | G86: 1 | H86: 15.07853881 | I86: 4.921461187 | J86: 20
B87: Customer 1 | C87: Luminaire - 150W SON | D87: Luminaire | E87: 150W SON | F87: =SUMIFS('2013 Inventory'!$I$2:$I$9200,'2013 Inventory'!$B$2:$B$9200,'Input - Customer Inventory FY15'!B87,'2013 Inventory'!$G$2:$G$9200,'Input - Customer Inventory FY15'!C87,'2013 Inventory'!$H$2:$H$9200,'Input - Customer Inventory FY15'!G87) -> 0 | G87: 1 | H87: 16.3135852 | I87: 3.686414798 | J87: 20
B88: Customer 1 | C88: Luminaire - 1x40W TF | D88: Luminaire | E88: 1x40W TF | F88: =SUMIFS('2013 Inventory'!$I$2:$I$9200,'2013 Inventory'!$B$2:$B$9200,'Input - Customer Inventory FY15'!B88,'2013 Inventory'!$G$2:$G$9200,'Input - Customer Inventory FY15'!C88,'2013 Inventory'!$H$2:$H$9200,'Input - Customer Inventory FY15'!G88) -> 0 | G88: 1 | H88: 22.010243 | I88: 0 | J88: 20
B89: Customer 1 | C89: Luminaire - 1x80W TF | D89: Luminaire | E89: 1x80W TF | F89: =SUMIFS('2013 Inventory'!$I$2:$I$9200,'2013 Inventory'!$B$2:$B$9200,'Input - Customer Inventory FY15'!B89,'2013 Inventory'!$G$2:$G$9200,'Input - Customer Inventory FY15'!C89,'2013 Inventory'!$H$2:$H$9200,'Input - Customer Inventory FY15'!G89) -> 0 | G89: 1 | H89: 22.61917808 | I89: 0 | J89: 20
B90: Customer 1 | C90: Luminaire - 250W MBF - PARKVILLE | D90: Luminaire | E90: 250W MBF - PARKVILLE | F90: =SUMIFS('2013 Inventory'!$I$2:$I$9200,'2013 Inventory'!$B$2:$B$9200,'Input - Customer Inventory FY15'!B90,'2013 Inventory'!$G$2:$G$9200,'Input - Customer Inventory FY15'!C90,'2013 Inventory'!$H$2:$H$9200,'Input - Customer Inventory FY15'!G90) -> 0 | G90: 1 | H90: 13.6109589 | I90: 6.389041096 | J90: 20
B91: Customer 1 | C91: Luminaire - 250W MBF - PARKWAY 1 | D91: Luminaire | E91: 250W MBF - PARKWAY 1 | F91: =SUMIFS('2013 Inventory'!$I$2:$I$9200,'2013 Inventory'!$B$2:$B$9200,'Input - Customer Inventory FY15'!B91,'2013 Inventory'!$G$2:$G$9200,'Input - Customer Inventory FY15'!C91,'2013 Inventory'!$H$2:$H$9200,'Input - Customer Inventory FY15'!G91) -> 0 | G91: 1 | H91: 12.88644641 | I91: 7.113553586 | J91: 20
B92: Customer 1 | C92: Luminaire - 250W MBF | D92: Luminaire | E92: 250W MBF | F92: =SUMIFS('2013 Inventory'!$I$2:$I$9200,'2013 Inventory'!$B$2:$B$9200,'Input - Customer Inventory FY15'!B92,'2013 Inventory'!$G$2:$G$9200,'Input - Customer Inventory FY15'!C92,'2013 Inventory'!$H$2:$H$9200,'Input - Customer Inventory FY15'!G92) -> 0 | G92: 1 | H92: 18.25805269 | I92: 1.741947306 | J92: 20
B93: Customer 1 | C93: Luminaire - 250W SON FLOODLIGHT | D93: Luminaire | E93: 250W SON FLOODLIGHT | F93: =SUMIFS('2013 Inventory'!$I$2:$I$9200,'2013 Inventory'!$B$2:$B$9200,'Input - Customer Inventory FY15'!B93,'2013 Inventory'!$G$2:$G$9200,'Input - Customer Inventory FY15'!C93,'2013 Inventory'!$H$2:$H$9200,'Input - Customer Inventory FY15'!G93) -> 0 | G93: 1 | H93: 15.28675799 | I93: 4.713242009 | J93: 20
B94: Customer 1 | C94: Luminaire - 250W SON FLOODLIGHT | D94: Luminaire | E94: 250W SON FLOODLIGHT | F94: =SUMIFS('2013 Inventory'!$I$2:$I$9200,'2013 Inventory'!$B$2:$B$9200,'Input - Customer Inventory FY15'!B94,'2013 Inventory'!$G$2:$G$9200,'Input - Customer Inventory FY15'!C94,'2013 Inventory'!$H$2:$H$9200,'Input - Customer Inventory FY15'!G94) -> 0 | G94: 2 | H94: 15.28675799 | I94: 4.713242009 | J94: 20
B95: Customer 1 | C95: Luminaire - 250W SON | D95: Luminaire | E95: 250W SON | F95: =SUMIFS('2013 Inventory'!$I$2:$I$9200,'2013 Inventory'!$B$2:$B$9200,'Input - Customer Inventory FY15'!B95,'2013 Inventory'!$G$2:$G$9200,'Input - Customer Inventory FY15'!C95,'2013 Inventory'!$H$2:$H$9200,'Input - Customer Inventory FY15'!G95) -> 0 | G95: 1 | H95: 13.11946749 | I95: 6.88053251 | J95: 20
B96: Customer 1 | C96: Luminaire - 250W SON | D96: Luminaire | E96: 250W SON | F96: =SUMIFS('2013 Inventory'!$I$2:$I$9200,'2013 Inventory'!$B$2:$B$9200,'Input - Customer Inventory FY15'!B96,'2013 Inventory'!$G$2:$G$9200,'Input - Customer Inventory FY15'!C96,'2013 Inventory'!$H$2:$H$9200,'Input - Customer Inventory FY15'!G96) -> 0 | G96: 2 | H96: 13.11946749 | I96: 6.88053251 | J96: 20
B97: Customer 1 | C97: Luminaire - 2x20W TF | D97: Luminaire | E97: 2x20W TF | F97: =SUMIFS('2013 Inventory'!$I$2:$I$9200,'2013 Inventory'!$B$2:$B$9200,'Input - Customer Inventory FY15'!B97,'2013 Inventory'!$G$2:$G$9200,'Input - Customer Inventory FY15'!C97,'2013 Inventory'!$H$2:$H$9200,'Input - Customer Inventory FY15'!G97) -> 0 | G97: 1 | H97: 19.53798371 | I97: 0.4620162869 | J97: 20
B98: Customer 1 | C98: Luminaire - 2x40W TF | D98: Luminaire | E98: 2x40W TF | F98: =SUMIFS('2013 Inventory'!$I$2:$I$9200,'2013 Inventory'!$B$2:$B$9200,'Input - Customer Inventory FY15'!B98,'2013 Inventory'!$G$2:$G$9200,'Input - Customer Inventory FY15'!C98,'2013 Inventory'!$H$2:$H$9200,'Input - Customer Inventory FY15'!G98) -> 0 | G98: 1 | H98: 15.63333333 | I98: 4.366666667 | J98: 20
B99: Customer 1 | C99: Luminaire - 2x40W TF | D99: Luminaire | E99: 2x40W TF | F99: =SUMIFS('2013 Inventory'!$I$2:$I$9200,'2013 Inventory'!$B$2:$B$9200,'Input - Customer Inventory FY15'!B99,'2013 Inventory'!$G$2:$G$9200,'Input - Customer Inventory FY15'!C99,'2013 Inventory'!$H$2:$H$9200,'Input - Customer Inventory FY15'!G99) -> 0 | G99: 2 | H99: 15.63333333 | I99: 4.366666667 | J99: 20
B100: Customer 1 | C100: Luminaire - 400W MBF - PARKWAY 1 | D100: Luminaire | E100: 400W MBF - PARKWAY 1 | F100: =SUMIFS('2013 Inventory'!$I$2:$I$9200,'2013 Inventory'!$B$2:$B$9200,'Input - Customer Inventory FY15'!B100,'2013 Inventory'!$G$2:$G$9200,'Input - Customer Inventory FY15'!C100,'2013 Inventory'!$H$2:$H$9200,'Input - Customer Inventory FY15'!G100) -> 0 | G100: 1 | H100: 12.25065807 | I100: 7.749341929 | J100: 20
B101: Customer 1 | C101: Luminaire - 400W MBF | D101: Luminaire | E101: 400W MBF | F101: =SUMIFS('2013 Inventory'!$I$2:$I$9200,'2013 Inventory'!$B$2:$B$9200,'Input - Customer Inventory FY15'!B101,'2013 Inventory'!$G$2:$G$9200,'Input - Customer Inventory FY15'!C101,'2013 Inventory'!$H$2:$H$9200,'Input - Customer Inventory FY15'!G101) -> 0 | G101: 1 | H101: 14.2620626 | I101: 5.737937398 | J101: 20
B102: Customer 1 | C102: Luminaire - 400W MBF | D102: Luminaire | E102: 400W MBF | F102: =SUMIFS('2013 Inventory'!$I$2:$I$9200,'2013 Inventory'!$B$2:$B$9200,'Input - Customer Inventory FY15'!B102,'2013 Inventory'!$G$2:$G$9200,'Input - Customer Inventory FY15'!C102,'2013 Inventory'!$H$2:$H$9200,'Input - Customer Inventory FY15'!G102) -> 0 | G102: 2 | H102: 14.2620626 | I102: 5.737937398 | J102: 20
B103: Customer 1 | C103: Luminaire - 400W SON FLOODLIGHT | D103: Luminaire | E103: 400W SON FLOODLIGHT | F103: =SUMIFS('2013 Inventory'!$I$2:$I$9200,'2013 Inventory'!$B$2:$B$9200,'Input - Customer Inventory FY15'!B103,'2013 Inventory'!$G$2:$G$9200,'Input - Customer Inventory FY15'!C103,'2013 Inventory'!$H$2:$H$9200,'Input - Customer Inventory FY15'!G103) -> 0 | G103: 1 | H103: 5.131506849 | I103: 14.86849315 | J103: 20
B104: Customer 1 | C104: Luminaire - 400W SON | D104: Luminaire | E104: 400W SON | F104: =SUMIFS('2013 Inventory'!$I$2:$I$9200,'2013 Inventory'!$B$2:$B$9200,'Input - Customer Inventory FY15'!B104,'2013 Inventory'!$G$2:$G$9200,'Input - Customer Inventory FY15'!C104,'2013 Inventory'!$H$2:$H$9200,'Input - Customer Inventory FY15'!G104) -> 0 | G104: 1 | H104: 10.85333333 | I104: 9.146666667 | J104: 20
B105: Customer 1 | C105: Luminaire - 400W SON | D105: Luminaire | E105: 400W SON | F105: =SUMIFS('2013 Inventory'!$I$2:$I$9200,'2013 Inventory'!$B$2:$B$9200,'Input - Customer Inventory FY15'!B105,'2013 Inventory'!$G$2:$G$9200,'Input - Customer Inventory FY15'!C105,'2013 Inventory'!$H$2:$H$9200,'Input - Customer Inventory FY15'!G105) -> 0 | G105: 2 | H105: 10.85333333 | I105: 9.146666667 | J105: 20
B106: Customer 1 | C106: Luminaire - 42W MBF SYLVANIA SUB ECO | D106: Luminaire | E106: 42W MBF SYLVANIA SUB ECO | F106: =SUMIFS('2013 Inventory'!$I$2:$I$9200,'2013 Inventory'!$B$2:$B$9200,'Input - Customer Inventory FY15'!B106,'2013 Inventory'!$G$2:$G$9200,'Input - Customer Inventory FY15'!C106,'2013 Inventory'!$H$2:$H$9200,'Input - Customer Inventory FY15'!G106) -> 0 | G106: 1 | H106: 19.42083333 | I106: 0.5791666667 | J106: 20
B107: Customer 1 | C107: Luminaire - 42W MBF SYLVANIA SUB ECO | D107: Luminaire | E107: 42W MBF SYLVANIA SUB ECO | F107: =SUMIFS('2013 Inventory'!$I$2:$I$9200,'2013 Inventory'!$B$2:$B$9200,'Input - Customer Inventory FY15'!B107,'2013 Inventory'!$G$2:$G$9200,'Input - Customer Inventory FY15'!C107,'2013 Inventory'!$H$2:$H$9200,'Input - Customer Inventory FY15'!G107) -> 0 | G107: 2 | H107: 19.42083333 | I107: 0.5791666667 | J107: 20
B108: Customer 1 | C108: Luminaire - 4x20W TF - WAVERLEY | D108: Luminaire | E108: 4x20W TF - WAVERLEY | F108: =SUMIFS('2013 Inventory'!$I$2:$I$9200,'2013 Inventory'!$B$2:$B$9200,'Input - Customer Inventory FY15'!B108,'2013 Inventory'!$G$2:$G$9200,'Input - Customer Inventory FY15'!C108,'2013 Inventory'!$H$2:$H$9200,'Input - Customer Inventory FY15'!G108) -> 0 | G108: 1 | H108: 23.41534247 | I108: 0 | J108: 20
B109: Customer 1 | C109: Luminaire - 50W MBF | D109: Luminaire | E109: 50W MBF | F109: =SUMIFS('2013 Inventory'!$I$2:$I$9200,'2013 Inventory'!$B$2:$B$9200,'Input - Customer Inventory FY15'!B109,'2013 Inventory'!$G$2:$G$9200,'Input - Customer Inventory FY15'!C109,'2013 Inventory'!$H$2:$H$9200,'Input - Customer Inventory FY15'!G109) -> 0 | G109: 1 | H109: 16.12708114 | I109: 3.872918862 | J109: 20
B110: Customer 1 | C110: Luminaire - 50W SON | D110: Luminaire | E110: 50W SON | F110: =SUMIFS('2013 Inventory'!$I$2:$I$9200,'2013 Inventory'!$B$2:$B$9200,'Input - Customer Inventory FY15'!B110,'2013 Inventory'!$G$2:$G$9200,'Input - Customer Inventory FY15'!C110,'2013 Inventory'!$H$2:$H$9200,'Input - Customer Inventory FY15'!G110) -> 0 | G110: 1 | H110: 21.60757454 | I110: 0 | J110: 20
B111: Customer 1 | C111: Luminaire - 700W MBF | D111: Luminaire | E111: 700W MBF | F111: =SUMIFS('2013 Inventory'!$I$2:$I$9200,'2013 Inventory'!$B$2:$B$9200,'Input - Customer Inventory FY15'!B111,'2013 Inventory'!$G$2:$G$9200,'Input - Customer Inventory FY15'!C111,'2013 Inventory'!$H$2:$H$9200,'Input - Customer Inventory FY15'!G111) -> 0 | G111: 1 | H111: 13.16438356 | I111: 6.835616438 | J111: 20
B112: Customer 1 | C112: Luminaire - 70W SON | D112: Luminaire | E112: 70W SON | F112: =SUMIFS('2013 Inventory'!$I$2:$I$9200,'2013 Inventory'!$B$2:$B$9200,'Input - Customer Inventory FY15'!B112,'2013 Inventory'!$G$2:$G$9200,'Input - Customer Inventory FY15'!C112,'2013 Inventory'!$H$2:$H$9200,'Input - Customer Inventory FY15'!G112) -> 0 | G112: 1 | H112: 16.15225049 | I112: 3.847749511 | J112: 20
B113: Customer 1 | C113: Luminaire - 80W MBF - PLAIN | D113: Luminaire | E113: 80W MBF - PLAIN | F113: =SUMIFS('2013 Inventory'!$I$2:$I$9200,'2013 Inventory'!$B$2:$B$9200,'Input - Customer Inventory FY15'!B113,'2013 Inventory'!$G$2:$G$9200,'Input - Customer Inventory FY15'!C113,'2013 Inventory'!$H$2:$H$9200,'Input - Customer Inventory FY15'!G113) -> 0 | G113: 1 | H113: 23.75616438 | I113: 0 | J113: 20
B114: Customer 1 | C114: Luminaire - 80W MBF - SYLVANIA SUBUR | D114: Luminaire | E114: 80W MBF - SYLVANIA SUBUR | F114: =SUMIFS('2013 Inventory'!$I$2:$I$9200,'2013 Inventory'!$B$2:$B$9200,'Input - Customer Inventory FY15'!B114,'2013 Inventory'!$G$2:$G$9200,'Input - Customer Inventory FY15'!C114,'2013 Inventory'!$H$2:$H$9200,'Input - Customer Inventory FY15'!G114) -> 0 | G114: 1 | H114: 19.41258969 | I114: 0.5874103066 | J114: 20
B115: Customer 1 | C115: Luminaire - 80W MBF - SYLVANIA SUBUR | D115: Luminaire | E115: 80W MBF - SYLVANIA SUBUR | F115: =SUMIFS('2013 Inventory'!$I$2:$I$9200,'2013 Inventory'!$B$2:$B$9200,'Input - Customer Inventory FY15'!B115,'2013 Inventory'!$G$2:$G$9200,'Input - Customer Inventory FY15'!C115,'2013 Inventory'!$H$2:$H$9200,'Input - Customer Inventory FY15'!G115) -> 0 | G115: 2 | H115: 19.41258969 | I115: 0.5874103066 | J115: 20
B116: Customer 1 | C116: Luminaire - 80W MBF | D116: Luminaire | E116: 80W MBF | F116: =SUMIFS('2013 Inventory'!$I$2:$I$9200,'2013 Inventory'!$B$2:$B$9200,'Input - Customer Inventory FY15'!B116,'2013 Inventory'!$G$2:$G$9200,'Input - Customer Inventory FY15'!C116,'2013 Inventory'!$H$2:$H$9200,'Input - Customer Inventory FY15'!G116) -> 0 | G116: 1 | H116: 18.2887141 | I116: 1.711285904 | J116: 20
B117: Customer 1 | C117: Luminaire - 80W MBF | D117: Luminaire | E117: 80W MBF | F117: =SUMIFS('2013 Inventory'!$I$2:$I$9200,'2013 Inventory'!$B$2:$B$9200,'Input - Customer Inventory FY15'!B117,'2013 Inventory'!$G$2:$G$9200,'Input - Customer Inventory FY15'!C117,'2013 Inventory'!$H$2:$H$9200,'Input - Customer Inventory FY15'!G117) -> 0 | G117: 2 | H117: 18.2887141 | I117: 1.711285904 | J117: 20
B118: Customer 1 | C118: Luminaire - PRIVATE | D118: Luminaire | E118: PRIVATE | F118: =SUMIFS('2013 Inventory'!$I$2:$I$9200,'2013 Inventory'!$B$2:$B$9200,'Input - Customer Inventory FY15'!B118,'2013 Inventory'!$G$2:$G$9200,'Input - Customer Inventory FY15'!C118,'2013 Inventory'!$H$2:$H$9200,'Input - Customer Inventory FY15'!G118) -> 0 | G118: 3 | H118: 21.05365297 | I118: 0 | J118: 20
B119: Customer 1 | C119: Support - COLUMN 10.5M-13.5M | D119: Support | E119: COLUMN 10.5M-13.5M | F119: =SUMIFS('2013 Inventory'!$I$2:$I$9200,'2013 Inventory'!$B$2:$B$9200,'Input - Customer Inventory FY15'!B119,'2013 Inventory'!$G$2:$G$9200,'Input - Customer Inventory FY15'!C119,'2013 Inventory'!$H$2:$H$9200,'Input - Customer Inventory FY15'!G119) -> 0 | G119: 1 | H119: 21.66313966 | I119: 13.33686034 | J119: 35
B120: Customer 1 | C120: Support - COLUMN 10.5M-13.5M | D120: Support | E120: COLUMN 10.5M-13.5M | F120: =SUMIFS('2013 Inventory'!$I$2:$I$9200,'2013 Inventory'!$B$2:$B$9200,'Input - Customer Inventory FY15'!B120,'2013 Inventory'!$G$2:$G$9200,'Input - Customer Inventory FY15'!C120,'2013 Inventory'!$H$2:$H$9200,'Input - Customer Inventory FY15'!G120) -> 0 | G120: 2 | H120: 21.66313966 | I120: 13.33686034 | J120: 35
B121: Customer 1 | C121: Support - COLUMN 2.5M-3.5M | D121: Support | E121: COLUMN 2.5M-3.5M | F121: =SUMIFS('2013 Inventory'!$I$2:$I$9200,'2013 Inventory'!$B$2:$B$9200,'Input - Customer Inventory FY15'!B121,'2013 Inventory'!$G$2:$G$9200,'Input - Customer Inventory FY15'!C121,'2013 Inventory'!$H$2:$H$9200,'Input - Customer Inventory FY15'!G121) -> 0 | G121: 1 | H121: 42.817083 | I121: 0 | J121: 35
B122: Customer 1 | C122: Support - COLUMN 4M-6.5M | D122: Support | E122: COLUMN 4M-6.5M | F122: =SUMIFS('2013 Inventory'!$I$2:$I$9200,'2013 Inventory'!$B$2:$B$9200,'Input - Customer Inventory FY15'!B122,'2013 Inventory'!$G$2:$G$9200,'Input - Customer Inventory FY15'!C122,'2013 Inventory'!$H$2:$H$9200,'Input - Customer Inventory FY15'!G122) -> 0 | G122: 1 | H122: 18.37179097 | I122: 16.62820903 | J122: 35
B123: Customer 1 | C123: Support - COLUMN 4M-6.5M | D123: Support | E123: COLUMN 4M-6.5M | F123: =SUMIFS('2013 Inventory'!$I$2:$I$9200,'2013 Inventory'!$B$2:$B$9200,'Input - Customer Inventory FY15'!B123,'2013 Inventory'!$G$2:$G$9200,'Input - Customer Inventory FY15'!C123,'2013 Inventory'!$H$2:$H$9200,'Input - Customer Inventory FY15'!G123) -> 0 | G123: 2 | H123: 18.37179097 | I123: 16.62820903 | J123: 35
B124: Customer 1 | C124: Support - COLUMN 7M-10M | D124: Support | E124: COLUMN 7M-10M | F124: =SUMIFS('2013 Inventory'!$I$2:$I$9200,'2013 Inventory'!$B$2:$B$9200,'Input - Customer Inventory FY15'!B124,'2013 Inventory'!$G$2:$G$9200,'Input - Customer Inventory FY15'!C124,'2013 Inventory'!$H$2:$H$9200,'Input - Customer Inventory FY15'!G124) -> 0 | G124: 1 | H124: 31.93515095 | I124: 3.064849049 | J124: 35
B125: Customer 1 | C125: Support - DECORATIVE COLUMN | D125: Support | E125: DECORATIVE COLUMN | F125: =SUMIFS('2013 Inventory'!$I$2:$I$9200,'2013 Inventory'!$B$2:$B$9200,'Input - Customer Inventory FY15'!B125,'2013 Inventory'!$G$2:$G$9200,'Input - Customer Inventory FY15'!C125,'2013 Inventory'!$H$2:$H$9200,'Input - Customer Inventory FY15'!G125) -> 0 | G125: 1 | H125: 27.55494673 | I125: 7.445053272 | J125: 35
B126: Customer 1 | C126: Support - DEDICATED SUPPORT & COND | D126: Support | E126: DEDICATED SUPPORT & COND | F126: =SUMIFS('2013 Inventory'!$I$2:$I$9200,'2013 Inventory'!$B$2:$B$9200,'Input - Customer Inventory FY15'!B126,'2013 Inventory'!$G$2:$G$9200,'Input - Customer Inventory FY15'!C126,'2013 Inventory'!$H$2:$H$9200,'Input - Customer Inventory FY15'!G126) -> 0 | G126: 1 | H126: 10.06027397 | I126: 24.93972603 | J126: 35
B127: Customer 1 | C127: Support - PRIVATE | D127: Support | E127: PRIVATE | F127: =SUMIFS('2013 Inventory'!$I$2:$I$9200,'2013 Inventory'!$B$2:$B$9200,'Input - Customer Inventory FY15'!B127,'2013 Inventory'!$G$2:$G$9200,'Input - Customer Inventory FY15'!C127,'2013 Inventory'!$H$2:$H$9200,'Input - Customer Inventory FY15'!G127) -> 0 | G127: 3 | H127: 42.72031963 | I127: 0 | J127: 35
B128: Customer 1 | C128: Support - ROCKS STANDARD | D128: Support | E128: ROCKS STANDARD | F128: =SUMIFS('2013 Inventory'!$I$2:$I$9200,'2013 Inventory'!$B$2:$B$9200,'Input - Customer Inventory FY15'!B128,'2013 Inventory'!$G$2:$G$9200,'Input - Customer Inventory FY15'!C128,'2013 Inventory'!$H$2:$H$9200,'Input - Customer Inventory FY15'!G128) -> 0 | G128: 1 | H128: 18.13424658 | I128: 16.86575342 | J128: 35
B129: Customer 1 | C129: Support - UNKNOWN | D129: Support | E129: UNKNOWN | F129: =SUMIFS('2013 Inventory'!$I$2:$I$9200,'2013 Inventory'!$B$2:$B$9200,'Input - Customer Inventory FY15'!B129,'2013 Inventory'!$G$2:$G$9200,'Input - Customer Inventory FY15'!C129,'2013 Inventory'!$H$2:$H$9200,'Input - Customer Inventory FY15'!G129) -> 0 | G129: 1 | H129: 7 | I129: 28 | J129: 35
B130: Customer 1 | C130: Support - WALL | D130: Support | E130: WALL | F130: =SUMIFS('2013 Inventory'!$I$2:$I$9200,'2013 Inventory'!$B$2:$B$9200,'Input - Customer Inventory FY15'!B130,'2013 Inventory'!$G$2:$G$9200,'Input - Customer Inventory FY15'!C130,'2013 Inventory'!$H$2:$H$9200,'Input - Customer Inventory FY15'!G130) -> 0 | G130: 1 | H130: 24.06379648 | I130: 10.93620352 | J130: 35
B131: Customer 1 | C131: =CONCATENATE(D131," - ", E131) -> Support - WALL | D131: Support | E131: WALL | F131: =SUMIFS('2013 Inventory'!$I$2:$I$9200,'2013 Inventory'!$B$2:$B$9200,'Input - Customer Inventory FY15'!B131,'2013 Inventory'!$G$2:$G$9200,'Input - Customer Inventory FY15'!C131,'2013 Inventory'!$H$2:$H$9200,'Input - Customer Inventory FY15'!G131) -> 0 | G131: 2 | H131: 24.06379648 | I131: =IF(J131-(H131)<0,0,J131-(H131)) -> 10.93620352 | J131: =IF(D131="Lamp",3,IF(D131="Support",35,20)) -> 35
B132: Customer 1 | C132: Support - WOOD POLE NON-TRL | D132: Support | E132: WOOD POLE NON-TRL | F132: =SUMIFS('2013 Inventory'!$I$2:$I$9200,'2013 Inventory'!$B$2:$B$9200,'Input - Customer Inventory FY15'!B132,'2013 Inventory'!$G$2:$G$9200,'Input - Customer Inventory FY15'!C132,'2013 Inventory'!$H$2:$H$9200,'Input - Customer Inventory FY15'!G132) -> 0 | G132: 1 | H132: 39.13623642 | I132: 0 | J132: 35
B133: Customer 1 | C133: Support - WOOD POLE NON-TRL | D133: Support | E133: WOOD POLE NON-TRL | F133: =SUMIFS('2013 Inventory'!$I$2:$I$9200,'2013 Inventory'!$B$2:$B$9200,'Input - Customer Inventory FY15'!B133,'2013 Inventory'!$G$2:$G$9200,'Input - Customer Inventory FY15'!C133,'2013 Inventory'!$H$2:$H$9200,'Input - Customer Inventory FY15'!G133) -> 0 | G133: 2 | H133: 39.13623642 | I133: 0 | J133: 35
B134: Customer 1 | C134: Support - WOOD POLE TRL | D134: Support | E134: WOOD POLE TRL | F134: =SUMIFS('2013 Inventory'!$I$2:$I$9200,'2013 Inventory'!$B$2:$B$9200,'Input - Customer Inventory FY15'!B134,'2013 Inventory'!$G$2:$G$9200,'Input - Customer Inventory FY15'!C134,'2013 Inventory'!$H$2:$H$9200,'Input - Customer Inventory FY15'!G134) -> 0 | G134: 1 | H134: 42.41167796 | I134: 0 | J134: 35
B135: Customer 1 | C135: Support - WOOD POLE TRL | D135: Support | E135: WOOD POLE TRL | F135: =SUMIFS('2013 Inventory'!$I$2:$I$9200,'2013 Inventory'!$B$2:$B$9200,'Input - Customer Inventory FY15'!B135,'2013 Inventory'!$G$2:$G$9200,'Input - Customer Inventory FY15'!C135,'2013 Inventory'!$H$2:$H$9200,'Input - Customer Inventory FY15'!G135) -> 0 | G135: 2 | H135: 42.41167796 | I135: 0 | J135: 35
B136: Customer 2 | C136: Bracket - 0.5 | D136: Bracket | E136: 0.5 | F136: =SUMIFS('2013 Inventory'!$I$2:$I$9200,'2013 Inventory'!$B$2:$B$9200,'Input - Customer Inventory FY15'!B136,'2013 Inventory'!$G$2:$G$9200,'Input - Customer Inventory FY15'!C136,'2013 Inventory'!$H$2:$H$9200,'Input - Customer Inventory FY15'!G136) -> 0 | G136: 1 | H136: 14.8630137 | I136: 5.136986301 | J136: 20
B137: Customer 2 | C137: Connection - OH | D137: Connection | E137: OH | F137: =SUMIFS('2013 Inventory'!$I$2:$I$9200,'2013 Inventory'!$B$2:$B$9200,'Input - Customer Inventory FY15'!B137,'2013 Inventory'!$G$2:$G$9200,'Input - Customer Inventory FY15'!C137,'2013 Inventory'!$H$2:$H$9200,'Input - Customer Inventory FY15'!G137) -> 0 | G137: 1 | H137: 14.8630137 | I137: 5.136986301 | J137: 20
B138: Customer 2 | C138: Lamp - MBF1x250 | D138: Lamp | E138: MBF1x250 | F138: =SUMIFS('2013 Inventory'!$I$2:$I$9200,'2013 Inventory'!$B$2:$B$9200,'Input - Customer Inventory FY15'!B138,'2013 Inventory'!$G$2:$G$9200,'Input - Customer Inventory FY15'!C138,'2013 Inventory'!$H$2:$H$9200,'Input - Customer Inventory FY15'!G138) -> 0 | G138: 1 | H138: 5 | I138: 0 | J138: 3
B139: Customer 2 | C139: Luminaire - 250W MBF | D139: Luminaire | E139: 250W MBF | F139: =SUMIFS('2013 Inventory'!$I$2:$I$9200,'2013 Inventory'!$B$2:$B$9200,'Input - Customer Inventory FY15'!B139,'2013 Inventory'!$G$2:$G$9200,'Input - Customer Inventory FY15'!C139,'2013 Inventory'!$H$2:$H$9200,'Input - Customer Inventory FY15'!G139) -> 0 | G139: 1 | H139: 14.8630137 | I139: 5.136986301 | J139: 20
B140: Customer 2 | C140: Support - WOOD POLE NON-TRL | D140: Support | E140: WOOD POLE NON-TRL | F140: =SUMIFS('2013 Inventory'!$I$2:$I$9200,'2013 Inventory'!$B$2:$B$9200,'Input - Customer Inventory FY15'!B140,'2013 Inventory'!$G$2:$G$9200,'Input - Customer Inventory FY15'!C140,'2013 Inventory'!$H$2:$H$9200,'Input - Customer Inventory FY15'!G140) -> 0 | G140: 1 | H140: 54.8630137 | I140: 0 | J140: 35
B141: Customer 3 | C141: Bracket - 0.5 | D141: Bracket | E141: 0.5 | F141: =SUMIFS('2013 Inventory'!$I$2:$I$9200,'2013 Inventory'!$B$2:$B$9200,'Input - Customer Inventory FY15'!B141,'2013 Inventory'!$G$2:$G$9200,'Input - Customer Inventory FY15'!C141,'2013 Inventory'!$H$2:$H$9200,'Input - Customer Inventory FY15'!G141) -> 0 | G141: 1 | H141: 9.395178536 | I141: 10.60482146 | J141: 20
B142: Customer 3 | C142: Bracket - 0.5 | D142: Bracket | E142: 0.5 | F142: =SUMIFS('2013 Inventory'!$I$2:$I$9200,'2013 Inventory'!$B$2:$B$9200,'Input - Customer Inventory FY15'!B142,'2013 Inventory'!$G$2:$G$9200,'Input - Customer Inventory FY15'!C142,'2013 Inventory'!$H$2:$H$9200,'Input - Customer Inventory FY15'!G142) -> 0 | G142: 2 | H142: 9.395178536 | I142: 10.60482146 | J142: 20
B143: Customer 3 | C143: Bracket - 0.6 | D143: Bracket | E143: 0.6 | F143: =SUMIFS('2013 Inventory'!$I$2:$I$9200,'2013 Inventory'!$B$2:$B$9200,'Input - Customer Inventory FY15'!B143,'2013 Inventory'!$G$2:$G$9200,'Input - Customer Inventory FY15'!C143,'2013 Inventory'!$H$2:$H$9200,'Input - Customer Inventory FY15'!G143) -> 0 | G143: 1 | H143: 5.874657534 | I143: 14.12534247 | J143: 20
B144: Customer 3 | C144: Bracket - 1.0 | D144: Bracket | E144: 1.0 | F144: =SUMIFS('2013 Inventory'!$I$2:$I$9200,'2013 Inventory'!$B$2:$B$9200,'Input - Customer Inventory FY15'!B144,'2013 Inventory'!$G$2:$G$9200,'Input - Customer Inventory FY15'!C144,'2013 Inventory'!$H$2:$H$9200,'Input - Customer Inventory FY15'!G144) -> 0 | G144: 1 | H144: 11.45630137 | I144: 8.54369863 | J144: 20
B145: Customer 3 | C145: Bracket - 1.0 | D145: Bracket | E145: 1.0 | F145: =SUMIFS('2013 Inventory'!$I$2:$I$9200,'2013 Inventory'!$B$2:$B$9200,'Input - Customer Inventory FY15'!B145,'2013 Inventory'!$G$2:$G$9200,'Input - Customer Inventory FY15'!C145,'2013 Inventory'!$H$2:$H$9200,'Input - Customer Inventory FY15'!G145) -> 0 | G145: 2 | H145: 11.45630137 | I145: 8.54369863 | J145: 20
B146: Customer 3 | C146: Bracket - 1.2 | D146: Bracket | E146: 1.2 | F146: =SUMIFS('2013 Inventory'!$I$2:$I$9200,'2013 Inventory'!$B$2:$B$9200,'Input - Customer Inventory FY15'!B146,'2013 Inventory'!$G$2:$G$9200,'Input - Customer Inventory FY15'!C146,'2013 Inventory'!$H$2:$H$9200,'Input - Customer Inventory FY15'!G146) -> 0 | G146: 1 | H146: 8.006611872 | I146: 11.99338813 | J146: 20
B147: Customer 3 | C147: Bracket - 1.5 | D147: Bracket | E147: 1.5 | F147: =SUMIFS('2013 Inventory'!$I$2:$I$9200,'2013 Inventory'!$B$2:$B$9200,'Input - Customer Inventory FY15'!B147,'2013 Inventory'!$G$2:$G$9200,'Input - Customer Inventory FY15'!C147,'2013 Inventory'!$H$2:$H$9200,'Input - Customer Inventory FY15'!G147) -> 0 | G147: 1 | H147: 8.344292237 | I147: 11.65570776 | J147: 20
B148: Customer 3 | C148: Bracket - 2.0 | D148: Bracket | E148: 2.0 | F148: =SUMIFS('2013 Inventory'!$I$2:$I$9200,'2013 Inventory'!$B$2:$B$9200,'Input - Customer Inventory FY15'!B148,'2013 Inventory'!$G$2:$G$9200,'Input - Customer Inventory FY15'!C148,'2013 Inventory'!$H$2:$H$9200,'Input - Customer Inventory FY15'!G148) -> 0 | G148: 1 | H148: 10.15399824 | I148: 9.84600176 | J148: 20
B149: Customer 3 | C149: Bracket - 2.0 | D149: Bracket | E149: 2.0 | F149: =SUMIFS('2013 Inventory'!$I$2:$I$9200,'2013 Inventory'!$B$2:$B$9200,'Input - Customer Inventory FY15'!B149,'2013 Inventory'!$G$2:$G$9200,'Input - Customer Inventory FY15'!C149,'2013 Inventory'!$H$2:$H$9200,'Input - Customer Inventory FY15'!G149) -> 0 | G149: 2 | H149: 10.15399824 | I149: 9.84600176 | J149: 20
B150: Customer 3 | C150: Bracket - 2.0 | D150: Bracket | E150: 2.0 | F150: =SUMIFS('2013 Inventory'!$I$2:$I$9200,'2013 Inventory'!$B$2:$B$9200,'Input - Customer Inventory FY15'!B150,'2013 Inventory'!$G$2:$G$9200,'Input - Customer Inventory FY15'!C150,'2013 Inventory'!$H$2:$H$9200,'Input - Customer Inventory FY15'!G150) -> 0 | G150: 3 | H150: 10.15399824 | I150: 9.84600176 | J150: 20
B151: Customer 3 | C151: Bracket - 2.5 | D151: Bracket | E151: 2.5 | F151: =SUMIFS('2013 Inventory'!$I$2:$I$9200,'2013 Inventory'!$B$2:$B$9200,'Input - Customer Inventory FY15'!B151,'2013 Inventory'!$G$2:$G$9200,'Input - Customer Inventory FY15'!C151,'2013 Inventory'!$H$2:$H$9200,'Input - Customer Inventory FY15'!G151) -> 0 | G151: 1 | H151: 7.928310502 | I151: 12.0716895 | J151: 20
B152: Customer 3 | C152: Bracket - 2.5 | D152: Bracket | E152: 2.5 | F152: =SUMIFS('2013 Inventory'!$I$2:$I$9200,'2013 Inventory'!$B$2:$B$9200,'Input - Customer Inventory FY15'!B152,'2013 Inventory'!$G$2:$G$9200,'Input - Customer Inventory FY15'!C152,'2013 Inventory'!$H$2:$H$9200,'Input - Customer Inventory FY15'!G152) -> 0 | G152: 3 | H152: 7.928310502 | I152: 12.0716895 | J152: 20
B153: Customer 3 | C153: Bracket - 3.0 | D153: Bracket | E153: 3.0 | F153: =SUMIFS('2013 Inventory'!$I$2:$I$9200,'2013 Inventory'!$B$2:$B$9200,'Input - Customer Inventory FY15'!B153,'2013 Inventory'!$G$2:$G$9200,'Input - Customer Inventory FY15'!C153,'2013 Inventory'!$H$2:$H$9200,'Input - Customer Inventory FY15'!G153) -> 0 | G153: 1 | H153: 8.93588529 | I153: 11.06411471 | J153: 20
B154: Customer 3 | C154: Bracket - 3.0 | D154: Bracket | E154: 3.0 | F154: =SUMIFS('2013 Inventory'!$I$2:$I$9200,'2013 Inventory'!$B$2:$B$9200,'Input - Customer Inventory FY15'!B154,'2013 Inventory'!$G$2:$G$9200,'Input - Customer Inventory FY15'!C154,'2013 Inventory'!$H$2:$H$9200,'Input - Customer Inventory FY15'!G154) -> 0 | G154: 2 | H154: 8.93588529 | I154: 11.06411471 | J154: 20
B155: Customer 3 | C155: Bracket - 3.0 | D155: Bracket | E155: 3.0 | F155: =SUMIFS('2013 Inventory'!$I$2:$I$9200,'2013 Inventory'!$B$2:$B$9200,'Input - Customer Inventory FY15'!B155,'2013 Inventory'!$G$2:$G$9200,'Input - Customer Inventory FY15'!C155,'2013 Inventory'!$H$2:$H$9200,'Input - Customer Inventory FY15'!G155) -> 0 | G155: 3 | H155: 8.93588529 | I155: 11.06411471 | J155: 20
B156: Customer 3 | C156: Bracket - 3.5 | D156: Bracket | E156: 3.5 | F156: =SUMIFS('2013 Inventory'!$I$2:$I$9200,'2013 Inventory'!$B$2:$B$9200,'Input - Customer Inventory FY15'!B156,'2013 Inventory'!$G$2:$G$9200,'Input - Customer Inventory FY15'!C156,'2013 Inventory'!$H$2:$H$9200,'Input - Customer Inventory FY15'!G156) -> 0 | G156: 1 | H156: 13.21435289 | I156: 6.785647107 | J156: 20
B157: Customer 3 | C157: Bracket - 3.5 | D157: Bracket | E157: 3.5 | F157: =SUMIFS('2013 Inventory'!$I$2:$I$9200,'2013 Inventory'!$B$2:$B$9200,'Input - Customer Inventory FY15'!B157,'2013 Inventory'!$G$2:$G$9200,'Input - Customer Inventory FY15'!C157,'2013 Inventory'!$H$2:$H$9200,'Input - Customer Inventory FY15'!G157) -> 0 | G157: 2 | H157: 13.21435289 | I157: 6.785647107 | J157: 20
B158: Customer 3 | C158: Bracket - 4.0 | D158: Bracket | E158: 4.0 | F158: =SUMIFS('2013 Inventory'!$I$2:$I$9200,'2013 Inventory'!$B$2:$B$9200,'Input - Customer Inventory FY15'!B158,'2013 Inventory'!$G$2:$G$9200,'Input - Customer Inventory FY15'!C158,'2013 Inventory'!$H$2:$H$9200,'Input - Customer Inventory FY15'!G158) -> 0 | G158: 1 | H158: 9.413574097 | I158: 10.5864259 | J158: 20
B159: Customer 3 | C159: Bracket - 4.0 | D159: Bracket | E159: 4.0 | F159: =SUMIFS('2013 Inventory'!$I$2:$I$9200,'2013 Inventory'!$B$2:$B$9200,'Input - Customer Inventory FY15'!B159,'2013 Inventory'!$G$2:$G$9200,'Input - Customer Inventory FY15'!C159,'2013 Inventory'!$H$2:$H$9200,'Input - Customer Inventory FY15'!G159) -> 0 | G159: 3 | H159: 9.413574097 | I159: 10.5864259 | J159: 20
B160: Customer 3 | C160: Bracket - 4.5 | D160: Bracket | E160: 4.5 | F160: =SUMIFS('2013 Inventory'!$I$2:$I$9200,'2013 Inventory'!$B$2:$B$9200,'Input - Customer Inventory FY15'!B160,'2013 Inventory'!$G$2:$G$9200,'Input - Customer Inventory FY15'!C160,'2013 Inventory'!$H$2:$H$9200,'Input - Customer Inventory FY15'!G160) -> 0 | G160: 1 | H160: 12.80820195 | I160: 7.191798053 | J160: 20
B161: Customer 3 | C161: Bracket - 4.5 | D161: Bracket | E161: 4.5 | F161: =SUMIFS('2013 Inventory'!$I$2:$I$9200,'2013 Inventory'!$B$2:$B$9200,'Input - Customer Inventory FY15'!B161,'2013 Inventory'!$G$2:$G$9200,'Input - Customer Inventory FY15'!C161,'2013 Inventory'!$H$2:$H$9200,'Input - Customer Inventory FY15'!G161) -> 0 | G161: 2 | H161: 12.80820195 | I161: 7.191798053 | J161: 20
B162: Customer 3 | C162: Bracket - 4.5 | D162: Bracket | E162: 4.5 | F162: =SUMIFS('2013 Inventory'!$I$2:$I$9200,'2013 Inventory'!$B$2:$B$9200,'Input - Customer Inventory FY15'!B162,'2013 Inventory'!$G$2:$G$9200,'Input - Customer Inventory FY15'!C162,'2013 Inventory'!$H$2:$H$9200,'Input - Customer Inventory FY15'!G162) -> 0 | G162: 3 | H162: 12.80820195 | I162: 7.191798053 | J162: 20
B163: Customer 3 | C163: Bracket - 5.0 | D163: Bracket | E163: 5.0 | F163: =SUMIFS('2013 Inventory'!$I$2:$I$9200,'2013 Inventory'!$B$2:$B$9200,'Input - Customer Inventory FY15'!B163,'2013 Inventory'!$G$2:$G$9200,'Input - Customer Inventory FY15'!C163,'2013 Inventory'!$H$2:$H$9200,'Input - Customer Inventory FY15'!G163) -> 0 | G163: 1 | H163: 12.81077626 | I163: 7.189223744 | J163: 20
B164: Customer 3 | C164: Bracket - 5.0 | D164: Bracket | E164: 5.0 | F164: =SUMIFS('2013 Inventory'!$I$2:$I$9200,'2013 Inventory'!$B$2:$B$9200,'Input - Customer Inventory FY15'!B164,'2013 Inventory'!$G$2:$G$9200,'Input - Customer Inventory FY15'!C164,'2013 Inventory'!$H$2:$H$9200,'Input - Customer Inventory FY15'!G164) -> 0 | G164: 2 | H164: 12.81077626 | I164: 7.189223744 | J164: 20
B165: Customer 3 | C165: Bracket - 5.0 | D165: Bracket | E165: 5.0 | F165: =SUMIFS('2013 Inventory'!$I$2:$I$9200,'2013 Inventory'!$B$2:$B$9200,'Input - Customer Inventory FY15'!B165,'2013 Inventory'!$G$2:$G$9200,'Input - Customer Inventory FY15'!C165,'2013 Inventory'!$H$2:$H$9200,'Input - Customer Inventory FY15'!G165) -> 0 | G165: 3 | H165: 12.81077626 | I165: 7.189223744 | J165: 20
B166: Customer 3 | C166: Bracket - 6.0 | D166: Bracket | E166: 6.0 | F166: =SUMIFS('2013 Inventory'!$I$2:$I$9200,'2013 Inventory'!$B$2:$B$9200,'Input - Customer Inventory FY15'!B166,'2013 Inventory'!$G$2:$G$9200,'Input - Customer Inventory FY15'!C166,'2013 Inventory'!$H$2:$H$9200,'Input - Customer Inventory FY15'!G166) -> 0 | G166: 1 | H166: 16.55068493 | I166: 3.449315068 | J166: 20
B167: Customer 3 | C167: Bracket - 8.0 | D167: Bracket | E167: 8.0 | F167: =SUMIFS('2013 Inventory'!$I$2:$I$9200,'2013 Inventory'!$B$2:$B$9200,'Input - Customer Inventory FY15'!B167,'2013 Inventory'!$G$2:$G$9200,'Input - Customer Inventory FY15'!C167,'2013 Inventory'!$H$2:$H$9200,'Input - Customer Inventory FY15'!G167) -> 0 | G167: 2 | H167: 18.9739726 | I167: 1.026027397 | J167: 20
B168: Customer 3 | C168: Bracket - 8.0 | D168: Bracket | E168: 8.0 | F168: =SUMIFS('2013 Inventory'!$I$2:$I$9200,'2013 Inventory'!$B$2:$B$9200,'Input - Customer Inventory FY15'!B168,'2013 Inventory'!$G$2:$G$9200,'Input - Customer Inventory FY15'!C168,'2013 Inventory'!$H$2:$H$9200,'Input - Customer Inventory FY15'!G168) -> 0 | G168: 3 | H168: 18.9739726 | I168: 1.026027397 | J168: 20
B169: Customer 3 | C169: Bracket - NIL | D169: Bracket | E169: NIL | F169: =SUMIFS('2013 Inventory'!$I$2:$I$9200,'2013 Inventory'!$B$2:$B$9200,'Input - Customer Inventory FY15'!B169,'2013 Inventory'!$G$2:$G$9200,'Input - Customer Inventory FY15'!C169,'2013 Inventory'!$H$2:$H$9200,'Input - Customer Inventory FY15'!G169) -> 0 | G169: 1 | H169: 14.85631896 | I169: 5.14368104 | J169: 20
B170: Customer 3 | C170: Bracket - NIL | D170: Bracket | E170: NIL | F170: =SUMIFS('2013 Inventory'!$I$2:$I$9200,'2013 Inventory'!$B$2:$B$9200,'Input - Customer Inventory FY15'!B170,'2013 Inventory'!$G$2:$G$9200,'Input - Customer Inventory FY15'!C170,'2013 Inventory'!$H$2:$H$9200,'Input - Customer Inventory FY15'!G170) -> 0 | G170: 2 | H170: 14.85631896 | I170: 5.14368104 | J170: 20
B171: Customer 3 | C171: Bracket - PRIVATE | D171: Bracket | E171: PRIVATE | F171: =SUMIFS('2013 Inventory'!$I$2:$I$9200,'2013 Inventory'!$B$2:$B$9200,'Input - Customer Inventory FY15'!B171,'2013 Inventory'!$G$2:$G$9200,'Input - Customer Inventory FY15'!C171,'2013 Inventory'!$H$2:$H$9200,'Input - Customer Inventory FY15'!G171) -> 0 | G171: 3 | H171: 16.2566047 | I171: 3.743395303 | J171: 20
B172: Customer 3 | C172: Bracket - SUSPENDED | D172: Bracket | E172: SUSPENDED | F172: =SUMIFS('2013 Inventory'!$I$2:$I$9200,'2013 Inventory'!$B$2:$B$9200,'Input - Customer Inventory FY15'!B172,'2013 Inventory'!$G$2:$G$9200,'Input - Customer Inventory FY15'!C172,'2013 Inventory'!$H$2:$H$9200,'Input - Customer Inventory FY15'!G172) -> 0 | G172: 1 | H172: 10.29178082 | I172: 9.708219178 | J172: 20
B173: Customer 3 | C173: Bracket - T1 | D173: Bracket | E173: T1 | F173: =SUMIFS('2013 Inventory'!$I$2:$I$9200,'2013 Inventory'!$B$2:$B$9200,'Input - Customer Inventory FY15'!B173,'2013 Inventory'!$G$2:$G$9200,'Input - Customer Inventory FY15'!C173,'2013 Inventory'!$H$2:$H$9200,'Input - Customer Inventory FY15'!G173) -> 0 | G173: 1 | H173: 12.01943055 | I173: 7.980569452 | J173: 20
B174: Customer 3 | C174: Bracket - T1 | D174: Bracket | E174: T1 | F174: =SUMIFS('2013 Inventory'!$I$2:$I$9200,'2013 Inventory'!$B$2:$B$9200,'Input - Customer Inventory FY15'!B174,'2013 Inventory'!$G$2:$G$9200,'Input - Customer Inventory FY15'!C174,'2013 Inventory'!$H$2:$H$9200,'Input - Customer Inventory FY15'!G174) -> 0 | G174: 2 | H174: 12.01943055 | I174: 7.980569452 | J174: 20
B175: Customer 3 | C175: Bracket - T2 | D175: Bracket | E175: T2 | F175: =SUMIFS('2013 Inventory'!$I$2:$I$9200,'2013 Inventory'!$B$2:$B$9200,'Input - Customer Inventory FY15'!B175,'2013 Inventory'!$G$2:$G$9200,'Input - Customer Inventory FY15'!C175,'2013 Inventory'!$H$2:$H$9200,'Input - Customer Inventory FY15'!G175) -> 0 | G175: 1 | H175: 14.00940521 | I175: 5.990594793 | J175: 20
B176: Customer 3 | C176: Bracket - T2 | D176: Bracket | E176: T2 | F176: =SUMIFS('2013 Inventory'!$I$2:$I$9200,'2013 Inventory'!$B$2:$B$9200,'Input - Customer Inventory FY15'!B176,'2013 Inventory'!$G$2:$G$9200,'Input - Customer Inventory FY15'!C176,'2013 Inventory'!$H$2:$H$9200,'Input - Customer Inventory FY15'!G176) -> 0 | G176: 2 | H176: 14.00940521 | I176: 5.990594793 | J176: 20
B177: Customer 3 | C177: Bracket - T2A | D177: Bracket | E177: T2A | F177: =SUMIFS('2013 Inventory'!$I$2:$I$9200,'2013 Inventory'!$B$2:$B$9200,'Input - Customer Inventory FY15'!B177,'2013 Inventory'!$G$2:$G$9200,'Input - Customer Inventory FY15'!C177,'2013 Inventory'!$H$2:$H$9200,'Input - Customer Inventory FY15'!G177) -> 0 | G177: 1 | H177: 10.27827789 | I177: 9.721722114 | J177: 20
B178: Customer 3 | C178: Bracket - T3 | D178: Bracket | E178: T3 | F178: =SUMIFS('2013 Inventory'!$I$2:$I$9200,'2013 Inventory'!$B$2:$B$9200,'Input - Customer Inventory FY15'!B178,'2013 Inventory'!$G$2:$G$9200,'Input - Customer Inventory FY15'!C178,'2013 Inventory'!$H$2:$H$9200,'Input - Customer Inventory FY15'!G178) -> 0 | G178: 1 | H178: 18.43292792 | I178: 1.567072078 | J178: 20
B179: Customer 3 | C179: Bracket - T3 | D179: Bracket | E179: T3 | F179: =SUMIFS('2013 Inventory'!$I$2:$I$9200,'2013 Inventory'!$B$2:$B$9200,'Input - Customer Inventory FY15'!B179,'2013 Inventory'!$G$2:$G$9200,'Input - Customer Inventory FY15'!C179,'2013 Inventory'!$H$2:$H$9200,'Input - Customer Inventory FY15'!G179) -> 0 | G179: 2 | H179: 18.43292792 | I179: 1.567072078 | J179: 20
B180: Customer 3 | C180: Bracket - T3A | D180: Bracket | E180: T3A | F180: =SUMIFS('2013 Inventory'!$I$2:$I$9200,'2013 Inventory'!$B$2:$B$9200,'Input - Customer Inventory FY15'!B180,'2013 Inventory'!$G$2:$G$9200,'Input - Customer Inventory FY15'!C180,'2013 Inventory'!$H$2:$H$9200,'Input - Customer Inventory FY15'!G180) -> 0 | G180: 1 | H180: 9.778473581 | I180: 10.22152642 | J180: 20
B181: Customer 3 | C181: Bracket - T3A | D181: Bracket | E181: T3A | F181: =SUMIFS('2013 Inventory'!$I$2:$I$9200,'2013 Inventory'!$B$2:$B$9200,'Input - Customer Inventory FY15'!B181,'2013 Inventory'!$G$2:$G$9200,'Input - Customer Inventory FY15'!C181,'2013 Inventory'!$H$2:$H$9200,'Input - Customer Inventory FY15'!G181) -> 0 | G181: 2 | H181: 9.778473581 | I181: 10.22152642 | J181: 20
B182: Customer 3 | C182: Bracket - T4 | D182: Bracket | E182: T4 | F182: =SUMIFS('2013 Inventory'!$I$2:$I$9200,'2013 Inventory'!$B$2:$B$9200,'Input - Customer Inventory FY15'!B182,'2013 Inventory'!$G$2:$G$9200,'Input - Customer Inventory FY15'!C182,'2013 Inventory'!$H$2:$H$9200,'Input - Customer Inventory FY15'!G182) -> 0 | G182: 1 | H182: 11.1045235 | I182: 8.895476496 | J182: 20
B183: Customer 3 | C183: Bracket - T5 | D183: Bracket | E183: T5 | F183: =SUMIFS('2013 Inventory'!$I$2:$I$9200,'2013 Inventory'!$B$2:$B$9200,'Input - Customer Inventory FY15'!B183,'2013 Inventory'!$G$2:$G$9200,'Input - Customer Inventory FY15'!C183,'2013 Inventory'!$H$2:$H$9200,'Input - Customer Inventory FY15'!G183) -> 0 | G183: 1 | H183: 15.61050228 | I183: 4.389497717 | J183: 20
B184: Customer 3 | C184: Bracket - T6 | D184: Bracket | E184: T6 | F184: =SUMIFS('2013 Inventory'!$I$2:$I$9200,'2013 Inventory'!$B$2:$B$9200,'Input - Customer Inventory FY15'!B184,'2013 Inventory'!$G$2:$G$9200,'Input - Customer Inventory FY15'!C184,'2013 Inventory'!$H$2:$H$9200,'Input - Customer Inventory FY15'!G184) -> 0 | G184: 1 | H184: 17.08675799 | I184: 2.913242009 | J184: 20
B185: Customer 3 | C185: Bracket - T6 | D185: Bracket | E185: T6 | F185: =SUMIFS('2013 Inventory'!$I$2:$I$9200,'2013 Inventory'!$B$2:$B$9200,'Input - Customer Inventory FY15'!B185,'2013 Inventory'!$G$2:$G$9200,'Input - Customer Inventory FY15'!C185,'2013 Inventory'!$H$2:$H$9200,'Input - Customer Inventory FY15'!G185) -> 0 | G185: 2 | H185: 17.08675799 | I185: 2.913242009 | J185: 20
B186: Customer 3 | C186: Bracket - T7 | D186: Bracket | E186: T7 | F186: =SUMIFS('2013 Inventory'!$I$2:$I$9200,'2013 Inventory'!$B$2:$B$9200,'Input - Customer Inventory FY15'!B186,'2013 Inventory'!$G$2:$G$9200,'Input - Customer Inventory FY15'!C186,'2013 Inventory'!$H$2:$H$9200,'Input - Customer Inventory FY15'!G186) -> 0 | G186: 1 | H186: 7.276712329 | I186: 12.72328767 | J186: 20
B187: Customer 3 | C187: Connection - EMPTY | D187: Connection | E187: EMPTY | F187: =SUMIFS('2013 Inventory'!$I$2:$I$9200,'2013 Inventory'!$B$2:$B$9200,'Input - Customer Inventory FY15'!B187,'2013 Inventory'!$G$2:$G$9200,'Input - Customer Inventory FY15'!C187,'2013 Inventory'!$H$2:$H$9200,'Input - Customer Inventory FY15'!G187) -> 0 | G187: 1 | H187: 8.068310502 | I187: 11.9316895 | J187: 20
B188: Customer 3 | C188: Connection - EMPTY | D188: Connection | E188: EMPTY | F188: =SUMIFS('2013 Inventory'!$I$2:$I$9200,'2013 Inventory'!$B$2:$B$9200,'Input - Customer Inventory FY15'!B188,'2013 Inventory'!$G$2:$G$9200,'Input - Customer Inventory FY15'!C188,'2013 Inventory'!$H$2:$H$9200,'Input - Customer Inventory FY15'!G188) -> 0 | G188: 3 | H188: 8.068310502 | I188: 11.9316895 | J188: 20
B189: Customer 3 | C189: Connection - O/U | D189: Connection | E189: O/U | F189: =SUMIFS('2013 Inventory'!$I$2:$I$9200,'2013 Inventory'!$B$2:$B$9200,'Input - Customer Inventory FY15'!B189,'2013 Inventory'!$G$2:$G$9200,'Input - Customer Inventory FY15'!C189,'2013 Inventory'!$H$2:$H$9200,'Input - Customer Inventory FY15'!G189) -> 0 | G189: 1 | H189: 9.64760274 | I189: 10.35239726 | J189: 20
B190: Customer 3 | C190: Connection - O/U | D190: Connection | E190: O/U | F190: =SUMIFS('2013 Inventory'!$I$2:$I$9200,'2013 Inventory'!$B$2:$B$9200,'Input - Customer Inventory FY15'!B190,'2013 Inventory'!$G$2:$G$9200,'Input - Customer Inventory FY15'!C190,'2013 Inventory'!$H$2:$H$9200,'Input - Customer Inventory FY15'!G190) -> 0 | G190: 2 | H190: 9.64760274 | I190: 10.35239726 | J190: 20
B191: Customer 3 | C191: Connection - O/U | D191: Connection | E191: O/U | F191: =SUMIFS('2013 Inventory'!$I$2:$I$9200,'2013 Inventory'!$B$2:$B$9200,'Input - Customer Inventory FY15'!B191,'2013 Inventory'!$G$2:$G$9200,'Input - Customer Inventory FY15'!C191,'2013 Inventory'!$H$2:$H$9200,'Input - Customer Inventory FY15'!G191) -> 0 | G191: 3 | H191: 9.64760274 | I191: 10.35239726 | J191: 20
B192: Customer 3 | C192: Connection - OH | D192: Connection | E192: OH | F192: =SUMIFS('2013 Inventory'!$I$2:$I$9200,'2013 Inventory'!$B$2:$B$9200,'Input - Customer Inventory FY15'!B192,'2013 Inventory'!$G$2:$G$9200,'Input - Customer Inventory FY15'!C192,'2013 Inventory'!$H$2:$H$9200,'Input - Customer Inventory FY15'!G192) -> 0 | G192: 1 | H192: 10.64965873 | I192: 9.350341265 | J192: 20
B193: Customer 3 | C193: Connection - OH | D193: Connection | E193: OH | F193: =SUMIFS('2013 Inventory'!$I$2:$I$9200,'2013 Inventory'!$B$2:$B$9200,'Input - Customer Inventory FY15'!B193,'2013 Inventory'!$G$2:$G$9200,'Input - Customer Inventory FY15'!C193,'2013 Inventory'!$H$2:$H$9200,'Input - Customer Inventory FY15'!G193) -> 0 | G193: 2 | H193: 10.64965873 | I193: 9.350341265 | J193: 20
B194: Customer 3 | C194: Connection - OH | D194: Connection | E194: OH | F194: =SUMIFS('2013 Inventory'!$I$2:$I$9200,'2013 Inventory'!$B$2:$B$9200,'Input - Customer Inventory FY15'!B194,'2013 Inventory'!$G$2:$G$9200,'Input - Customer Inventory FY15'!C194,'2013 Inventory'!$H$2:$H$9200,'Input - Customer Inventory FY15'!G194) -> 0 | G194: 3 | H194: 10.64965873 | I194: 9.350341265 | J194: 20
B195: Customer 3 | C195: =CONCATENATE(D195," - ", E195) -> Connection - OH2 | D195: Connection | E195: OH2 | F195: =SUMIFS('2013 Inventory'!$I$2:$I$9200,'2013 Inventory'!$B$2:$B$9200,'Input - Customer Inventory FY15'!B195,'2013 Inventory'!$G$2:$G$9200,'Input - Customer Inventory FY15'!C195,'2013 Inventory'!$H$2:$H$9200,'Input - Customer Inventory FY15'!G195) -> 0 | G195: 1 | H195: 9.062100457 | I195: =IF(J195-(H195)<0,0,J195-(H195)) -> 10.93789954 | J195: =IF(D195="Lamp",3,IF(D195="Support",35,20)) -> 20
B196: Customer 3 | C196: Connection - OH2 | D196: Connection | E196: OH2 | F196: =SUMIFS('2013 Inventory'!$I$2:$I$9200,'2013 Inventory'!$B$2:$B$9200,'Input - Customer Inventory FY15'!B196,'2013 Inventory'!$G$2:$G$9200,'Input - Customer Inventory FY15'!C196,'2013 Inventory'!$H$2:$H$9200,'Input - Customer Inventory FY15'!G196) -> 0 | G196: 2 | H196: 9.062100457 | I196: 10.93789954 | J196: 20
B197: Customer 3 | C197: Connection - UG2 | D197: Connection | E197: UG2 | F197: =SUMIFS('2013 Inventory'!$I$2:$I$9200,'2013 Inventory'!$B$2:$B$9200,'Input - Customer Inventory FY15'!B197,'2013 Inventory'!$G$2:$G$9200,'Input - Customer Inventory FY15'!C197,'2013 Inventory'!$H$2:$H$9200,'Input - Customer Inventory FY15'!G197) -> 0 | G197: 1 | H197: 8.019406393 | I197: 11.98059361 | J197: 20
B198: Customer 3 | C198: Connection - UG2 | D198: Connection | E198: UG2 | F198: =SUMIFS('2013 Inventory'!$I$2:$I$9200,'2013 Inventory'!$B$2:$B$9200,'Input - Customer Inventory FY15'!B198,'2013 Inventory'!$G$2:$G$9200,'Input - Customer Inventory FY15'!C198,'2013 Inventory'!$H$2:$H$9200,'Input - Customer Inventory FY15'!G198) -> 0 | G198: 2 | H198: 8.019406393 | I198: 11.98059361 | J198: 20
B199: Customer 3 | C199: Connection - UGR1 | D199: Connection | E199: UGR1 | F199: =SUMIFS('2013 Inventory'!$I$2:$I$9200,'2013 Inventory'!$B$2:$B$9200,'Input - Customer Inventory FY15'!B199,'2013 Inventory'!$G$2:$G$9200,'Input - Customer Inventory FY15'!C199,'2013 Inventory'!$H$2:$H$9200,'Input - Customer Inventory FY15'!G199) -> 0 | G199: 1 | H199: 13.55588971 | I199: 6.444110293 | J199: 20
B200: Customer 3 | C200: Connection - UGR1 | D200: Connection | E200: UGR1 | F200: =SUMIFS('2013 Inventory'!$I$2:$I$9200,'2013 Inventory'!$B$2:$B$9200,'Input - Customer Inventory FY15'!B200,'2013 Inventory'!$G$2:$G$9200,'Input - Customer Inventory FY15'!C200,'2013 Inventory'!$H$2:$H$9200,'Input - Customer Inventory FY15'!G200) -> 0 | G200: 2 | H200: 13.55588971 | I200: 6.444110293 | J200: 20
B201: Customer 3 | C201: Connection - UGR1 | D201: Connection | E201: UGR1 | F201: =SUMIFS('2013 Inventory'!$I$2:$I$9200,'2013 Inventory'!$B$2:$B$9200,'Input - Customer Inventory FY15'!B201,'2013 Inventory'!$G$2:$G$9200,'Input - Customer Inventory FY15'!C201,'2013 Inventory'!$H$2:$H$9200,'Input - Customer Inventory FY15'!G201) -> 0 | G201: 3 | H201: 13.55588971 | I201: 6.444110293 | J201: 20
... 6449 more rows

Sheet Input - Component Costs FY13
D1: Capital Costs per Component (@ 2013)
A2: Lookup | B2: Description | C2: Type | D2: Materials (FY13) | E2: Materials (FY15)
A3: =CONCATENATE(C3, " - ",B3) -> Bracket - 0.5 | B3: 0.5 | C3: Bracket
A4: Bracket - 0.6 | B4: 0.6 | C4: Bracket
A5: Bracket - 1.0 | B5: 1.0 | C5: Bracket
A6: Bracket - 1.2 | B6: 1.2 | C6: Bracket
A7: Bracket - 1.5 | B7: 1.5 | C7: Bracket
A8: Bracket - 2.0 | B8: 2.0 | C8: Bracket
A9: Bracket - 2.5 | B9: 2.5 | C9: Bracket
A10: Bracket - 3.0 | B10: 3.0 | C10: Bracket
A11: Bracket - 3.5 | B11: 3.5 | C11: Bracket
A12: Bracket - 4.0 | B12: 4.0 | C12: Bracket
A13: Bracket - 4.5 | B13: 4.5 | C13: Bracket
A14: Bracket - 5.0 | B14: 5.0 | C14: Bracket
A15: Bracket - 6.0 | B15: 6.0 | C15: Bracket
A16: Bracket - 6.5 | B16: 6.5 | C16: Bracket
A17: Bracket - 7.0 | B17: 7.0 | C17: Bracket
A18: Bracket - 8.0 | B18: 8.0 | C18: Bracket
A19: Luminaire - 1x40W TF | B19: 1x40W TF | C19: Luminaire
A20: Luminaire - 1x80W TF | B20: 1x80W TF | C20: Luminaire
A21: Luminaire - 1000W MBF | B21: 1000W MBF | C21: Luminaire
A22: Luminaire - 1000W SON | B22: 1000W SON | C22: Luminaire
A23: Luminaire - 1000W SON FLOODLIGHT | B23: 1000W SON FLOODLIGHT | C23: Luminaire
A24: Luminaire - 1000W/1500W MBI FLOODLIG | B24: 1000W/1500W MBI FLOODLIG | C24: Luminaire
A25: Luminaire - 100W MBI | B25: 100W MBI | C25: Luminaire
A26: Luminaire - 100W MBI FLOODLIGHT | B26: 100W MBI FLOODLIGHT | C26: Luminaire
A27: Luminaire - 100W SON | B27: 100W SON | C27: Luminaire
A28: Luminaire - 100W SON - PARKVILLE | B28: 100W SON - PARKVILLE | C28: Luminaire
A29: Luminaire - 100W SON FLOODLIGHT | B29: 100W SON FLOODLIGHT | C29: Luminaire
A30: Luminaire - 100W SON -PLAIN | B30: 100W SON -PLAIN | C30: Luminaire
A31: Luminaire - 125W MBF | B31: 125W MBF | C31: Luminaire
A32: Luminaire - 125W MBF - BOURKE HILL | B32: 125W MBF - BOURKE HILL | C32: Luminaire
A33: Luminaire - 125W MBF - HYDE PARK | B33: 125W MBF - HYDE PARK | C33: Luminaire
A34: Luminaire - 125W MBF - NOSTALGIA | B34: 125W MBF - NOSTALGIA | C34: Luminaire
A35: Luminaire - 125W MBF - PARKVILLE | B35: 125W MBF - PARKVILLE | C35: Luminaire
A36: Luminaire - 125W MBF BOLLARD | B36: 125W MBF BOLLARD | C36: Luminaire
A37: Luminaire - 125W MBF -PLAIN | B37: 125W MBF -PLAIN | C37: Luminaire
A38: Luminaire - 125W/250W MBF FLOODLIGHT | B38: 125W/250W MBF FLOODLIGHT | C38: Luminaire
A39: Luminaire - 135W SOX | B39: 135W SOX | C39: Luminaire
A40: Luminaire - 150W SON | B40: 150W SON | C40: Luminaire
A41: Luminaire - 150W SON - HYDE PARK | B41: 150W SON - HYDE PARK | C41: Luminaire
A42: Luminaire - 150W SON - PARKVILLE | B42: 150W SON - PARKVILLE | C42: Luminaire
A43: Luminaire - 150W SON - PARKWAY 1 | B43: 150W SON - PARKWAY 1 | C43: Luminaire
A44: Luminaire - 150W SON FLOODLIGHT | B44: 150W SON FLOODLIGHT | C44: Luminaire
A45: Luminaire - 150W SON GEC 'BOSTON 3' | B45: 150W SON GEC 'BOSTON 3' | C45: Luminaire
A46: Luminaire - 150W/250W MBI FLOODLIGHT | B46: 150W/250W MBI FLOODLIGHT | C46: Luminaire
A47: Luminaire - 180W SOX | B47: 180W SOX | C47: Luminaire
A48: Luminaire - 2x14W TF - T5 PIERLITE M | B48: 2x14W TF - T5 PIERLITE M | C48: Luminaire
A49: Luminaire - 2x175W MBF - PARKWAY 2 | B49: 2x175W MBF - PARKWAY 2 | C49: Luminaire
A50: Luminaire - 2x20W TF | B50: 2x20W TF | C50: Luminaire
A51: Luminaire - 2x20W TF - WAVERLEY | B51: 2x20W TF - WAVERLEY | C51: Luminaire
A52: Luminaire - 2x250W SON FLOODLIGHT | B52: 2x250W SON FLOODLIGHT | C52: Luminaire
A53: Luminaire - 2x26W TF MACQUARIE DEC. | B53: 2x26W TF MACQUARIE DEC. | C53: Luminaire
A54: Luminaire - 2x400W MBF - PARKWAY 2 | B54: 2x400W MBF - PARKWAY 2 | C54: Luminaire
A55: Luminaire - 2x400W MBI FLOODLIGHT | B55: 2x400W MBI FLOODLIGHT | C55: Luminaire
A56: Luminaire - 2x400W SON FLOODLIGHT | B56: 2x400W SON FLOODLIGHT | C56: Luminaire
A57: Luminaire - 2x40W TF | B57: 2x40W TF | C57: Luminaire
A58: Luminaire - 2x70W SON - BOURKE HILL | B58: 2x70W SON - BOURKE HILL | C58: Luminaire
A59: Luminaire - 2x80W MBF - BOURKE HILL | B59: 2x80W MBF - BOURKE HILL | C59: Luminaire
A60: Luminaire - 250W MBF | B60: 250W MBF | C60: Luminaire
A61: Luminaire - 250W MBF - PARKVILLE | B61: 250W MBF - PARKVILLE | C61: Luminaire
A62: Luminaire - 250W MBF - PARKWAY 1 | B62: 250W MBF - PARKWAY 1 | C62: Luminaire
A63: Luminaire - 250W MBI - SMARTPOLE | B63: 250W MBI - SMARTPOLE | C63: Luminaire
A64: Luminaire - 250W SON | B64: 250W SON | C64: Luminaire
A65: Luminaire - 250W SON - PARKVILLE | B65: 250W SON - PARKVILLE | C65: Luminaire
A66: Luminaire - 250W SON - PARKWAY 1 | B66: 250W SON - PARKWAY 1 | C66: Luminaire
A67: =CONCATENATE(C67, " - ",B67) -> Luminaire - 250W SON FLOODLIGHT | B67: 250W SON FLOODLIGHT | C67: Luminaire
A68: Luminaire - 250W SON GEC 'BOSTON 3' | B68: 250W SON GEC 'BOSTON 3' | C68: Luminaire
A69: Support - 2ND LIGHT NON-TRL | B69: 2ND LIGHT NON-TRL | C69: Support
A70: Support - 2ND LIGHT TRL | B70: 2ND LIGHT TRL | C70: Support
A71: Luminaire - 2X14W TF - T5 PIERLIGHT | B71: 2X14W TF - T5 PIERLIGHT | C71: Luminaire
A72: Luminaire - 3x400W MBF - PARKWAY 3 | B72: 3x400W MBF - PARKWAY 3 | C72: Luminaire
A73: Luminaire - 4x1000W MBF | B73: 4x1000W MBF | C73: Luminaire
A74: Luminaire - 4x20W TF | B74: 4x20W TF | C74: Luminaire
A75: Luminaire - 4x20W TF - WAVERLEY | B75: 4x20W TF - WAVERLEY | C75: Luminaire
A76: Luminaire - 4x250W SON | B76: 4x250W SON | C76: Luminaire
A77: Luminaire - 4x40W TF | B77: 4x40W TF | C77: Luminaire
A78: Luminaire - 4x40W TF - WAVERLEY | B78: 4x40W TF - WAVERLEY | C78: Luminaire
A79: Luminaire - 4x600W SON | B79: 4x600W SON | C79: Luminaire
A80: Luminaire - 400W MBF | B80: 400W MBF | C80: Luminaire
A81: Luminaire - 400W MBF - PARKWAY 1 | B81: 400W MBF - PARKWAY 1 | C81: Luminaire
A82: Luminaire - 400W MBF FLOODLIGHT | B82: 400W MBF FLOODLIGHT | C82: Luminaire
A83: Luminaire - 400W MBI - SMARTPOLE | B83: 400W MBI - SMARTPOLE | C83: Luminaire
A84: Luminaire - 400W MBI FLOODLIGHT | B84: 400W MBI FLOODLIGHT | C84: Luminaire
A85: Luminaire - 400W SON | B85: 400W SON | C85: Luminaire
A86: Luminaire - 400W SON - PARKWAY 1 | B86: 400W SON - PARKWAY 1 | C86: Luminaire
A87: Luminaire - 400W SON FLOODLIGHT | B87: 400W SON FLOODLIGHT | C87: Luminaire
A88: Luminaire - 40W SOX | B88: 40W SOX | C88: Luminaire
A89: Luminaire - 42W MBF SYLVANIA SUB ECO | B89: 42W MBF SYLVANIA SUB ECO | C89: Luminaire
A90: Luminaire - 500W MBI FLOODLIGHT | B90: 500W MBI FLOODLIGHT | C90: Luminaire
A91: Luminaire - 50W MBF | B91: 50W MBF | C91: Luminaire
A92: Luminaire - 50W MBF - BOURKE HILL | B92: 50W MBF - BOURKE HILL | C92: Luminaire
A93: Luminaire - 50W MBF - NOSTALGIA | B93: 50W MBF - NOSTALGIA | C93: Luminaire
A94: Luminaire - 50W MBF - PLAIN | B94: 50W MBF - PLAIN | C94: Luminaire
A95: Luminaire - 50W MBF BOLLARD | B95: 50W MBF BOLLARD | C95: Luminaire
A96: Luminaire - 50W SON | B96: 50W SON | C96: Luminaire
A97: Luminaire - 50W SON - BOURKE HILL | B97: 50W SON - BOURKE HILL | C97: Luminaire
A98: Luminaire - 50W SON - NOSTALGIA | B98: 50W SON - NOSTALGIA | C98: Luminaire
A99: Luminaire - 60W SOX | B99: 60W SOX | C99: Luminaire
A100: Luminaire - 700W MBF | B100: 700W MBF | C100: Luminaire
A101: Luminaire - 70W MBI | B101: 70W MBI | C101: Luminaire
A102: Luminaire - 70W MBI - MACQUARIE DEC. | B102: 70W MBI - MACQUARIE DEC. | C102: Luminaire
A103: Luminaire - 70W SON | B103: 70W SON | C103: Luminaire
A104: Luminaire - 70W SON - BOURKE HILL | B104: 70W SON - BOURKE HILL | C104: Luminaire
A105: Luminaire - 70W SON - GEC BOSTON 2 | B105: 70W SON - GEC BOSTON 2 | C105: Luminaire
A106: Luminaire - 70W SON - NOSTALGIA | B106: 70W SON - NOSTALGIA | C106: Luminaire
A107: Luminaire - 70W SON - PARKVILLE | B107: 70W SON - PARKVILLE | C107: Luminaire
A108: Luminaire - 70W SON - REGAL/FLINDERS | B108: 70W SON - REGAL/FLINDERS | C108: Luminaire
A109: Luminaire - 70W SON BOLLARD | B109: 70W SON BOLLARD | C109: Luminaire
A110: Luminaire - 70W SON FLOODLIGHT | B110: 70W SON FLOODLIGHT | C110: Luminaire
A111: Luminaire - 70W SON -PLAIN | B111: 70W SON -PLAIN | C111: Luminaire
A112: Luminaire - 750W MBI FLOODLIGHT | B112: 750W MBI FLOODLIGHT | C112: Luminaire
A113: Luminaire - 80W MBF | B113: 80W MBF | C113: Luminaire
A114: Luminaire - 80W MBF - PLAIN | B114: 80W MBF - PLAIN | C114: Luminaire
A115: Luminaire - 80W MBF - BEGA+CURVE BRA | B115: 80W MBF - BEGA+CURVE BRA | C115: Luminaire
A116: Luminaire - 80W MBF - BOURKE HILL | B116: 80W MBF - BOURKE HILL | C116: Luminaire
A117: Luminaire - 80W MBF - GEC BOSTON 2 | B117: 80W MBF - GEC BOSTON 2 | C117: Luminaire
A118: Luminaire - 80W MBF - NOSTALGIA | B118: 80W MBF - NOSTALGIA | C118: Luminaire
A119: Luminaire - 80W MBF - REGAL/FLINDERS | B119: 80W MBF - REGAL/FLINDERS | C119: Luminaire
A120: Luminaire - 80W MBF - SYLVANIA SUBUR | B120: 80W MBF - SYLVANIA SUBUR | C120: Luminaire
A121: Luminaire - 80W MBF BOLLARD | B121: 80W MBF BOLLARD | C121: Luminaire
A122: Luminaire - 80W MBF TOORAK | B122: 80W MBF TOORAK | C122: Luminaire
A123: Luminaire - 90W SOX | B123: 90W SOX | C123: Luminaire
A124: Support - BOLLARD | B124: BOLLARD | C124: Support
A125: Bracket - C4 | B125: C4 | C125: Bracket
A126: Support - COLUMN 10.5M-13.5M | B126: COLUMN 10.5M-13.5M | C126: Support
A127: Support - COLUMN 14M-15M | B127: COLUMN 14M-15M | C127: Support
A128: Support - COLUMN 2.5M-3.5M | B128: COLUMN 2.5M-3.5M | C128: Support
A129: Support - COLUMN 4-6.5M ORION WATE | B129: COLUMN 4-6.5M ORION WATE | C129: Support
A130: Support - COLUMN 4M-6.5M | B130: COLUMN 4M-6.5M | C130: Support
A131: =CONCATENATE(C131, " - ",B131) -> Support - COLUMN 7M-10M | B131: COLUMN 7M-10M | C131: Support
A132: Support - DECORATIVE COLUMN | B132: DECORATIVE COLUMN | C132: Support
A133: Support - DEDICATED SUPPORT & COND | B133: DEDICATED SUPPORT & COND | C133: Support
A134: Support - HYDE PARK STANDARD | B134: HYDE PARK STANDARD | C134: Support
A135: Lamp - INC1x100 | B135: INC1x100 | C135: Lamp
A136: Lamp - INC1x1000 | B136: INC1x1000 | C136: Lamp
A137: Lamp - INC1x1440 | B137: INC1x1440 | C137: Lamp
A138: Lamp - INC1x150 | B138: INC1x150 | C138: Lamp
A139: Lamp - INC1x200 | B139: INC1x200 | C139: Lamp
A140: Lamp - INC1x300 | B140: INC1x300 | C140: Lamp
A141: Lamp - INC1x40 | B141: INC1x40 | C141: Lamp
A142: Lamp - INC1x500 | B142: INC1x500 | C142: Lamp
A143: Lamp - INC1x60 | B143: INC1x60 | C143: Lamp
A144: Lamp - INC1x75 | B144: INC1x75 | C144: Lamp
A145: Lamp - INC3x100 | B145: INC3x100 | C145: Lamp
A146: Luminaire - INCANDESCENT | B146: INCANDESCENT | C146: Luminaire
A147: Support - MACQUARIE STANDARD | B147: MACQUARIE STANDARD | C147: Support
A148: Support - MAST 15.5M-30M | B148: MAST 15.5M-30M | C148: Support
A149: Support - MAST 23M | B149: MAST 23M | C149: Support
A150: Support - MAST 25M | B150: MAST 25M | C150: Support
A151: Lamp - MBF1x1000 | B151: MBF1x1000 | C151: Lamp
A152: Lamp - MBF1x125 | B152: MBF1x125 | C152: Lamp
A153: Lamp - MBF1x250 | B153: MBF1x250 | C153: Lamp
A154: Lamp - MBF1x400 | B154: MBF1x400 | C154: Lamp
A155: Lamp - MBF1x42 | B155: MBF1x42 | C155: Lamp
A156: Lamp - MBF1x50 | B156: MBF1x50 | C156: Lamp
A157: Lamp - MBF1x500 | B157: MBF1x500 | C157: Lamp
A158: Lamp - MBF1x700 | B158: MBF1x700 | C158: Lamp
A159: Lamp - MBF1x80 | B159: MBF1x80 | C159: Lamp
A160: Lamp - MBF1x800 | B160: MBF1x800 | C160: Lamp
A161: Lamp - MBF2x125 | B161: MBF2x125 | C161: Lamp
A162: Lamp - MBF2x160 | B162: MBF2x160 | C162: Lamp
A163: Lamp - MBF2x175 | B163: MBF2x175 | C163: Lamp
A164: Lamp - MBF2x400 | B164: MBF2x400 | C164: Lamp
A165: Lamp - MBF2x80 | B165: MBF2x80 | C165: Lamp
A166: Lamp - MBF3x160 | B166: MBF3x160 | C166: Lamp
A167: Lamp - MBF3x250 | B167: MBF3x250 | C167: Lamp
A168: Lamp - MBF3x400 | B168: MBF3x400 | C168: Lamp
A169: Lamp - MBF3x80 | B169: MBF3x80 | C169: Lamp
A170: Lamp - MBF4x1000 | B170: MBF4x1000 | C170: Lamp
A171: Lamp - MBF4x80 | B171: MBF4x80 | C171: Lamp
A172: Lamp - MBF6x125 | B172: MBF6x125 | C172: Lamp
A173: Lamp - MBF6x160 | B173: MBF6x160 | C173: Lamp
A174: Lamp - MBF9x160 | B174: MBF9x160 | C174: Lamp
A175: Lamp - MBI1x100 | B175: MBI1x100 | C175: Lamp
A176: Lamp - MBI1x1000 | B176: MBI1x1000 | C176: Lamp
A177: Lamp - MBI1x150 | B177: MBI1x150 | C177: Lamp
A178: Lamp - MBI1x1500 | B178: MBI1x1500 | C178: Lamp
A179: Lamp - MBI1x250 | B179: MBI1x250 | C179: Lamp
A180: Lamp - MBI1x3745 | B180: MBI1x3745 | C180: Lamp
A181: Lamp - MBI1x400 | B181: MBI1x400 | C181: Lamp
A182: Lamp - MBI1x500 | B182: MBI1x500 | C182: Lamp
A183: Lamp - MBI1x70 | B183: MBI1x70 | C183: Lamp
A184: Lamp - MBI2x400 | B184: MBI2x400 | C184: Lamp
A185: Lamp - MBI4x150 | B185: MBI4x150 | C185: Lamp
A186: Bracket - NIL | B186: NIL | C186: Bracket
A187: Connection - O/U | B187: O/U | C187: Connection
A188: Connection - OH | B188: OH | C188: Connection
A189: Connection - OH2 | B189: OH2 | C189: Connection
A190: Connection - OHS | B190: OHS | C190: Connection
A191: Support - ORION DOUBLE ARM | B191: ORION DOUBLE ARM | C191: Support
A192: Support - POLO 10.5M DECORATIVE 2M | B192: POLO 10.5M DECORATIVE 2M | C192: Support
A193: Support - POLO 4.5M DECORATIVE 1.2 | B193: POLO 4.5M DECORATIVE 1.2 | C193: Support
A194: =CONCATENATE(C194, " - ",B194) -> Support - PRIVATE | B194: PRIVATE | C194: Support
A195: Support - ROCKS STANDARD | B195: ROCKS STANDARD | C195: Support
A196: Support - SMARTPOLE A | B196: SMARTPOLE A | C196: Support
A197: Support - SMARTPOLE AB | B197: SMARTPOLE AB | C197: Support
A198: Support - SMARTPOLE B | B198: SMARTPOLE B | C198: Support
A199: Support - SMARTPOLE C | B199: SMARTPOLE C | C199: Support
A200: Bracket - SMARTPOLE DOUBLE | B200: SMARTPOLE DOUBLE | C200: Bracket
... 85 more rows

Sheet Input - Actual Residual Value
B1: Residual value received ($'000 nominal)
B2: Customer | C2: Lookup | D2: Component | E2: Description | F2: Rate | G2: Count | H2: FY15 | I2: FY16 | J2: FY17 | K2: FY18 | L2: FY19
B3: Customer 1 | C3: Bracket - 0.5 | D3: Bracket | E3: 0.5 | F3: 1
B4: Customer 1 | C4: Bracket - 0.5 | D4: Bracket | E4: 0.5 | F4: 2
B5: Customer 1 | C5: Bracket - 1.0 | D5: Bracket | E5: 1.0 | F5: 1
B6: Customer 1 | C6: Bracket - 1.5 | D6: Bracket | E6: 1.5 | F6: 2
B7: Customer 1 | C7: Bracket - 2.0 | D7: Bracket | E7: 2.0 | F7: 1
B8: Customer 1 | C8: Bracket - 2.0 | D8: Bracket | E8: 2.0 | F8: 2
B9: Customer 1 | C9: Bracket - 2.5 | D9: Bracket | E9: 2.5 | F9: 1
B10: Customer 1 | C10: Bracket - 3.0 | D10: Bracket | E10: 3.0 | F10: 1
B11: Customer 1 | C11: Bracket - 3.0 | D11: Bracket | E11: 3.0 | F11: 2
B12: Customer 1 | C12: Bracket - 3.5 | D12: Bracket | E12: 3.5 | F12: 1
B13: Customer 1 | C13: Bracket - 4.0 | D13: Bracket | E13: 4.0 | F13: 1
B14: Customer 1 | C14: Bracket - 4.5 | D14: Bracket | E14: 4.5 | F14: 1
B15: Customer 1 | C15: Bracket - 4.5 | D15: Bracket | E15: 4.5 | F15: 2
B16: Customer 1 | C16: Bracket - 5.0 | D16: Bracket | E16: 5.0 | F16: 1
B17: Customer 1 | C17: Bracket - 6.0 | D17: Bracket | E17: 6.0 | F17: 1
B18: Customer 1 | C18: Bracket - NIL | D18: Bracket | E18: NIL | F18: 1
B19: Customer 1 | C19: Bracket - NIL | D19: Bracket | E19: NIL | F19: 2
B20: Customer 1 | C20: Bracket - PRIVATE | D20: Bracket | E20: PRIVATE | F20: 1
B21: Customer 1 | C21: Bracket - PRIVATE | D21: Bracket | E21: PRIVATE | F21: 3
B22: Customer 1 | C22: Bracket - SUSPENDED | D22: Bracket | E22: SUSPENDED | F22: 1
B23: Customer 1 | C23: Bracket - T1 | D23: Bracket | E23: T1 | F23: 1
B24: Customer 1 | C24: Bracket - T2 | D24: Bracket | E24: T2 | F24: 1
B25: Customer 1 | C25: Bracket - T2 | D25: Bracket | E25: T2 | F25: 2
B26: Customer 1 | C26: Bracket - T2A | D26: Bracket | E26: T2A | F26: 1
B27: Customer 1 | C27: Bracket - T3 | D27: Bracket | E27: T3 | F27: 1
B28: Customer 1 | C28: Bracket - T3A | D28: Bracket | E28: T3A | F28: 1
B29: Customer 1 | C29: Bracket - T4 | D29: Bracket | E29: T4 | F29: 1
B30: Customer 1 | C30: Bracket - T5 | D30: Bracket | E30: T5 | F30: 1
B31: Customer 1 | C31: Bracket - T5 | D31: Bracket | E31: T5 | F31: 2
B32: Customer 1 | C32: Bracket - T6 | D32: Bracket | E32: T6 | F32: 1
B33: Customer 1 | C33: Bracket - T6 | D33: Bracket | E33: T6 | F33: 2
B34: Customer 1 | C34: Bracket - T7 | D34: Bracket | E34: T7 | F34: 1
B35: Customer 1 | C35: Connection - EMPTY | D35: Connection | E35: EMPTY | F35: 1
B36: Customer 1 | C36: Connection - O/U | D36: Connection | E36: O/U | F36: 1
B37: Customer 1 | C37: Connection - O/U | D37: Connection | E37: O/U | F37: 2
B38: Customer 1 | C38: Connection - OH | D38: Connection | E38: OH | F38: 1
B39: Customer 1 | C39: Connection - OH | D39: Connection | E39: OH | F39: 2
B40: Customer 1 | C40: Connection - OH | D40: Connection | E40: OH | F40: 3
B41: Customer 1 | C41: Connection - OH2 | D41: Connection | E41: OH2 | F41: 1
B42: Customer 1 | C42: Connection - UGR1 | D42: Connection | E42: UGR1 | F42: 1
B43: Customer 1 | C43: Connection - UGR1 | D43: Connection | E43: UGR1 | F43: 3
B44: Customer 1 | C44: Connection - UGR2 | D44: Connection | E44: UGR2 | F44: 1
B45: Customer 1 | C45: Connection - UGR2 | D45: Connection | E45: UGR2 | F45: 2
B46: Customer 1 | C46: Lamp - INC1x100 | D46: Lamp | E46: INC1x100 | F46: 3
B47: Customer 1 | C47: Lamp - INC1x40 | D47: Lamp | E47: INC1x40 | F47: 1
B48: Customer 1 | C48: Lamp - INC1x60 | D48: Lamp | E48: INC1x60 | F48: 3
B49: Customer 1 | C49: Lamp - MBF1x1000 | D49: Lamp | E49: MBF1x1000 | F49: 1
B50: Customer 1 | C50: Lamp - MBF1x125 | D50: Lamp | E50: MBF1x125 | F50: 1
B51: Customer 1 | C51: Lamp - MBF1x125 | D51: Lamp | E51: MBF1x125 | F51: 2
B52: Customer 1 | C52: Lamp - MBF1x250 | D52: Lamp | E52: MBF1x250 | F52: 1
B53: Customer 1 | C53: Lamp - MBF1x400 | D53: Lamp | E53: MBF1x400 | F53: 1
B54: Customer 1 | C54: Lamp - MBF1x400 | D54: Lamp | E54: MBF1x400 | F54: 2
B55: Customer 1 | C55: Lamp - MBF1x42 | D55: Lamp | E55: MBF1x42 | F55: 1
B56: Customer 1 | C56: Lamp - MBF1x42 | D56: Lamp | E56: MBF1x42 | F56: 2
B57: Customer 1 | C57: Lamp - MBF1x50 | D57: Lamp | E57: MBF1x50 | F57: 1
B58: Customer 1 | C58: Lamp - MBF1x700 | D58: Lamp | E58: MBF1x700 | F58: 1
B59: Customer 1 | C59: Lamp - MBF1x80 | D59: Lamp | E59: MBF1x80 | F59: 1
B60: Customer 1 | C60: Lamp - MBF1x80 | D60: Lamp | E60: MBF1x80 | F60: 2
B61: Customer 1 | C61: Lamp - MBI1x400 | D61: Lamp | E61: MBI1x400 | F61: 1
B62: Customer 1 | C62: Lamp - SON1x100 | D62: Lamp | E62: SON1x100 | F62: 1
B63: Customer 1 | C63: Lamp - SON1x150 | D63: Lamp | E63: SON1x150 | F63: 1
B64: Customer 1 | C64: Lamp - SON1x250 | D64: Lamp | E64: SON1x250 | F64: 1
B65: Customer 1 | C65: Lamp - SON1x250 | D65: Lamp | E65: SON1x250 | F65: 2
B66: Customer 1 | C66: Lamp - SON1x400 | D66: Lamp | E66: SON1x400 | F66: 1
B67: Customer 1 | C67: Lamp - SON1x400 | D67: Lamp | E67: SON1x400 | F67: 2
B68: Customer 1 | C68: Lamp - SON1x50 | D68: Lamp | E68: SON1x50 | F68: 1
B69: Customer 1 | C69: Lamp - SON1x70 | D69: Lamp | E69: SON1x70 | F69: 1
B70: Customer 1 | C70: Lamp - TF1x20 | D70: Lamp | E70: TF1x20 | F70: 3
B71: Customer 1 | C71: Lamp - TF1x40 | D71: Lamp | E71: TF1x40 | F71: 1
B72: Customer 1 | C72: Lamp - TF1x80 | D72: Lamp | E72: TF1x80 | F72: 1
B73: Customer 1 | C73: Lamp - TF2x20 | D73: Lamp | E73: TF2x20 | F73: 1
B74: Customer 1 | C74: Lamp - TF2x20 | D74: Lamp | E74: TF2x20 | F74: 3
B75: Customer 1 | C75: Lamp - TF2x40 | D75: Lamp | E75: TF2x40 | F75: 1
B76: Customer 1 | C76: Lamp - TF2x40 | D76: Lamp | E76: TF2x40 | F76: 2
B77: Customer 1 | C77: Lamp - TF4x20 | D77: Lamp | E77: TF4x20 | F77: 1
B78: Customer 1 | C78: Luminaire - 1000W SON | D78: Luminaire | E78: 1000W SON | F78: 1
B79: Customer 1 | C79: Luminaire - 100W SON -PLAIN | D79: Luminaire | E79: 100W SON -PLAIN | F79: 1
B80: Customer 1 | C80: Luminaire - 100W SON | D80: Luminaire | E80: 100W SON | F80: 1
B81: Customer 1 | C81: Luminaire - 125W MBF -PLAIN | D81: Luminaire | E81: 125W MBF -PLAIN | F81: 1
B82: Customer 1 | C82: Luminaire - 125W MBF | D82: Luminaire | E82: 125W MBF | F82: 1
B83: Customer 1 | C83: Luminaire - 125W MBF | D83: Luminaire | E83: 125W MBF | F83: 2
B84: Customer 1 | C84: Luminaire - 125W/250W MBF FLOODLIGHT | D84: Luminaire | E84: 125W/250W MBF FLOODLIGHT | F84: 1
B85: Customer 1 | C85: Luminaire - 150W SON - PARKWAY 1 | D85: Luminaire | E85: 150W SON - PARKWAY 1 | F85: 1
B86: Customer 1 | C86: Luminaire - 150W SON FLOODLIGHT | D86: Luminaire | E86: 150W SON FLOODLIGHT | F86: 1
B87: Customer 1 | C87: Luminaire - 150W SON | D87: Luminaire | E87: 150W SON | F87: 1
B88: Customer 1 | C88: Luminaire - 1x40W TF | D88: Luminaire | E88: 1x40W TF | F88: 1
B89: Customer 1 | C89: Luminaire - 1x80W TF | D89: Luminaire | E89: 1x80W TF | F89: 1
B90: Customer 1 | C90: Luminaire - 250W MBF - PARKVILLE | D90: Luminaire | E90: 250W MBF - PARKVILLE | F90: 1
B91: Customer 1 | C91: Luminaire - 250W MBF - PARKWAY 1 | D91: Luminaire | E91: 250W MBF - PARKWAY 1 | F91: 1
B92: Customer 1 | C92: Luminaire - 250W MBF | D92: Luminaire | E92: 250W MBF | F92: 1
B93: Customer 1 | C93: Luminaire - 250W SON FLOODLIGHT | D93: Luminaire | E93: 250W SON FLOODLIGHT | F93: 1
B94: Customer 1 | C94: Luminaire - 250W SON FLOODLIGHT | D94: Luminaire | E94: 250W SON FLOODLIGHT | F94: 2
B95: Customer 1 | C95: Luminaire - 250W SON | D95: Luminaire | E95: 250W SON | F95: 1
B96: Customer 1 | C96: Luminaire - 250W SON | D96: Luminaire | E96: 250W SON | F96: 2
B97: Customer 1 | C97: Luminaire - 2x20W TF | D97: Luminaire | E97: 2x20W TF | F97: 1
B98: Customer 1 | C98: Luminaire - 2x40W TF | D98: Luminaire | E98: 2x40W TF | F98: 1
B99: Customer 1 | C99: Luminaire - 2x40W TF | D99: Luminaire | E99: 2x40W TF | F99: 2
B100: Customer 1 | C100: Luminaire - 400W MBF - PARKWAY 1 | D100: Luminaire | E100: 400W MBF - PARKWAY 1 | F100: 1
B101: Customer 1 | C101: Luminaire - 400W MBF | D101: Luminaire | E101: 400W MBF | F101: 1
B102: Customer 1 | C102: Luminaire - 400W MBF | D102: Luminaire | E102: 400W MBF | F102: 2
B103: Customer 1 | C103: Luminaire - 400W SON FLOODLIGHT | D103: Luminaire | E103: 400W SON FLOODLIGHT | F103: 1
B104: Customer 1 | C104: Luminaire - 400W SON | D104: Luminaire | E104: 400W SON | F104: 1
B105: Customer 1 | C105: Luminaire - 400W SON | D105: Luminaire | E105: 400W SON | F105: 2
B106: Customer 1 | C106: Luminaire - 42W MBF SYLVANIA SUB ECO | D106: Luminaire | E106: 42W MBF SYLVANIA SUB ECO | F106: 1
B107: Customer 1 | C107: Luminaire - 42W MBF SYLVANIA SUB ECO | D107: Luminaire | E107: 42W MBF SYLVANIA SUB ECO | F107: 2
B108: Customer 1 | C108: Luminaire - 4x20W TF - WAVERLEY | D108: Luminaire | E108: 4x20W TF - WAVERLEY | F108: 1
B109: Customer 1 | C109: Luminaire - 50W MBF | D109: Luminaire | E109: 50W MBF | F109: 1
B110: Customer 1 | C110: Luminaire - 50W SON | D110: Luminaire | E110: 50W SON | F110: 1
B111: Customer 1 | C111: Luminaire - 700W MBF | D111: Luminaire | E111: 700W MBF | F111: 1
B112: Customer 1 | C112: Luminaire - 70W SON | D112: Luminaire | E112: 70W SON | F112: 1
B113: Customer 1 | C113: Luminaire - 80W MBF - PLAIN | D113: Luminaire | E113: 80W MBF - PLAIN | F113: 1
B114: Customer 1 | C114: Luminaire - 80W MBF - SYLVANIA SUBUR | D114: Luminaire | E114: 80W MBF - SYLVANIA SUBUR | F114: 1
B115: Customer 1 | C115: Luminaire - 80W MBF - SYLVANIA SUBUR | D115: Luminaire | E115: 80W MBF - SYLVANIA SUBUR | F115: 2
B116: Customer 1 | C116: Luminaire - 80W MBF | D116: Luminaire | E116: 80W MBF | F116: 1
B117: Customer 1 | C117: Luminaire - 80W MBF | D117: Luminaire | E117: 80W MBF | F117: 2
B118: Customer 1 | C118: Luminaire - PRIVATE | D118: Luminaire | E118: PRIVATE | F118: 3
B119: Customer 1 | C119: Support - COLUMN 10.5M-13.5M | D119: Support | E119: COLUMN 10.5M-13.5M | F119: 1
B120: Customer 1 | C120: Support - COLUMN 10.5M-13.5M | D120: Support | E120: COLUMN 10.5M-13.5M | F120: 2
B121: Customer 1 | C121: Support - COLUMN 2.5M-3.5M | D121: Support | E121: COLUMN 2.5M-3.5M | F121: 1
B122: Customer 1 | C122: Support - COLUMN 4M-6.5M | D122: Support | E122: COLUMN 4M-6.5M | F122: 1
B123: Customer 1 | C123: Support - COLUMN 4M-6.5M | D123: Support | E123: COLUMN 4M-6.5M | F123: 2
B124: Customer 1 | C124: Support - COLUMN 7M-10M | D124: Support | E124: COLUMN 7M-10M | F124: 1
B125: Customer 1 | C125: Support - DECORATIVE COLUMN | D125: Support | E125: DECORATIVE COLUMN | F125: 1
B126: Customer 1 | C126: Support - DEDICATED SUPPORT & COND | D126: Support | E126: DEDICATED SUPPORT & COND | F126: 1
B127: Customer 1 | C127: Support - PRIVATE | D127: Support | E127: PRIVATE | F127: 3
B128: Customer 1 | C128: Support - ROCKS STANDARD | D128: Support | E128: ROCKS STANDARD | F128: 1
B129: Customer 1 | C129: Support - UNKNOWN | D129: Support | E129: UNKNOWN | F129: 1
B130: Customer 1 | C130: Support - WALL | D130: Support | E130: WALL | F130: 1
B131: Customer 1 | C131: Support - WALL | D131: Support | E131: WALL | F131: 2
B132: Customer 1 | C132: Support - WOOD POLE NON-TRL | D132: Support | E132: WOOD POLE NON-TRL | F132: 1
B133: Customer 1 | C133: Support - WOOD POLE NON-TRL | D133: Support | E133: WOOD POLE NON-TRL | F133: 2
B134: Customer 1 | C134: Support - WOOD POLE TRL | D134: Support | E134: WOOD POLE TRL | F134: 1
B135: Customer 1 | C135: Support - WOOD POLE TRL | D135: Support | E135: WOOD POLE TRL | F135: 2
B136: Customer 2 | C136: Bracket - 0.5 | D136: Bracket | E136: 0.5 | F136: 1
B137: Customer 2 | C137: Connection - OH | D137: Connection | E137: OH | F137: 1
B138: Customer 2 | C138: Lamp - MBF1x250 | D138: Lamp | E138: MBF1x250 | F138: 1
B139: Customer 2 | C139: Luminaire - 250W MBF | D139: Luminaire | E139: 250W MBF | F139: 1
B140: Customer 2 | C140: Support - WOOD POLE NON-TRL | D140: Support | E140: WOOD POLE NON-TRL | F140: 1
B141: Customer 3 | C141: Bracket - 0.5 | D141: Bracket | E141: 0.5 | F141: 1
B142: Customer 3 | C142: Bracket - 0.5 | D142: Bracket | E142: 0.5 | F142: 2
B143: Customer 3 | C143: Bracket - 0.6 | D143: Bracket | E143: 0.6 | F143: 1
B144: Customer 3 | C144: Bracket - 1.0 | D144: Bracket | E144: 1.0 | F144: 1
B145: Customer 3 | C145: Bracket - 1.0 | D145: Bracket | E145: 1.0 | F145: 2
B146: Customer 3 | C146: Bracket - 1.2 | D146: Bracket | E146: 1.2 | F146: 1
B147: Customer 3 | C147: Bracket - 1.5 | D147: Bracket | E147: 1.5 | F147: 1
B148: Customer 3 | C148: Bracket - 2.0 | D148: Bracket | E148: 2.0 | F148: 1
B149: Customer 3 | C149: Bracket - 2.0 | D149: Bracket | E149: 2.0 | F149: 2
B150: Customer 3 | C150: Bracket - 2.0 | D150: Bracket | E150: 2.0 | F150: 3
B151: Customer 3 | C151: Bracket - 2.5 | D151: Bracket | E151: 2.5 | F151: 1
B152: Customer 3 | C152: Bracket - 2.5 | D152: Bracket | E152: 2.5 | F152: 3
B153: Customer 3 | C153: Bracket - 3.0 | D153: Bracket | E153: 3.0 | F153: 1
B154: Customer 3 | C154: Bracket - 3.0 | D154: Bracket | E154: 3.0 | F154: 2
B155: Customer 3 | C155: Bracket - 3.0 | D155: Bracket | E155: 3.0 | F155: 3
B156: Customer 3 | C156: Bracket - 3.5 | D156: Bracket | E156: 3.5 | F156: 1
B157: Customer 3 | C157: Bracket - 3.5 | D157: Bracket | E157: 3.5 | F157: 2
B158: Customer 3 | C158: Bracket - 4.0 | D158: Bracket | E158: 4.0 | F158: 1
B159: Customer 3 | C159: Bracket - 4.0 | D159: Bracket | E159: 4.0 | F159: 3
B160: Customer 3 | C160: Bracket - 4.5 | D160: Bracket | E160: 4.5 | F160: 1
B161: Customer 3 | C161: Bracket - 4.5 | D161: Bracket | E161: 4.5 | F161: 2
B162: Customer 3 | C162: Bracket - 4.5 | D162: Bracket | E162: 4.5 | F162: 3
B163: Customer 3 | C163: Bracket - 5.0 | D163: Bracket | E163: 5.0 | F163: 1
B164: Customer 3 | C164: Bracket - 5.0 | D164: Bracket | E164: 5.0 | F164: 2
B165: Customer 3 | C165: Bracket - 5.0 | D165: Bracket | E165: 5.0 | F165: 3
B166: Customer 3 | C166: Bracket - 6.0 | D166: Bracket | E166: 6.0 | F166: 1
B167: Customer 3 | C167: Bracket - 8.0 | D167: Bracket | E167: 8.0 | F167: 2
B168: Customer 3 | C168: Bracket - 8.0 | D168: Bracket | E168: 8.0 | F168: 3
B169: Customer 3 | C169: Bracket - NIL | D169: Bracket | E169: NIL | F169: 1
B170: Customer 3 | C170: Bracket - NIL | D170: Bracket | E170: NIL | F170: 2
B171: Customer 3 | C171: Bracket - PRIVATE | D171: Bracket | E171: PRIVATE | F171: 3
B172: Customer 3 | C172: Bracket - SUSPENDED | D172: Bracket | E172: SUSPENDED | F172: 1
B173: Customer 3 | C173: Bracket - T1 | D173: Bracket | E173: T1 | F173: 1
B174: Customer 3 | C174: Bracket - T1 | D174: Bracket | E174: T1 | F174: 2
B175: Customer 3 | C175: Bracket - T2 | D175: Bracket | E175: T2 | F175: 1
B176: Customer 3 | C176: Bracket - T2 | D176: Bracket | E176: T2 | F176: 2
B177: Customer 3 | C177: Bracket - T2A | D177: Bracket | E177: T2A | F177: 1
B178: Customer 3 | C178: Bracket - T3 | D178: Bracket | E178: T3 | F178: 1
B179: Customer 3 | C179: Bracket - T3 | D179: Bracket | E179: T3 | F179: 2
B180: Customer 3 | C180: Bracket - T3A | D180: Bracket | E180: T3A | F180: 1
B181: Customer 3 | C181: Bracket - T3A | D181: Bracket | E181: T3A | F181: 2
B182: Customer 3 | C182: Bracket - T4 | D182: Bracket | E182: T4 | F182: 1
B183: Customer 3 | C183: Bracket - T5 | D183: Bracket | E183: T5 | F183: 1
B184: Customer 3 | C184: Bracket - T6 | D184: Bracket | E184: T6 | F184: 1
B185: Customer 3 | C185: Bracket - T6 | D185: Bracket | E185: T6 | F185: 2
B186: Customer 3 | C186: Bracket - T7 | D186: Bracket | E186: T7 | F186: 1
B187: Customer 3 | C187: Connection - EMPTY | D187: Connection | E187: EMPTY | F187: 1
B188: Customer 3 | C188: Connection - EMPTY | D188: Connection | E188: EMPTY | F188: 3
B189: Customer 3 | C189: Connection - O/U | D189: Connection | E189: O/U | F189: 1
B190: Customer 3 | C190: Connection - O/U | D190: Connection | E190: O/U | F190: 2
B191: Customer 3 | C191: Connection - O/U | D191: Connection | E191: O/U | F191: 3
B192: Customer 3 | C192: Connection - OH | D192: Connection | E192: OH | F192: 1
B193: Customer 3 | C193: Connection - OH | D193: Connection | E193: OH | F193: 2
B194: Customer 3 | C194: Connection - OH | D194: Connection | E194: OH | F194: 3
B195: Customer 3 | C195: Connection - OH2 | D195: Connection | E195: OH2 | F195: 1
B196: Customer 3 | C196: Connection - OH2 | D196: Connection | E196: OH2 | F196: 2
B197: Customer 3 | C197: Connection - UG2 | D197: Connection | E197: UG2 | F197: 1
B198: Customer 3 | C198: Connection - UG2 | D198: Connection | E198: UG2 | F198: 2
B199: Customer 3 | C199: Connection - UGR1 | D199: Connection | E199: UGR1 | F199: 1
B200: Customer 3 | C200: Connection - UGR1 | D200: Connection | E200: UGR1 | F200: 2
... 6567 more rows

Sheet Calc - FY15 RAB allocation
B1: Residual value received ($'000 nominal)
B2: Customer | C2: Lookup | D2: Component | E2: Description | F2: Rate | G2: Count FY14 | H2: Remaining Life at July 2014 | I2: Standard Life | K2: Materials cost FY15 | L2: Depreciated Materials Cost | M2: RAB Allocation
B3: ='Input - Customer Inventory FY15'!B3 -> Customer 1 | C3: ='Input - Customer Inventory FY15'!C3 -> Bracket - 0.5 | D3: ='Input - Customer Inventory FY15'!D3 -> Bracket | E3: ='Input - Customer Inventory FY15'!E3 -> 0.5 | F3: ='Input - Customer Inventory FY15'!G3 -> 1 | G3: ='Input - Customer Inventory FY15'!F3 -> 0 | H3: ='Input - Customer Inventory FY15'!I3 -> 0 | I3: ='Input - Customer Inventory FY15'!J3 -> 20 | M3: 0
B4: ='Input - Customer Inventory FY15'!B4 -> Customer 1 | C4: ='Input - Customer Inventory FY15'!C4 -> Bracket - 0.5 | D4: ='Input - Customer Inventory FY15'!D4 -> Bracket | E4: ='Input - Customer Inventory FY15'!E4 -> 0.5 | F4: ='Input - Customer Inventory FY15'!G4 -> 2 | G4: ='Input - Customer Inventory FY15'!F4 -> 0 | H4: ='Input - Customer Inventory FY15'!I4 -> 0 | I4: ='Input - Customer Inventory FY15'!J4 -> 20 | M4: 0
B5: ='Input - Customer Inventory FY15'!B5 -> Customer 1 | C5: ='Input - Customer Inventory FY15'!C5 -> Bracket - 1.0 | D5: ='Input - Customer Inventory FY15'!D5 -> Bracket | E5: ='Input - Customer Inventory FY15'!E5 -> 1.0 | F5: ='Input - Customer Inventory FY15'!G5 -> 1 | G5: ='Input - Customer Inventory FY15'!F5 -> 0 | H5: ='Input - Customer Inventory FY15'!I5 -> 12.56712329 | I5: ='Input - Customer Inventory FY15'!J5 -> 20 | M5: 1072.984799
B6: ='Input - Customer Inventory FY15'!B6 -> Customer 1 | C6: ='Input - Customer Inventory FY15'!C6 -> Bracket - 1.5 | D6: ='Input - Customer Inventory FY15'!D6 -> Bracket | E6: ='Input - Customer Inventory FY15'!E6 -> 1.5 | F6: ='Input - Customer Inventory FY15'!G6 -> 2 | G6: ='Input - Customer Inventory FY15'!F6 -> 0 | H6: ='Input - Customer Inventory FY15'!I6 -> 12.91780822 | I6: ='Input - Customer Inventory FY15'!J6 -> 20 | M6: 0
B7: ='Input - Customer Inventory FY15'!B7 -> Customer 1 | C7: ='Input - Customer Inventory FY15'!C7 -> Bracket - 2.0 | D7: ='Input - Customer Inventory FY15'!D7 -> Bracket | E7: ='Input - Customer Inventory FY15'!E7 -> 2.0 | F7: ='Input - Customer Inventory FY15'!G7 -> 1 | G7: ='Input - Customer Inventory FY15'!F7 -> 0 | H7: ='Input - Customer Inventory FY15'!I7 -> 2.003319186 | I7: ='Input - Customer Inventory FY15'!J7 -> 20 | M7: 26179.23442
B8: ='Input - Customer Inventory FY15'!B8 -> Customer 1 | C8: ='Input - Customer Inventory FY15'!C8 -> Bracket - 2.0 | D8: ='Input - Customer Inventory FY15'!D8 -> Bracket | E8: ='Input - Customer Inventory FY15'!E8 -> 2.0 | F8: ='Input - Customer Inventory FY15'!G8 -> 2 | G8: ='Input - Customer Inventory FY15'!F8 -> 0 | H8: ='Input - Customer Inventory FY15'!I8 -> 2.003319186 | I8: ='Input - Customer Inventory FY15'!J8 -> 20 | M8: 0
B9: ='Input - Customer Inventory FY15'!B9 -> Customer 1 | C9: ='Input - Customer Inventory FY15'!C9 -> Bracket - 2.5 | D9: ='Input - Customer Inventory FY15'!D9 -> Bracket | E9: ='Input - Customer Inventory FY15'!E9 -> 2.5 | F9: ='Input - Customer Inventory FY15'!G9 -> 1 | G9: ='Input - Customer Inventory FY15'!F9 -> 0 | H9: ='Input - Customer Inventory FY15'!I9 -> 2.111232877 | I9: ='Input - Customer Inventory FY15'!J9 -> 20 | M9: 116.8336967
B10: ='Input - Customer Inventory FY15'!B10 -> Customer 1 | C10: ='Input - Customer Inventory FY15'!C10 -> Bracket - 3.0 | D10: ='Input - Customer Inventory FY15'!D10 -> Bracket | E10: ='Input - Customer Inventory FY15'!E10 -> 3.0 | F10: ='Input - Customer Inventory FY15'!G10 -> 1 | G10: ='Input - Customer Inventory FY15'!F10 -> 0 | H10: ='Input - Customer Inventory FY15'!I10 -> 4.785996956 | I10: ='Input - Customer Inventory FY15'!J10 -> 20 | M10: 3246.337317
B11: ='Input - Customer Inventory FY15'!B11 -> Customer 1 | C11: ='Input - Customer Inventory FY15'!C11 -> Bracket - 3.0 | D11: ='Input - Customer Inventory FY15'!D11 -> Bracket | E11: ='Input - Customer Inventory FY15'!E11 -> 3.0 | F11: ='Input - Customer Inventory FY15'!G11 -> 2 | G11: ='Input - Customer Inventory FY15'!F11 -> 0 | H11: ='Input - Customer Inventory FY15'!I11 -> 4.785996956 | I11: ='Input - Customer Inventory FY15'!J11 -> 20 | M11: 0
B12: ='Input - Customer Inventory FY15'!B12 -> Customer 1 | C12: ='Input - Customer Inventory FY15'!C12 -> Bracket - 3.5 | D12: ='Input - Customer Inventory FY15'!D12 -> Bracket | E12: ='Input - Customer Inventory FY15'!E12 -> 3.5 | F12: ='Input - Customer Inventory FY15'!G12 -> 1 | G12: ='Input - Customer Inventory FY15'!F12 -> 0 | H12: ='Input - Customer Inventory FY15'!I12 -> 1.671643836 | I12: ='Input - Customer Inventory FY15'!J12 -> 20 | M12: 10466.53357
B13: ='Input - Customer Inventory FY15'!B13 -> Customer 1 | C13: ='Input - Customer Inventory FY15'!C13 -> Bracket - 4.0 | D13: ='Input - Customer Inventory FY15'!D13 -> Bracket | E13: ='Input - Customer Inventory FY15'!E13 -> 4.0 | F13: ='Input - Customer Inventory FY15'!G13 -> 1 | G13: ='Input - Customer Inventory FY15'!F13 -> 0 | H13: ='Input - Customer Inventory FY15'!I13 -> 1.73072407 | I13: ='Input - Customer Inventory FY15'!J13 -> 20 | M13: 1130.555836
B14: ='Input - Customer Inventory FY15'!B14 -> Customer 1 | C14: ='Input - Customer Inventory FY15'!C14 -> Bracket - 4.5 | D14: ='Input - Customer Inventory FY15'!D14 -> Bracket | E14: ='Input - Customer Inventory FY15'!E14 -> 4.5 | F14: ='Input - Customer Inventory FY15'!G14 -> 1 | G14: ='Input - Customer Inventory FY15'!F14 -> 0 | H14: ='Input - Customer Inventory FY15'!I14 -> 0 | I14: ='Input - Customer Inventory FY15'!J14 -> 20 | M14: 0
B15: ='Input - Customer Inventory FY15'!B15 -> Customer 1 | C15: ='Input - Customer Inventory FY15'!C15 -> Bracket - 4.5 | D15: ='Input - Customer Inventory FY15'!D15 -> Bracket | E15: ='Input - Customer Inventory FY15'!E15 -> 4.5 | F15: ='Input - Customer Inventory FY15'!G15 -> 2 | G15: ='Input - Customer Inventory FY15'!F15 -> 0 | H15: ='Input - Customer Inventory FY15'!I15 -> 0 | I15: ='Input - Customer Inventory FY15'!J15 -> 20 | M15: 0
B16: ='Input - Customer Inventory FY15'!B16 -> Customer 1 | C16: ='Input - Customer Inventory FY15'!C16 -> Bracket - 5.0 | D16: ='Input - Customer Inventory FY15'!D16 -> Bracket | E16: ='Input - Customer Inventory FY15'!E16 -> 5.0 | F16: ='Input - Customer Inventory FY15'!G16 -> 1 | G16: ='Input - Customer Inventory FY15'!F16 -> 0 | H16: ='Input - Customer Inventory FY15'!I16 -> 0.5141552511 | I16: ='Input - Customer Inventory FY15'!J16 -> 20 | M16: 484.9764603
B17: ='Input - Customer Inventory FY15'!B17 -> Customer 1 | C17: ='Input - Customer Inventory FY15'!C17 -> Bracket - 6.0 | D17: ='Input - Customer Inventory FY15'!D17 -> Bracket | E17: ='Input - Customer Inventory FY15'!E17 -> 6.0 | F17: ='Input - Customer Inventory FY15'!G17 -> 1 | G17: ='Input - Customer Inventory FY15'!F17 -> 0 | H17: ='Input - Customer Inventory FY15'!I17 -> 9.516438356 | I17: ='Input - Customer Inventory FY15'!J17 -> 20 | M17: 1246.718276
B18: ='Input - Customer Inventory FY15'!B18 -> Customer 1 | C18: ='Input - Customer Inventory FY15'!C18 -> Bracket - NIL | D18: ='Input - Customer Inventory FY15'!D18 -> Bracket | E18: ='Input - Customer Inventory FY15'!E18 -> NIL | F18: ='Input - Customer Inventory FY15'!G18 -> 1 | G18: ='Input - Customer Inventory FY15'!F18 -> 0 | H18: ='Input - Customer Inventory FY15'!I18 -> 2.393794105 | I18: ='Input - Customer Inventory FY15'!J18 -> 20 | M18: 0
B19: ='Input - Customer Inventory FY15'!B19 -> Customer 1 | C19: ='Input - Customer Inventory FY15'!C19 -> Bracket - NIL | D19: ='Input - Customer Inventory FY15'!D19 -> Bracket | E19: ='Input - Customer Inventory FY15'!E19 -> NIL | F19: ='Input - Customer Inventory FY15'!G19 -> 2 | G19: ='Input - Customer Inventory FY15'!F19 -> 0 | H19: ='Input - Customer Inventory FY15'!I19 -> 2.393794105 | I19: ='Input - Customer Inventory FY15'!J19 -> 20 | M19: 0
B20: ='Input - Customer Inventory FY15'!B20 -> Customer 1 | C20: ='Input - Customer Inventory FY15'!C20 -> Bracket - PRIVATE | D20: ='Input - Customer Inventory FY15'!D20 -> Bracket | E20: ='Input - Customer Inventory FY15'!E20 -> PRIVATE | F20: ='Input - Customer Inventory FY15'!G20 -> 1 | G20: ='Input - Customer Inventory FY15'!F20 -> 0 | H20: ='Input - Customer Inventory FY15'!I20 -> 2.114423852 | I20: ='Input - Customer Inventory FY15'!J20 -> 20 | M20: 0
B21: ='Input - Customer Inventory FY15'!B21 -> Customer 1 | C21: ='Input - Customer Inventory FY15'!C21 -> Bracket - PRIVATE | D21: ='Input - Customer Inventory FY15'!D21 -> Bracket | E21: ='Input - Customer Inventory FY15'!E21 -> PRIVATE | F21: ='Input - Customer Inventory FY15'!G21 -> 3 | G21: ='Input - Customer Inventory FY15'!F21 -> 0 | H21: ='Input - Customer Inventory FY15'!I21 -> 2.114423852 | I21: ='Input - Customer Inventory FY15'!J21 -> 20 | M21: 0
B22: ='Input - Customer Inventory FY15'!B22 -> Customer 1 | C22: ='Input - Customer Inventory FY15'!C22 -> Bracket - SUSPENDED | D22: ='Input - Customer Inventory FY15'!D22 -> Bracket | E22: ='Input - Customer Inventory FY15'!E22 -> SUSPENDED | F22: ='Input - Customer Inventory FY15'!G22 -> 1 | G22: ='Input - Customer Inventory FY15'!F22 -> 0 | H22: ='Input - Customer Inventory FY15'!I22 -> 3.846575342 | I22: ='Input - Customer Inventory FY15'!J22 -> 20 | M22: 312.7826378
B23: ='Input - Customer Inventory FY15'!B23 -> Customer 1 | C23: ='Input - Customer Inventory FY15'!C23 -> Bracket - T1 | D23: ='Input - Customer Inventory FY15'!D23 -> Bracket | E23: ='Input - Customer Inventory FY15'!E23 -> T1 | F23: ='Input - Customer Inventory FY15'!G23 -> 1 | G23: ='Input - Customer Inventory FY15'!F23 -> 0 | H23: ='Input - Customer Inventory FY15'!I23 -> 0.0525505037 | I23: ='Input - Customer Inventory FY15'!J23 -> 20 | M23: 1066.695848
B24: ='Input - Customer Inventory FY15'!B24 -> Customer 1 | C24: ='Input - Customer Inventory FY15'!C24 -> Bracket - T2 | D24: ='Input - Customer Inventory FY15'!D24 -> Bracket | E24: ='Input - Customer Inventory FY15'!E24 -> T2 | F24: ='Input - Customer Inventory FY15'!G24 -> 1 | G24: ='Input - Customer Inventory FY15'!F24 -> 0 | H24: ='Input - Customer Inventory FY15'!I24 -> 1.273972603 | I24: ='Input - Customer Inventory FY15'!J24 -> 20 | M24: 2693.406048
B25: ='Input - Customer Inventory FY15'!B25 -> Customer 1 | C25: ='Input - Customer Inventory FY15'!C25 -> Bracket - T2 | D25: ='Input - Customer Inventory FY15'!D25 -> Bracket | E25: ='Input - Customer Inventory FY15'!E25 -> T2 | F25: ='Input - Customer Inventory FY15'!G25 -> 2 | G25: ='Input - Customer Inventory FY15'!F25 -> 0 | H25: ='Input - Customer Inventory FY15'!I25 -> 1.273972603 | I25: ='Input - Customer Inventory FY15'!J25 -> 20 | M25: 0
B26: ='Input - Customer Inventory FY15'!B26 -> Customer 1 | C26: ='Input - Customer Inventory FY15'!C26 -> Bracket - T2A | D26: ='Input - Customer Inventory FY15'!D26 -> Bracket | E26: ='Input - Customer Inventory FY15'!E26 -> T2A | F26: ='Input - Customer Inventory FY15'!G26 -> 1 | G26: ='Input - Customer Inventory FY15'!F26 -> 0 | H26: ='Input - Customer Inventory FY15'!I26 -> 11.86506849 | I26: ='Input - Customer Inventory FY15'!J26 -> 20 | M26: 5644.097536
B27: ='Input - Customer Inventory FY15'!B27 -> Customer 1 | C27: ='Input - Customer Inventory FY15'!C27 -> Bracket - T3 | D27: ='Input - Customer Inventory FY15'!D27 -> Bracket | E27: ='Input - Customer Inventory FY15'!E27 -> T3 | F27: ='Input - Customer Inventory FY15'!G27 -> 1 | G27: ='Input - Customer Inventory FY15'!F27 -> 0 | H27: ='Input - Customer Inventory FY15'!I27 -> 0.8135971588 | I27: ='Input - Customer Inventory FY15'!J27 -> 20 | M27: 2988.656339
B28: ='Input - Customer Inventory FY15'!B28 -> Customer 1 | C28: ='Input - Customer Inventory FY15'!C28 -> Bracket - T3A | D28: ='Input - Customer Inventory FY15'!D28 -> Bracket | E28: ='Input - Customer Inventory FY15'!E28 -> T3A | F28: ='Input - Customer Inventory FY15'!G28 -> 1 | G28: ='Input - Customer Inventory FY15'!F28 -> 0 | H28: ='Input - Customer Inventory FY15'!I28 -> 8.683409437 | I28: ='Input - Customer Inventory FY15'!J28 -> 20 | M28: 2983.220722
B29: ='Input - Customer Inventory FY15'!B29 -> Customer 1 | C29: ='Input - Customer Inventory FY15'!C29 -> Bracket - T4 | D29: ='Input - Customer Inventory FY15'!D29 -> Bracket | E29: ='Input - Customer Inventory FY15'!E29 -> T4 | F29: ='Input - Customer Inventory FY15'!G29 -> 1 | G29: ='Input - Customer Inventory FY15'!F29 -> 0 | H29: ='Input - Customer Inventory FY15'!I29 -> 9.348606104 | I29: ='Input - Customer Inventory FY15'!J29 -> 20 | M29: 195425.9085
B30: ='Input - Customer Inventory FY15'!B30 -> Customer 1 | C30: ='Input - Customer Inventory FY15'!C30 -> Bracket - T5 | D30: ='Input - Customer Inventory FY15'!D30 -> Bracket | E30: ='Input - Customer Inventory FY15'!E30 -> T5 | F30: ='Input - Customer Inventory FY15'!G30 -> 1 | G30: ='Input - Customer Inventory FY15'!F30 -> 0 | H30: ='Input - Customer Inventory FY15'!I30 -> 1.830136986 | I30: ='Input - Customer Inventory FY15'!J30 -> 20 | M30: 1028.696203
B31: ='Input - Customer Inventory FY15'!B31 -> Customer 1 | C31: ='Input - Customer Inventory FY15'!C31 -> Bracket - T5 | D31: ='Input - Customer Inventory FY15'!D31 -> Bracket | E31: ='Input - Customer Inventory FY15'!E31 -> T5 | F31: ='Input - Customer Inventory FY15'!G31 -> 2 | G31: ='Input - Customer Inventory FY15'!F31 -> 0 | H31: ='Input - Customer Inventory FY15'!I31 -> 1.830136986 | I31: ='Input - Customer Inventory FY15'!J31 -> 20 | M31: 0
B32: ='Input - Customer Inventory FY15'!B32 -> Customer 1 | C32: ='Input - Customer Inventory FY15'!C32 -> Bracket - T6 | D32: ='Input - Customer Inventory FY15'!D32 -> Bracket | E32: ='Input - Customer Inventory FY15'!E32 -> T6 | F32: ='Input - Customer Inventory FY15'!G32 -> 1 | G32: ='Input - Customer Inventory FY15'!F32 -> 0 | H32: ='Input - Customer Inventory FY15'!I32 -> 3.335616438 | I32: ='Input - Customer Inventory FY15'!J32 -> 20 | M32: 3386.660756
B33: ='Input - Customer Inventory FY15'!B33 -> Customer 1 | C33: ='Input - Customer Inventory FY15'!C33 -> Bracket - T6 | D33: ='Input - Customer Inventory FY15'!D33 -> Bracket | E33: ='Input - Customer Inventory FY15'!E33 -> T6 | F33: ='Input - Customer Inventory FY15'!G33 -> 2 | G33: ='Input - Customer Inventory FY15'!F33 -> 0 | H33: ='Input - Customer Inventory FY15'!I33 -> 3.335616438 | I33: ='Input - Customer Inventory FY15'!J33 -> 20 | M33: 0
B34: ='Input - Customer Inventory FY15'!B34 -> Customer 1 | C34: ='Input - Customer Inventory FY15'!C34 -> Bracket - T7 | D34: ='Input - Customer Inventory FY15'!D34 -> Bracket | E34: ='Input - Customer Inventory FY15'!E34 -> T7 | F34: ='Input - Customer Inventory FY15'!G34 -> 1 | G34: ='Input - Customer Inventory FY15'!F34 -> 0 | H34: ='Input - Customer Inventory FY15'!I34 -> 11.00456621 | I34: ='Input - Customer Inventory FY15'!J34 -> 20 | M34: 1441.673166
B35: ='Input - Customer Inventory FY15'!B35 -> Customer 1 | C35: ='Input - Customer Inventory FY15'!C35 -> Connection - EMPTY | D35: ='Input - Customer Inventory FY15'!D35 -> Connection | E35: ='Input - Customer Inventory FY15'!E35 -> EMPTY | F35: ='Input - Customer Inventory FY15'!G35 -> 1 | G35: ='Input - Customer Inventory FY15'!F35 -> 0 | H35: ='Input - Customer Inventory FY15'!I35 -> 13 | I35: ='Input - Customer Inventory FY15'!J35 -> 20 | M35: 0
B36: ='Input - Customer Inventory FY15'!B36 -> Customer 1 | C36: ='Input - Customer Inventory FY15'!C36 -> Connection - O/U | D36: ='Input - Customer Inventory FY15'!D36 -> Connection | E36: ='Input - Customer Inventory FY15'!E36 -> O/U | F36: ='Input - Customer Inventory FY15'!G36 -> 1 | G36: ='Input - Customer Inventory FY15'!F36 -> 0 | H36: ='Input - Customer Inventory FY15'!I36 -> 3.710684932 | I36: ='Input - Customer Inventory FY15'!J36 -> 20 | M36: 319.300319
B37: ='Input - Customer Inventory FY15'!B37 -> Customer 1 | C37: ='Input - Customer Inventory FY15'!C37 -> Connection - O/U | D37: ='Input - Customer Inventory FY15'!D37 -> Connection | E37: ='Input - Customer Inventory FY15'!E37 -> O/U | F37: ='Input - Customer Inventory FY15'!G37 -> 2 | G37: ='Input - Customer Inventory FY15'!F37 -> 0 | H37: ='Input - Customer Inventory FY15'!I37 -> 3.710684932 | I37: ='Input - Customer Inventory FY15'!J37 -> 20 | M37: 0
B38: ='Input - Customer Inventory FY15'!B38 -> Customer 1 | C38: ='Input - Customer Inventory FY15'!C38 -> Connection - OH | D38: ='Input - Customer Inventory FY15'!D38 -> Connection | E38: ='Input - Customer Inventory FY15'!E38 -> OH | F38: ='Input - Customer Inventory FY15'!G38 -> 1 | G38: ='Input - Customer Inventory FY15'!F38 -> 0 | H38: ='Input - Customer Inventory FY15'!I38 -> 1.847504656 | I38: ='Input - Customer Inventory FY15'!J38 -> 20 | M38: 0
B39: ='Input - Customer Inventory FY15'!B39 -> Customer 1 | C39: ='Input - Customer Inventory FY15'!C39 -> Connection - OH | D39: ='Input - Customer Inventory FY15'!D39 -> Connection | E39: ='Input - Customer Inventory FY15'!E39 -> OH | F39: ='Input - Customer Inventory FY15'!G39 -> 2 | G39: ='Input - Customer Inventory FY15'!F39 -> 0 | H39: ='Input - Customer Inventory FY15'!I39 -> 1.847504656 | I39: ='Input - Customer Inventory FY15'!J39 -> 20 | M39: 0
B40: ='Input - Customer Inventory FY15'!B40 -> Customer 1 | C40: ='Input - Customer Inventory FY15'!C40 -> Connection - OH | D40: ='Input - Customer Inventory FY15'!D40 -> Connection | E40: ='Input - Customer Inventory FY15'!E40 -> OH | F40: ='Input - Customer Inventory FY15'!G40 -> 3 | G40: ='Input - Customer Inventory FY15'!F40 -> 0 | H40: ='Input - Customer Inventory FY15'!I40 -> 1.847504656 | I40: ='Input - Customer Inventory FY15'!J40 -> 20 | M40: 0
B41: ='Input - Customer Inventory FY15'!B41 -> Customer 1 | C41: ='Input - Customer Inventory FY15'!C41 -> Connection - OH2 | D41: ='Input - Customer Inventory FY15'!D41 -> Connection | E41: ='Input - Customer Inventory FY15'!E41 -> OH2 | F41: ='Input - Customer Inventory FY15'!G41 -> 1 | G41: ='Input - Customer Inventory FY15'!F41 -> 0 | H41: ='Input - Customer Inventory FY15'!I41 -> 5.18630137 | I41: ='Input - Customer Inventory FY15'!J41 -> 20 | M41: 0
B42: ='Input - Customer Inventory FY15'!B42 -> Customer 1 | C42: ='Input - Customer Inventory FY15'!C42 -> Connection - UGR1 | D42: ='Input - Customer Inventory FY15'!D42 -> Connection | E42: ='Input - Customer Inventory FY15'!E42 -> UGR1 | F42: ='Input - Customer Inventory FY15'!G42 -> 1 | G42: ='Input - Customer Inventory FY15'!F42 -> 0 | H42: ='Input - Customer Inventory FY15'!I42 -> 2.816062622 | I42: ='Input - Customer Inventory FY15'!J42 -> 20 | M42: 28163.50571
B43: ='Input - Customer Inventory FY15'!B43 -> Customer 1 | C43: ='Input - Customer Inventory FY15'!C43 -> Connection - UGR1 | D43: ='Input - Customer Inventory FY15'!D43 -> Connection | E43: ='Input - Customer Inventory FY15'!E43 -> UGR1 | F43: ='Input - Customer Inventory FY15'!G43 -> 3 | G43: ='Input - Customer Inventory FY15'!F43 -> 0 | H43: ='Input - Customer Inventory FY15'!I43 -> 2.816062622 | I43: ='Input - Customer Inventory FY15'!J43 -> 20 | M43: 0
B44: ='Input - Customer Inventory FY15'!B44 -> Customer 1 | C44: ='Input - Customer Inventory FY15'!C44 -> Connection - UGR2 | D44: ='Input - Customer Inventory FY15'!D44 -> Connection | E44: ='Input - Customer Inventory FY15'!E44 -> UGR2 | F44: ='Input - Customer Inventory FY15'!G44 -> 1 | G44: ='Input - Customer Inventory FY15'!F44 -> 0 | H44: ='Input - Customer Inventory FY15'!I44 -> 10.75015806 | I44: ='Input - Customer Inventory FY15'!J44 -> 20 | M44: 693.7793754
B45: ='Input - Customer Inventory FY15'!B45 -> Customer 1 | C45: ='Input - Customer Inventory FY15'!C45 -> Connection - UGR2 | D45: ='Input - Customer Inventory FY15'!D45 -> Connection | E45: ='Input - Customer Inventory FY15'!E45 -> UGR2 | F45: ='Input - Customer Inventory FY15'!G45 -> 2 | G45: ='Input - Customer Inventory FY15'!F45 -> 0 | H45: ='Input - Customer Inventory FY15'!I45 -> 10.75015806 | I45: ='Input - Customer Inventory FY15'!J45 -> 20 | M45: 0
B46: ='Input - Customer Inventory FY15'!B46 -> Customer 1 | C46: ='Input - Customer Inventory FY15'!C46 -> Lamp - INC1x100 | D46: ='Input - Customer Inventory FY15'!D46 -> Lamp | E46: ='Input - Customer Inventory FY15'!E46 -> INC1x100 | F46: ='Input - Customer Inventory FY15'!G46 -> 3 | G46: ='Input - Customer Inventory FY15'!F46 -> 0 | H46: ='Input - Customer Inventory FY15'!I46 -> 0 | I46: ='Input - Customer Inventory FY15'!J46 -> 3 | M46: 0
B47: ='Input - Customer Inventory FY15'!B47 -> Customer 1 | C47: ='Input - Customer Inventory FY15'!C47 -> Lamp - INC1x40 | D47: ='Input - Customer Inventory FY15'!D47 -> Lamp | E47: ='Input - Customer Inventory FY15'!E47 -> INC1x40 | F47: ='Input - Customer Inventory FY15'!G47 -> 1 | G47: ='Input - Customer Inventory FY15'!F47 -> 0 | H47: ='Input - Customer Inventory FY15'!I47 -> 0 | I47: ='Input - Customer Inventory FY15'!J47 -> 3 | M47: 0
B48: ='Input - Customer Inventory FY15'!B48 -> Customer 1 | C48: ='Input - Customer Inventory FY15'!C48 -> Lamp - INC1x60 | D48: ='Input - Customer Inventory FY15'!D48 -> Lamp | E48: ='Input - Customer Inventory FY15'!E48 -> INC1x60 | F48: ='Input - Customer Inventory FY15'!G48 -> 3 | G48: ='Input - Customer Inventory FY15'!F48 -> 0 | H48: ='Input - Customer Inventory FY15'!I48 -> 0 | I48: ='Input - Customer Inventory FY15'!J48 -> 3 | M48: 0
B49: ='Input - Customer Inventory FY15'!B49 -> Customer 1 | C49: ='Input - Customer Inventory FY15'!C49 -> Lamp - MBF1x1000 | D49: ='Input - Customer Inventory FY15'!D49 -> Lamp | E49: ='Input - Customer Inventory FY15'!E49 -> MBF1x1000 | F49: ='Input - Customer Inventory FY15'!G49 -> 1 | G49: ='Input - Customer Inventory FY15'!F49 -> 0 | H49: ='Input - Customer Inventory FY15'!I49 -> 0 | I49: ='Input - Customer Inventory FY15'!J49 -> 3 | M49: 0
B50: ='Input - Customer Inventory FY15'!B50 -> Customer 1 | C50: ='Input - Customer Inventory FY15'!C50 -> Lamp - MBF1x125 | D50: ='Input - Customer Inventory FY15'!D50 -> Lamp | E50: ='Input - Customer Inventory FY15'!E50 -> MBF1x125 | F50: ='Input - Customer Inventory FY15'!G50 -> 1 | G50: ='Input - Customer Inventory FY15'!F50 -> 0 | H50: ='Input - Customer Inventory FY15'!I50 -> 0 | I50: ='Input - Customer Inventory FY15'!J50 -> 3 | M50: 0
B51: ='Input - Customer Inventory FY15'!B51 -> Customer 1 | C51: ='Input - Customer Inventory FY15'!C51 -> Lamp - MBF1x125 | D51: ='Input - Customer Inventory FY15'!D51 -> Lamp | E51: ='Input - Customer Inventory FY15'!E51 -> MBF1x125 | F51: ='Input - Customer Inventory FY15'!G51 -> 2 | G51: ='Input - Customer Inventory FY15'!F51 -> 0 | H51: ='Input - Customer Inventory FY15'!I51 -> 0 | I51: ='Input - Customer Inventory FY15'!J51 -> 3 | M51: 0
B52: ='Input - Customer Inventory FY15'!B52 -> Customer 1 | C52: ='Input - Customer Inventory FY15'!C52 -> Lamp - MBF1x250 | D52: ='Input - Customer Inventory FY15'!D52 -> Lamp | E52: ='Input - Customer Inventory FY15'!E52 -> MBF1x250 | F52: ='Input - Customer Inventory FY15'!G52 -> 1 | G52: ='Input - Customer Inventory FY15'!F52 -> 0 | H52: ='Input - Customer Inventory FY15'!I52 -> 0 | I52: ='Input - Customer Inventory FY15'!J52 -> 3 | M52: 0
B53: ='Input - Customer Inventory FY15'!B53 -> Customer 1 | C53: ='Input - Customer Inventory FY15'!C53 -> Lamp - MBF1x400 | D53: ='Input - Customer Inventory FY15'!D53 -> Lamp | E53: ='Input - Customer Inventory FY15'!E53 -> MBF1x400 | F53: ='Input - Customer Inventory FY15'!G53 -> 1 | G53: ='Input - Customer Inventory FY15'!F53 -> 0 | H53: ='Input - Customer Inventory FY15'!I53 -> 0 | I53: ='Input - Customer Inventory FY15'!J53 -> 3 | M53: 0
B54: ='Input - Customer Inventory FY15'!B54 -> Customer 1 | C54: ='Input - Customer Inventory FY15'!C54 -> Lamp - MBF1x400 | D54: ='Input - Customer Inventory FY15'!D54 -> Lamp | E54: ='Input - Customer Inventory FY15'!E54 -> MBF1x400 | F54: ='Input - Customer Inventory FY15'!G54 -> 2 | G54: ='Input - Customer Inventory FY15'!F54 -> 0 | H54: ='Input - Customer Inventory FY15'!I54 -> 0 | I54: ='Input - Customer Inventory FY15'!J54 -> 3 | M54: 0
B55: ='Input - Customer Inventory FY15'!B55 -> Customer 1 | C55: ='Input - Customer Inventory FY15'!C55 -> Lamp - MBF1x42 | D55: ='Input - Customer Inventory FY15'!D55 -> Lamp | E55: ='Input - Customer Inventory FY15'!E55 -> MBF1x42 | F55: ='Input - Customer Inventory FY15'!G55 -> 1 | G55: ='Input - Customer Inventory FY15'!F55 -> 0 | H55: ='Input - Customer Inventory FY15'!I55 -> 0 | I55: ='Input - Customer Inventory FY15'!J55 -> 3 | M55: 0
B56: ='Input - Customer Inventory FY15'!B56 -> Customer 1 | C56: ='Input - Customer Inventory FY15'!C56 -> Lamp - MBF1x42 | D56: ='Input - Customer Inventory FY15'!D56 -> Lamp | E56: ='Input - Customer Inventory FY15'!E56 -> MBF1x42 | F56: ='Input - Customer Inventory FY15'!G56 -> 2 | G56: ='Input - Customer Inventory FY15'!F56 -> 0 | H56: ='Input - Customer Inventory FY15'!I56 -> 0 | I56: ='Input - Customer Inventory FY15'!J56 -> 3 | M56: 0
B57: ='Input - Customer Inventory FY15'!B57 -> Customer 1 | C57: ='Input - Customer Inventory FY15'!C57 -> Lamp - MBF1x50 | D57: ='Input - Customer Inventory FY15'!D57 -> Lamp | E57: ='Input - Customer Inventory FY15'!E57 -> MBF1x50 | F57: ='Input - Customer Inventory FY15'!G57 -> 1 | G57: ='Input - Customer Inventory FY15'!F57 -> 0 | H57: ='Input - Customer Inventory FY15'!I57 -> 0 | I57: ='Input - Customer Inventory FY15'!J57 -> 3 | M57: 0
B58: ='Input - Customer Inventory FY15'!B58 -> Customer 1 | C58: ='Input - Customer Inventory FY15'!C58 -> Lamp - MBF1x700 | D58: ='Input - Customer Inventory FY15'!D58 -> Lamp | E58: ='Input - Customer Inventory FY15'!E58 -> MBF1x700 | F58: ='Input - Customer Inventory FY15'!G58 -> 1 | G58: ='Input - Customer Inventory FY15'!F58 -> 0 | H58: ='Input - Customer Inventory FY15'!I58 -> 0 | I58: ='Input - Customer Inventory FY15'!J58 -> 3 | M58: 0
B59: ='Input - Customer Inventory FY15'!B59 -> Customer 1 | C59: ='Input - Customer Inventory FY15'!C59 -> Lamp - MBF1x80 | D59: ='Input - Customer Inventory FY15'!D59 -> Lamp | E59: ='Input - Customer Inventory FY15'!E59 -> MBF1x80 | F59: ='Input - Customer Inventory FY15'!G59 -> 1 | G59: ='Input - Customer Inventory FY15'!F59 -> 0 | H59: ='Input - Customer Inventory FY15'!I59 -> 0 | I59: ='Input - Customer Inventory FY15'!J59 -> 3 | M59: 0
B60: ='Input - Customer Inventory FY15'!B60 -> Customer 1 | C60: ='Input - Customer Inventory FY15'!C60 -> Lamp - MBF1x80 | D60: ='Input - Customer Inventory FY15'!D60 -> Lamp | E60: ='Input - Customer Inventory FY15'!E60 -> MBF1x80 | F60: ='Input - Customer Inventory FY15'!G60 -> 2 | G60: ='Input - Customer Inventory FY15'!F60 -> 0 | H60: ='Input - Customer Inventory FY15'!I60 -> 0 | I60: ='Input - Customer Inventory FY15'!J60 -> 3 | M60: 0
B61: ='Input - Customer Inventory FY15'!B61 -> Customer 1 | C61: ='Input - Customer Inventory FY15'!C61 -> Lamp - MBI1x400 | D61: ='Input - Customer Inventory FY15'!D61 -> Lamp | E61: ='Input - Customer Inventory FY15'!E61 -> MBI1x400 | F61: ='Input - Customer Inventory FY15'!G61 -> 1 | G61: ='Input - Customer Inventory FY15'!F61 -> 0 | H61: ='Input - Customer Inventory FY15'!I61 -> 0 | I61: ='Input - Customer Inventory FY15'!J61 -> 3 | M61: 0
B62: ='Input - Customer Inventory FY15'!B62 -> Customer 1 | C62: ='Input - Customer Inventory FY15'!C62 -> Lamp - SON1x100 | D62: ='Input - Customer Inventory FY15'!D62 -> Lamp | E62: ='Input - Customer Inventory FY15'!E62 -> SON1x100 | F62: ='Input - Customer Inventory FY15'!G62 -> 1 | G62: ='Input - Customer Inventory FY15'!F62 -> 0 | H62: ='Input - Customer Inventory FY15'!I62 -> 0 | I62: ='Input - Customer Inventory FY15'!J62 -> 3 | M62: 0
B63: ='Input - Customer Inventory FY15'!B63 -> Customer 1 | C63: ='Input - Customer Inventory FY15'!C63 -> Lamp - SON1x150 | D63: ='Input - Customer Inventory FY15'!D63 -> Lamp | E63: ='Input - Customer Inventory FY15'!E63 -> SON1x150 | F63: ='Input - Customer Inventory FY15'!G63 -> 1 | G63: ='Input - Customer Inventory FY15'!F63 -> 0 | H63: ='Input - Customer Inventory FY15'!I63 -> 0 | I63: ='Input - Customer Inventory FY15'!J63 -> 3 | M63: 0
B64: ='Input - Customer Inventory FY15'!B64 -> Customer 1 | C64: ='Input - Customer Inventory FY15'!C64 -> Lamp - SON1x250 | D64: ='Input - Customer Inventory FY15'!D64 -> Lamp | E64: ='Input - Customer Inventory FY15'!E64 -> SON1x250 | F64: ='Input - Customer Inventory FY15'!G64 -> 1 | G64: ='Input - Customer Inventory FY15'!F64 -> 0 | H64: ='Input - Customer Inventory FY15'!I64 -> 0 | I64: ='Input - Customer Inventory FY15'!J64 -> 3 | M64: 0
B65: ='Input - Customer Inventory FY15'!B65 -> Customer 1 | C65: ='Input - Customer Inventory FY15'!C65 -> Lamp - SON1x250 | D65: ='Input - Customer Inventory FY15'!D65 -> Lamp | E65: ='Input - Customer Inventory FY15'!E65 -> SON1x250 | F65: ='Input - Customer Inventory FY15'!G65 -> 2 | G65: ='Input - Customer Inventory FY15'!F65 -> 0 | H65: ='Input - Customer Inventory FY15'!I65 -> 0 | I65: ='Input - Customer Inventory FY15'!J65 -> 3 | M65: 0
B66: ='Input - Customer Inventory FY15'!B66 -> Customer 1 | C66: ='Input - Customer Inventory FY15'!C66 -> Lamp - SON1x400 | D66: ='Input - Customer Inventory FY15'!D66 -> Lamp | E66: ='Input - Customer Inventory FY15'!E66 -> SON1x400 | F66: ='Input - Customer Inventory FY15'!G66 -> 1 | G66: ='Input - Customer Inventory FY15'!F66 -> 0 | H66: ='Input - Customer Inventory FY15'!I66 -> 0 | I66: ='Input - Customer Inventory FY15'!J66 -> 3 | M66: 0
B67: ='Input - Customer Inventory FY15'!B67 -> Customer 1 | C67: ='Input - Customer Inventory FY15'!C67 -> Lamp - SON1x400 | D67: ='Input - Customer Inventory FY15'!D67 -> Lamp | E67: ='Input - Customer Inventory FY15'!E67 -> SON1x400 | F67: ='Input - Customer Inventory FY15'!G67 -> 2 | G67: ='Input - Customer Inventory FY15'!F67 -> 0 | H67: ='Input - Customer Inventory FY15'!I67 -> 0 | I67: ='Input - Customer Inventory FY15'!J67 -> 3 | M67: 0
B68: ='Input - Customer Inventory FY15'!B68 -> Customer 1 | C68: ='Input - Customer Inventory FY15'!C68 -> Lamp - SON1x50 | D68: ='Input - Customer Inventory FY15'!D68 -> Lamp | E68: ='Input - Customer Inventory FY15'!E68 -> SON1x50 | F68: ='Input - Customer Inventory FY15'!G68 -> 1 | G68: ='Input - Customer Inventory FY15'!F68 -> 0 | H68: ='Input - Customer Inventory FY15'!I68 -> 0 | I68: ='Input - Customer Inventory FY15'!J68 -> 3 | M68: 0
B69: ='Input - Customer Inventory FY15'!B69 -> Customer 1 | C69: ='Input - Customer Inventory FY15'!C69 -> Lamp - SON1x70 | D69: ='Input - Customer Inventory FY15'!D69 -> Lamp | E69: ='Input - Customer Inventory FY15'!E69 -> SON1x70 | F69: ='Input - Customer Inventory FY15'!G69 -> 1 | G69: ='Input - Customer Inventory FY15'!F69 -> 0 | H69: ='Input - Customer Inventory FY15'!I69 -> 0 | I69: ='Input - Customer Inventory FY15'!J69 -> 3 | M69: 0
B70: ='Input - Customer Inventory FY15'!B70 -> Customer 1 | C70: ='Input - Customer Inventory FY15'!C70 -> Lamp - TF1x20 | D70: ='Input - Customer Inventory FY15'!D70 -> Lamp | E70: ='Input - Customer Inventory FY15'!E70 -> TF1x20 | F70: ='Input - Customer Inventory FY15'!G70 -> 3 | G70: ='Input - Customer Inventory FY15'!F70 -> 0 | H70: ='Input - Customer Inventory FY15'!I70 -> 0 | I70: ='Input - Customer Inventory FY15'!J70 -> 3 | M70: 0
B71: ='Input - Customer Inventory FY15'!B71 -> Customer 1 | C71: ='Input - Customer Inventory FY15'!C71 -> Lamp - TF1x40 | D71: ='Input - Customer Inventory FY15'!D71 -> Lamp | E71: ='Input - Customer Inventory FY15'!E71 -> TF1x40 | F71: ='Input - Customer Inventory FY15'!G71 -> 1 | G71: ='Input - Customer Inventory FY15'!F71 -> 0 | H71: ='Input - Customer Inventory FY15'!I71 -> 0 | I71: ='Input - Customer Inventory FY15'!J71 -> 3 | M71: 0
B72: ='Input - Customer Inventory FY15'!B72 -> Customer 1 | C72: ='Input - Customer Inventory FY15'!C72 -> Lamp - TF1x80 | D72: ='Input - Customer Inventory FY15'!D72 -> Lamp | E72: ='Input - Customer Inventory FY15'!E72 -> TF1x80 | F72: ='Input - Customer Inventory FY15'!G72 -> 1 | G72: ='Input - Customer Inventory FY15'!F72 -> 0 | H72: ='Input - Customer Inventory FY15'!I72 -> 0 | I72: ='Input - Customer Inventory FY15'!J72 -> 3 | M72: 0
B73: ='Input - Customer Inventory FY15'!B73 -> Customer 1 | C73: ='Input - Customer Inventory FY15'!C73 -> Lamp - TF2x20 | D73: ='Input - Customer Inventory FY15'!D73 -> Lamp | E73: ='Input - Customer Inventory FY15'!E73 -> TF2x20 | F73: ='Input - Customer Inventory FY15'!G73 -> 1 | G73: ='Input - Customer Inventory FY15'!F73 -> 0 | H73: ='Input - Customer Inventory FY15'!I73 -> 0 | I73: ='Input - Customer Inventory FY15'!J73 -> 3 | M73: 0
B74: ='Input - Customer Inventory FY15'!B74 -> Customer 1 | C74: ='Input - Customer Inventory FY15'!C74 -> Lamp - TF2x20 | D74: ='Input - Customer Inventory FY15'!D74 -> Lamp | E74: ='Input - Customer Inventory FY15'!E74 -> TF2x20 | F74: ='Input - Customer Inventory FY15'!G74 -> 3 | G74: ='Input - Customer Inventory FY15'!F74 -> 0 | H74: ='Input - Customer Inventory FY15'!I74 -> 0 | I74: ='Input - Customer Inventory FY15'!J74 -> 3 | M74: 0
B75: ='Input - Customer Inventory FY15'!B75 -> Customer 1 | C75: ='Input - Customer Inventory FY15'!C75 -> Lamp - TF2x40 | D75: ='Input - Customer Inventory FY15'!D75 -> Lamp | E75: ='Input - Customer Inventory FY15'!E75 -> TF2x40 | F75: ='Input - Customer Inventory FY15'!G75 -> 1 | G75: ='Input - Customer Inventory FY15'!F75 -> 0 | H75: ='Input - Customer Inventory FY15'!I75 -> 0 | I75: ='Input - Customer Inventory FY15'!J75 -> 3 | M75: 0
B76: ='Input - Customer Inventory FY15'!B76 -> Customer 1 | C76: ='Input - Customer Inventory FY15'!C76 -> Lamp - TF2x40 | D76: ='Input - Customer Inventory FY15'!D76 -> Lamp | E76: ='Input - Customer Inventory FY15'!E76 -> TF2x40 | F76: ='Input - Customer Inventory FY15'!G76 -> 2 | G76: ='Input - Customer Inventory FY15'!F76 -> 0 | H76: ='Input - Customer Inventory FY15'!I76 -> 0 | I76: ='Input - Customer Inventory FY15'!J76 -> 3 | M76: 0
B77: ='Input - Customer Inventory FY15'!B77 -> Customer 1 | C77: ='Input - Customer Inventory FY15'!C77 -> Lamp - TF4x20 | D77: ='Input - Customer Inventory FY15'!D77 -> Lamp | E77: ='Input - Customer Inventory FY15'!E77 -> TF4x20 | F77: ='Input - Customer Inventory FY15'!G77 -> 1 | G77: ='Input - Customer Inventory FY15'!F77 -> 0 | H77: ='Input - Customer Inventory FY15'!I77 -> 0 | I77: ='Input - Customer Inventory FY15'!J77 -> 3 | M77: 0
B78: ='Input - Customer Inventory FY15'!B78 -> Customer 1 | C78: ='Input - Customer Inventory FY15'!C78 -> Luminaire - 1000W SON | D78: ='Input - Customer Inventory FY15'!D78 -> Luminaire | E78: ='Input - Customer Inventory FY15'!E78 -> 1000W SON | F78: ='Input - Customer Inventory FY15'!G78 -> 1 | G78: ='Input - Customer Inventory FY15'!F78 -> 0 | H78: ='Input - Customer Inventory FY15'!I78 -> 0 | I78: ='Input - Customer Inventory FY15'!J78 -> 20 | M78: 0
B79: ='Input - Customer Inventory FY15'!B79 -> Customer 1 | C79: ='Input - Customer Inventory FY15'!C79 -> Luminaire - 100W SON -PLAIN | D79: ='Input - Customer Inventory FY15'!D79 -> Luminaire | E79: ='Input - Customer Inventory FY15'!E79 -> 100W SON -PLAIN | F79: ='Input - Customer Inventory FY15'!G79 -> 1 | G79: ='Input - Customer Inventory FY15'!F79 -> 0 | H79: ='Input - Customer Inventory FY15'!I79 -> 1.865753425 | I79: ='Input - Customer Inventory FY15'!J79 -> 20 | M79: 98.61341497
B80: ='Input - Customer Inventory FY15'!B80 -> Customer 1 | C80: ='Input - Customer Inventory FY15'!C80 -> Luminaire - 100W SON | D80: ='Input - Customer Inventory FY15'!D80 -> Luminaire | E80: ='Input - Customer Inventory FY15'!E80 -> 100W SON | F80: ='Input - Customer Inventory FY15'!G80 -> 1 | G80: ='Input - Customer Inventory FY15'!F80 -> 0 | H80: ='Input - Customer Inventory FY15'!I80 -> 3.889041096 | I80: ='Input - Customer Inventory FY15'!J80 -> 20 | M80: 1644.425757
B81: ='Input - Customer Inventory FY15'!B81 -> Customer 1 | C81: ='Input - Customer Inventory FY15'!C81 -> Luminaire - 125W MBF -PLAIN | D81: ='Input - Customer Inventory FY15'!D81 -> Luminaire | E81: ='Input - Customer Inventory FY15'!E81 -> 125W MBF -PLAIN | F81: ='Input - Customer Inventory FY15'!G81 -> 1 | G81: ='Input - Customer Inventory FY15'!F81 -> 0 | H81: ='Input - Customer Inventory FY15'!I81 -> 5.836894977 | I81: ='Input - Customer Inventory FY15'!J81 -> 20 | M81: 4775.910362
B82: ='Input - Customer Inventory FY15'!B82 -> Customer 1 | C82: ='Input - Customer Inventory FY15'!C82 -> Luminaire - 125W MBF | D82: ='Input - Customer Inventory FY15'!D82 -> Luminaire | E82: ='Input - Customer Inventory FY15'!E82 -> 125W MBF | F82: ='Input - Customer Inventory FY15'!G82 -> 1 | G82: ='Input - Customer Inventory FY15'!F82 -> 0 | H82: ='Input - Customer Inventory FY15'!I82 -> 1.708039297 | I82: ='Input - Customer Inventory FY15'!J82 -> 20 | M82: 6743.807739
B83: ='Input - Customer Inventory FY15'!B83 -> Customer 1 | C83: ='Input - Customer Inventory FY15'!C83 -> Luminaire - 125W MBF | D83: ='Input - Customer Inventory FY15'!D83 -> Luminaire | E83: ='Input - Customer Inventory FY15'!E83 -> 125W MBF | F83: ='Input - Customer Inventory FY15'!G83 -> 2 | G83: ='Input - Customer Inventory FY15'!F83 -> 0 | H83: ='Input - Customer Inventory FY15'!I83 -> 1.708039297 | I83: ='Input - Customer Inventory FY15'!J83 -> 20 | M83: 0
B84: ='Input - Customer Inventory FY15'!B84 -> Customer 1 | C84: ='Input - Customer Inventory FY15'!C84 -> Luminaire - 125W/250W MBF FLOODLIGHT | D84: ='Input - Customer Inventory FY15'!D84 -> Luminaire | E84: ='Input - Customer Inventory FY15'!E84 -> 125W/250W MBF FLOODLIGHT | F84: ='Input - Customer Inventory FY15'!G84 -> 1 | G84: ='Input - Customer Inventory FY15'!F84 -> 0 | H84: ='Input - Customer Inventory FY15'!I84 -> 4.961643836 | I84: ='Input - Customer Inventory FY15'!J84 -> 20 | M84: 244.6578423
B85: ='Input - Customer Inventory FY15'!B85 -> Customer 1 | C85: ='Input - Customer Inventory FY15'!C85 -> Luminaire - 150W SON - PARKWAY 1 | D85: ='Input - Customer Inventory FY15'!D85 -> Luminaire | E85: ='Input - Customer Inventory FY15'!E85 -> 150W SON - PARKWAY 1 | F85: ='Input - Customer Inventory FY15'!G85 -> 1 | G85: ='Input - Customer Inventory FY15'!F85 -> 0 | H85: ='Input - Customer Inventory FY15'!I85 -> 0 | I85: ='Input - Customer Inventory FY15'!J85 -> 20 | M85: 0
B86: ='Input - Customer Inventory FY15'!B86 -> Customer 1 | C86: ='Input - Customer Inventory FY15'!C86 -> Luminaire - 150W SON FLOODLIGHT | D86: ='Input - Customer Inventory FY15'!D86 -> Luminaire | E86: ='Input - Customer Inventory FY15'!E86 -> 150W SON FLOODLIGHT | F86: ='Input - Customer Inventory FY15'!G86 -> 1 | G86: ='Input - Customer Inventory FY15'!F86 -> 0 | H86: ='Input - Customer Inventory FY15'!I86 -> 4.921461187 | I86: ='Input - Customer Inventory FY15'!J86 -> 20 | M86: 1050.489623
B87: ='Input - Customer Inventory FY15'!B87 -> Customer 1 | C87: ='Input - Customer Inventory FY15'!C87 -> Luminaire - 150W SON | D87: ='Input - Customer Inventory FY15'!D87 -> Luminaire | E87: ='Input - Customer Inventory FY15'!E87 -> 150W SON | F87: ='Input - Customer Inventory FY15'!G87 -> 1 | G87: ='Input - Customer Inventory FY15'!F87 -> 0 | H87: ='Input - Customer Inventory FY15'!I87 -> 3.686414798 | I87: ='Input - Customer Inventory FY15'!J87 -> 20 | M87: 26258.07774
B88: ='Input - Customer Inventory FY15'!B88 -> Customer 1 | C88: ='Input - Customer Inventory FY15'!C88 -> Luminaire - 1x40W TF | D88: ='Input - Customer Inventory FY15'!D88 -> Luminaire | E88: ='Input - Customer Inventory FY15'!E88 -> 1x40W TF | F88: ='Input - Customer Inventory FY15'!G88 -> 1 | G88: ='Input - Customer Inventory FY15'!F88 -> 0 | H88: ='Input - Customer Inventory FY15'!I88 -> 0 | I88: ='Input - Customer Inventory FY15'!J88 -> 20 | M88: 0
B89: ='Input - Customer Inventory FY15'!B89 -> Customer 1 | C89: ='Input - Customer Inventory FY15'!C89 -> Luminaire - 1x80W TF | D89: ='Input - Customer Inventory FY15'!D89 -> Luminaire | E89: ='Input - Customer Inventory FY15'!E89 -> 1x80W TF | F89: ='Input - Customer Inventory FY15'!G89 -> 1 | G89: ='Input - Customer Inventory FY15'!F89 -> 0 | H89: ='Input - Customer Inventory FY15'!I89 -> 0 | I89: ='Input - Customer Inventory FY15'!J89 -> 20 | M89: 0
B90: ='Input - Customer Inventory FY15'!B90 -> Customer 1 | C90: ='Input - Customer Inventory FY15'!C90 -> Luminaire - 250W MBF - PARKVILLE | D90: ='Input - Customer Inventory FY15'!D90 -> Luminaire | E90: ='Input - Customer Inventory FY15'!E90 -> 250W MBF - PARKVILLE | F90: ='Input - Customer Inventory FY15'!G90 -> 1 | G90: ='Input - Customer Inventory FY15'!F90 -> 0 | H90: ='Input - Customer Inventory FY15'!I90 -> 6.389041096 | I90: ='Input - Customer Inventory FY15'!J90 -> 20 | M90: 0
B91: ='Input - Customer Inventory FY15'!B91 -> Customer 1 | C91: ='Input - Customer Inventory FY15'!C91 -> Luminaire - 250W MBF - PARKWAY 1 | D91: ='Input - Customer Inventory FY15'!D91 -> Luminaire | E91: ='Input - Customer Inventory FY15'!E91 -> 250W MBF - PARKWAY 1 | F91: ='Input - Customer Inventory FY15'!G91 -> 1 | G91: ='Input - Customer Inventory FY15'!F91 -> 0 | H91: ='Input - Customer Inventory FY15'!I91 -> 7.113553586 | I91: ='Input - Customer Inventory FY15'!J91 -> 20 | M91: 75457.72532
B92: ='Input - Customer Inventory FY15'!B92 -> Customer 1 | C92: ='Input - Customer Inventory FY15'!C92 -> Luminaire - 250W MBF | D92: ='Input - Customer Inventory FY15'!D92 -> Luminaire | E92: ='Input - Customer Inventory FY15'!E92 -> 250W MBF | F92: ='Input - Customer Inventory FY15'!G92 -> 1 | G92: ='Input - Customer Inventory FY15'!F92 -> 0 | H92: ='Input - Customer Inventory FY15'!I92 -> 1.741947306 | I92: ='Input - Customer Inventory FY15'!J92 -> 20 | M92: 49094.00763
B93: ='Input - Customer Inventory FY15'!B93 -> Customer 1 | C93: ='Input - Customer Inventory FY15'!C93 -> Luminaire - 250W SON FLOODLIGHT | D93: ='Input - Customer Inventory FY15'!D93 -> Luminaire | E93: ='Input - Customer Inventory FY15'!E93 -> 250W SON FLOODLIGHT | F93: ='Input - Customer Inventory FY15'!G93 -> 1 | G93: ='Input - Customer Inventory FY15'!F93 -> 0 | H93: ='Input - Customer Inventory FY15'!I93 -> 4.713242009 | I93: ='Input - Customer Inventory FY15'!J93 -> 20 | M93: 8216.034832
B94: ='Input - Customer Inventory FY15'!B94 -> Customer 1 | C94: ='Input - Customer Inventory FY15'!C94 -> Luminaire - 250W SON FLOODLIGHT | D94: ='Input - Customer Inventory FY15'!D94 -> Luminaire | E94: ='Input - Customer Inventory FY15'!E94 -> 250W SON FLOODLIGHT | F94: ='Input - Customer Inventory FY15'!G94 -> 2 | G94: ='Input - Customer Inventory FY15'!F94 -> 0 | H94: ='Input - Customer Inventory FY15'!I94 -> 4.713242009 | I94: ='Input - Customer Inventory FY15'!J94 -> 20 | M94: 0
B95: ='Input - Customer Inventory FY15'!B95 -> Customer 1 | C95: ='Input - Customer Inventory FY15'!C95 -> Luminaire - 250W SON | D95: ='Input - Customer Inventory FY15'!D95 -> Luminaire | E95: ='Input - Customer Inventory FY15'!E95 -> 250W SON | F95: ='Input - Customer Inventory FY15'!G95 -> 1 | G95: ='Input - Customer Inventory FY15'!F95 -> 0 | H95: ='Input - Customer Inventory FY15'!I95 -> 6.88053251 | I95: ='Input - Customer Inventory FY15'!J95 -> 20 | M95: 38467.879
B96: ='Input - Customer Inventory FY15'!B96 -> Customer 1 | C96: ='Input - Customer Inventory FY15'!C96 -> Luminaire - 250W SON | D96: ='Input - Customer Inventory FY15'!D96 -> Luminaire | E96: ='Input - Customer Inventory FY15'!E96 -> 250W SON | F96: ='Input - Customer Inventory FY15'!G96 -> 2 | G96: ='Input - Customer Inventory FY15'!F96 -> 0 | H96: ='Input - Customer Inventory FY15'!I96 -> 6.88053251 | I96: ='Input - Customer Inventory FY15'!J96 -> 20 | M96: 0
B97: ='Input - Customer Inventory FY15'!B97 -> Customer 1 | C97: ='Input - Customer Inventory FY15'!C97 -> Luminaire - 2x20W TF | D97: ='Input - Customer Inventory FY15'!D97 -> Luminaire | E97: ='Input - Customer Inventory FY15'!E97 -> 2x20W TF | F97: ='Input - Customer Inventory FY15'!G97 -> 1 | G97: ='Input - Customer Inventory FY15'!F97 -> 0 | H97: ='Input - Customer Inventory FY15'!I97 -> 0.4620162869 | I97: ='Input - Customer Inventory FY15'!J97 -> 20 | M97: 2724.438889
B98: ='Input - Customer Inventory FY15'!B98 -> Customer 1 | C98: ='Input - Customer Inventory FY15'!C98 -> Luminaire - 2x40W TF | D98: ='Input - Customer Inventory FY15'!D98 -> Luminaire | E98: ='Input - Customer Inventory FY15'!E98 -> 2x40W TF | F98: ='Input - Customer Inventory FY15'!G98 -> 1 | G98: ='Input - Customer Inventory FY15'!F98 -> 0 | H98: ='Input - Customer Inventory FY15'!I98 -> 4.366666667 | I98: ='Input - Customer Inventory FY15'!J98 -> 20 | M98: 1254.593537
B99: ='Input - Customer Inventory FY15'!B99 -> Customer 1 | C99: ='Input - Customer Inventory FY15'!C99 -> Luminaire - 2x40W TF | D99: ='Input - Customer Inventory FY15'!D99 -> Luminaire | E99: ='Input - Customer Inventory FY15'!E99 -> 2x40W TF | F99: ='Input - Customer Inventory FY15'!G99 -> 2 | G99: ='Input - Customer Inventory FY15'!F99 -> 0 | H99: ='Input - Customer Inventory FY15'!I99 -> 4.366666667 | I99: ='Input - Customer Inventory FY15'!J99 -> 20 | M99: 0
B100: ='Input - Customer Inventory FY15'!B100 -> Customer 1 | C100: ='Input - Customer Inventory FY15'!C100 -> Luminaire - 400W MBF - PARKWAY 1 | D100: ='Input - Customer Inventory FY15'!D100 -> Luminaire | E100: ='Input - Customer Inventory FY15'!E100 -> 400W MBF - PARKWAY 1 | F100: ='Input - Customer Inventory FY15'!G100 -> 1 | G100: ='Input - Customer Inventory FY15'!F100 -> 0 | H100: ='Input - Customer Inventory FY15'!I100 -> 7.749341929 | I100: ='Input - Customer Inventory FY15'!J100 -> 20 | M100: 22728.59927
B101: ='Input - Customer Inventory FY15'!B101 -> Customer 1 | C101: ='Input - Customer Inventory FY15'!C101 -> Luminaire - 400W MBF | D101: ='Input - Customer Inventory FY15'!D101 -> Luminaire | E101: ='Input - Customer Inventory FY15'!E101 -> 400W MBF | F101: ='Input - Customer Inventory FY15'!G101 -> 1 | G101: ='Input - Customer Inventory FY15'!F101 -> 0 | H101: ='Input - Customer Inventory FY15'!I101 -> 5.737937398 | I101: ='Input - Customer Inventory FY15'!J101 -> 20 | M101: 27731.1894
B102: ='Input - Customer Inventory FY15'!B102 -> Customer 1 | C102: ='Input - Customer Inventory FY15'!C102 -> Luminaire - 400W MBF | D102: ='Input - Customer Inventory FY15'!D102 -> Luminaire | E102: ='Input - Customer Inventory FY15'!E102 -> 400W MBF | F102: ='Input - Customer Inventory FY15'!G102 -> 2 | G102: ='Input - Customer Inventory FY15'!F102 -> 0 | H102: ='Input - Customer Inventory FY15'!I102 -> 5.737937398 | I102: ='Input - Customer Inventory FY15'!J102 -> 20 | M102: 0
B103: ='Input - Customer Inventory FY15'!B103 -> Customer 1 | C103: ='Input - Customer Inventory FY15'!C103 -> Luminaire - 400W SON FLOODLIGHT | D103: ='Input - Customer Inventory FY15'!D103 -> Luminaire | E103: ='Input - Customer Inventory FY15'!E103 -> 400W SON FLOODLIGHT | F103: ='Input - Customer Inventory FY15'!G103 -> 1 | G103: ='Input - Customer Inventory FY15'!F103 -> 0 | H103: ='Input - Customer Inventory FY15'!I103 -> 14.86849315 | I103: ='Input - Customer Inventory FY15'!J103 -> 20 | M103: 2115.794093
B104: ='Input - Customer Inventory FY15'!B104 -> Customer 1 | C104: ='Input - Customer Inventory FY15'!C104 -> Luminaire - 400W SON | D104: ='Input - Customer Inventory FY15'!D104 -> Luminaire | E104: ='Input - Customer Inventory FY15'!E104 -> 400W SON | F104: ='Input - Customer Inventory FY15'!G104 -> 1 | G104: ='Input - Customer Inventory FY15'!F104 -> 0 | H104: ='Input - Customer Inventory FY15'!I104 -> 9.146666667 | I104: ='Input - Customer Inventory FY15'!J104 -> 20 | M104: 5436.659332
B105: ='Input - Customer Inventory FY15'!B105 -> Customer 1 | C105: ='Input - Customer Inventory FY15'!C105 -> Luminaire - 400W SON | D105: ='Input - Customer Inventory FY15'!D105 -> Luminaire | E105: ='Input - Customer Inventory FY15'!E105 -> 400W SON | F105: ='Input - Customer Inventory FY15'!G105 -> 2 | G105: ='Input - Customer Inventory FY15'!F105 -> 0 | H105: ='Input - Customer Inventory FY15'!I105 -> 9.146666667 | I105: ='Input - Customer Inventory FY15'!J105 -> 20 | M105: 0
B106: ='Input - Customer Inventory FY15'!B106 -> Customer 1 | C106: ='Input - Customer Inventory FY15'!C106 -> Luminaire - 42W MBF SYLVANIA SUB ECO | D106: ='Input - Customer Inventory FY15'!D106 -> Luminaire | E106: ='Input - Customer Inventory FY15'!E106 -> 42W MBF SYLVANIA SUB ECO | F106: ='Input - Customer Inventory FY15'!G106 -> 1 | G106: ='Input - Customer Inventory FY15'!F106 -> 0 | H106: ='Input - Customer Inventory FY15'!I106 -> 0.5791666667 | I106: ='Input - Customer Inventory FY15'!J106 -> 20 | M106: 1701.295718
B107: ='Input - Customer Inventory FY15'!B107 -> Customer 1 | C107: ='Input - Customer Inventory FY15'!C107 -> Luminaire - 42W MBF SYLVANIA SUB ECO | D107: ='Input - Customer Inventory FY15'!D107 -> Luminaire | E107: ='Input - Customer Inventory FY15'!E107 -> 42W MBF SYLVANIA SUB ECO | F107: ='Input - Customer Inventory FY15'!G107 -> 2 | G107: ='Input - Customer Inventory FY15'!F107 -> 0 | H107: ='Input - Customer Inventory FY15'!I107 -> 0.5791666667 | I107: ='Input - Customer Inventory FY15'!J107 -> 20 | M107: 0
B108: ='Input - Customer Inventory FY15'!B108 -> Customer 1 | C108: ='Input - Customer Inventory FY15'!C108 -> Luminaire - 4x20W TF - WAVERLEY | D108: ='Input - Customer Inventory FY15'!D108 -> Luminaire | E108: ='Input - Customer Inventory FY15'!E108 -> 4x20W TF - WAVERLEY | F108: ='Input - Customer Inventory FY15'!G108 -> 1 | G108: ='Input - Customer Inventory FY15'!F108 -> 0 | H108: ='Input - Customer Inventory FY15'!I108 -> 0 | I108: ='Input - Customer Inventory FY15'!J108 -> 20 | M108: 0
B109: ='Input - Customer Inventory FY15'!B109 -> Customer 1 | C109: ='Input - Customer Inventory FY15'!C109 -> Luminaire - 50W MBF | D109: ='Input - Customer Inventory FY15'!D109 -> Luminaire | E109: ='Input - Customer Inventory FY15'!E109 -> 50W MBF | F109: ='Input - Customer Inventory FY15'!G109 -> 1 | G109: ='Input - Customer Inventory FY15'!F109 -> 0 | H109: ='Input - Customer Inventory FY15'!I109 -> 3.872918862 | I109: ='Input - Customer Inventory FY15'!J109 -> 20 | M109: 708.5806872
B110: ='Input - Customer Inventory FY15'!B110 -> Customer 1 | C110: ='Input - Customer Inventory FY15'!C110 -> Luminaire - 50W SON | D110: ='Input - Customer Inventory FY15'!D110 -> Luminaire | E110: ='Input - Customer Inventory FY15'!E110 -> 50W SON | F110: ='Input - Customer Inventory FY15'!G110 -> 1 | G110: ='Input - Customer Inventory FY15'!F110 -> 0 | H110: ='Input - Customer Inventory FY15'!I110 -> 0 | I110: ='Input - Customer Inventory FY15'!J110 -> 20 | M110: 0
B111: ='Input - Customer Inventory FY15'!B111 -> Customer 1 | C111: ='Input - Customer Inventory FY15'!C111 -> Luminaire - 700W MBF | D111: ='Input - Customer Inventory FY15'!D111 -> Luminaire | E111: ='Input - Customer Inventory FY15'!E111 -> 700W MBF | F111: ='Input - Customer Inventory FY15'!G111 -> 1 | G111: ='Input - Customer Inventory FY15'!F111 -> 0 | H111: ='Input - Customer Inventory FY15'!I111 -> 6.835616438 | I111: ='Input - Customer Inventory FY15'!J111 -> 20 | M111: 0
B112: ='Input - Customer Inventory FY15'!B112 -> Customer 1 | C112: ='Input - Customer Inventory FY15'!C112 -> Luminaire - 70W SON | D112: ='Input - Customer Inventory FY15'!D112 -> Luminaire | E112: ='Input - Customer Inventory FY15'!E112 -> 70W SON | F112: ='Input - Customer Inventory FY15'!G112 -> 1 | G112: ='Input - Customer Inventory FY15'!F112 -> 0 | H112: ='Input - Customer Inventory FY15'!I112 -> 3.847749511 | I112: ='Input - Customer Inventory FY15'!J112 -> 20 | M112: 693.5464878
B113: ='Input - Customer Inventory FY15'!B113 -> Customer 1 | C113: ='Input - Customer Inventory FY15'!C113 -> Luminaire - 80W MBF - PLAIN | D113: ='Input - Customer Inventory FY15'!D113 -> Luminaire | E113: ='Input - Customer Inventory FY15'!E113 -> 80W MBF - PLAIN | F113: ='Input - Customer Inventory FY15'!G113 -> 1 | G113: ='Input - Customer Inventory FY15'!F113 -> 0 | H113: ='Input - Customer Inventory FY15'!I113 -> 0 | I113: ='Input - Customer Inventory FY15'!J113 -> 20 | M113: 0
B114: ='Input - Customer Inventory FY15'!B114 -> Customer 1 | C114: ='Input - Customer Inventory FY15'!C114 -> Luminaire - 80W MBF - SYLVANIA SUBUR | D114: ='Input - Customer Inventory FY15'!D114 -> Luminaire | E114: ='Input - Customer Inventory FY15'!E114 -> 80W MBF - SYLVANIA SUBUR | F114: ='Input - Customer Inventory FY15'!G114 -> 1 | G114: ='Input - Customer Inventory FY15'!F114 -> 0 | H114: ='Input - Customer Inventory FY15'!I114 -> 0.5874103066 | I114: ='Input - Customer Inventory FY15'!J114 -> 20 | M114: 3863.831817
B115: ='Input - Customer Inventory FY15'!B115 -> Customer 1 | C115: ='Input - Customer Inventory FY15'!C115 -> Luminaire - 80W MBF - SYLVANIA SUBUR | D115: ='Input - Customer Inventory FY15'!D115 -> Luminaire | E115: ='Input - Customer Inventory FY15'!E115 -> 80W MBF - SYLVANIA SUBUR | F115: ='Input - Customer Inventory FY15'!G115 -> 2 | G115: ='Input - Customer Inventory FY15'!F115 -> 0 | H115: ='Input - Customer Inventory FY15'!I115 -> 0.5874103066 | I115: ='Input - Customer Inventory FY15'!J115 -> 20 | M115: 0
B116: ='Input - Customer Inventory FY15'!B116 -> Customer 1 | C116: ='Input - Customer Inventory FY15'!C116 -> Luminaire - 80W MBF | D116: ='Input - Customer Inventory FY15'!D116 -> Luminaire | E116: ='Input - Customer Inventory FY15'!E116 -> 80W MBF | F116: ='Input - Customer Inventory FY15'!G116 -> 1 | G116: ='Input - Customer Inventory FY15'!F116 -> 0 | H116: ='Input - Customer Inventory FY15'!I116 -> 1.711285904 | I116: ='Input - Customer Inventory FY15'!J116 -> 20 | M116: 4557.243895
B117: ='Input - Customer Inventory FY15'!B117 -> Customer 1 | C117: ='Input - Customer Inventory FY15'!C117 -> Luminaire - 80W MBF | D117: ='Input - Customer Inventory FY15'!D117 -> Luminaire | E117: ='Input - Customer Inventory FY15'!E117 -> 80W MBF | F117: ='Input - Customer Inventory FY15'!G117 -> 2 | G117: ='Input - Customer Inventory FY15'!F117 -> 0 | H117: ='Input - Customer Inventory FY15'!I117 -> 1.711285904 | I117: ='Input - Customer Inventory FY15'!J117 -> 20 | M117: 0
B118: ='Input - Customer Inventory FY15'!B118 -> Customer 1 | C118: ='Input - Customer Inventory FY15'!C118 -> Luminaire - PRIVATE | D118: ='Input - Customer Inventory FY15'!D118 -> Luminaire | E118: ='Input - Customer Inventory FY15'!E118 -> PRIVATE | F118: ='Input - Customer Inventory FY15'!G118 -> 3 | G118: ='Input - Customer Inventory FY15'!F118 -> 0 | H118: ='Input - Customer Inventory FY15'!I118 -> 0 | I118: ='Input - Customer Inventory FY15'!J118 -> 20 | M118: 0
B119: ='Input - Customer Inventory FY15'!B119 -> Customer 1 | C119: ='Input - Customer Inventory FY15'!C119 -> Support - COLUMN 10.5M-13.5M | D119: ='Input - Customer Inventory FY15'!D119 -> Support | E119: ='Input - Customer Inventory FY15'!E119 -> COLUMN 10.5M-13.5M | F119: ='Input - Customer Inventory FY15'!G119 -> 1 | G119: ='Input - Customer Inventory FY15'!F119 -> 0 | H119: ='Input - Customer Inventory FY15'!I119 -> 13.33686034 | I119: ='Input - Customer Inventory FY15'!J119 -> 35 | M119: 159019.3609
B120: ='Input - Customer Inventory FY15'!B120 -> Customer 1 | C120: ='Input - Customer Inventory FY15'!C120 -> Support - COLUMN 10.5M-13.5M | D120: ='Input - Customer Inventory FY15'!D120 -> Support | E120: ='Input - Customer Inventory FY15'!E120 -> COLUMN 10.5M-13.5M | F120: ='Input - Customer Inventory FY15'!G120 -> 2 | G120: ='Input - Customer Inventory FY15'!F120 -> 0 | H120: ='Input - Customer Inventory FY15'!I120 -> 13.33686034 | I120: ='Input - Customer Inventory FY15'!J120 -> 35 | M120: 0
B121: ='Input - Customer Inventory FY15'!B121 -> Customer 1 | C121: ='Input - Customer Inventory FY15'!C121 -> Support - COLUMN 2.5M-3.5M | D121: ='Input - Customer Inventory FY15'!D121 -> Support | E121: ='Input - Customer Inventory FY15'!E121 -> COLUMN 2.5M-3.5M | F121: ='Input - Customer Inventory FY15'!G121 -> 1 | G121: ='Input - Customer Inventory FY15'!F121 -> 0 | H121: ='Input - Customer Inventory FY15'!I121 -> 0 | I121: ='Input - Customer Inventory FY15'!J121 -> 35 | M121: 0
B122: ='Input - Customer Inventory FY15'!B122 -> Customer 1 | C122: ='Input - Customer Inventory FY15'!C122 -> Support - COLUMN 4M-6.5M | D122: ='Input - Customer Inventory FY15'!D122 -> Support | E122: ='Input - Customer Inventory FY15'!E122 -> COLUMN 4M-6.5M | F122: ='Input - Customer Inventory FY15'!G122 -> 1 | G122: ='Input - Customer Inventory FY15'!F122 -> 0 | H122: ='Input - Customer Inventory FY15'!I122 -> 16.62820903 | I122: ='Input - Customer Inventory FY15'!J122 -> 35 | M122: 20146.52459
B123: ='Input - Customer Inventory FY15'!B123 -> Customer 1 | C123: ='Input - Customer Inventory FY15'!C123 -> Support - COLUMN 4M-6.5M | D123: ='Input - Customer Inventory FY15'!D123 -> Support | E123: ='Input - Customer Inventory FY15'!E123 -> COLUMN 4M-6.5M | F123: ='Input - Customer Inventory FY15'!G123 -> 2 | G123: ='Input - Customer Inventory FY15'!F123 -> 0 | H123: ='Input - Customer Inventory FY15'!I123 -> 16.62820903 | I123: ='Input - Customer Inventory FY15'!J123 -> 35 | M123: 0
B124: ='Input - Customer Inventory FY15'!B124 -> Customer 1 | C124: ='Input - Customer Inventory FY15'!C124 -> Support - COLUMN 7M-10M | D124: ='Input - Customer Inventory FY15'!D124 -> Support | E124: ='Input - Customer Inventory FY15'!E124 -> COLUMN 7M-10M | F124: ='Input - Customer Inventory FY15'!G124 -> 1 | G124: ='Input - Customer Inventory FY15'!F124 -> 0 | H124: ='Input - Customer Inventory FY15'!I124 -> 3.064849049 | I124: ='Input - Customer Inventory FY15'!J124 -> 35 | M124: 61956.1117
B125: ='Input - Customer Inventory FY15'!B125 -> Customer 1 | C125: ='Input - Customer Inventory FY15'!C125 -> Support - DECORATIVE COLUMN | D125: ='Input - Customer Inventory FY15'!D125 -> Support | E125: ='Input - Customer Inventory FY15'!E125 -> DECORATIVE COLUMN | F125: ='Input - Customer Inventory FY15'!G125 -> 1 | G125: ='Input - Customer Inventory FY15'!F125 -> 0 | H125: ='Input - Customer Inventory FY15'!I125 -> 7.445053272 | I125: ='Input - Customer Inventory FY15'!J125 -> 35 | M125: 18334.70915
B126: ='Input - Customer Inventory FY15'!B126 -> Customer 1 | C126: ='Input - Customer Inventory FY15'!C126 -> Support - DEDICATED SUPPORT & COND | D126: ='Input - Customer Inventory FY15'!D126 -> Support | E126: ='Input - Customer Inventory FY15'!E126 -> DEDICATED SUPPORT & COND | F126: ='Input - Customer Inventory FY15'!G126 -> 1 | G126: ='Input - Customer Inventory FY15'!F126 -> 0 | H126: ='Input - Customer Inventory FY15'!I126 -> 24.93972603 | I126: ='Input - Customer Inventory FY15'!J126 -> 35 | M126: 1899.203644
B127: ='Input - Customer Inventory FY15'!B127 -> Customer 1 | C127: ='Input - Customer Inventory FY15'!C127 -> Support - PRIVATE | D127: ='Input - Customer Inventory FY15'!D127 -> Support | E127: ='Input - Customer Inventory FY15'!E127 -> PRIVATE | F127: ='Input - Customer Inventory FY15'!G127 -> 3 | G127: ='Input - Customer Inventory FY15'!F127 -> 0 | H127: ='Input - Customer Inventory FY15'!I127 -> 0 | I127: ='Input - Customer Inventory FY15'!J127 -> 35 | M127: 0
B128: ='Input - Customer Inventory FY15'!B128 -> Customer 1 | C128: ='Input - Customer Inventory FY15'!C128 -> Support - ROCKS STANDARD | D128: ='Input - Customer Inventory FY15'!D128 -> Support | E128: ='Input - Customer Inventory FY15'!E128 -> ROCKS STANDARD | F128: ='Input - Customer Inventory FY15'!G128 -> 1 | G128: ='Input - Customer Inventory FY15'!F128 -> 0 | H128: ='Input - Customer Inventory FY15'!I128 -> 16.86575342 | I128: ='Input - Customer Inventory FY15'!J128 -> 35 | M128: 1580.781683
B129: ='Input - Customer Inventory FY15'!B129 -> Customer 1 | C129: ='Input - Customer Inventory FY15'!C129 -> Support - UNKNOWN | D129: ='Input - Customer Inventory FY15'!D129 -> Support | E129: ='Input - Customer Inventory FY15'!E129 -> UNKNOWN | F129: ='Input - Customer Inventory FY15'!G129 -> 1 | G129: ='Input - Customer Inventory FY15'!F129 -> 0 | H129: ='Input - Customer Inventory FY15'!I129 -> 28 | I129: ='Input - Customer Inventory FY15'!J129 -> 35 | M129: 0
B130: ='Input - Customer Inventory FY15'!B130 -> Customer 1 | C130: ='Input - Customer Inventory FY15'!C130 -> Support - WALL | D130: ='Input - Customer Inventory FY15'!D130 -> Support | E130: ='Input - Customer Inventory FY15'!E130 -> WALL | F130: ='Input - Customer Inventory FY15'!G130 -> 1 | G130: ='Input - Customer Inventory FY15'!F130 -> 0 | H130: ='Input - Customer Inventory FY15'!I130 -> 10.93620352 | I130: ='Input - Customer Inventory FY15'!J130 -> 35 | M130: 0
B131: ='Input - Customer Inventory FY15'!B131 -> Customer 1 | C131: ='Input - Customer Inventory FY15'!C131 -> Support - WALL | D131: ='Input - Customer Inventory FY15'!D131 -> Support | E131: ='Input - Customer Inventory FY15'!E131 -> WALL | F131: ='Input - Customer Inventory FY15'!G131 -> 2 | G131: ='Input - Customer Inventory FY15'!F131 -> 0 | H131: ='Input - Customer Inventory FY15'!I131 -> 10.93620352 | I131: ='Input - Customer Inventory FY15'!J131 -> 35 | M131: 0
B132: ='Input - Customer Inventory FY15'!B132 -> Customer 1 | C132: ='Input - Customer Inventory FY15'!C132 -> Support - WOOD POLE NON-TRL | D132: ='Input - Customer Inventory FY15'!D132 -> Support | E132: ='Input - Customer Inventory FY15'!E132 -> WOOD POLE NON-TRL | F132: ='Input - Customer Inventory FY15'!G132 -> 1 | G132: ='Input - Customer Inventory FY15'!F132 -> 0 | H132: ='Input - Customer Inventory FY15'!I132 -> 0 | I132: ='Input - Customer Inventory FY15'!J132 -> 35 | M132: 0
B133: ='Input - Customer Inventory FY15'!B133 -> Customer 1 | C133: ='Input - Customer Inventory FY15'!C133 -> Support - WOOD POLE NON-TRL | D133: ='Input - Customer Inventory FY15'!D133 -> Support | E133: ='Input - Customer Inventory FY15'!E133 -> WOOD POLE NON-TRL | F133: ='Input - Customer Inventory FY15'!G133 -> 2 | G133: ='Input - Customer Inventory FY15'!F133 -> 0 | H133: ='Input - Customer Inventory FY15'!I133 -> 0 | I133: ='Input - Customer Inventory FY15'!J133 -> 35 | M133: 0
B134: ='Input - Customer Inventory FY15'!B134 -> Customer 1 | C134: ='Input - Customer Inventory FY15'!C134 -> Support - WOOD POLE TRL | D134: ='Input - Customer Inventory FY15'!D134 -> Support | E134: ='Input - Customer Inventory FY15'!E134 -> WOOD POLE TRL | F134: ='Input - Customer Inventory FY15'!G134 -> 1 | G134: ='Input - Customer Inventory FY15'!F134 -> 0 | H134: ='Input - Customer Inventory FY15'!I134 -> 0 | I134: ='Input - Customer Inventory FY15'!J134 -> 35 | M134: 0
B135: ='Input - Customer Inventory FY15'!B135 -> Customer 1 | C135: ='Input - Customer Inventory FY15'!C135 -> Support - WOOD POLE TRL | D135: ='Input - Customer Inventory FY15'!D135 -> Support | E135: ='Input - Customer Inventory FY15'!E135 -> WOOD POLE TRL | F135: ='Input - Customer Inventory FY15'!G135 -> 2 | G135: ='Input - Customer Inventory FY15'!F135 -> 0 | H135: ='Input - Customer Inventory FY15'!I135 -> 0 | I135: ='Input - Customer Inventory FY15'!J135 -> 35 | M135: 0
B136: ='Input - Customer Inventory FY15'!B136 -> Customer 2 | C136: ='Input - Customer Inventory FY15'!C136 -> Bracket - 0.5 | D136: ='Input - Customer Inventory FY15'!D136 -> Bracket | E136: ='Input - Customer Inventory FY15'!E136 -> 0.5 | F136: ='Input - Customer Inventory FY15'!G136 -> 1 | G136: ='Input - Customer Inventory FY15'!F136 -> 0 | H136: ='Input - Customer Inventory FY15'!I136 -> 5.136986301 | I136: ='Input - Customer Inventory FY15'!J136 -> 20 | M136: 0
B137: ='Input - Customer Inventory FY15'!B137 -> Customer 2 | C137: ='Input - Customer Inventory FY15'!C137 -> Connection - OH | D137: ='Input - Customer Inventory FY15'!D137 -> Connection | E137: ='Input - Customer Inventory FY15'!E137 -> OH | F137: ='Input - Customer Inventory FY15'!G137 -> 1 | G137: ='Input - Customer Inventory FY15'!F137 -> 0 | H137: ='Input - Customer Inventory FY15'!I137 -> 5.136986301 | I137: ='Input - Customer Inventory FY15'!J137 -> 20 | M137: 0
B138: ='Input - Customer Inventory FY15'!B138 -> Customer 2 | C138: ='Input - Customer Inventory FY15'!C138 -> Lamp - MBF1x250 | D138: ='Input - Customer Inventory FY15'!D138 -> Lamp | E138: ='Input - Customer Inventory FY15'!E138 -> MBF1x250 | F138: ='Input - Customer Inventory FY15'!G138 -> 1 | G138: ='Input - Customer Inventory FY15'!F138 -> 0 | H138: ='Input - Customer Inventory FY15'!I138 -> 0 | I138: ='Input - Customer Inventory FY15'!J138 -> 3 | M138: 0
B139: ='Input - Customer Inventory FY15'!B139 -> Customer 2 | C139: ='Input - Customer Inventory FY15'!C139 -> Luminaire - 250W MBF | D139: ='Input - Customer Inventory FY15'!D139 -> Luminaire | E139: ='Input - Customer Inventory FY15'!E139 -> 250W MBF | F139: ='Input - Customer Inventory FY15'!G139 -> 1 | G139: ='Input - Customer Inventory FY15'!F139 -> 0 | H139: ='Input - Customer Inventory FY15'!I139 -> 5.136986301 | I139: ='Input - Customer Inventory FY15'!J139 -> 20 | M139: 0
B140: ='Input - Customer Inventory FY15'!B140 -> Customer 2 | C140: ='Input - Customer Inventory FY15'!C140 -> Support - WOOD POLE NON-TRL | D140: ='Input - Customer Inventory FY15'!D140 -> Support | E140: ='Input - Customer Inventory FY15'!E140 -> WOOD POLE NON-TRL | F140: ='Input - Customer Inventory FY15'!G140 -> 1 | G140: ='Input - Customer Inventory FY15'!F140 -> 0 | H140: ='Input - Customer Inventory FY15'!I140 -> 0 | I140: ='Input - Customer Inventory FY15'!J140 -> 35 | M140: 0
B141: ='Input - Customer Inventory FY15'!B141 -> Customer 3 | C141: ='Input - Customer Inventory FY15'!C141 -> Bracket - 0.5 | D141: ='Input - Customer Inventory FY15'!D141 -> Bracket | E141: ='Input - Customer Inventory FY15'!E141 -> 0.5 | F141: ='Input - Customer Inventory FY15'!G141 -> 1 | G141: ='Input - Customer Inventory FY15'!F141 -> 0 | H141: ='Input - Customer Inventory FY15'!I141 -> 10.60482146 | I141: ='Input - Customer Inventory FY15'!J141 -> 20 | M141: 113290.5454
B142: ='Input - Customer Inventory FY15'!B142 -> Customer 3 | C142: ='Input - Customer Inventory FY15'!C142 -> Bracket - 0.5 | D142: ='Input - Customer Inventory FY15'!D142 -> Bracket | E142: ='Input - Customer Inventory FY15'!E142 -> 0.5 | F142: ='Input - Customer Inventory FY15'!G142 -> 2 | G142: ='Input - Customer Inventory FY15'!F142 -> 0 | H142: ='Input - Customer Inventory FY15'!I142 -> 10.60482146 | I142: ='Input - Customer Inventory FY15'!J142 -> 20 | M142: 0
B143: ='Input - Customer Inventory FY15'!B143 -> Customer 3 | C143: ='Input - Customer Inventory FY15'!C143 -> Bracket - 0.6 | D143: ='Input - Customer Inventory FY15'!D143 -> Bracket | E143: ='Input - Customer Inventory FY15'!E143 -> 0.6 | F143: ='Input - Customer Inventory FY15'!G143 -> 1 | G143: ='Input - Customer Inventory FY15'!F143 -> 0 | H143: ='Input - Customer Inventory FY15'!I143 -> 14.12534247 | I143: ='Input - Customer Inventory FY15'!J143 -> 20 | M143: 583.8697422
B144: ='Input - Customer Inventory FY15'!B144 -> Customer 3 | C144: ='Input - Customer Inventory FY15'!C144 -> Bracket - 1.0 | D144: ='Input - Customer Inventory FY15'!D144 -> Bracket | E144: ='Input - Customer Inventory FY15'!E144 -> 1.0 | F144: ='Input - Customer Inventory FY15'!G144 -> 1 | G144: ='Input - Customer Inventory FY15'!F144 -> 0 | H144: ='Input - Customer Inventory FY15'!I144 -> 8.54369863 | I144: ='Input - Customer Inventory FY15'!J144 -> 20 | M144: 312.627249
B145: ='Input - Customer Inventory FY15'!B145 -> Customer 3 | C145: ='Input - Customer Inventory FY15'!C145 -> Bracket - 1.0 | D145: ='Input - Customer Inventory FY15'!D145 -> Bracket | E145: ='Input - Customer Inventory FY15'!E145 -> 1.0 | F145: ='Input - Customer Inventory FY15'!G145 -> 2 | G145: ='Input - Customer Inventory FY15'!F145 -> 0 | H145: ='Input - Customer Inventory FY15'!I145 -> 8.54369863 | I145: ='Input - Customer Inventory FY15'!J145 -> 20 | M145: 0
B146: ='Input - Customer Inventory FY15'!B146 -> Customer 3 | C146: ='Input - Customer Inventory FY15'!C146 -> Bracket - 1.2 | D146: ='Input - Customer Inventory FY15'!D146 -> Bracket | E146: ='Input - Customer Inventory FY15'!E146 -> 1.2 | F146: ='Input - Customer Inventory FY15'!G146 -> 1 | G146: ='Input - Customer Inventory FY15'!F146 -> 0 | H146: ='Input - Customer Inventory FY15'!I146 -> 11.99338813 | I146: ='Input - Customer Inventory FY15'!J146 -> 20 | M146: 173.3755118
B147: ='Input - Customer Inventory FY15'!B147 -> Customer 3 | C147: ='Input - Customer Inventory FY15'!C147 -> Bracket - 1.5 | D147: ='Input - Customer Inventory FY15'!D147 -> Bracket | E147: ='Input - Customer Inventory FY15'!E147 -> 1.5 | F147: ='Input - Customer Inventory FY15'!G147 -> 1 | G147: ='Input - Customer Inventory FY15'!F147 -> 0 | H147: ='Input - Customer Inventory FY15'!I147 -> 11.65570776 | I147: ='Input - Customer Inventory FY15'!J147 -> 20 | M147: 12178.95911
B148: ='Input - Customer Inventory FY15'!B148 -> Customer 3 | C148: ='Input - Customer Inventory FY15'!C148 -> Bracket - 2.0 | D148: ='Input - Customer Inventory FY15'!D148 -> Bracket | E148: ='Input - Customer Inventory FY15'!E148 -> 2.0 | F148: ='Input - Customer Inventory FY15'!G148 -> 1 | G148: ='Input - Customer Inventory FY15'!F148 -> 0 | H148: ='Input - Customer Inventory FY15'!I148 -> 9.84600176 | I148: ='Input - Customer Inventory FY15'!J148 -> 20 | M148: 270137.0222
B149: ='Input - Customer Inventory FY15'!B149 -> Customer 3 | C149: ='Input - Customer Inventory FY15'!C149 -> Bracket - 2.0 | D149: ='Input - Customer Inventory FY15'!D149 -> Bracket | E149: ='Input - Customer Inventory FY15'!E149 -> 2.0 | F149: ='Input - Customer Inventory FY15'!G149 -> 2 | G149: ='Input - Customer Inventory FY15'!F149 -> 0 | H149: ='Input - Customer Inventory FY15'!I149 -> 9.84600176 | I149: ='Input - Customer Inventory FY15'!J149 -> 20 | M149: 0
B150: ='Input - Customer Inventory FY15'!B150 -> Customer 3 | C150: ='Input - Customer Inventory FY15'!C150 -> Bracket - 2.0 | D150: ='Input - Customer Inventory FY15'!D150 -> Bracket | E150: ='Input - Customer Inventory FY15'!E150 -> 2.0 | F150: ='Input - Customer Inventory FY15'!G150 -> 3 | G150: ='Input - Customer Inventory FY15'!F150 -> 0 | H150: ='Input - Customer Inventory FY15'!I150 -> 9.84600176 | I150: ='Input - Customer Inventory FY15'!J150 -> 20 | M150: 0
B151: ='Input - Customer Inventory FY15'!B151 -> Customer 3 | C151: ='Input - Customer Inventory FY15'!C151 -> Bracket - 2.5 | D151: ='Input - Customer Inventory FY15'!D151 -> Bracket | E151: ='Input - Customer Inventory FY15'!E151 -> 2.5 | F151: ='Input - Customer Inventory FY15'!G151 -> 1 | G151: ='Input - Customer Inventory FY15'!F151 -> 0 | H151: ='Input - Customer Inventory FY15'!I151 -> 12.0716895 | I151: ='Input - Customer Inventory FY15'!J151 -> 20 | M151: 2404.930527
B152: ='Input - Customer Inventory FY15'!B152 -> Customer 3 | C152: ='Input - Customer Inventory FY15'!C152 -> Bracket - 2.5 | D152: ='Input - Customer Inventory FY15'!D152 -> Bracket | E152: ='Input - Customer Inventory FY15'!E152 -> 2.5 | F152: ='Input - Customer Inventory FY15'!G152 -> 3 | G152: ='Input - Customer Inventory FY15'!F152 -> 0 | H152: ='Input - Customer Inventory FY15'!I152 -> 12.0716895 | I152: ='Input - Customer Inventory FY15'!J152 -> 20 | M152: 0
B153: ='Input - Customer Inventory FY15'!B153 -> Customer 3 | C153: ='Input - Customer Inventory FY15'!C153 -> Bracket - 3.0 | D153: ='Input - Customer Inventory FY15'!D153 -> Bracket | E153: ='Input - Customer Inventory FY15'!E153 -> 3.0 | F153: ='Input - Customer Inventory FY15'!G153 -> 1 | G153: ='Input - Customer Inventory FY15'!F153 -> 0 | H153: ='Input - Customer Inventory FY15'!I153 -> 11.06411471 | I153: ='Input - Customer Inventory FY15'!J153 -> 20 | M153: 20240.16099
B154: ='Input - Customer Inventory FY15'!B154 -> Customer 3 | C154: ='Input - Customer Inventory FY15'!C154 -> Bracket - 3.0 | D154: ='Input - Customer Inventory FY15'!D154 -> Bracket | E154: ='Input - Customer Inventory FY15'!E154 -> 3.0 | F154: ='Input - Customer Inventory FY15'!G154 -> 2 | G154: ='Input - Customer Inventory FY15'!F154 -> 0 | H154: ='Input - Customer Inventory FY15'!I154 -> 11.06411471 | I154: ='Input - Customer Inventory FY15'!J154 -> 20 | M154: 0
B155: ='Input - Customer Inventory FY15'!B155 -> Customer 3 | C155: ='Input - Customer Inventory FY15'!C155 -> Bracket - 3.0 | D155: ='Input - Customer Inventory FY15'!D155 -> Bracket | E155: ='Input - Customer Inventory FY15'!E155 -> 3.0 | F155: ='Input - Customer Inventory FY15'!G155 -> 3 | G155: ='Input - Customer Inventory FY15'!F155 -> 0 | H155: ='Input - Customer Inventory FY15'!I155 -> 11.06411471 | I155: ='Input - Customer Inventory FY15'!J155 -> 20 | M155: 0
B156: ='Input - Customer Inventory FY15'!B156 -> Customer 3 | C156: ='Input - Customer Inventory FY15'!C156 -> Bracket - 3.5 | D156: ='Input - Customer Inventory FY15'!D156 -> Bracket | E156: ='Input - Customer Inventory FY15'!E156 -> 3.5 | F156: ='Input - Customer Inventory FY15'!G156 -> 1 | G156: ='Input - Customer Inventory FY15'!F156 -> 0 | H156: ='Input - Customer Inventory FY15'!I156 -> 6.785647107 | I156: ='Input - Customer Inventory FY15'!J156 -> 20 | M156: 14346.07221
B157: ='Input - Customer Inventory FY15'!B157 -> Customer 3 | C157: ='Input - Customer Inventory FY15'!C157 -> Bracket - 3.5 | D157: ='Input - Customer Inventory FY15'!D157 -> Bracket | E157: ='Input - Customer Inventory FY15'!E157 -> 3.5 | F157: ='Input - Customer Inventory FY15'!G157 -> 2 | G157: ='Input - Customer Inventory FY15'!F157 -> 0 | H157: ='Input - Customer Inventory FY15'!I157 -> 6.785647107 | I157: ='Input - Customer Inventory FY15'!J157 -> 20 | M157: 0
B158: ='Input - Customer Inventory FY15'!B158 -> Customer 3 | C158: ='Input - Customer Inventory FY15'!C158 -> Bracket - 4.0 | D158: ='Input - Customer Inventory FY15'!D158 -> Bracket | E158: ='Input - Customer Inventory FY15'!E158 -> 4.0 | F158: ='Input - Customer Inventory FY15'!G158 -> 1 | G158: ='Input - Customer Inventory FY15'!F158 -> 0 | H158: ='Input - Customer Inventory FY15'!I158 -> 10.5864259 | I158: ='Input - Customer Inventory FY15'!J158 -> 20 | M158: 8644.175139
B159: ='Input - Customer Inventory FY15'!B159 -> Customer 3 | C159: ='Input - Customer Inventory FY15'!C159 -> Bracket - 4.0 | D159: ='Input - Customer Inventory FY15'!D159 -> Bracket | E159: ='Input - Customer Inventory FY15'!E159 -> 4.0 | F159: ='Input - Customer Inventory FY15'!G159 -> 3 | G159: ='Input - Customer Inventory FY15'!F159 -> 0 | H159: ='Input - Customer Inventory FY15'!I159 -> 10.5864259 | I159: ='Input - Customer Inventory FY15'!J159 -> 20 | M159: 0
B160: ='Input - Customer Inventory FY15'!B160 -> Customer 3 | C160: ='Input - Customer Inventory FY15'!C160 -> Bracket - 4.5 | D160: ='Input - Customer Inventory FY15'!D160 -> Bracket | E160: ='Input - Customer Inventory FY15'!E160 -> 4.5 | F160: ='Input - Customer Inventory FY15'!G160 -> 1 | G160: ='Input - Customer Inventory FY15'!F160 -> 0 | H160: ='Input - Customer Inventory FY15'!I160 -> 7.191798053 | I160: ='Input - Customer Inventory FY15'!J160 -> 20 | M160: 19395.80032
B161: ='Input - Customer Inventory FY15'!B161 -> Customer 3 | C161: ='Input - Customer Inventory FY15'!C161 -> Bracket - 4.5 | D161: ='Input - Customer Inventory FY15'!D161 -> Bracket | E161: ='Input - Customer Inventory FY15'!E161 -> 4.5 | F161: ='Input - Customer Inventory FY15'!G161 -> 2 | G161: ='Input - Customer Inventory FY15'!F161 -> 0 | H161: ='Input - Customer Inventory FY15'!I161 -> 7.191798053 | I161: ='Input - Customer Inventory FY15'!J161 -> 20 | M161: 0
B162: ='Input - Customer Inventory FY15'!B162 -> Customer 3 | C162: ='Input - Customer Inventory FY15'!C162 -> Bracket - 4.5 | D162: ='Input - Customer Inventory FY15'!D162 -> Bracket | E162: ='Input - Customer Inventory FY15'!E162 -> 4.5 | F162: ='Input - Customer Inventory FY15'!G162 -> 3 | G162: ='Input - Customer Inventory FY15'!F162 -> 0 | H162: ='Input - Customer Inventory FY15'!I162 -> 7.191798053 | I162: ='Input - Customer Inventory FY15'!J162 -> 20 | M162: 0
B163: ='Input - Customer Inventory FY15'!B163 -> Customer 3 | C163: ='Input - Customer Inventory FY15'!C163 -> Bracket - 5.0 | D163: ='Input - Customer Inventory FY15'!D163 -> Bracket | E163: ='Input - Customer Inventory FY15'!E163 -> 5.0 | F163: ='Input - Customer Inventory FY15'!G163 -> 1 | G163: ='Input - Customer Inventory FY15'!F163 -> 0 | H163: ='Input - Customer Inventory FY15'!I163 -> 7.189223744 | I163: ='Input - Customer Inventory FY15'!J163 -> 20 | M163: 5612.051239
B164: ='Input - Customer Inventory FY15'!B164 -> Customer 3 | C164: ='Input - Customer Inventory FY15'!C164 -> Bracket - 5.0 | D164: ='Input - Customer Inventory FY15'!D164 -> Bracket | E164: ='Input - Customer Inventory FY15'!E164 -> 5.0 | F164: ='Input - Customer Inventory FY15'!G164 -> 2 | G164: ='Input - Customer Inventory FY15'!F164 -> 0 | H164: ='Input - Customer Inventory FY15'!I164 -> 7.189223744 | I164: ='Input - Customer Inventory FY15'!J164 -> 20 | M164: 0
B165: ='Input - Customer Inventory FY15'!B165 -> Customer 3 | C165: ='Input - Customer Inventory FY15'!C165 -> Bracket - 5.0 | D165: ='Input - Customer Inventory FY15'!D165 -> Bracket | E165: ='Input - Customer Inventory FY15'!E165 -> 5.0 | F165: ='Input - Customer Inventory FY15'!G165 -> 3 | G165: ='Input - Customer Inventory FY15'!F165 -> 0 | H165: ='Input - Customer Inventory FY15'!I165 -> 7.189223744 | I165: ='Input - Customer Inventory FY15'!J165 -> 20 | M165: 0
B166: ='Input - Customer Inventory FY15'!B166 -> Customer 3 | C166: ='Input - Customer Inventory FY15'!C166 -> Bracket - 6.0 | D166: ='Input - Customer Inventory FY15'!D166 -> Bracket | E166: ='Input - Customer Inventory FY15'!E166 -> 6.0 | F166: ='Input - Customer Inventory FY15'!G166 -> 1 | G166: ='Input - Customer Inventory FY15'!F166 -> 0 | H166: ='Input - Customer Inventory FY15'!I166 -> 3.449315068 | I166: ='Input - Customer Inventory FY15'!J166 -> 20 | M166: 903.76756
B167: ='Input - Customer Inventory FY15'!B167 -> Customer 3 | C167: ='Input - Customer Inventory FY15'!C167 -> Bracket - 8.0 | D167: ='Input - Customer Inventory FY15'!D167 -> Bracket | E167: ='Input - Customer Inventory FY15'!E167 -> 8.0 | F167: ='Input - Customer Inventory FY15'!G167 -> 2 | G167: ='Input - Customer Inventory FY15'!F167 -> 0 | H167: ='Input - Customer Inventory FY15'!I167 -> 1.026027397 | I167: ='Input - Customer Inventory FY15'!J167 -> 20 | M167: 0
B168: ='Input - Customer Inventory FY15'!B168 -> Customer 3 | C168: ='Input - Customer Inventory FY15'!C168 -> Bracket - 8.0 | D168: ='Input - Customer Inventory FY15'!D168 -> Bracket | E168: ='Input - Customer Inventory FY15'!E168 -> 8.0 | F168: ='Input - Customer Inventory FY15'!G168 -> 3 | G168: ='Input - Customer Inventory FY15'!F168 -> 0 | H168: ='Input - Customer Inventory FY15'!I168 -> 1.026027397 | I168: ='Input - Customer Inventory FY15'!J168 -> 20 | M168: 0
B169: ='Input - Customer Inventory FY15'!B169 -> Customer 3 | C169: ='Input - Customer Inventory FY15'!C169 -> Bracket - NIL | D169: ='Input - Customer Inventory FY15'!D169 -> Bracket | E169: ='Input - Customer Inventory FY15'!E169 -> NIL | F169: ='Input - Customer Inventory FY15'!G169 -> 1 | G169: ='Input - Customer Inventory FY15'!F169 -> 0 | H169: ='Input - Customer Inventory FY15'!I169 -> 5.14368104 | I169: ='Input - Customer Inventory FY15'!J169 -> 20 | M169: 0
B170: ='Input - Customer Inventory FY15'!B170 -> Customer 3 | C170: ='Input - Customer Inventory FY15'!C170 -> Bracket - NIL | D170: ='Input - Customer Inventory FY15'!D170 -> Bracket | E170: ='Input - Customer Inventory FY15'!E170 -> NIL | F170: ='Input - Customer Inventory FY15'!G170 -> 2 | G170: ='Input - Customer Inventory FY15'!F170 -> 0 | H170: ='Input - Customer Inventory FY15'!I170 -> 5.14368104 | I170: ='Input - Customer Inventory FY15'!J170 -> 20 | M170: 0
B171: ='Input - Customer Inventory FY15'!B171 -> Customer 3 | C171: ='Input - Customer Inventory FY15'!C171 -> Bracket - PRIVATE | D171: ='Input - Customer Inventory FY15'!D171 -> Bracket | E171: ='Input - Customer Inventory FY15'!E171 -> PRIVATE | F171: ='Input - Customer Inventory FY15'!G171 -> 3 | G171: ='Input - Customer Inventory FY15'!F171 -> 0 | H171: ='Input - Customer Inventory FY15'!I171 -> 3.743395303 | I171: ='Input - Customer Inventory FY15'!J171 -> 20 | M171: 0
B172: ='Input - Customer Inventory FY15'!B172 -> Customer 3 | C172: ='Input - Customer Inventory FY15'!C172 -> Bracket - SUSPENDED | D172: ='Input - Customer Inventory FY15'!D172 -> Bracket | E172: ='Input - Customer Inventory FY15'!E172 -> SUSPENDED | F172: ='Input - Customer Inventory FY15'!G172 -> 1 | G172: ='Input - Customer Inventory FY15'!F172 -> 0 | H172: ='Input - Customer Inventory FY15'!I172 -> 9.708219178 | I172: ='Input - Customer Inventory FY15'!J172 -> 20 | M172: 526.2798087
B173: ='Input - Customer Inventory FY15'!B173 -> Customer 3 | C173: ='Input - Customer Inventory FY15'!C173 -> Bracket - T1 | D173: ='Input - Customer Inventory FY15'!D173 -> Bracket | E173: ='Input - Customer Inventory FY15'!E173 -> T1 | F173: ='Input - Customer Inventory FY15'!G173 -> 1 | G173: ='Input - Customer Inventory FY15'!F173 -> 0 | H173: ='Input - Customer Inventory FY15'!I173 -> 7.980569452 | I173: ='Input - Customer Inventory FY15'!J173 -> 20 | M173: 89724.49939
B174: ='Input - Customer Inventory FY15'!B174 -> Customer 3 | C174: ='Input - Customer Inventory FY15'!C174 -> Bracket - T1 | D174: ='Input - Customer Inventory FY15'!D174 -> Bracket | E174: ='Input - Customer Inventory FY15'!E174 -> T1 | F174: ='Input - Customer Inventory FY15'!G174 -> 2 | G174: ='Input - Customer Inventory FY15'!F174 -> 0 | H174: ='Input - Customer Inventory FY15'!I174 -> 7.980569452 | I174: ='Input - Customer Inventory FY15'!J174 -> 20 | M174: 0
B175: ='Input - Customer Inventory FY15'!B175 -> Customer 3 | C175: ='Input - Customer Inventory FY15'!C175 -> Bracket - T2 | D175: ='Input - Customer Inventory FY15'!D175 -> Bracket | E175: ='Input - Customer Inventory FY15'!E175 -> T2 | F175: ='Input - Customer Inventory FY15'!G175 -> 1 | G175: ='Input - Customer Inventory FY15'!F175 -> 0 | H175: ='Input - Customer Inventory FY15'!I175 -> 5.990594793 | I175: ='Input - Customer Inventory FY15'!J175 -> 20 | M175: 72508.20905
B176: ='Input - Customer Inventory FY15'!B176 -> Customer 3 | C176: ='Input - Customer Inventory FY15'!C176 -> Bracket - T2 | D176: ='Input - Customer Inventory FY15'!D176 -> Bracket | E176: ='Input - Customer Inventory FY15'!E176 -> T2 | F176: ='Input - Customer Inventory FY15'!G176 -> 2 | G176: ='Input - Customer Inventory FY15'!F176 -> 0 | H176: ='Input - Customer Inventory FY15'!I176 -> 5.990594793 | I176: ='Input - Customer Inventory FY15'!J176 -> 20 | M176: 0
B177: ='Input - Customer Inventory FY15'!B177 -> Customer 3 | C177: ='Input - Customer Inventory FY15'!C177 -> Bracket - T2A | D177: ='Input - Customer Inventory FY15'!D177 -> Bracket | E177: ='Input - Customer Inventory FY15'!E177 -> T2A | F177: ='Input - Customer Inventory FY15'!G177 -> 1 | G177: ='Input - Customer Inventory FY15'!F177 -> 0 | H177: ='Input - Customer Inventory FY15'!I177 -> 9.721722114 | I177: ='Input - Customer Inventory FY15'!J177 -> 20 | M177: 2569.18252
B178: ='Input - Customer Inventory FY15'!B178 -> Customer 3 | C178: ='Input - Customer Inventory FY15'!C178 -> Bracket - T3 | D178: ='Input - Customer Inventory FY15'!D178 -> Bracket | E178: ='Input - Customer Inventory FY15'!E178 -> T3 | F178: ='Input - Customer Inventory FY15'!G178 -> 1 | G178: ='Input - Customer Inventory FY15'!F178 -> 0 | H178: ='Input - Customer Inventory FY15'!I178 -> 1.567072078 | I178: ='Input - Customer Inventory FY15'!J178 -> 20 | M178: 7868.543115
B179: ='Input - Customer Inventory FY15'!B179 -> Customer 3 | C179: ='Input - Customer Inventory FY15'!C179 -> Bracket - T3 | D179: ='Input - Customer Inventory FY15'!D179 -> Bracket | E179: ='Input - Customer Inventory FY15'!E179 -> T3 | F179: ='Input - Customer Inventory FY15'!G179 -> 2 | G179: ='Input - Customer Inventory FY15'!F179 -> 0 | H179: ='Input - Customer Inventory FY15'!I179 -> 1.567072078 | I179: ='Input - Customer Inventory FY15'!J179 -> 20 | M179: 0
B180: ='Input - Customer Inventory FY15'!B180 -> Customer 3 | C180: ='Input - Customer Inventory FY15'!C180 -> Bracket - T3A | D180: ='Input - Customer Inventory FY15'!D180 -> Bracket | E180: ='Input - Customer Inventory FY15'!E180 -> T3A | F180: ='Input - Customer Inventory FY15'!G180 -> 1 | G180: ='Input - Customer Inventory FY15'!F180 -> 0 | H180: ='Input - Customer Inventory FY15'!I180 -> 10.22152642 | I180: ='Input - Customer Inventory FY15'!J180 -> 20 | M180: 10805.06795
B181: ='Input - Customer Inventory FY15'!B181 -> Customer 3 | C181: ='Input - Customer Inventory FY15'!C181 -> Bracket - T3A | D181: ='Input - Customer Inventory FY15'!D181 -> Bracket | E181: ='Input - Customer Inventory FY15'!E181 -> T3A | F181: ='Input - Customer Inventory FY15'!G181 -> 2 | G181: ='Input - Customer Inventory FY15'!F181 -> 0 | H181: ='Input - Customer Inventory FY15'!I181 -> 10.22152642 | I181: ='Input - Customer Inventory FY15'!J181 -> 20 | M181: 0
B182: ='Input - Customer Inventory FY15'!B182 -> Customer 3 | C182: ='Input - Customer Inventory FY15'!C182 -> Bracket - T4 | D182: ='Input - Customer Inventory FY15'!D182 -> Bracket | E182: ='Input - Customer Inventory FY15'!E182 -> T4 | F182: ='Input - Customer Inventory FY15'!G182 -> 1 | G182: ='Input - Customer Inventory FY15'!F182 -> 0 | H182: ='Input - Customer Inventory FY15'!I182 -> 8.895476496 | I182: ='Input - Customer Inventory FY15'!J182 -> 20 | M182: 307859.0929
B183: ='Input - Customer Inventory FY15'!B183 -> Customer 3 | C183: ='Input - Customer Inventory FY15'!C183 -> Bracket - T5 | D183: ='Input - Customer Inventory FY15'!D183 -> Bracket | E183: ='Input - Customer Inventory FY15'!E183 -> T5 | F183: ='Input - Customer Inventory FY15'!G183 -> 1 | G183: ='Input - Customer Inventory FY15'!F183 -> 0 | H183: ='Input - Customer Inventory FY15'!I183 -> 4.389497717 | I183: ='Input - Customer Inventory FY15'!J183 -> 20 | M183: 5169.53819
B184: ='Input - Customer Inventory FY15'!B184 -> Customer 3 | C184: ='Input - Customer Inventory FY15'!C184 -> Bracket - T6 | D184: ='Input - Customer Inventory FY15'!D184 -> Bracket | E184: ='Input - Customer Inventory FY15'!E184 -> T6 | F184: ='Input - Customer Inventory FY15'!G184 -> 1 | G184: ='Input - Customer Inventory FY15'!F184 -> 0 | H184: ='Input - Customer Inventory FY15'!I184 -> 2.913242009 | I184: ='Input - Customer Inventory FY15'!J184 -> 20 | M184: 5343.163785
B185: ='Input - Customer Inventory FY15'!B185 -> Customer 3 | C185: ='Input - Customer Inventory FY15'!C185 -> Bracket - T6 | D185: ='Input - Customer Inventory FY15'!D185 -> Bracket | E185: ='Input - Customer Inventory FY15'!E185 -> T6 | F185: ='Input - Customer Inventory FY15'!G185 -> 2 | G185: ='Input - Customer Inventory FY15'!F185 -> 0 | H185: ='Input - Customer Inventory FY15'!I185 -> 2.913242009 | I185: ='Input - Customer Inventory FY15'!J185 -> 20 | M185: 0
B186: ='Input - Customer Inventory FY15'!B186 -> Customer 3 | C186: ='Input - Customer Inventory FY15'!C186 -> Bracket - T7 | D186: ='Input - Customer Inventory FY15'!D186 -> Bracket | E186: ='Input - Customer Inventory FY15'!E186 -> T7 | F186: ='Input - Customer Inventory FY15'!G186 -> 1 | G186: ='Input - Customer Inventory FY15'!F186 -> 0 | H186: ='Input - Customer Inventory FY15'!I186 -> 12.72328767 | I186: ='Input - Customer Inventory FY15'!J186 -> 20 | M186: 833.4186951
B187: ='Input - Customer Inventory FY15'!B187 -> Customer 3 | C187: ='Input - Customer Inventory FY15'!C187 -> Connection - EMPTY | D187: ='Input - Customer Inventory FY15'!D187 -> Connection | E187: ='Input - Customer Inventory FY15'!E187 -> EMPTY | F187: ='Input - Customer Inventory FY15'!G187 -> 1 | G187: ='Input - Customer Inventory FY15'!F187 -> 0 | H187: ='Input - Customer Inventory FY15'!I187 -> 11.9316895 | I187: ='Input - Customer Inventory FY15'!J187 -> 20 | M187: 0
B188: ='Input - Customer Inventory FY15'!B188 -> Customer 3 | C188: ='Input - Customer Inventory FY15'!C188 -> Connection - EMPTY | D188: ='Input - Customer Inventory FY15'!D188 -> Connection | E188: ='Input - Customer Inventory FY15'!E188 -> EMPTY | F188: ='Input - Customer Inventory FY15'!G188 -> 3 | G188: ='Input - Customer Inventory FY15'!F188 -> 0 | H188: ='Input - Customer Inventory FY15'!I188 -> 11.9316895 | I188: ='Input - Customer Inventory FY15'!J188 -> 20 | M188: 0
B189: ='Input - Customer Inventory FY15'!B189 -> Customer 3 | C189: ='Input - Customer Inventory FY15'!C189 -> Connection - O/U | D189: ='Input - Customer Inventory FY15'!D189 -> Connection | E189: ='Input - Customer Inventory FY15'!E189 -> O/U | F189: ='Input - Customer Inventory FY15'!G189 -> 1 | G189: ='Input - Customer Inventory FY15'!F189 -> 0 | H189: ='Input - Customer Inventory FY15'!I189 -> 10.35239726 | I189: ='Input - Customer Inventory FY15'!J189 -> 20 | M189: 1781.624584
B190: ='Input - Customer Inventory FY15'!B190 -> Customer 3 | C190: ='Input - Customer Inventory FY15'!C190 -> Connection - O/U | D190: ='Input - Customer Inventory FY15'!D190 -> Connection | E190: ='Input - Customer Inventory FY15'!E190 -> O/U | F190: ='Input - Customer Inventory FY15'!G190 -> 2 | G190: ='Input - Customer Inventory FY15'!F190 -> 0 | H190: ='Input - Customer Inventory FY15'!I190 -> 10.35239726 | I190: ='Input - Customer Inventory FY15'!J190 -> 20 | M190: 0
B191: ='Input - Customer Inventory FY15'!B191 -> Customer 3 | C191: ='Input - Customer Inventory FY15'!C191 -> Connection - O/U | D191: ='Input - Customer Inventory FY15'!D191 -> Connection | E191: ='Input - Customer Inventory FY15'!E191 -> O/U | F191: ='Input - Customer Inventory FY15'!G191 -> 3 | G191: ='Input - Customer Inventory FY15'!F191 -> 0 | H191: ='Input - Customer Inventory FY15'!I191 -> 10.35239726 | I191: ='Input - Customer Inventory FY15'!J191 -> 20 | M191: 0
B192: ='Input - Customer Inventory FY15'!B192 -> Customer 3 | C192: ='Input - Customer Inventory FY15'!C192 -> Connection - OH | D192: ='Input - Customer Inventory FY15'!D192 -> Connection | E192: ='Input - Customer Inventory FY15'!E192 -> OH | F192: ='Input - Customer Inventory FY15'!G192 -> 1 | G192: ='Input - Customer Inventory FY15'!F192 -> 0 | H192: ='Input - Customer Inventory FY15'!I192 -> 9.350341265 | I192: ='Input - Customer Inventory FY15'!J192 -> 20 | M192: 0
B193: ='Input - Customer Inventory FY15'!B193 -> Customer 3 | C193: ='Input - Customer Inventory FY15'!C193 -> Connection - OH | D193: ='Input - Customer Inventory FY15'!D193 -> Connection | E193: ='Input - Customer Inventory FY15'!E193 -> OH | F193: ='Input - Customer Inventory FY15'!G193 -> 2 | G193: ='Input - Customer Inventory FY15'!F193 -> 0 | H193: ='Input - Customer Inventory FY15'!I193 -> 9.350341265 | I193: ='Input - Customer Inventory FY15'!J193 -> 20 | M193: 0
B194: ='Input - Customer Inventory FY15'!B194 -> Customer 3 | C194: ='Input - Customer Inventory FY15'!C194 -> Connection - OH | D194: ='Input - Customer Inventory FY15'!D194 -> Connection | E194: ='Input - Customer Inventory FY15'!E194 -> OH | F194: ='Input - Customer Inventory FY15'!G194 -> 3 | G194: ='Input - Customer Inventory FY15'!F194 -> 0 | H194: ='Input - Customer Inventory FY15'!I194 -> 9.350341265 | I194: ='Input - Customer Inventory FY15'!J194 -> 20 | M194: 0
B195: ='Input - Customer Inventory FY15'!B195 -> Customer 3 | C195: ='Input - Customer Inventory FY15'!C195 -> Connection - OH2 | D195: ='Input - Customer Inventory FY15'!D195 -> Connection | E195: ='Input - Customer Inventory FY15'!E195 -> OH2 | F195: ='Input - Customer Inventory FY15'!G195 -> 1 | G195: ='Input - Customer Inventory FY15'!F195 -> 0 | H195: ='Input - Customer Inventory FY15'!I195 -> 10.93789954 | I195: ='Input - Customer Inventory FY15'!J195 -> 20 | M195: 0
B196: ='Input - Customer Inventory FY15'!B196 -> Customer 3 | C196: ='Input - Customer Inventory FY15'!C196 -> Connection - OH2 | D196: ='Input - Customer Inventory FY15'!D196 -> Connection | E196: ='Input - Customer Inventory FY15'!E196 -> OH2 | F196: ='Input - Customer Inventory FY15'!G196 -> 2 | G196: ='Input - Customer Inventory FY15'!F196 -> 0 | H196: ='Input - Customer Inventory FY15'!I196 -> 10.93789954 | I196: ='Input - Customer Inventory FY15'!J196 -> 20 | M196: 0
B197: ='Input - Customer Inventory FY15'!B197 -> Customer 3 | C197: ='Input - Customer Inventory FY15'!C197 -> Connection - UG2 | D197: ='Input - Customer Inventory FY15'!D197 -> Connection | E197: ='Input - Customer Inventory FY15'!E197 -> UG2 | F197: ='Input - Customer Inventory FY15'!G197 -> 1 | G197: ='Input - Customer Inventory FY15'!F197 -> 0 | H197: ='Input - Customer Inventory FY15'!I197 -> 11.98059361 | I197: ='Input - Customer Inventory FY15'!J197 -> 20 | M197: 0
B198: ='Input - Customer Inventory FY15'!B198 -> Customer 3 | C198: ='Input - Customer Inventory FY15'!C198 -> Connection - UG2 | D198: ='Input - Customer Inventory FY15'!D198 -> Connection | E198: ='Input - Customer Inventory FY15'!E198 -> UG2 | F198: ='Input - Customer Inventory FY15'!G198 -> 2 | G198: ='Input - Customer Inventory FY15'!F198 -> 0 | H198: ='Input - Customer Inventory FY15'!I198 -> 11.98059361 | I198: ='Input - Customer Inventory FY15'!J198 -> 20 | M198: 0
B199: ='Input - Customer Inventory FY15'!B199 -> Customer 3 | C199: ='Input - Customer Inventory FY15'!C199 -> Connection - UGR1 | D199: ='Input - Customer Inventory FY15'!D199 -> Connection | E199: ='Input - Customer Inventory FY15'!E199 -> UGR1 | F199: ='Input - Customer Inventory FY15'!G199 -> 1 | G199: ='Input - Customer Inventory FY15'!F199 -> 0 | H199: ='Input - Customer Inventory FY15'!I199 -> 6.444110293 | I199: ='Input - Customer Inventory FY15'!J199 -> 20 | M199: 66179.12271
B200: ='Input - Customer Inventory FY15'!B200 -> Customer 3 | C200: ='Input - Customer Inventory FY15'!C200 -> Connection - UGR1 | D200: ='Input - Customer Inventory FY15'!D200 -> Connection | E200: ='Input - Customer Inventory FY15'!E200 -> UGR1 | F200: ='Input - Customer Inventory FY15'!G200 -> 2 | G200: ='Input - Customer Inventory FY15'!F200 -> 0 | H200: ='Input - Customer Inventory FY15'!I200 -> 6.444110293 | I200: ='Input - Customer Inventory FY15'!J200 -> 20 | M200: 0
... 6451 more rows

Sheet Calc - RAB 2015-19
R1: 1 | S1: 2 | T1: 3 | U1: 4 | V1: 5
A2: Customer charges pa $000 | G2: Closing RAB @ 30 June 2014 ($'000 real FY09) | K2: Real Residual RAB (end period) | R2: Real straight line depreciation | X2: Real Residual RAB (start period) | AE2: Inflated nominal Residual RAB (start period) | AL2: Nominal Residual RAB (end period) | AS2: Nominal Depreciation | AY2: Indexation on Opening RAB | BE2: Nominal Regulatory Depreciation | BK2: Nominal Return on Assets | BQ2: Population | BS2: Replacement assets - Assets depreciated to zero value | BY2: Residual value recovery
A3: Customer | B3: Lookup | C3: Component | D3: Description | E3: Rate | G3: RAB | H3: Rem Life | I3: Dep'n | K3: FY14 | L3: FY15 | M3: FY16 | N3: FY17 | O3: FY18 | P3: FY19 | R3: FY15 | S3: FY16 | T3: FY17 | U3: FY18 | V3: FY19 | X3: FY15 | Y3: FY16 | Z3: FY17 | AA3: FY18 | AB3: FY19 | AC3: FY20 | AE3: FY15 | AF3: FY16 | AG3: FY17 | AH3: FY18 | AI3: FY19 | AJ3: FY20 | AL3: FY14 | AM3: FY15 | AN3: FY16 | AO3: FY17 | AP3: FY18 | AQ3: FY19 | AS3: FY15 | AT3: FY16 | AU3: FY17 | AV3: FY18 | AW3: FY19 | AY3: FY15 | AZ3: FY16 | BA3: FY17 | BB3: FY18 | BC3: FY19 | BE3: FY15 | BF3: FY16 | BG3: FY17 | BH3: FY18 | BI3: FY19 | BK3: FY15 | BL3: FY16 | BM3: FY17 | BN3: FY18 | BO3: FY19 | BQ3: FY15 | BS3: FY15 | BT3: FY16 | BU3: FY17 | BV3: FY18 | BW3: FY19 | BY3: FY15 | BZ3: FY16 | CA3: FY17 | CB3: FY18 | CC3: FY19
A5: ='Input - Customer Inventory FY15'!B3 -> Customer 1 | B5: ='Input - Customer Inventory FY15'!C3 -> Bracket - 0.5 | C5: ='Input - Customer Inventory FY15'!D3 -> Bracket | D5: ='Input - Customer Inventory FY15'!E3 -> 0.5 | E5: ='Input - Customer Inventory FY15'!G3 -> 1 | G5: ='Calc - FY15 RAB allocation'!M3/1000 -> 0 | H5: ='Calc - FY15 RAB allocation'!H3 -> 0 | I5: =IF(ISERROR(G5/H5),0,G5/H5) -> 0 | K5: =G5 -> 0 | L5: =K5-R5 - (BY5/(1+CPIFY15)) -> 0 | M5: =L5-S5 - (BZ5/(1+CPIFY16)) -> 0 | N5: =M5-T5 - (CA5/(1+CPIFY17)) -> 0 | O5: =N5-U5 - (CB5/(1+CPIFY18)) -> 0 | P5: =O5-V5 - (CC5/(1+CPIFY19)) -> 0 | R5: =IF(R$1>$H5,$G5-SUM(Q5:$Q5),$I5) -> 0 | S5: =IF(S$1>$H5,$G5-SUM($Q5:R5),$I5) -> 0 | T5: =IF(T$1>$H5,$G5-SUM($Q5:S5),$I5) -> 0 | U5: =IF(U$1>$H5,$G5-SUM($Q5:T5),$I5) -> 0 | V5: =IF(V$1>$H5,$G5-SUM($Q5:U5),$I5) -> 0 | X5: =K5 -> 0 | Y5: =L5 -> 0 | Z5: =M5 -> 0 | AA5: =N5 -> 0 | AB5: =O5 -> 0 | AC5: =P5 -> 0 | AE5: =X5*IndexCPIFY15 -> 0 | AF5: =Y5*IndexCPIFY16 -> 0 | AG5: =Z5*IndexCPIFY17 -> 0 | AH5: =AA5*IndexCPIFY18 -> 0 | AI5: =AB5*IndexCPIFY19 -> 0 | AJ5: =AC5*IndexCPIFY20 -> 0 | AL5: =K5*IndexCPIFY14 -> 0 | AM5: =L5*IndexCPIFY15 -> 0 | AN5: =M5*IndexCPIFY16 -> 0 | AO5: =N5*IndexCPIFY17 -> 0 | AP5: =O5*IndexCPIFY18 -> 0 | AQ5: =P5*IndexCPIFY19 -> 0 | AS5: =R5*IndexCPIFY15 -> 0 | AT5: =S5*IndexCPIFY16 -> 0 | AU5: =T5*IndexCPIFY17 -> 0 | AV5: =U5*IndexCPIFY18 -> 0 | AW5: =V5*IndexCPIFY19 -> 0 | AY5: =AL5*CPIFY15 -> 0 | AZ5: =AM5*CPIFY16 -> 0 | BA5: =AN5*CPIFY17 -> 0 | BB5: =AO5*CPIFY18 -> 0 | BC5: =AP5*CPIFY19 -> 0 | BE5: =AS5-AY5 -> 0 | BF5: =AT5-AZ5 -> 0 | BG5: =AU5-BA5 -> 0 | BH5: =AV5-BB5 -> 0 | BI5: =AW5-BC5 -> 0 | BK5: =AL5*WACC -> 0 | BL5: =AM5*WACC -> 0 | BM5: =AN5*WACC -> 0 | BN5: =AO5*WACC -> 0 | BO5: =AP5*WACC -> 0 | BQ5: =SUMIFS('Input - Customer Inventory FY15'!$F$3:$F$6650,'Input - Customer Inventory FY15'!$B$3:$B$6650,'Calc - RAB 2015-19'!A5,'Input - Customer Inventory FY15'!$C$3:$C$6650,'Calc - RAB 2015-19'!B5,'Input - Customer Inventory FY15'!$G$3:$G$6650,'Calc - RAB 2015-19'!E5) -> 0 | BS5: =IF($C5="Lamp",0,IF(SUM(BR5:$BR5)>=$BQ5,0,IF(BK5<=0,IF($G5=0,0,$BQ5),0))) -> 0 | BT5: =IF($C5="Lamp",0,IF(SUM($BR5:BS5)>=$BQ5,0,IF(BL5<=0,IF($G5=0,0,$BQ5),0))) -> 0 | BU5: =IF($C5="Lamp",0,IF(SUM($BR5:BT5)>=$BQ5,0,IF(BM5<=0,IF($G5=0,0,$BQ5),0))) -> 0 | BV5: =IF($C5="Lamp",0,IF(SUM($BR5:BU5)>=$BQ5,0,IF(BN5<=0,IF($G5=0,0,$BQ5),0))) -> 0 | BW5: =IF($C5="Lamp",0,IF(SUM($BR5:BV5)>=$BQ5,0,IF(BO5<=0,IF($G5=0,0,$BQ5),0))) -> 0
A6: ='Input - Customer Inventory FY15'!B4 -> Customer 1 | B6: ='Input - Customer Inventory FY15'!C4 -> Bracket - 0.5 | C6: ='Input - Customer Inventory FY15'!D4 -> Bracket | D6: ='Input - Customer Inventory FY15'!E4 -> 0.5 | E6: ='Input - Customer Inventory FY15'!G4 -> 2 | G6: ='Calc - FY15 RAB allocation'!M4/1000 -> 0 | H6: ='Calc - FY15 RAB allocation'!H4 -> 0 | I6: 0 | K6: =G6 -> 0 | L6: =K6-R6 - (BY6/(1+CPIFY15)) -> 0 | M6: =L6-S6 - (BZ6/(1+CPIFY16)) -> 0 | N6: =M6-T6 - (CA6/(1+CPIFY17)) -> 0 | O6: =N6-U6 - (CB6/(1+CPIFY18)) -> 0 | P6: =O6-V6 - (CC6/(1+CPIFY19)) -> 0 | R6: =IF(R$1>$H6,$G6-SUM(Q6:$Q6),$I6) -> 0 | S6: =IF(S$1>$H6,$G6-SUM($Q6:R6),$I6) -> 0 | T6: =IF(T$1>$H6,$G6-SUM($Q6:S6),$I6) -> 0 | U6: =IF(U$1>$H6,$G6-SUM($Q6:T6),$I6) -> 0 | V6: =IF(V$1>$H6,$G6-SUM($Q6:U6),$I6) -> 0 | X6: 0 | Y6: 0 | Z6: 0 | AA6: 0 | AB6: 0 | AC6: 0 | AE6: 0 | AF6: 0 | AG6: 0 | AH6: 0 | AI6: 0 | AJ6: 0 | AL6: 0 | AM6: 0 | AN6: 0 | AO6: 0 | AP6: 0 | AQ6: 0 | AS6: 0 | AT6: 0 | AU6: 0 | AV6: 0 | AW6: 0 | AY6: 0 | AZ6: 0 | BA6: 0 | BB6: 0 | BC6: 0 | BE6: 0 | BF6: 0 | BG6: 0 | BH6: 0 | BI6: 0 | BK6: 0 | BL6: 0 | BM6: 0 | BN6: 0 | BO6: 0 | BQ6: =SUMIFS('Input - Customer Inventory FY15'!$F$3:$F$6650,'Input - Customer Inventory FY15'!$B$3:$B$6650,'Calc - RAB 2015-19'!A6,'Input - Customer Inventory FY15'!$C$3:$C$6650,'Calc - RAB 2015-19'!B6,'Input - Customer Inventory FY15'!$G$3:$G$6650,'Calc - RAB 2015-19'!E6) -> 0 | BS6: =IF($C6="Lamp",0,IF(SUM(BR6:$BR6)>=$BQ6,0,IF(BK6<=0,IF($G6=0,0,$BQ6),0))) -> 0 | BT6: =IF($C6="Lamp",0,IF(SUM($BR6:BS6)>=$BQ6,0,IF(BL6<=0,IF($G6=0,0,$BQ6),0))) -> 0 | BU6: =IF($C6="Lamp",0,IF(SUM($BR6:BT6)>=$BQ6,0,IF(BM6<=0,IF($G6=0,0,$BQ6),0))) -> 0 | BV6: =IF($C6="Lamp",0,IF(SUM($BR6:BU6)>=$BQ6,0,IF(BN6<=0,IF($G6=0,0,$BQ6),0))) -> 0 | BW6: =IF($C6="Lamp",0,IF(SUM($BR6:BV6)>=$BQ6,0,IF(BO6<=0,IF($G6=0,0,$BQ6),0))) -> 0
A7: ='Input - Customer Inventory FY15'!B5 -> Customer 1 | B7: ='Input - Customer Inventory FY15'!C5 -> Bracket - 1.0 | C7: ='Input - Customer Inventory FY15'!D5 -> Bracket | D7: ='Input - Customer Inventory FY15'!E5 -> 1.0 | E7: ='Input - Customer Inventory FY15'!G5 -> 1 | G7: ='Calc - FY15 RAB allocation'!M5/1000 -> 1.072984799 | H7: ='Calc - FY15 RAB allocation'!H5 -> 12.56712329 | I7: 0.08538030337 | K7: 1.072984799 | L7: 0.9876044954 | M7: 0.9022241921 | N7: 0.8168438887 | O7: 0.7314635853 | P7: 0.646083282 | R7: =IF(R$1>$H7,$G7-SUM(Q7:$Q7),$I7) -> 0.08538030337 | S7: =IF(S$1>$H7,$G7-SUM($Q7:R7),$I7) -> 0.08538030337 | T7: =IF(T$1>$H7,$G7-SUM($Q7:S7),$I7) -> 0.08538030337 | U7: =IF(U$1>$H7,$G7-SUM($Q7:T7),$I7) -> 0.08538030337 | V7: =IF(V$1>$H7,$G7-SUM($Q7:U7),$I7) -> 0.08538030337 | X7: 1.072984799 | Y7: 0.9876044954 | Z7: 0.9022241921 | AA7: 0.8168438887 | AB7: 0.7314635853 | AC7: 0.646083282 | AE7: 1.119166065 | AF7: 1.055863768 | AG7: 0.9886968773 | AH7: 0.9175117275 | AI7: 0.8421493846 | AJ7: 0.7624454798 | AL7: 1.091869331 | AM7: 1.030110993 | AN7: 0.9645823193 | AO7: 0.8951333927 | AP7: 0.8216091558 | AQ7: 0.7438492486 | AS7: 0.08905507163 | AT7: 0.09128144842 | AU7: 0.09356348463 | AV7: 0.09590257175 | AW7: 0.09830013604 | AY7: 0.02729673328 | AZ7: 0.02575277482 | BA7: 0.02411455798 | BB7: 0.02237833482 | BC7: 0.02054022889 | BE7: 0.06175833835 | BF7: 0.0655286736 | BG7: 0.06944892665 | BH7: 0.07352423693 | BI7: 0.07775990715 | BK7: 0.1072215683 | BL7: 0.1011568995 | BM7: 0.09472198376 | BN7: 0.08790209916 | BO7: 0.0806820191 | BQ7: =SUMIFS('Input - Customer Inventory FY15'!$F$3:$F$6650,'Input - Customer Inventory FY15'!$B$3:$B$6650,'Calc - RAB 2015-19'!A7,'Input - Customer Inventory FY15'!$C$3:$C$6650,'Calc - RAB 2015-19'!B7,'Input - Customer Inventory FY15'!$G$3:$G$6650,'Calc - RAB 2015-19'!E7) -> 0 | BS7: =IF($C7="Lamp",0,IF(SUM(BR7:$BR7)>=$BQ7,0,IF(BK7<=0,IF($G7=0,0,$BQ7),0))) -> 0 | BT7: =IF($C7="Lamp",0,IF(SUM($BR7:BS7)>=$BQ7,0,IF(BL7<=0,IF($G7=0,0,$BQ7),0))) -> 0 | BU7: =IF($C7="Lamp",0,IF(SUM($BR7:BT7)>=$BQ7,0,IF(BM7<=0,IF($G7=0,0,$BQ7),0))) -> 0 | BV7: =IF($C7="Lamp",0,IF(SUM($BR7:BU7)>=$BQ7,0,IF(BN7<=0,IF($G7=0,0,$BQ7),0))) -> 0 | BW7: =IF($C7="Lamp",0,IF(SUM($BR7:BV7)>=$BQ7,0,IF(BO7<=0,IF($G7=0,0,$BQ7),0))) -> 0
A8: ='Input - Customer Inventory FY15'!B6 -> Customer 1 | B8: ='Input - Customer Inventory FY15'!C6 -> Bracket - 1.5 | C8: ='Input - Customer Inventory FY15'!D6 -> Bracket | D8: ='Input - Customer Inventory FY15'!E6 -> 1.5 | E8: ='Input - Customer Inventory FY15'!G6 -> 2 | G8: ='Calc - FY15 RAB allocation'!M6/1000 -> 0 | H8: ='Calc - FY15 RAB allocation'!H6 -> 12.91780822 | I8: 0 | K8: 0 | L8: 0 | M8: 0 | N8: 0 | O8: 0 | P8: 0 | R8: =IF(R$1>$H8,$G8-SUM(Q8:$Q8),$I8) -> 0 | S8: =IF(S$1>$H8,$G8-SUM($Q8:R8),$I8) -> 0 | T8: =IF(T$1>$H8,$G8-SUM($Q8:S8),$I8) -> 0 | U8: =IF(U$1>$H8,$G8-SUM($Q8:T8),$I8) -> 0 | V8: =IF(V$1>$H8,$G8-SUM($Q8:U8),$I8) -> 0 | X8: 0 | Y8: 0 | Z8: 0 | AA8: 0 | AB8: 0 | AC8: 0 | AE8: 0 | AF8: 0 | AG8: 0 | AH8: 0 | AI8: 0 | AJ8: 0 | AL8: 0 | AM8: 0 | AN8: 0 | AO8: 0 | AP8: 0 | AQ8: 0 | AS8: 0 | AT8: 0 | AU8: 0 | AV8: 0 | AW8: 0 | AY8: 0 | AZ8: 0 | BA8: 0 | BB8: 0 | BC8: 0 | BE8: 0 | BF8: 0 | BG8: 0 | BH8: 0 | BI8: 0 | BK8: 0 | BL8: 0 | BM8: 0 | BN8: 0 | BO8: 0 | BQ8: =SUMIFS('Input - Customer Inventory FY15'!$F$3:$F$6650,'Input - Customer Inventory FY15'!$B$3:$B$6650,'Calc - RAB 2015-19'!A8,'Input - Customer Inventory FY15'!$C$3:$C$6650,'Calc - RAB 2015-19'!B8,'Input - Customer Inventory FY15'!$G$3:$G$6650,'Calc - RAB 2015-19'!E8) -> 0 | BS8: =IF($C8="Lamp",0,IF(SUM(BR8:$BR8)>=$BQ8,0,IF(BK8<=0,IF($G8=0,0,$BQ8),0))) -> 0 | BT8: =IF($C8="Lamp",0,IF(SUM($BR8:BS8)>=$BQ8,0,IF(BL8<=0,IF($G8=0,0,$BQ8),0))) -> 0 | BU8: =IF($C8="Lamp",0,IF(SUM($BR8:BT8)>=$BQ8,0,IF(BM8<=0,IF($G8=0,0,$BQ8),0))) -> 0 | BV8: =IF($C8="Lamp",0,IF(SUM($BR8:BU8)>=$BQ8,0,IF(BN8<=0,IF($G8=0,0,$BQ8),0))) -> 0 | BW8: =IF($C8="Lamp",0,IF(SUM($BR8:BV8)>=$BQ8,0,IF(BO8<=0,IF($G8=0,0,$BQ8),0))) -> 0
A9: ='Input - Customer Inventory FY15'!B7 -> Customer 1 | B9: ='Input - Customer Inventory FY15'!C7 -> Bracket - 2.0 | C9: ='Input - Customer Inventory FY15'!D7 -> Bracket | D9: ='Input - Customer Inventory FY15'!E7 -> 2.0 | E9: ='Input - Customer Inventory FY15'!G7 -> 1 | G9: ='Calc - FY15 RAB allocation'!M7/1000 -> 26.17923442 | H9: ='Calc - FY15 RAB allocation'!H7 -> 2.003319186 | I9: 13.06792977 | K9: 26.17923442 | L9: 13.11130465 | M9: 0.0433748857 | N9: 0 | O9: 0 | P9: 0 | R9: =IF(R$1>$H9,$G9-SUM(Q9:$Q9),$I9) -> 13.06792977 | S9: =IF(S$1>$H9,$G9-SUM($Q9:R9),$I9) -> 13.06792977 | T9: =IF(T$1>$H9,$G9-SUM($Q9:S9),$I9) -> 0.0433748857 | U9: =IF(U$1>$H9,$G9-SUM($Q9:T9),$I9) -> 0 | V9: =IF(V$1>$H9,$G9-SUM($Q9:U9),$I9) -> 0 | X9: 26.17923442 | Y9: 13.11130465 | Z9: 0.0433748857 | AA9: 0 | AB9: 0 | AC9: 0 | AE9: 27.30598867 | AF9: 14.01750558 | AG9: 0.0475321039 | AH9: 0 | AI9: 0 | AJ9: 0 | AL9: 26.63998894 | AM9: 13.6756152 | AN9: 0.04637278429 | AO9: 0 | AP9: 0 | AQ9: 0 | AS9: 13.63037346 | AT9: 13.9711328 | AU9: 0.0475321039 | AV9: 0 | AW9: 0 | AY9: 0.6659997236 | AZ9: 0.3418903801 | BA9: 0.001159319607 | BB9: 0 | BC9: 0 | BE9: 12.96437374 | BF9: 13.62924242 | BG9: 0.04637278429 | BH9: 0 | BI9: 0 | BK9: 2.616046914 | BL9: 1.342945413 | BM9: 0.004553807418 | BN9: 0 | BO9: 0 | BQ9: =SUMIFS('Input - Customer Inventory FY15'!$F$3:$F$6650,'Input - Customer Inventory FY15'!$B$3:$B$6650,'Calc - RAB 2015-19'!A9,'Input - Customer Inventory FY15'!$C$3:$C$6650,'Calc - RAB 2015-19'!B9,'Input - Customer Inventory FY15'!$G$3:$G$6650,'Calc - RAB 2015-19'!E9) -> 0 | BS9: =IF($C9="Lamp",0,IF(SUM(BR9:$BR9)>=$BQ9,0,IF(BK9<=0,IF($G9=0,0,$BQ9),0))) -> 0 | BT9: =IF($C9="Lamp",0,IF(SUM($BR9:BS9)>=$BQ9,0,IF(BL9<=0,IF($G9=0,0,$BQ9),0))) -> 0 | BU9: =IF($C9="Lamp",0,IF(SUM($BR9:BT9)>=$BQ9,0,IF(BM9<=0,IF($G9=0,0,$BQ9),0))) -> 0 | BV9: =IF($C9="Lamp",0,IF(SUM($BR9:BU9)>=$BQ9,0,IF(BN9<=0,IF($G9=0,0,$BQ9),0))) -> 0 | BW9: =IF($C9="Lamp",0,IF(SUM($BR9:BV9)>=$BQ9,0,IF(BO9<=0,IF($G9=0,0,$BQ9),0))) -> 0
A10: ='Input - Customer Inventory FY15'!B8 -> Customer 1 | B10: ='Input - Customer Inventory FY15'!C8 -> Bracket - 2.0 | C10: ='Input - Customer Inventory FY15'!D8 -> Bracket | D10: ='Input - Customer Inventory FY15'!E8 -> 2.0 | E10: ='Input - Customer Inventory FY15'!G8 -> 2 | G10: ='Calc - FY15 RAB allocation'!M8/1000 -> 0 | H10: ='Calc - FY15 RAB allocation'!H8 -> 2.003319186 | I10: 0 | K10: 0 | L10: 0 | M10: 0 | N10: 0 | O10: 0 | P10: 0 | R10: =IF(R$1>$H10,$G10-SUM(Q10:$Q10),$I10) -> 0 | S10: =IF(S$1>$H10,$G10-SUM($Q10:R10),$I10) -> 0 | T10: =IF(T$1>$H10,$G10-SUM($Q10:S10),$I10) -> 0 | U10: =IF(U$1>$H10,$G10-SUM($Q10:T10),$I10) -> 0 | V10: =IF(V$1>$H10,$G10-SUM($Q10:U10),$I10) -> 0 | X10: 0 | Y10: 0 | Z10: 0 | AA10: 0 | AB10: 0 | AC10: 0 | AE10: 0 | AF10: 0 | AG10: 0 | AH10: 0 | AI10: 0 | AJ10: 0 | AL10: 0 | AM10: 0 | AN10: 0 | AO10: 0 | AP10: 0 | AQ10: 0 | AS10: 0 | AT10: 0 | AU10: 0 | AV10: 0 | AW10: 0 | AY10: 0 | AZ10: 0 | BA10: 0 | BB10: 0 | BC10: 0 | BE10: 0 | BF10: 0 | BG10: 0 | BH10: 0 | BI10: 0 | BK10: 0 | BL10: 0 | BM10: 0 | BN10: 0 | BO10: 0 | BQ10: =SUMIFS('Input - Customer Inventory FY15'!$F$3:$F$6650,'Input - Customer Inventory FY15'!$B$3:$B$6650,'Calc - RAB 2015-19'!A10,'Input - Customer Inventory FY15'!$C$3:$C$6650,'Calc - RAB 2015-19'!B10,'Input - Customer Inventory FY15'!$G$3:$G$6650,'Calc - RAB 2015-19'!E10) -> 0 | BS10: =IF($C10="Lamp",0,IF(SUM(BR10:$BR10)>=$BQ10,0,IF(BK10<=0,IF($G10=0,0,$BQ10),0))) -> 0 | BT10: =IF($C10="Lamp",0,IF(SUM($BR10:BS10)>=$BQ10,0,IF(BL10<=0,IF($G10=0,0,$BQ10),0))) -> 0 | BU10: =IF($C10="Lamp",0,IF(SUM($BR10:BT10)>=$BQ10,0,IF(BM10<=0,IF($G10=0,0,$BQ10),0))) -> 0 | BV10: =IF($C10="Lamp",0,IF(SUM($BR10:BU10)>=$BQ10,0,IF(BN10<=0,IF($G10=0,0,$BQ10),0))) -> 0 | BW10: =IF($C10="Lamp",0,IF(SUM($BR10:BV10)>=$BQ10,0,IF(BO10<=0,IF($G10=0,0,$BQ10),0))) -> 0
A11: ='Input - Customer Inventory FY15'!B9 -> Customer 1 | B11: ='Input - Customer Inventory FY15'!C9 -> Bracket - 2.5 | C11: ='Input - Customer Inventory FY15'!D9 -> Bracket | D11: ='Input - Customer Inventory FY15'!E9 -> 2.5 | E11: ='Input - Customer Inventory FY15'!G9 -> 1 | G11: ='Calc - FY15 RAB allocation'!M9/1000 -> 0.1168336967 | H11: ='Calc - FY15 RAB allocation'!H9 -> 2.111232877 | I11: 0.05533908552 | K11: 0.1168336967 | L11: 0.0614946112 | M11: 0.006155525677 | N11: 0 | O11: 0 | P11: 0 | R11: =IF(R$1>$H11,$G11-SUM(Q11:$Q11),$I11) -> 0.05533908552 | S11: =IF(S$1>$H11,$G11-SUM($Q11:R11),$I11) -> 0.05533908552 | T11: =IF(T$1>$H11,$G11-SUM($Q11:S11),$I11) -> 0.006155525677 | U11: =IF(U$1>$H11,$G11-SUM($Q11:T11),$I11) -> 0 | V11: =IF(V$1>$H11,$G11-SUM($Q11:U11),$I11) -> 0 | X11: 0.1168336967 | Y11: 0.0614946112 | Z11: 0.006155525677 | AA11: 0 | AB11: 0 | AC11: 0 | AE11: 0.121862219 | AF11: 0.06574487274 | AG11: 0.006745495264 | AH11: 0 | AI11: 0 | AJ11: 0 | AL11: 0.1188899698 | AM11: 0.06414133926 | AN11: 0.00658097099 | AO11: 0 | AP11: 0 | AQ11: 0 | AS11: 0.05772087976 | AT11: 0.05916390175 | AU11: 0.006745495264 | AV11: 0 | AW11: 0 | AY11: 0.002972249244 | AZ11: 0.001603533482 | BA11: 0.0001645242747 | BB11: 0 | BC11: 0 | BE11: 0.05474863052 | BF11: 0.05756036827 | BG11: 0.00658097099 | BH11: 0 | BI11: 0 | BK11: 0.01167499503 | BL11: 0.006298679515 | BM11: 0.0006462513512 | BN11: 0 | BO11: 0 | BQ11: =SUMIFS('Input - Customer Inventory FY15'!$F$3:$F$6650,'Input - Customer Inventory FY15'!$B$3:$B$6650,'Calc - RAB 2015-19'!A11,'Input - Customer Inventory FY15'!$C$3:$C$6650,'Calc - RAB 2015-19'!B11,'Input - Customer Inventory FY15'!$G$3:$G$6650,'Calc - RAB 2015-19'!E11) -> 0 | BS11: =IF($C11="Lamp",0,IF(SUM(BR11:$BR11)>=$BQ11,0,IF(BK11<=0,IF($G11=0,0,$BQ11),0))) -> 0 | BT11: =IF($C11="Lamp",0,IF(SUM($BR11:BS11)>=$BQ11,0,IF(BL11<=0,IF($G11=0,0,$BQ11),0))) -> 0 | BU11: =IF($C11="Lamp",0,IF(SUM($BR11:BT11)>=$BQ11,0,IF(BM11<=0,IF($G11=0,0,$BQ11),0))) -> 0 | BV11: =IF($C11="Lamp",0,IF(SUM($BR11:BU11)>=$BQ11,0,IF(BN11<=0,IF($G11=0,0,$BQ11),0))) -> 0 | BW11: =IF($C11="Lamp",0,IF(SUM($BR11:BV11)>=$BQ11,0,IF(BO11<=0,IF($G11=0,0,$BQ11),0))) -> 0
A12: ='Input - Customer Inventory FY15'!B10 -> Customer 1 | B12: ='Input - Customer Inventory FY15'!C10 -> Bracket - 3.0 | C12: ='Input - Customer Inventory FY15'!D10 -> Bracket | D12: ='Input - Customer Inventory FY15'!E10 -> 3.0 | E12: ='Input - Customer Inventory FY15'!G10 -> 1 | G12: ='Calc - FY15 RAB allocation'!M10/1000 -> 3.246337317 | H12: ='Calc - FY15 RAB allocation'!H10 -> 4.785996956 | I12: 0.6782990768 | K12: 3.246337317 | L12: 2.56803824 | M12: 1.889739163 | N12: 1.211440086 | O12: 0.5331410095 | P12: 3.330669074e-16 | R12: =IF(R$1>$H12,$G12-SUM(Q12:$Q12),$I12) -> 0.6782990768 | S12: =IF(S$1>$H12,$G12-SUM($Q12:R12),$I12) -> 0.6782990768 | T12: =IF(T$1>$H12,$G12-SUM($Q12:S12),$I12) -> 0.6782990768 | U12: =IF(U$1>$H12,$G12-SUM($Q12:T12),$I12) -> 0.6782990768 | V12: =IF(V$1>$H12,$G12-SUM($Q12:U12),$I12) -> 0.5331410095 | X12: 3.246337317 | Y12: 2.56803824 | Z12: 1.889739163 | AA12: 1.211440086 | AB12: 0.5331410095 | AC12: 3.330669074e-16 | AE12: 3.386059675 | AF12: 2.745530771 | AG12: 2.070859134 | AH12: 1.36073796 | AI12: 0.6138164389 | AJ12: 3.930535971e-16 | AL12: 3.303472853 | AM12: 2.678566606 | AN12: 2.020350375 | AO12: 1.327549229 | AP12: 0.5988453062 | AQ12: 3.83466924e-16 | AS12: 0.7074930691 | AT12: 0.7251803958 | AU12: 0.7433099057 | AV12: 0.7618926533 | AW12: 0.6138164389 | AY12: 0.08258682134 | AZ12: 0.06696416514 | BA12: 0.05050875938 | BB12: 0.03318873072 | BC12: 0.01497113265 | BE12: 0.6249062477 | BF12: 0.6582162306 | BG12: 0.6928011463 | BH12: 0.7287039226 | BI12: 0.5988453062 | BK12: 0.3244010342 | BL12: 0.2630352407 | BM12: 0.1983984068 | BN12: 0.1303653343 | BO12: 0.05880660907 | BQ12: =SUMIFS('Input - Customer Inventory FY15'!$F$3:$F$6650,'Input - Customer Inventory FY15'!$B$3:$B$6650,'Calc - RAB 2015-19'!A12,'Input - Customer Inventory FY15'!$C$3:$C$6650,'Calc - RAB 2015-19'!B12,'Input - Customer Inventory FY15'!$G$3:$G$6650,'Calc - RAB 2015-19'!E12) -> 0 | BS12: =IF($C12="Lamp",0,IF(SUM(BR12:$BR12)>=$BQ12,0,IF(BK12<=0,IF($G12=0,0,$BQ12),0))) -> 0 | BT12: =IF($C12="Lamp",0,IF(SUM($BR12:BS12)>=$BQ12,0,IF(BL12<=0,IF($G12=0,0,$BQ12),0))) -> 0 | BU12: =IF($C12="Lamp",0,IF(SUM($BR12:BT12)>=$BQ12,0,IF(BM12<=0,IF($G12=0,0,$BQ12),0))) -> 0 | BV12: =IF($C12="Lamp",0,IF(SUM($BR12:BU12)>=$BQ12,0,IF(BN12<=0,IF($G12=0,0,$BQ12),0))) -> 0 | BW12: =IF($C12="Lamp",0,IF(SUM($BR12:BV12)>=$BQ12,0,IF(BO12<=0,IF($G12=0,0,$BQ12),0))) -> 0
A13: ='Input - Customer Inventory FY15'!B11 -> Customer 1 | B13: ='Input - Customer Inventory FY15'!C11 -> Bracket - 3.0 | C13: ='Input - Customer Inventory FY15'!D11 -> Bracket | D13: ='Input - Customer Inventory FY15'!E11 -> 3.0 | E13: ='Input - Customer Inventory FY15'!G11 -> 2 | G13: ='Calc - FY15 RAB allocation'!M11/1000 -> 0 | H13: ='Calc - FY15 RAB allocation'!H11 -> 4.785996956 | I13: 0 | K13: 0 | L13: 0 | M13: 0 | N13: 0 | O13: 0 | P13: 0 | R13: =IF(R$1>$H13,$G13-SUM(Q13:$Q13),$I13) -> 0 | S13: =IF(S$1>$H13,$G13-SUM($Q13:R13),$I13) -> 0 | T13: =IF(T$1>$H13,$G13-SUM($Q13:S13),$I13) -> 0 | U13: =IF(U$1>$H13,$G13-SUM($Q13:T13),$I13) -> 0 | V13: =IF(V$1>$H13,$G13-SUM($Q13:U13),$I13) -> 0 | X13: 0 | Y13: 0 | Z13: 0 | AA13: 0 | AB13: 0 | AC13: 0 | AE13: 0 | AF13: 0 | AG13: 0 | AH13: 0 | AI13: 0 | AJ13: 0 | AL13: 0 | AM13: 0 | AN13: 0 | AO13: 0 | AP13: 0 | AQ13: 0 | AS13: 0 | AT13: 0 | AU13: 0 | AV13: 0 | AW13: 0 | AY13: 0 | AZ13: 0 | BA13: 0 | BB13: 0 | BC13: 0 | BE13: 0 | BF13: 0 | BG13: 0 | BH13: 0 | BI13: 0 | BK13: 0 | BL13: 0 | BM13: 0 | BN13: 0 | BO13: 0 | BQ13: =SUMIFS('Input - Customer Inventory FY15'!$F$3:$F$6650,'Input - Customer Inventory FY15'!$B$3:$B$6650,'Calc - RAB 2015-19'!A13,'Input - Customer Inventory FY15'!$C$3:$C$6650,'Calc - RAB 2015-19'!B13,'Input - Customer Inventory FY15'!$G$3:$G$6650,'Calc - RAB 2015-19'!E13) -> 0 | BS13: =IF($C13="Lamp",0,IF(SUM(BR13:$BR13)>=$BQ13,0,IF(BK13<=0,IF($G13=0,0,$BQ13),0))) -> 0 | BT13: =IF($C13="Lamp",0,IF(SUM($BR13:BS13)>=$BQ13,0,IF(BL13<=0,IF($G13=0,0,$BQ13),0))) -> 0 | BU13: =IF($C13="Lamp",0,IF(SUM($BR13:BT13)>=$BQ13,0,IF(BM13<=0,IF($G13=0,0,$BQ13),0))) -> 0 | BV13: =IF($C13="Lamp",0,IF(SUM($BR13:BU13)>=$BQ13,0,IF(BN13<=0,IF($G13=0,0,$BQ13),0))) -> 0 | BW13: =IF($C13="Lamp",0,IF(SUM($BR13:BV13)>=$BQ13,0,IF(BO13<=0,IF($G13=0,0,$BQ13),0))) -> 0
A14: ='Input - Customer Inventory FY15'!B12 -> Customer 1 | B14: ='Input - Customer Inventory FY15'!C12 -> Bracket - 3.5 | C14: ='Input - Customer Inventory FY15'!D12 -> Bracket | D14: ='Input - Customer Inventory FY15'!E12 -> 3.5 | E14: ='Input - Customer Inventory FY15'!G12 -> 1 | G14: ='Calc - FY15 RAB allocation'!M12/1000 -> 10.46653357 | H14: ='Calc - FY15 RAB allocation'!H12 -> 1.671643836 | I14: 6.261222247 | K14: 10.46653357 | L14: 4.205311326 | M14: 0 | N14: 0 | O14: 0 | P14: 0 | R14: =IF(R$1>$H14,$G14-SUM(Q14:$Q14),$I14) -> 6.261222247 | S14: =IF(S$1>$H14,$G14-SUM($Q14:R14),$I14) -> 4.205311326 | T14: =IF(T$1>$H14,$G14-SUM($Q14:S14),$I14) -> 0 | U14: =IF(U$1>$H14,$G14-SUM($Q14:T14),$I14) -> 0 | V14: =IF(V$1>$H14,$G14-SUM($Q14:U14),$I14) -> 0 | X14: 10.46653357 | Y14: 4.205311326 | Z14: 0 | AA14: 0 | AB14: 0 | AC14: 0 | AE14: 10.91701318 | AF14: 4.495965623 | AG14: 0 | AH14: 0 | AI14: 0 | AJ14: 0 | AL14: 10.65074456 | AM14: 4.386307925 | AN14: 0 | AO14: 0 | AP14: 0 | AQ14: 0 | AS14: 6.530705253 | AT14: 4.495965623 | AU14: 0 | AV14: 0 | AW14: 0 | AY14: 0.2662686141 | AZ14: 0.1096576981 | BA14: 0 | BB14: 0 | BC14: 0 | BE14: 6.264436639 | BF14: 4.386307925 | BG14: 0 | BH14: 0 | BI14: 0 | BK14: 1.045903116 | BL14: 0.4307354383 | BM14: 0 | BN14: 0 | BO14: 0 | BQ14: =SUMIFS('Input - Customer Inventory FY15'!$F$3:$F$6650,'Input - Customer Inventory FY15'!$B$3:$B$6650,'Calc - RAB 2015-19'!A14,'Input - Customer Inventory FY15'!$C$3:$C$6650,'Calc - RAB 2015-19'!B14,'Input - Customer Inventory FY15'!$G$3:$G$6650,'Calc - RAB 2015-19'!E14) -> 0 | BS14: =IF($C14="Lamp",0,IF(SUM(BR14:$BR14)>=$BQ14,0,IF(BK14<=0,IF($G14=0,0,$BQ14),0))) -> 0 | BT14: =IF($C14="Lamp",0,IF(SUM($BR14:BS14)>=$BQ14,0,IF(BL14<=0,IF($G14=0,0,$BQ14),0))) -> 0 | BU14: =IF($C14="Lamp",0,IF(SUM($BR14:BT14)>=$BQ14,0,IF(BM14<=0,IF($G14=0,0,$BQ14),0))) -> 0 | BV14: =IF($C14="Lamp",0,IF(SUM($BR14:BU14)>=$BQ14,0,IF(BN14<=0,IF($G14=0,0,$BQ14),0))) -> 0 | BW14: =IF($C14="Lamp",0,IF(SUM($BR14:BV14)>=$BQ14,0,IF(BO14<=0,IF($G14=0,0,$BQ14),0))) -> 0
A15: ='Input - Customer Inventory FY15'!B13 -> Customer 1 | B15: ='Input - Customer Inventory FY15'!C13 -> Bracket - 4.0 | C15: ='Input - Customer Inventory FY15'!D13 -> Bracket | D15: ='Input - Customer Inventory FY15'!E13 -> 4.0 | E15: ='Input - Customer Inventory FY15'!G13 -> 1 | G15: ='Calc - FY15 RAB allocation'!M13/1000 -> 1.130555836 | H15: ='Calc - FY15 RAB allocation'!H13 -> 1.73072407 | I15: 0.6532270829 | K15: 1.130555836 | L15: 0.477328753 | M15: 0 | N15: 0 | O15: 0 | P15: 0 | R15: =IF(R$1>$H15,$G15-SUM(Q15:$Q15),$I15) -> 0.6532270829 | S15: =IF(S$1>$H15,$G15-SUM($Q15:R15),$I15) -> 0.477328753 | T15: =IF(T$1>$H15,$G15-SUM($Q15:S15),$I15) -> 0 | U15: =IF(U$1>$H15,$G15-SUM($Q15:T15),$I15) -> 0 | V15: =IF(V$1>$H15,$G15-SUM($Q15:U15),$I15) -> 0 | X15: 1.130555836 | Y15: 0.477328753 | Z15: 0 | AA15: 0 | AB15: 0 | AC15: 0 | AE15: 1.179214959 | AF15: 0.5103198071 | AG15: 0 | AH15: 0 | AI15: 0 | AJ15: 0 | AL15: 1.150453619 | AM15: 0.4978729825 | AN15: 0 | AO15: 0 | AP15: 0 | AQ15: 0 | AS15: 0.6813419766 | AT15: 0.5103198071 | AU15: 0 | AV15: 0 | AW15: 0 | AY15: 0.02876134047 | AZ15: 0.01244682456 | BA15: 0 | BB15: 0 | BC15: 0 | BE15: 0.6525806361 | BF15: 0.4978729825 | BG15: 0 | BH15: 0 | BI15: 0 | BK15: 0.1129745453 | BL15: 0.04889112688 | BM15: 0 | BN15: 0 | BO15: 0 | BQ15: =SUMIFS('Input - Customer Inventory FY15'!$F$3:$F$6650,'Input - Customer Inventory FY15'!$B$3:$B$6650,'Calc - RAB 2015-19'!A15,'Input - Customer Inventory FY15'!$C$3:$C$6650,'Calc - RAB 2015-19'!B15,'Input - Customer Inventory FY15'!$G$3:$G$6650,'Calc - RAB 2015-19'!E15) -> 0 | BS15: =IF($C15="Lamp",0,IF(SUM(BR15:$BR15)>=$BQ15,0,IF(BK15<=0,IF($G15=0,0,$BQ15),0))) -> 0 | BT15: =IF($C15="Lamp",0,IF(SUM($BR15:BS15)>=$BQ15,0,IF(BL15<=0,IF($G15=0,0,$BQ15),0))) -> 0 | BU15: =IF($C15="Lamp",0,IF(SUM($BR15:BT15)>=$BQ15,0,IF(BM15<=0,IF($G15=0,0,$BQ15),0))) -> 0 | BV15: =IF($C15="Lamp",0,IF(SUM($BR15:BU15)>=$BQ15,0,IF(BN15<=0,IF($G15=0,0,$BQ15),0))) -> 0 | BW15: =IF($C15="Lamp",0,IF(SUM($BR15:BV15)>=$BQ15,0,IF(BO15<=0,IF($G15=0,0,$BQ15),0))) -> 0
A16: ='Input - Customer Inventory FY15'!B14 -> Customer 1 | B16: ='Input - Customer Inventory FY15'!C14 -> Bracket - 4.5 | C16: ='Input - Customer Inventory FY15'!D14 -> Bracket | D16: ='Input - Customer Inventory FY15'!E14 -> 4.5 | E16: ='Input - Customer Inventory FY15'!G14 -> 1 | G16: ='Calc - FY15 RAB allocation'!M14/1000 -> 0 | H16: ='Calc - FY15 RAB allocation'!H14 -> 0 | I16: 0 | K16: 0 | L16: 0 | M16: 0 | N16: 0 | O16: 0 | P16: 0 | R16: =IF(R$1>$H16,$G16-SUM(Q16:$Q16),$I16) -> 0 | S16: =IF(S$1>$H16,$G16-SUM($Q16:R16),$I16) -> 0 | T16: =IF(T$1>$H16,$G16-SUM($Q16:S16),$I16) -> 0 | U16: =IF(U$1>$H16,$G16-SUM($Q16:T16),$I16) -> 0 | V16: =IF(V$1>$H16,$G16-SUM($Q16:U16),$I16) -> 0 | X16: 0 | Y16: 0 | Z16: 0 | AA16: 0 | AB16: 0 | AC16: 0 | AE16: 0 | AF16: 0 | AG16: 0 | AH16: 0 | AI16: 0 | AJ16: 0 | AL16: 0 | AM16: 0 | AN16: 0 | AO16: 0 | AP16: 0 | AQ16: 0 | AS16: 0 | AT16: 0 | AU16: 0 | AV16: 0 | AW16: 0 | AY16: 0 | AZ16: 0 | BA16: 0 | BB16: 0 | BC16: 0 | BE16: 0 | BF16: 0 | BG16: 0 | BH16: 0 | BI16: 0 | BK16: 0 | BL16: 0 | BM16: 0 | BN16: 0 | BO16: 0 | BQ16: =SUMIFS('Input - Customer Inventory FY15'!$F$3:$F$6650,'Input - Customer Inventory FY15'!$B$3:$B$6650,'Calc - RAB 2015-19'!A16,'Input - Customer Inventory FY15'!$C$3:$C$6650,'Calc - RAB 2015-19'!B16,'Input - Customer Inventory FY15'!$G$3:$G$6650,'Calc - RAB 2015-19'!E16) -> 0 | BS16: =IF($C16="Lamp",0,IF(SUM(BR16:$BR16)>=$BQ16,0,IF(BK16<=0,IF($G16=0,0,$BQ16),0))) -> 0 | BT16: =IF($C16="Lamp",0,IF(SUM($BR16:BS16)>=$BQ16,0,IF(BL16<=0,IF($G16=0,0,$BQ16),0))) -> 0 | BU16: =IF($C16="Lamp",0,IF(SUM($BR16:BT16)>=$BQ16,0,IF(BM16<=0,IF($G16=0,0,$BQ16),0))) -> 0 | BV16: =IF($C16="Lamp",0,IF(SUM($BR16:BU16)>=$BQ16,0,IF(BN16<=0,IF($G16=0,0,$BQ16),0))) -> 0 | BW16: =IF($C16="Lamp",0,IF(SUM($BR16:BV16)>=$BQ16,0,IF(BO16<=0,IF($G16=0,0,$BQ16),0))) -> 0
A17: ='Input - Customer Inventory FY15'!B15 -> Customer 1 | B17: ='Input - Customer Inventory FY15'!C15 -> Bracket - 4.5 | C17: ='Input - Customer Inventory FY15'!D15 -> Bracket | D17: ='Input - Customer Inventory FY15'!E15 -> 4.5 | E17: ='Input - Customer Inventory FY15'!G15 -> 2 | G17: ='Calc - FY15 RAB allocation'!M15/1000 -> 0 | H17: ='Calc - FY15 RAB allocation'!H15 -> 0 | I17: 0 | K17: 0 | L17: 0 | M17: 0 | N17: 0 | O17: 0 | P17: 0 | R17: =IF(R$1>$H17,$G17-SUM(Q17:$Q17),$I17) -> 0 | S17: =IF(S$1>$H17,$G17-SUM($Q17:R17),$I17) -> 0 | T17: =IF(T$1>$H17,$G17-SUM($Q17:S17),$I17) -> 0 | U17: =IF(U$1>$H17,$G17-SUM($Q17:T17),$I17) -> 0 | V17: =IF(V$1>$H17,$G17-SUM($Q17:U17),$I17) -> 0 | X17: 0 | Y17: 0 | Z17: 0 | AA17: 0 | AB17: 0 | AC17: 0 | AE17: 0 | AF17: 0 | AG17: 0 | AH17: 0 | AI17: 0 | AJ17: 0 | AL17: 0 | AM17: 0 | AN17: 0 | AO17: 0 | AP17: 0 | AQ17: 0 | AS17: 0 | AT17: 0 | AU17: 0 | AV17: 0 | AW17: 0 | AY17: 0 | AZ17: 0 | BA17: 0 | BB17: 0 | BC17: 0 | BE17: 0 | BF17: 0 | BG17: 0 | BH17: 0 | BI17: 0 | BK17: 0 | BL17: 0 | BM17: 0 | BN17: 0 | BO17: 0 | BQ17: =SUMIFS('Input - Customer Inventory FY15'!$F$3:$F$6650,'Input - Customer Inventory FY15'!$B$3:$B$6650,'Calc - RAB 2015-19'!A17,'Input - Customer Inventory FY15'!$C$3:$C$6650,'Calc - RAB 2015-19'!B17,'Input - Customer Inventory FY15'!$G$3:$G$6650,'Calc - RAB 2015-19'!E17) -> 0 | BS17: =IF($C17="Lamp",0,IF(SUM(BR17:$BR17)>=$BQ17,0,IF(BK17<=0,IF($G17=0,0,$BQ17),0))) -> 0 | BT17: =IF($C17="Lamp",0,IF(SUM($BR17:BS17)>=$BQ17,0,IF(BL17<=0,IF($G17=0,0,$BQ17),0))) -> 0 | BU17: =IF($C17="Lamp",0,IF(SUM($BR17:BT17)>=$BQ17,0,IF(BM17<=0,IF($G17=0,0,$BQ17),0))) -> 0 | BV17: =IF($C17="Lamp",0,IF(SUM($BR17:BU17)>=$BQ17,0,IF(BN17<=0,IF($G17=0,0,$BQ17),0))) -> 0 | BW17: =IF($C17="Lamp",0,IF(SUM($BR17:BV17)>=$BQ17,0,IF(BO17<=0,IF($G17=0,0,$BQ17),0))) -> 0
A18: ='Input - Customer Inventory FY15'!B16 -> Customer 1 | B18: ='Input - Customer Inventory FY15'!C16 -> Bracket - 5.0 | C18: ='Input - Customer Inventory FY15'!D16 -> Bracket | D18: ='Input - Customer Inventory FY15'!E16 -> 5.0 | E18: ='Input - Customer Inventory FY15'!G16 -> 1 | G18: ='Calc - FY15 RAB allocation'!M16/1000 -> 0.4849764603 | H18: ='Calc - FY15 RAB allocation'!H16 -> 0.5141552511 | I18: 0.9432490658 | K18: 0.4849764603 | L18: 0 | M18: 0 | N18: 0 | O18: 0 | P18: 0 | R18: =IF(R$1>$H18,$G18-SUM(Q18:$Q18),$I18) -> 0.4849764603 | S18: =IF(S$1>$H18,$G18-SUM($Q18:R18),$I18) -> 0 | T18: =IF(T$1>$H18,$G18-SUM($Q18:S18),$I18) -> 0 | U18: =IF(U$1>$H18,$G18-SUM($Q18:T18),$I18) -> 0 | V18: =IF(V$1>$H18,$G18-SUM($Q18:U18),$I18) -> 0 | X18: 0.4849764603 | Y18: 0 | Z18: 0 | AA18: 0 | AB18: 0 | AC18: 0 | AE18: 0.5058498472 | AF18: 0 | AG18: 0 | AH18: 0 | AI18: 0 | AJ18: 0 | AL18: 0.493512046 | AM18: 0 | AN18: 0 | AO18: 0 | AP18: 0 | AQ18: 0 | AS18: 0.5058498472 | AT18: 0 | AU18: 0 | AV18: 0 | AW18: 0 | AY18: 0.01233780115 | AZ18: 0 | BA18: 0 | BB18: 0 | BC18: 0 | BE18: 0.493512046 | BF18: 0 | BG18: 0 | BH18: 0 | BI18: 0 | BK18: 0.04846288292 | BL18: 0 | BM18: 0 | BN18: 0 | BO18: 0 | BQ18: =SUMIFS('Input - Customer Inventory FY15'!$F$3:$F$6650,'Input - Customer Inventory FY15'!$B$3:$B$6650,'Calc - RAB 2015-19'!A18,'Input - Customer Inventory FY15'!$C$3:$C$6650,'Calc - RAB 2015-19'!B18,'Input - Customer Inventory FY15'!$G$3:$G$6650,'Calc - RAB 2015-19'!E18) -> 0 | BS18: =IF($C18="Lamp",0,IF(SUM(BR18:$BR18)>=$BQ18,0,IF(BK18<=0,IF($G18=0,0,$BQ18),0))) -> 0 | BT18: =IF($C18="Lamp",0,IF(SUM($BR18:BS18)>=$BQ18,0,IF(BL18<=0,IF($G18=0,0,$BQ18),0))) -> 0 | BU18: =IF($C18="Lamp",0,IF(SUM($BR18:BT18)>=$BQ18,0,IF(BM18<=0,IF($G18=0,0,$BQ18),0))) -> 0 | BV18: =IF($C18="Lamp",0,IF(SUM($BR18:BU18)>=$BQ18,0,IF(BN18<=0,IF($G18=0,0,$BQ18),0))) -> 0 | BW18: =IF($C18="Lamp",0,IF(SUM($BR18:BV18)>=$BQ18,0,IF(BO18<=0,IF($G18=0,0,$BQ18),0))) -> 0
